Workbook

Sheet Welcome
E2: Return on investment of interventions for the prevention and treatment of musculoskeletal (MSK) conditions
E8: NOTE: MACROS MUST BE ENABLED FOR THIS TOOL TO FUNCTION, THE TOOL IS OPTIMISED FOR WINDOWS.
E10: This is a tool that has been designed to aid healthcare commissioners and providers in England who wish to assess the cost-effectiveness of interventions for the prevention musculoskeletal (MSK) conditions. The tool has been commissioned by Public Health England and developed by York Health Economics Consortium. It is hoped that the tool will aid decision-making and increase the uptake of cost-effective interventions aimed at the prevention of MSK conditions. Conditions within the scope of this tool are: - Lower back pain - Chronic knee pain - Osteoarthritis (hip and knee) In total seven separate interventions are included that have previously been found to be cost-effective. These interventions are: - Cognitive behavioural therapy (CBT), including exercise – lower back pain - STarT Back (Stratified risk assessment and care) – lower back pain - PhysioDirect - Early telephone assessment and advice - all MSK conditions - Self-referral to physiotherapy – all MSK conditions - Yoga for Healthy Lower Backs (this is the name of the specific intervention) - ESCAPE-pain for knee pain - Vocational advice from physiotherapists in primary care These interventions cover back and knee pain specifically or all MSK pain generally. Cost effectiveness evidence on interventions specifically for neck pain or osteoarthritis of the hip were not identified. This absence of cost effectiveness evidence does not mean that interventions for these specific conditions or other interventions are not cost effective but rather that the evidence on their cost effectiveness is yet to be established. Using the tool it is possible to assess the return on investment from adopting each intervention within a specific geographical area e.g. an individual local authority or Clinical Commissioning Group (CCG) and the tool is pre-populated with relevant English data to allow this. However, it is also possible to insert alternative data to analyse new scenarios (e.g. a reduction in costs for a specific intervention). The tool contains an in-built user guide that aims to give a step-by-step explanation of how to undertake an analysis, including updating the input data. It is recommended that the 'Information' section is read before undertaking any form of analysis. The 'Information' section can be accessed using the button on the left. Note that the evidence available is on the economic benefits of intervention to the general population and so cannot be directly used to identify interventions that may address local inequalities in income or access to care.
E11: Other tools that may be of use in assessing the cost effectiveness of MSK intervention that are endorsed by PHE include:
E17: Other calculators and toolkits that may assist commissioners of MSK interventions include:
E18: The Arthritis Research UK MSK calculator
E19: The PHE workplace health toolkit
E20: The Fracture Liaison Service (FLS) benefits calculator
E22: PHE acknowledges the assistance provided by Arthritis Research UK for the provision of prevalence information in the tool.
E24: For more information about the role of prevention in musculoskeletal health, please see Arthritis Research UK’s reports:
E25: Musculoskeletal health: a public health approach
E26: Providing physical activity interventions for people with musculoskeletal conditions
E28: The report on the model development (Return on Investment of Interventions for the Prevention and Treatment of Musculoskeletal Conditions: Final Report September 2017) and the literature review underpinning the tool (Return on Investment of Interventions for the Prevention and Treatment of Musculoskeletal Conditions: Report of Literature Review June 2017) have been published alongside this tool

Sheet records not included (hidden)
C2: Bibliographic details | G2: Description of study | P2: Evidence | AA2: Include record?
P3: Intervention | T3: Outcomes | Y3: Other info requested by PHE
B4: Full Text Available | C4: EN refID | D4: Author | E4: Title | F4: Publication details/number, date etc | G4: Description of the study/report | H4: Which of the 7 interventions is it most relevant to | I4: Country of study and setting | J4: Participant characteristics if stated (age, sex, ethnic origin, condition status and comorbidity) | K4: Comparator details (who, where when) | L4: Sample size (intervention and comparator, numbers starting and finishing) | M4: Methods of analysis (type of economic analysis, data sources, time horizon, discount rates, perspective and measures of uncertainty) | N4: Study type | O4: Study quality (if relevant) - score and reviewers comments DON'T COMPLETE - DO A TEMPLATE FOR INCLUDED STUDIES ONLY | P4: Overview of intervention (who, where, when) | Q4: MSK condition of relevance | R4: Programme/ intervention costs (if reported) | S4: Timeframe: over which intervention delivered | T4: Primary outcome measure relating to MSK condition (description) | U4: Other outcome measures relating to MSK condition (description) | V4: Outcome data (values, including effect size, CIs etc) | W4: Time at which outcomes are reported | X4: Resource utilisation outcomes | Y4: Factors found to be critical to the success of the intervention | Z4: Stakeholders 'affected' by the intervention e.g. physiotherapists, GPs | AA4: Y/N | AB4: Comments/notes including potential use in economic model | AC4: Reviewer
B5: Stage one records
B7: * | C7: 5047 | D7: L.-H. Chuang, M. O. Soares, H. Tilbrook, H. Cox, C. E. Hewitt, J. Aplin, A. Semlyen, A. Trewhela, I. Watt and D. J. Torgerson | E7: A pragmatic multicentered randomized controlled trial of yoga for chronic low back pain: economic evaluation | F7: 2012 Spine 37 (18) 1593-601 | G7: Multicentred RCTwith QOL and resource use for yoga for chronic back pain. | H7: Group physical activity classes for back pain | I7: UK (Cornwall, N & W London, Manchester, York); primary and community care. | J7: Patients aged 18-65 who had consulted GP about LBP in previous 18 months. | K7: Yoga arm received 12 week course of yoga (75 min weekly class) + educational material and usual care. Control arm received usual care pus 1 yoga class after follow up. | L7: 313 participants: 156 in yoga arm and 157 in usual care arm. | M7: Cost effectiveness analysis with 12 month time horizon from NHS and societal perspectives. No discounting needed. | N7: RCTs with definitive results (no overlapping CIs) | P7: Yoga arm received 12 week course of yoga (75 min weekly class) + relaxation CD, student yoga manual, yoga mat, the Back Book, education booklet for improving back pain and usual care. Control arm received usual care, copy of Back Book, plus 1 yoga class after follow up. 16 classes offered in trial with max 15 per class. Follow up at 3, 6, and 12 months. | Q7: LBP | R7: Costs of yoga intervention (cost of teaching and cost of equipment) estimated at £41,941 + £3,706. Cost per participant in yoga arm = £292.61. | S7: 12 weeks. | T7: QALY. NHS perspective only used resources in NHS setting. Societal perspective also included personal expenses such as private treatments and equipment, as well as productivity losses. | U7: EQ-5D scores | V7: NHS perspective: Yoga arm gained 0.037 QALYs more than control arm at increased cost of £506.8 per patient = ICER £13,606. 72% chance of cost-effectiveness at £20k WTP. Societal perspective: Yoga arm gained 0.037 QALYs and was £213.9 lower cost so dominant. | W7: 12 months | X7: NHS costs: yoga arm £762.0; control arm £529.7 Private health costs: yoga arm £331.3; control arm £439.3 Private equipment costs: yoga arm £59.9; control arm £129.0 Productivity loss: yoga arm 3.83 (days off work due to LBP) (SD 11.68); control arm 12.39 days (SD 26.07) (+days off for unpaid activity) Lost of productivity cost: yoga arm £374.2; control arm £1,201.8 Mean societal cost in control arm £2,319.2, £817 more than yoga arm | Y7: Provision of yoga classes. | Z7: GPs | AA7: Yes | AB7: Good quality study covering productivity and resource use costs, plus QALYs. | AC7: Nick
B8: *
B9: *
B10: *
B11: *
B12: *
B13: *
B14: Abstract only - not able to get full paper (also have study protocol) | C14: 5272 | D14: G Wynne-Jones, M Artus, A Bishop, SA Lawton, M Lewis, C Main, G Sowden, S Wathall, AK Burton, D van der Windt, EM Hay, NE Foster | E14: Does a vocational advice service located in primary care improve work outcomes in patients with musculoskeletal pain? The SWAP (Study of Work and Pain) cluster randomised trial | F14: Rheumatology 2016; 55 (suppl_1): i50 | G14: Paper presents summary of the study, plus the study protocol | H14: SWAP - vocational advice in primary care | I14: UK, South Staffordshire, GP practices | J14: Patients were ≥18 years, absent from work ≤6 months or struggling at work due to MSK pain. | K14: Best current care | L14: 338 participants (158 intervention, 180 control) were recruited with 79% followed-up at 4 months. | M14: A cost-consequence analysis will initially be reported, describing all the important results relating to costs and consequences (across the full range of clinical outcomes). Subsequently, two methods of economic evaluation will be used. A cost-effectiveness analysis will be undertaken from a healthcare perspective to determine the cost per additional day of work absence avoided. A cost-benefit analysis will also be undertaken from a broader societal perspective to calculate the net societal benefit of the vocational advice service, by subtracting the difference in direct health care costs (costs) between the groups from the difference in indirect productivity costs (benefits) between the trial arms. | N14: RCTs with definitive results (no overlapping CIs) | P14: Vocational advice (VA) service to provide a structured approach to managing work related issues. Patients who require help and support in remaining at or returning to work may be referred to the vocational advice service by their GP or NP. Referred patients will be contacted by a vocational advisor, seven days after receipt of the referral who will help the patient to identify and overcome obstacles to remaining at or returning to work. The Flags model of management of the health and work interface will be used to structure the vocational advice service - identification of obstacles to working with health conditions, development of a plan to manage health and work, taking action to address the issues each individual patient is facing with respect to managing their musculoskeletal condition in the workplace and re-evaluating the patient’s situation regularly until a sustained return to work is achieved - a goal oriented approach | Q14: MSK but particualrly spinal pain | R14: In order to obtain the cost of the vocational advice service, information on the type and number of contacts with the vocational advisor (telephone calls or visits) will be obtained and unit costs applied to calculate overall cost of the intervention. | S14: Not reported | T14: Number of days off work over 4 months from entry into the trial | U14: Self-reported time off work (in binary form (yes/no)) will be a secondary outcome - medical record review based sick certification periods over 12 months follow-up. Also, Selfefficacy to Return to Work Questionnaire [34], pain intensity (0–10 rating scales), bothersomeness (1–5 rating scale), global assessment of change and work performance (SPS6). | V14: Participants in the intervention arm had significantly fewer days absent over 4 months (mean 9.3 days, SD 21.7) compared with control (mean 14.4 days, SD 27.7); adjusted incidence rate ratio (IRR) 0.51 (0.26, 0.99), p=0.048. This difference was largely due to fewer GP certified absent days (8.4 days versus 13.5 days). At 12 months the effect of the VA service was significantly greater in those with spinal pain compared to patients with other MSK problems (IRRinteraction: 0.25 (95% Confidence Interval 0.10, 0.62) (p interaction=0.003). | W14: 4 and 12 months | X14: Not reported in abstract | AA14: Yes | AB14: Need more detail though | AC14: Jo

Sheet 1a Model guide (hidden)
E2: Return on investment of interventions for the prevention and treatment of musculoskeletal (MSK) conditions
E10: The tool is separated into three main sections: Information (currently selected), Inputs and Results. You can navigate between these using the buttons on the left hand side. Within each section there are also a number of sub-sections and it is possible to navigate amongst them using the buttons at the top of each page (as seen above).
E11: Users can make selections using drop down boxes. Cells in the tool either contain data for information, are calculations or can be modified by the user. Cells that are for information only and cannot be changed by the user are in grey. These values have been sourced from the literature or from robust data sources. Cells that are coloured blue contain calculations and these can also not be changed by the user. The cells that contain data for the tool input parameters that require a value from the user have a yellow background. Finally, there are a few instances where values from the literature could not be identified and assumptions had to be made. These are coloured green.

Sheet 1b Model steps (hidden)
E2: Return on investment of interventions for the prevention and treatment of musculoskeletal (MSK) conditions
E10: A number of steps must be followed in order to generate relevant results regarding the return on investment for commissioning each of the seven interventions included in the tool. If you do not wish to update the data sources used for the tool input parameters then it will be possible to generate results using the default data once a small number of variables have been chosen (e.g. geographical location, intervention choice). However, if you wish to update the values using data specific to your local area this will require further steps to generate appropriate results. These steps are summarised below and more information on updating input parameters is given in the user guide that is in-built into the tool.
E12: STEP 1:INPUTS
E14: Step 1a: Intervention (2a)
E15: The return on investment for each included intervention must be assessed individually. Therefore, only one intervention can be chosen for the analysis and this choice should be made using the dropdown menu on the 'Interventions' (2a) sheet. Within the tool each intervention is compared to current usual care. On this sheet details about the intervention and the study underpinning the analysis are provided.
E18: Step 1b: Population (2b)
E19: Each analysis is undertaken for a specific population. Therefore, the size of this population must be selected. Once you have navigated to the 'Population' sheet a specific geographical area can be selected from a pre-defined list using the dropdown menu. This provides the total population in the area as well as the estimated prevalence of the MSK condition the chosen intervention targets. The user must input the percentage of the prevalent population that they wish to target with the intervention. It is also possible to input a new value into the 'user defined' cell if you wish to test a population size that isn't included in the list.
E22: Step 1c: Unit costs (2c)
E23: It is important to accurately capture the unit costs of each of the interventions included in the tool. Some of these costs are generic across a number of interventions (such as physiotherapist costs) and these are shown in this sheet. These costs have already been captured based on information available in the literature or from experts engaged by PHE in constructing the tool. However, unit costs can vary locally and so all the unit cost values can be changed by the user although the default values are those from the literature or experts.
E26: Step 1d: Other inputs (2d)
E27: Other inputs related to resource use specific to each intervention are provided in this sheet. The effectiveness of each intervention is closely related to the setup of the intervention (e.g. the number of staff required to administer the intervention). As such, if resource use in particular is changed here (such as the grade of physio delivering an intervention it is unclear what impact this has on effectiveness and so the results would no longer be evidenced from the literature. As such users cannot change the values in this sheet and it is for information only.
E30: Step 1e: Effectiveness (2e)
E31: The final set of input parameters are given in the 'Effectiveness' (2e) page. This page includes the change in overall cost per patient and other measures of effectiveness relevant to the intervention, such as QALYs or health outcome measures such as the WOMAC score. These data are used to estimate the savings and return on investment achieved by each intervention given the size of the population selected previously. The user cannot change any values in the effectiveness sheet and it is for information only.
E34: STEP 2: RESULTS
E36: Step 2a: Results summary
E37: The tool will automatically produce results based on the parameters that are selected in the Inputs section. The main metric for the tool is the return on investment for each intervention. The return on investment is calculated using the equation outlined below and will be shown on the 'Results summary' page. The ROI is calculated three ways: only including healthcare costs and savings, including the monetary value of QALYs gained and finally including both the value of QALYs gained and the financial value of changes in productivity (work days saved)
E39: ROI = ∑Total discounted benefits ∑Total discounted costs
E41: Step 2b: Sensitivity analysis
E42: The tool provides sensitivity analysis against the variables in the model where there is uncertainty that is not captured in the confidence intervals reported in the underlying studies. Due to the nature of the evidence, the parameters that can be varied are limited.

Sheet 1c Example (hidden)
E2: Return on investment of interventions for the prevention and treatment of musculoskeletal (MSK) conditions
E9: As an example, assume that Doncaster CCG wishes to explore the potential ROI on interventions to support people with knee pain. Please scroll down to follow the example.
E11: Step 1a: Intervention (2a): the user first selects an intervention related to knee pain - in this case ESCAPE-Pain for knee pain
E13: Click here to see
E15: Step 1b: Population (2b): The user selects the population of interest (Doncaster CCG) by first selecting the commissioning body type (CCG) and then "Doncaster CCG" from the dropdown list. The user in this case has selected "Model Calculated" for the population source and so the tool automatically provides an estimate of the number of people aged 45 or over with knee pain in the Doncaster CCG area. In the yellow box, the user must enter the percentage of people they believe will access the intervention in a year. In this case it is set to 50%
E18: Click here to see
E20: Step 1c: Unit costs (2c). The user in this case is satisfied the unit costs represent those in Doncaster CCG. If not, any changes would be made in the yellow box
E22: Click here to see
E24: Step 1d: Other inputs (2d) and Step 1e: Effectiveness (2e). These sheets are information only.
E26: Step 2a: Results summary. In this example the time horizon is 30 months. The costs per patient are calculated to be £327.71 or £3.09 million for the population of 9,426 that the intervention is targeted to assist. This cost is offset by a potential healthcare saving of £1,622 per patient resulting in a net saving from the intervention of £1,294 per patient or potentially £12.2 million for the targeted population. However, looking at the confidence intervals, at the lower bound for cost savings the intervention may actually have a total net cost of £63,233 or the saving could be as high as £32.0 million. This is reflected in the Financial ROI were the lower bound is a return of £0.98 for every £1 spent but the upper bound is £11.36 for every pound spent. Commissioners should therefore keep in mind that as the range of ROIs that are between the lower and upper bounds included £1:£1 the intervention may actually cost money rather than save it. For this intervention, there are no QALY or productivity gains, but patient outcomes in the form of the WOMAC score are available and presented
E30: Click here to see
E32: Step 2b: Sensitivity analysis. For ESCAPE-Pain for knee pain, no parameters could be varied in the sensitivity analysis. For interventions where parameters can be varied, the blue dot on the line represents the base case position.

Sheet 1d Disclaimer (hidden)
E2: Return on investment of interventions for the prevention and treatment of musculoskeletal (MSK) conditions
E12: Disclaimer Public Health England has provided this tool to aid decision-making and cannot be held liable for any investment or other decisions that are made using information obtained from the tool. The best available evidence has been used in the tool and assumptions have been clearly stated. Commissioners and providers of musculoskeletal services (MSK) using this tool are advised to seek the support of their local public health team and MSK clinical leads for additional advice. Acknowledgement We would like to thank all of the individuals who contributed towards the development of the tool throughout the testing and quality assurance process. This includes all members of the Steering Group and the User Group who provided advice and expertise. Citation Any analysis based on this tool should acknowledge the use of the tool as follows: Public Health England. Return on investment of interventions for the prevention of musculoskeletal (MSK) conditions. Published October 2017 PHE publications gateway number 2017209 © Crown copyright 2017

Sheet 2a Interventions (hidden)
E2: Return on investment of interventions for the prevention and treatment of musculoskeletal (MSK) conditions
W8: Lower back pain
W9: Chronic knee pain
W10: All MSK conditions
E13: Select intervention for analysis: | F13: =IF(F14=1,"Cognitive behavioural therapy (CBT), including exercise - lower back pain",IF(F14=2,"STarT Back (stratified risk assessment and care) - lower back pain",IF(F14=3,"PhysioDirect - Early telephone assessment and advice - all MSK conditions",IF(F14=4,"Self-referral to physiotherapy - all MSK conditions",IF(F14=5,"Yoga for Healthy Lower Backs",IF(F14=6,"ESCAPE-Pain for knee pain","Vocational advice from physiotherapists in primary care - MSK pain causing employment issues")))))) -> Cognitive behavioural therapy (CBT), including exercise - lower back pain
F14: 1
E15: Study underpinning analysis | F15: =IF(F13="","",VLOOKUP(F13,'2a Interventions - data'!$G$33:$Y$39,5,FALSE)) -> Johnson et al. Active exercise, education, and cognitive behavioral therapy for persistent disabling low back pain: a randomized controlled trial. 2007 Spine 32 (15) 1578-1585.
E17: Intervention as described in study | F17: =IF(F13="","",VLOOKUP(F13,'2a Interventions - data'!$G$33:$T$39,6,FALSE)) -> Intervention for the treatment of LBP which comprised exercise and education using CBT. The intervention was delivered as group sessions by physiotherapists specifically trained in CBT. Eight two-hour sessions delivered over a five week period in groups of four to 10 led by two physiotherapists. An information booklet was also provided.
E19: Study population | F19: =IF(F13="","",VLOOKUP(F13,'2a Interventions - data'!$G$33:$T$39,11,FALSE)) -> Patients aged 18 to 65 years old, who consulted their GP with persistent disabling LBP and who did not have any 'red flag' symptoms. Persistent disabling LBP was defined as 20mm pain or more on a VAS and five points or more on the RMDQ.
E21: Study characteristics
E22: Type of study | F22: =IF(F13="","",VLOOKUP(F13,'2a Interventions - data'!$G$33:$Y$39,19,FALSE)) -> Randomised control trial
E23: Country/Region | F23: =IF(F13="","",VLOOKUP(F13,'2a Interventions - data'!$G$33:$AC$39,23,FALSE)) -> UK, East Cheshire
E24: Sample size | F24: =IF(F13="","",VLOOKUP(F13,'2a Interventions - data'!$G$33:$AC$39,22,FALSE)) -> Intervention (n=116) and control groups (n=128)
E25: Time at which outcomes reported | F25: =IF(F13="","",VLOOKUP(F13,'2a Interventions - data'!$G$33:$AD$39,24,FALSE)) -> 15 months

Sheet 2a Interventions - data (hidden)
F16: 6 | G16: Interventions assessed | H16: Number of studies retrieved
F17: 1 | G17: Cognitive psychological therapy (CBT), with exercise | H17: =COUNTIF($G$33:$G$38,G17) -> 0
F18: 2 | G18: STarT Back (stratified risk assessment and care) | H18: 0
F19: 3 | G19: Self-referral to physiotherapy | H19: 0
F20: 4 | G20: ESCAPE-PAIN | H20: 0
F21: 5 | G21: Group physical activity classes for back pain | H21: 0
F22: 6 | G22: Yoga for Healthy Lower Backs | H22: 1
AJ27: COPIED FROMJ EXTRACTION TABLE
S28: Age/gnder range populated with dummy data -need to check study
I30: 2 | J30: =I30+1 -> 3 | K30: =J30+1 -> 4 | L30: 5 | M30: 6 | N30: 7 | O30: 8 | P30: 9 | Q30: 10 | R30: 11 | S30: 12 | T30: 13 | U30: 14 | V30: 15 | W30: 16 | X30: 17 | Y30: 18 | Z30: 19 | AA30: 20 | AB30: 21 | AC30: 22 | AD30: 23 | AJ30: Bibliographic details | AN30: Description of study | AW30: Evidence | BH30: Include record?
E31: Study selected by user | G31: 0 | H31: =G31+1 -> 1 | L31: Overview of intervention (who, where, when) | M31: Overview of compairson | N31: MSK condition of relevance | O31: Programme/ intervention costs (if reported) | P31: Timeframe: over which intervention delivered | Q31: Population in study description | R31: Mean or median age (years) | S31: Lower age | T31: Upper age | U31: Gender (% female) | V31: Default if gender not reported | W31: Further information | X31: Relevant condition | Y31: Type of study | Z31: Type of economic analysis | AB31: Sample size | AC31: Country setting | AD31: Follow-up period (months) | AE31: Items to note regarding method of study | AH31: Resources | AW31: Intervention | BA31: Outcomes | BF31: Other info requested by PHE
D32: LIVE IN TOOL | E32: 2 | F32: Code for drop down | G32: Programme | H32: Description of programme | I32: Study short name | J32: Short description | K32: Source | L32: =VLOOKUP($I$32,$I$33:$CM$38,L$30,FALSE) ->  | M32: =VLOOKUP($I$32,$I$33:$CM$38,M$30,FALSE) ->  | N32: =VLOOKUP($I$32,$I$33:$CM$38,M$30,FALSE) ->  | W32: =VLOOKUP($I$32,$I$33:$CM$38,U$30,FALSE) ->  | X32: =VLOOKUP($I$32,$I$33:$CM$38,W$30,FALSE) ->  | AI32: Full Text Available | AJ32: EN refID | AK32: Author | AL32: Title | AM32: Publication details/number, date etc | AN32: Description of the study/report | AO32: Which of the 7 interventions is it most relevant to | AP32: Country of study and setting | AQ32: Participant characteristics if stated (age, sex, ethnic origin, condition status and comorbidity) | AR32: Comparator details (who, where when) | AS32: Sample size (intervention and comparator, numbers starting and finishing) | AT32: Methods of analysis (type of economic analysis, data sources, time horizon, discount rates, perspective and measures of uncertainty) | AU32: Study type | AV32: Study quality (if relevant) - score and reviewers comments DON'T COMPLETE - DO A TEMPLATE FOR INCLUDED STUDIES ONLY | AW32: Overview of intervention (who, where, when) | AX32: MSK condition of relevance | AY32: Programme/ intervention costs (if reported) | AZ32: Timeframe: over which intervention delivered | BA32: Primary outcome measure relating to MSK condition (description) | BB32: Other outcome measures relating to MSK condition (description) | BC32: Outcome data (values, including effect size, CIs etc) | BD32: Time at which outcomes are reported | BE32: Resource utilisation outcomes | BF32: Factors found to be critical to the success of the intervention | BG32: Stakeholders 'affected' by the intervention e.g. physiotherapists, GPs | BH32: Y/N | BI32: Comments/notes including potential use in economic model | BJ32: Reviewer
F33: =IF(G33=LOOKUP($F$16,$F$17:$F$22,$G$17:$G$22),1,0) -> 0 | G33: Cognitive behavioural therapy (CBT), including exercise - lower back pain | H33: Cognitive behavioral programme, including physical activity component | I33: Johnson et al (2007) | J33: Cognitive and psychological approaches (CBT), Johnson et al (2007) | K33: Johnson et al. Active exercise, education, and cognitive behavioral therapy for persistent disabling low back pain: a randomized controlled trial. 2007 Spine 32 (15) 1578-1585. | L33: Intervention for the treatment of LBP which comprised exercise and education using CBT. The intervention was delivered as group sessions by physiotherapists specifically trained in CBT. Eight two-hour sessions delivered over a five week period in groups of four to 10 led by two physiotherapists. An information booklet was also provided. | M33: Both groups received an educational pack, The comparison arm received usual care and the intervention arm received 8 2 hour sessions over 6 weeks from 2 physios in groups of 4-10 patients. This included 4 days training in CBT. | N33: Lower back pain | O33: Detail lacking but intervention arm cost £27 more than comparison arm (95% CI -159 to 213) | P33: 6 weeks with follow up after 15 months. | Q33: Patients aged 18 to 65 years old, who consulted their GP with persistent disabling LBP and who did not have any 'red flag' symptoms. Persistent disabling LBP was defined as 20mm pain or more on a VAS and five points or more on the RMDQ. | R33: ?? | S33: 18 | T33: 65 | U33: NR | V33: NR | W33: NR | X33: Back pain | Y33: Randomised control trial | Z33: Cost–utility analysis | AA33: RCT evidence with definitive results (no overlapping CIs) | AB33: Intervention (n=116) and control groups (n=128) | AC33: UK, East Cheshire | AD33: 15 months | AE33: NR | AJ33: 2588 | AK33: D. G. Whitehurst, S. Bryan, M. Lewis, J. Hill and E. M. Hay | AL33: Exploring the cost-utility of stratified primary care management for low back pain compared with current best practice within risk-defined subgroups (Structured abstract) | AM33: 2012 Annals of the Rheumatic Diseases 71 (11) 1796-1802 | AN33: A within-trial study to determine the economic implications of providing stratified management for low back pain according to patients’ prognosis and matched care pathways, compared with nonstratified current best practice, within specific risk-defined subgroups (low-risk, medium-risk and high-risk). | AO33: STarT Back (stratified risk assessment and care) | AP33: UK, North Staff, primary care | AQ33: Adults aged 18 years and over with low back pain of any episode duration | AR33: non-stratified current best practice | AS33: Intervention (n=568) and control groups (n=283) | AT33: Cost–utility analysis. Base-case analysis estimated the incremental healthcare cost per additional quality-adjusted life year (QALY), using the EQ-5D to enerate QALYs, for each risk-defined subgroup. Uncertainty was explored with cost–utility planes and acceptability curves. Sensitivity analyses: 1) analysis of healthcare resources funded by the NHS only; (2) the incorporation of non-back pain-related consultations with healthcare professionals; (3) a complete case analysis, where inclusion required a valid EQ-5D response at each data collection stage and complete healthcare resource use data at 12-month follow-up; and (4) consideration of variation in the unit cost of private healthcare; (5) simultaneously multiplying the unit costs of private healthcare by a price premium ranging from one (private costs equal NHS costs) to three (private costs are three times the unit cost of the NHS equivalent). No discounting was necessary. | AU33: RCTs with definitive results (no overlapping CIs) | AW33: Stratified management for low back pain according to patients’ prognosis and matched care pathways (as in 2551) | AX33: LBP | AY33: Not reported | AZ33: Not reported | BA33: The primary unit of outcome was the incremental cost per-QALY | BB33: Health outcomes using EQ-5D. Self-reported details of participants’ employment status were collected at baseline and 12 months. | BC33: Incremental cost to utility ratio of £463 (£26.41/0.057 QALYs) in the high-risk group. For the medium-risk group, a dominant position was observed for the stratified management intervention,i.e. greater mean health benefit (0.044 additional QALYs). For low risk group, with a lower mean healthcare cost (−£64.29) and a lower mean health benefi t (−0.001 QALYs). The incremental cost to utility ratio of £48707 (−£64.29/−0.001 QALYs (QALY estimate to three decimal places)) indicates that the cost savings of the low risk intervention are worth the negligible decrement in health or, alternatively, the incremental cost required to achieve the small health benefit associated with the control group is too expensive. Overall reductions in back pain disability (RMDQ) at 4 and 12 months using the stratified management approach compared with current best practice. Significant between-group differences in RMDQ adjusted mean change scores for medium-risk patients at 4 and 12 months, and high-risk patients at 4 months. Low-risk patients had non-inferior outcomes compared with controls at both time-points. | BD33: One year EQ-5D at baseline, 4 months and 12 months. | BE33: Stratified management approach was a cost-effective treatment strategy compared with current best practice within each risk-defined subgroup, for medium-risk patients and acceptable incremental cost to utility ratios for low-risk and high-risk patients. The likelihood that stratified care provides a cost-effective use of resources exceeds 90% at willingness-to-pay thresholds of £4000 (≈ 4500; $6500) per additional QALY for the medium-risk and high-risk groups. Patients receiving stratified care also reported fewer back pain-related days off work in all three subgroups. Expressed as UK averages in 2008/09 prices | BH33: Yes | BI33: As above (2551), includes directly relevant data, as based on same study. Apparently - 'differences in the methodological approaches and reporting techniques of the controlled trial and economic evaluation are a refl ection of the different research objectives and analytical paradigms of clinical and economic research. | BJ33: Jo
F34: =IF(G34=LOOKUP($F$16,$F$17:$F$22,$G$17:$G$22),1+F33,0) -> 0 | G34: STarT Back (stratified risk assessment and care) - lower back pain | H34: Risk stratification approach to assessment and treatment for back pain | I34: Whitehurst et al (2015) | J34: STarT Back (stratified risk assessment and care), Whitehurst et al (2015) | K34: Whitehurst et al. Implementing stratified primary care management for low back pain: cost-utility analysis alongside a prospective, population-based, sequential comparison study. 2015 Spine 40 (6) 405-14. | L34: Uses a validated, simple-to-use prognostic screening method (the Keele STarT Back Screening Tool) to allocate patients into one of three risk-defined groups—low, medium, and high . Three treatment pathways were matched to these risk groups. For patients in the low-risk group, family physicians gave written information on self-management and advice to keep active, prescribed pain medications where appropriate, and reassured patients about their good prognosis. For patients in the medium-risk or high-risk group, physicians were encouraged to refer patients to physical therapy and address their back related concerns highlighted by the stratification tool. For patients in the high risk group, psychologically informed physical therapy was provided. | M34: Non-stratified current best practice | N34: Lower back pain | O34: Not reported but training costs for physiotherapists involved in the intervention are reported. | P34: Not reported | Q34: Adults aged ≥18 years with back pain of any duration, with or without associated radiculopathy | R34: ?? | S34: 18 | T34: 90 | U34: NR | V34: NR | W34: NR | X34: Back pain | Y34: Cohort study | Z34: Cost effectiveness analysis | AA34: RCT evidence with definitive results (no overlapping CIs) | AB34: Intervention (n=554) and control (368) | AC34: UK, primary care | AD34: 12 months | AE34: GP referrals (n=1078) and self referral (n-386) | AF34: =1770*0.218 -> 385.86 | AJ34: 2551 | AK34: J. C. Hill, D. G. Whitehurst, M. Lewis, S. Bryan, K. M. Dunn, N. E. Foster, K. Konstantinou, C. J. Main, E. Mason, S. Somerville, G. Sowden, K. Vohora and E. M. Hay | AL34: Comparison of stratified primary care management for low back pain with current best practice (STarT Back): a randomised controlled trial (Provisional abstract) | AM34: 2011 Lancet 378 (9802) 1560-1571 | AN34: Clinical effectiveness and cost-effectiveness study of stratified primary care (intervention) compared with non-stratified current best practice (control). | AO34: STarT Back (stratified risk assessment and care) | AP34: UK, primary care, North Staffs | AQ34: Adults aged ≥18 years with back pain of any duration, with or without associated radiculopathy. | AR34: non-stratified current best practice | AS34: Intervention (n=568) and control groups (n=283) | AT34: Cost effectiveness, healthcare and societal perspective. Sensitivity analyses were done by use of complete-case analysis (ie, non-imputed dataset) and further adjustment for therapist’s eff ects with random-eff ects modelling of main therapist. | AU34: RCTs with definitive results (no overlapping CIs) | AW34: Primary care stratification of the management of LBP according to the patient’s prognosis (low, medium, or high risk). Uses a validated, simple-to-use prognostic screening method (the Keele STarT Back Screening Tool),to allocate patients into one of three risk-defined groups—low, medium, and high . Three treatment pathways were matched to these risk groups. Assessment was by nurses and treatment by physiotherapists. In the intervention group, during the baseline clinical assessment and treatment session, decisions about referral were made by use of the STarT Back Screening Tool classifi cation. The 30-min assessment and initial treatment were delivered according to an agreed protocol, with advice focusing on promotion of appropriate levels of activity, including return to work, and a pamphlet about local exercise venues and self-help groups. Participants were shown a 15-min educational video entitled Get Back Active20 and given the Back Book. Low-risk patients were only given this clinic session; medium-risk patients were referred for standardised physiotherapy to address symptoms and function. High-risk patients were referred for psychologically informed physiotherapy to address physical symptoms and function, and also psychosocial obstacles to recovery. | AX34: LBP | AY34: Not reported but training costs for physiotherapists involved in the intervention are reported. | AZ34: Not reported | BA34: Roland Morris Disability Questionnaire (RMDQ) score. Economic evaluation focused on estimating incremental quality-adjusted life years (QALYs) and health-care costs related to back pain. | BB34: Secondary outcome measures were referral for further physiotherapy, back pain intensity, the Pain Catastrophizing Scale (measures the extent to which someone has a pessimistic outlook of back pain), fearavoidance beliefs (Tampa Scale of Kinesiophobia24), Hospital Anxiety and Depression Scale, health-related quality of life (EuroQol EQ-5D; Short Form 12 physical and mental component scores), STarT Back Screening Tool risk-subgroup reduction, perception of overall change in back pain (global change). | BC34: Adjusted mean changes in RMDQ scores were signifi cantly higher in the intervention group than in the control group at 4 months (4·7 [SD 5·9] vs 3·0 [5·9], between-group diff erence 1·81 [95% CI 1·06–2·57]) and at 12 months (4·3 [6·4] vs 3·3 [6·2], 1·06 [0·25–1·86]), equating to eff ect sizes of 0·32 (0·19–0·45) and 0·19 (0·04–0·33), respectively. At 12 months, stratified care was associated with a mean increase in generic health benefit (0·039 additional QALYs) and cost savings (£240·01 vs £274·40) compared with the control group. | BD34: Roland Morris Disaibility Questionnaire at 12 months Demographic data and clinical outcomes were gathered before randomisation and 4 months and 12 months later | BE34: Number of physiotherapy treatment sessions, attendance at initial physiotherapy treatment, adverse events, health-care resource use and costs over 12 months, number of days off work because of back pain. Although referral rates with stratified management were higher, these health-sector costs were outweighed by savings due to reductions in referral of low-risk patients and overall use of health-care resources during the follow-up. | BF34: Not reported | BG34: Physiotherapists | BH34: Yes | BI34: Uk study relating to the specific intervention of interest. | BJ34: Jo
F35: =IF(G35=LOOKUP($F$16,$F$17:$F$22,$G$17:$G$22),1+#REF!,0) -> 0 | G35: PhysioDirect - Early telephone assessment and advice - all MSK conditions | H35: Patient is able to access physiotherapy treatment without a formal referral via an initial telephone assessment with a physio | I35: Salisbury et al (2013) | J35: Telephone assessment and advice by phsiotherapist with a referral made to be seen in person by a physiotherpaist if required, Salisbury et al (2013) | K35: Salisbury et al. A pragmatic randomised controlled trial of the effectiveness and cost-effectiveness of 'PhysioDirect' telephone assessment and advice services for physiotherapy. 2013 Health Technology Assessment (Winchester, England) 17 (2) 1-157, v-vi. | L35: PhysioDirect involved telephone assessment and advice followed by face-to-face care if required (as opposed to being placed on a waiting list for routine face-to-face treatment). The interview was conducted by a specially trained senior physiotherapist and assisted by computerised templates. Patients were sent leaflets and advice on self-management, with invitation to call again or make a face to face appointment. | M35: Usual care patients were placed on a waiting list for face-to-face care. | N35: All MSK conditions | O35: Unit costs provided in the paper. Direct costs to the healthcare provider included: cost of initial and follow-up physiotherapy consultations; primary and community consultations; hospital care and prescribed medication. Patient and carer costs included: telephone calls to the PhysioDirect service; travel; over-the-counter medication; prescription costs; private therapy and purchase of equipment; extra domestic help and loss of earnings. | P35: Not reported | Q35: Adults 18+ referred by their general practitioner or self-referred for physiotherapy. Mean age was 60, with slightly more women than men (60% vs 40%); they were overwhelmingly white (97%), just over half (60%) were employed and all but a few were referred for physiotherapy by their GP. | R35: 60 | S35: 18 | T35: 90 | U35: 0.6 | V35: NR | W35: NR | X35: NR | Y35: Randomised control trial | Z35: Cost-utility analysis | AA35: RCT evidence with definitive results (no overlapping CIs) | AB35: Intervention (n=1506) and control (n=743) | AC35: UK Bristol, Somerset, Stoke-on-Trent and Cheshire | AD35: 6 months | AE35: =I35 -> Salisbury et al (2013) | AJ35: 4535 | AK35: C. Salisbury, N. E. Foster, C. Hopper, A. Bishop, S. Hollinghurst, J. Coast, S. Kaur, J. Pearson, A. Franchini, J. Hall, S. Grove, M. Calnan, J. Busby and A. A. Montgomery | AL35: A pragmatic randomised controlled trial of the effectiveness and cost-effectiveness of 'PhysioDirect' telephone assessment and advice services for physiotherapy | AM35: 2013 Health Technology Assessment (Winchester, England) 17 (2) 1-157, v-vi | AN35: This is the RCT from record 4503 - all intervention details and economic outcomes are the same | AO35: Self-referral to physiotherapy | AP35: UK Bristol, Somerset, Stoke-on-Trent and Cheshire | AQ35: Adults 18+ referred by their general practitioner or self-referred for physiotherapy. Mean age was 60, with slightly more women than men (60% vs 40%); they were overwhelmingly white (97%), just over half (60%) were employed and all but a few were referred for physiotherapy by their GP. | AR35: Usual care patients were placed on a waiting list for face-to-face care. | AS35: 2249 patients took part (1506 PhysioDirect; 743 usual care). Had complete NHS cost and QALY data for 840 (56%) PhysioDirect and 432 (58%) usual care participants. | AT35: Cost consequences approach, comparing cost from all three perspectives (healthcare provider, patients and carers, lost productivity) with a range of clinical outcomes. Also performed a cost-utility analysis comparing cost to the NHS with Quality-Adjusted Life Years (QALYs). Sensitivity analysis performed for (1) increased productivity of the PTs, (2) removing hospital costs, (3) imputing missing data, and combination of 1 and 3. | AU35: RCTs with definitive results (no overlapping CIs) | AV35: See record 4503 | AW35: PhysioDirect involved telephone assessment plus advice, with the aid of previously developed computerised templates, followed by face-to-face care if needed. | AX35: Service is open to all MSK condirtions. Found Lower limb problems were the most prevalent (30%) reason for referral, 27% patients had a lumbar problem and 23% upper limb problems. | AY35: Unit costs provided in the paper. Direct costs to the healthcare provider included: cost of initial and follow-up physiotherapy consultations; primary and community consultations; hospital care and prescribed medication. Patient and carer costs included: telephone calls to the PhysioDirect service; travel; over-the-counter medication; prescription costs; private therapy and purchase of equipment; extra domestic help and loss of earnings. | AZ35: Not reported | BA35: Primary clinical outcome: physical component summary from the SF-36v2 at 6 months. Outcome for the cost-utility analysis: QALYs used the EQ-5D-3L28 valued using the UK tariff. | BB35: Also included in the cost consequences: Measure Yourself Medical Outcomes Profile; a Global Improvement Score; response to treatment; patient satisfaction; waiting time. | BC35: no evidence of a difference in the primary clinical outcome (the SF36v2 PCS) between the groups, suggesting that PhysioDirect led to similar outcomes as usual physiotherapy care. QALYs were higher in the PhysioDirect group by 0.009, which equates to about 3.3 extra days of full health over a year. Lost productivity was estimated separately in relation to time off work to attend physiotherapy appointments and time off because of the musculoskeletal condition itself. | BD35: 6 months | BE35: NHS costs (physiotherapy plus other relevant NHS costs) per patient were similar in the two arms [PhysioDirect £198.98 vs usual care £179.68, difference in means £19.30 (95% CI –£37.60 to £76.19)], while QALYs gained were also similar [difference in means 0.007 (95% CI –0.003 to 0.016)]. Incremental cost per QALY gained was £2889. | BG35: Physiotherapists | BH35: Yes | BI35: See 4503 | BJ35: Jo
F36: =IF(G36=LOOKUP($F$16,$F$17:$F$22,$G$17:$G$22),1+F35,0) -> 0 | G36: Self-referral to physiotherapy - all MSK conditions | H36: Patient is able to access physiotherapy treatment without a formal referral | I36: Holdsworth et al (2007) | J36: Self referral to phsyio | K36: Holdsworth et al. What are the costs to NHS Scotland of self-referral to physiotherapy? Results of a national trial. 2007 Physiotherapy 93 (1) 3-11. | L36: Patients could either undertake self-referral to a physiotherapist, with or without the suggestion of their GP. | M36: GP referral to physio | N36: All MSK conditions | O36: not reported | P36: Not reported | Q36: Adults. No specific eligibility criteria mentioned. Breakdown of patients profile is given by sex, category (lower limb/low back and neck), condition severity, work absence, % treatment completed, number of contacts, outcomes and VAS. | R36: ?? | S36: ?? | T36: ?? | U36: NR | V36: NR | W36: NR | X36: NR | Y36: Cost minimisation analysis | Z36: Cost-minimisation analysis | AA36: NR | AB36: Intervention (n=386) and control (n=1079) | AC36: UK, Scotland | AD36: 12 months | AE36: Outcome measures determined by bot patients and physiotherapists using a visual analogue scale. No difference in effectiveness was found, therefore a cost minimisation approach was taken. Some referral may be due to having injection of corticosteroids, which may bring the applicabilty into question (% NR) | AJ36: 4717 | AK36: L. K. Holdsworth, V. S. Webster and A. K. McFadyen | AL36: What are the costs to NHS Scotland of self-referral to physiotherapy? Results of a national trial | AM36: 2007 Physiotherapy 93 (1) 3-11 | AN36: Report of a national trial to establish the costs to National Health Service (NHS) Scotland of differing modes of access to physiotherapy in primary care. | AO36: Self-referral to physiotherapy | AP36: Scotland | AQ36: Adults | AR36: GP referral to physio | AS36: 1770 60.9% GP referrals, 17.3% GP-suggested referrals and 21.8% self-referrals | AT36: Cost-minimisation analysis, multi-centred national trial. NHS perspective | AW36: Self referral to physiotherapy | AX36: Not specified | AY36: not reported | AZ36: Not reported | BA36: Main outcome measures were the number of GP and physiotherapy contacts, prescribing of non-steroidal anti-inflammatory drugs and analgesics, and referral for X-ray, magnetic resonance imaging and/or secondary care | BB36: Patient reported measure of how severely problem was affecting them | BC36: Self-referring patients were much less likely to be referred for X-ray (7.3% versus 13.6%) or to secondary care than patients referred by their GP (3.1% versus 1.4%). Self-referring patients were prescribed far fewer drugs compared with patients referred at the suggestion of or by their GP (32.2%, 42.7% and 44.1%, respectively). Although similar proportions were only prescribed NSAIDs, fewer self-referring patients were prescribed analgesics compared with patients referred at the suggestion of or by their GP (9.7%, 13.5% and 15.8%, respectively), or both NSAIDs and analgesia (9.7%, 14.8% and 15.6%, respectively). Only 18% of self-referring patients visited their GP on more than one occasion, compared with 38% and 39% of patients referred at the suggestion of or by their GP, respectively. Identified that self-referring patients were utilising less GP time (8 minutes versus 17 minutes; P < 0.001). | BD36: 12 months | BE36: The average cost of an episode of care was established as £66.31 for a self-referral, £79.50 for a GP-suggested referral and £88.99 for a GP referral (2004). Efficiences are gained from lower DNAs and greater completnio of treatment. | BG36: Physiotherapists | BH36: Yes | BI36: Of relevance to the rest of the NHS in the UK | BJ36: Jo
F37: =IF(G37=LOOKUP($F$16,$F$17:$F$22,$G$17:$G$22),1+#REF!,0) ->  | G37: Yoga for Healthy Lower Backs | H37: Organised group sessions of Yoga for Healthy Lower Backs with defined frequency | I37: Chuang et al. A pragmatic multicentered randomized controlled trial of yoga for chronic low back pain: economic evaluation. 2012 Spine 37 (18) 1593-601. (Additional information on RMDQ gains from associated paper Tilbrook et al, 2011. Yoga for chronic low back pain: a randomized trial. Ann Intern Med. 2011 Nov 1;155(9):569-78). | J37: =CONCATENATE(G37,", ",I37) -> Yoga for Healthy Lower Backs, Chuang et al. A pragmatic multicentered randomized controlled trial of yoga for chronic low back pain: economic evaluation. 2012 Spine 37 (18) 1593-601. (Additional information on RMDQ gains from associated paper Tilbrook et al, 2011. Yoga for chronic low back pain: a randomized trial. Ann Intern Med. 2011 Nov 1;155(9):569-78). | K37: Chuang et al. A pragmatic multicentered randomized controlled trial of yoga for chronic low back pain: economic evaluation. 2012 Spine 37 (18) 1593-601. (Additional information on RMDQ gains from associated paper Tilbrook et al, 2011. Yoga for chronic low back pain: a randomized trial. Ann Intern Med. 2011 Nov 1;155(9):569-78). | L37: Participants received a 12 week course of yoga (75 min weekly class) plus a relaxation CD, student yoga manual, yoga mat, the Back Book, education booklet for improving back pain and usual care. | M37: Yoga for Healthy Lower Backs twice a week for 6 weeks | N37: Lower back pain | O37: Mean direct cost: MY: 255 Euro; ET: 461 Euro; SC: 106 Euro Mean societal cost: MY 1,882 Euro; ET: 3,401 Euro; SC: 4,006 Euro | P37: Direct interventions lasted 6 weeks but participants were encouraged to continue beyond that time and were followed up after a year. | Q37: Patients aged 18-60 with lower back pain | R37: 46 | S37: 18 | T37: 90 | U37: 0.7 | V37: NR | W37: NR | X37: NR | Y37: Randomised control trial | Z37: Cost-utility analysis | AA37: RCT evidence with definitive results (no overlapping CIs) | AB37: Intervention (n=156) and control (n=157) | AC37: UK, Cornwall, London, Manchester, York | AD37: 12 months | AE37: NR | AJ37: 1537 | AK37: E. Aboagye, M. L. Karlsson, J. Hagberg and I. Jensen | AL37: Cost-effectiveness of early interventions for non-specific low back pain: a randomized controlled study investigating Yoga for Healthy Lower Backs, exercise therapy and self-care advice | AM37: 2015 Journal of Rehabilitation Medicine 47 (2) 167-73 | AN37: RCT with cost-effectiveness analysis comparing HrQOL for Yoga for Healthy Lower Backs, exercise therapy and self-care advice. | AO37: Group physical activity classes for back pain | AP37: Sweden, primary care | AQ37: 159 participants randomised into Yoga for Healthy Lower Backs (MY) group (52); exercise therapy (ET) group (52); or self-care advice (SC) group (55). Gender female: MY: 72%; ET: 62%; SC: 80% Age: MY: 47; ET: 46; SC: 44 | AR37: MY twice a week for 6 weeks with participants continuing afterwards. ET 6 week individual standardised strength training programme. SC brief advice on staying active. | AS37: See cell I | AT37: HRQL measured using regression analysis. Cost-effectiveness calculated as ICER estimated using mean incremental cost and adjusted mean incremental QALY. Societal perspective including costs associated with the intervention and production loss through sickness absence. Also employers perspective ignoring production costs. Willingness to pay assumed to be at 11,500 Euro (Swedish National Board of Health).Sensitivity analysis focused on productivity losses. 12 month time horizon so no discounting. | AU37: RCTs with definitive results (no overlapping CIs) | AW37: MY was a kundalini-based standardized programme performed in groups, twice a week for 6 weeks and led by an experienced Yoga for Healthy Lower Backs instructor. Participants received a cd with instructions, and written information about the programme, and were encouraged to perform the programme as often as possible between the Yoga for Healthy Lower Backs sessions. After 6 weeks, the participants were to carry on practicing Yoga for Healthy Lower Backs no less twice per week. ET was a 6-week individual, standardized strength training programme followed up by an experienced physiotherapist in groups once every second week. In the first week of intervention start, the participants and the physiotherapist met twice in order to individually design the training programme. Participants were followed-up after 2, 4 and 6 weeks. Subsequently, participants were to continue practicing the ET programme at least twice per week. In the SC group, individuals received brief oral recommendation from a back specialist to stay active and a booklet containing self-care advice. | AX37: LBP | AY37: Mean direct cost: MY: 255 Euro; ET: 461 Euro; SC: 106 Euro Mean societal cost: MY 1,882 Euro; ET: 3,401 Euro; SC: 4,006 Euro | AZ37: Direct interventions lasted 6 weeks but participants were encouraged to continue beyond that time and were followed up after a year. | BA37: QALY | BB37: HrQOL measured using EQ-5D | BC37: From employers perspective: MY has an ICER of 4,984 Euro compared to SC. MY cost 206 Euro less than ET and HrQOL was not significantly better so MY is cost effective as it is cheaper. From societal perspective: MY cost 1,519 Euro less than ET and 2,124 Euro less than SC and has better HrQOL so it is dominant. | BD37: Twelve months. | BE37: See cells Q and U | BF37: Needs to be 6 weeks on uninterrupted Yoga for Healthy Lower Backs therapy using Kundalini-based standardised programme. | BG37: GPs. | BH37: Yes | BI37: Includes QALYs and productivity costs, | BJ37: Nick
F38: =IF(G38=LOOKUP($F$16,$F$17:$F$22,$G$17:$G$22),1+#REF!,0) -> 0 | G38: ESCAPE-Pain for knee pain | H38: Structured community rehabilitation programme integrating exercise, self-management and active coping strategies for chronic knee pain. | I38: Hurley et al (2012) | J38: =CONCATENATE(G38,", ",I38) -> ESCAPE-Pain for knee pain, Hurley et al (2012) | K38: Hurley et al. Long-term outcomes and costs of an integrated rehabilitation program for chronic knee pain: a pragmatic, cluster randomized, controlled trial. 2012 Arthritis Care and Research 64 (2) 238-247. | L38: Exercise-based rehabilitation program designed to improve function by integrating exercise, education, and self-management strategies to dispel inappropriate health beliefs, alter behaviour, and encourage regular physical activity. Participants were invited to attend 12 supervised sessions twice weekly for 6 weeks. For 15–20 minutes of each session, the supervising physiotherapist facilitated a discussion on a specific topic, advising and suggesting simple coping strategies. Then, for 35–40 minutes each participant performed a simple individualised exercise regimen to address their disabilities and progressed this as they improved. The content of the program was similar whether delivered to individual participants or small groups of eight participants. After completion, participants were discharged with encouragement to perform home exercises and physical activity, especially walking, but did not receive any additional intervention as part of the program. | M38: Usual care. ESCAPE was delivered in a group and individual setting. Results presented for both group and individual ESCAPE combined | N38: Chronic knee pain | O38: Costs for ESCAPE were £224 per person. (£2003/04) | P38: 12 sessions of 45-60 mins for 6 weeks | Q38: Mean age 66 (had to be over 50) reporting knee pain for at least six months (mean WOMAC function 27.2). Patients had to have had no physio in previous 12 months and not be wheelchair bound | R38: 66 | S38: 50 | T38: 90 | U38: NR | V38: NR | W38: NR | X38: NR | Y38: Prospective cohort study | Z38: Cost minimisation analysis | AA38: RCT evidence with non-definitive results (overlapping CIs) | AB38: Intervention (n=146 individual ESCAPE, n=132 group ESCAPE) and control (n=140) | AC38: UK primary care | AD38: 30 months | AE38: NR | AJ38: 2654 | AK38: M. V. Hurley, N. E. Walsh, H. Mitchell, J. Nicholas and A. Patel | AL38: Long-term outcomes and costs of an integrated rehabilitation program for chronic knee pain: a pragmatic, cluster randomized, controlled trial (Structured abstract) | AM38: 2012 Arthritis Care and Research 64 (2) 238-247 | AN38: Cost effectiveness evaluation alongside a clinical trial of ESCAPE-knee pain | AO38: ESCAPE-PAIN | AP38: UK primary care | AQ38: Mean age 66 (had to be over 50) reporting knee pain for at least six months (mean WOMAC function 27.2). Patients had to have had no physio in previous 12 months and not be wheelchair bound | AR38: Usual care. ESCAPE was delivered in a group and individual setting. Results presented for both group and individual ESCAPE combined | AS38: 140 in usual care, 146 in individual ESCAPE and 132 in Group ESCAPE. Numbers finishing were not provided | AT38: Cost analysis from perspective of UK NHS (2003/04 prices). Thirty month time horizon. Costs were sourced from Client Serivices Receipt Inventory covering health and voluntary resources, use of rehabilitation faciliities, patient costs, time off work, benefits and informal care. Costs of delviering the intervention were calculated from the bottom up. Costs were discounted at 3.5%pa | AU38: RCTs with non-definitive results (overlapping CIs) | AV38: No difference in costs between arms using unadjusted dataset but a difference in WOMAC function. | AW38: ESCAPE-knee pain group and individually delivered | AX38: Chronic knee pain | AY38: Costs for ESCAPE were £224 per person. (£2003/04) | AZ38: 12 sessions of 45-60 mins for 6 weeks | BA38: WOMAC function | BB38: NA | BC38: Between group difference in WOMAC function was -2.78 (-5.32, -0.23) in favour of ESCAPE | BD38: Thirty months | BE38: No difference in total health and social care resource use at 30 months if unadjusted data used. If missing data is imputed then ESCAPE is cost saving by £1118 (£221, £2566) | BF38: Group therapy was found to be just as effective but cheaper than individual therapy, but authors suggest individual therapy may offer flexibility that cannot be offered in a group setting. | BG38: Physiotherapists | BH38: Yes | BI38: Include as far as it shows there is no difference in costs with ESCAPE-knee unless missing values are inputed. One outlier in usual care is the sole reason for the difference in costs. Given a similar outlier may have existed in the missing dataset that was imputed then the confidence in the imputed results is limited | BJ38: James
E39: Lookup table | F39: NR | G39: Vocational advice from physiotherapists in primary care - MSK pain causing employment issues | H39: NR | I39: Wynne-Jone et al (2016) | J39: A new vocational advice service improves work outcomes in patients with musculoskeletal pain in primary care: The 'SWAP' Trial. Wynne-Jones, G | K39: A new vocational advice service improves work outcomes in patients with musculoskeletal pain in primary care: The 'SWAP' Trial. Wynne-Jones, G | L39: A vocational advice service to provide a structured approach to managing work related issues. People with a musculoskeletal problem who require help and support in remaining at or returning to work may be referred to the vocational advice service by their GP or nurse practitioner. Those referred will be contacted by a vocational advisor, seven days after receipt of the referral who will help the patient to identify and overcome obstacles to remaining at or returning to work. A stepped care model is used, with initial telephone contact and follow-up face-to-face appointment for approximately 20% of patients. The Flags model of management of the health and work interface is used to structure the vocational advice service, including identification of obstacles to working with health conditions, development of a plan to manage health and work, taking action to address the issues each individual patient is facing with respect to managing their musculoskeletal condition in the workplace. There is re-evaluation of the patient’s situation regularly until a sustained return-to-work is achieved using a goal oriented approach. | M39: NR | N39: All MSK conditions | O39: NR | P39: NR | Q39: Patients aged ≥18 years old, absent from or struggling at work because of MSK pain for ≤6 months. | R39: NR | S39: NR | T39: NR | U39: NR | V39: NR | W39: NR | X39: NR | Y39: Randomised control trial | Z39: Cost minimisation analysis | AA39: RCT evodemce with non-definitive results (overlapping Cis) | AB39: Intervention (n=158) and control (n=180) | AC39: UK primary care | AD39: 12 months | AE39: NR | AK39: D. G. T. Whitehurst, S. Bryan, M. Lewis, E. M. Hay, R. Mullis and N. E. Foster | AL39: Implementing stratified primary care management for low back pain: cost-utility analysis alongside a prospective, population-based, sequential comparison study | AM39: 2015 Spine 40 (6) 405-14 | AN39: A within study cost-utility analysis (implementation study) | AO39: STarT Back (stratified risk assessment and care) | AP39: UK, primary care | AQ39: Adults over 18 years. Risk-defined patient subgroups i.e. patients at low, medium, and high risk of persistent disabling lower back pain | AR39: Usual care, with 6 month patient recruitment period | AS39: A total of 922 participants were recruited: Phase 1 (control) = 368; Phase 3 (intervention) = 554 Healthcare cost per patient based on those providing resource use data (n=547)- control low risk n=81, med risk n=104, high risk n= 48, intervention low risk n=110, med risk 61, high risk n=143 | AT39: Cost utility analysis. Health care perspective, incorporating NHS and private LBP-related health care resources used during the 6-month follow-up. Secondary analysis calculated self-reported days of work absence. No discounting of costs and health benefits was applied. Uncertainty was explored with cost-utility planes and acceptability curves. Sensitivity analyses examined alternative methodological approaches, including a complete case analysis, the incorporation of non–back pain-related health care use and estimation of societal costs relating to work absence. | AU39: Cohort study | AW39: Prognostic risk stratification tool (the STarT Back tool) was used to identify patients at low, medium, and high risk of persistent disabling LBP that were subsequently matched to targeted treatments. GPs followed screening tool recommendations for matched treatment. | AX39: LBP | AY39: Not reported | AZ39: Not clear | BA39: Incremental LBP-related health care cost per additional quality-adjusted life year (QALY) by risk subgroup. | BB39: 3-level EQ-5D Roland Morris Disability Questionnaire STarT Back score | BC39: Mean health care cost savings of £124 and an incremental QALY estimate of 0.023. Approximately, 6 fewer days of work absence were reported in the stratified care group compared with usual care for those patients in the medium (a 55% reduction) and high-risk (a 39% reduction) subgroups, with associated societal cost savings per employed patient of £736 and £652, respectively. | BD39: 6 months follow-up period | BE39: Primary care consultations (GPs and practice nurses), consultations with other health care professionals (e.g., hospital consultants and physiotherapists), hospital-based procedures (diagnostic tests, epidural injections, and inpatient episodes), prescribed medication, and out-of-pocket expenditures on treatments and/or aids. At the observed level of adherence to screening tool recommendations for matched treatments, stratified care for LBP is cost-effective for patients at high risk of persistent disabling LBP only. Base case results for patients in the low- and medium-risk subgroups show negligible incremental cost and QALY estimates. Costs relating to periods of work absence were analyzed separately, without incorporation into the incremental ratio. | BF39: Not stated | BG39: GPs | BH39: Yes | BI39: Includes cost per QALY based on difference in healthcare use but doesn't mention implementation cost. Refers to other studies (Startback trial and IMPACT study which have more information | BJ39: Jo
H42: Risk stratification approach to assessment and treatment for back pain | I42: Whitehurst et al et al (2015) | J42: =CONCATENATE(G42,", ",I42) -> , Whitehurst et al et al (2015) | K42: Whitehurst et al. Implementing stratified primary care management for low back pain: cost-utility analysis alongside a prospective, population-based, sequential comparison study. 2015 Spine 40 (6) 405-14. | L42: Stratified management for low back pain according to patients’ prognosis and matched care pathways (as in 2551) | M42: non-stratified current best practice | N42: LBP | O42: Not reported | P42: Not reported | Q42: Adults over 18 years. Risk-defined patient subgroups i.e. patients at low, medium, and high risk of persistent disabling lower back pain | R42: ?? | S42: 18 | T42: 90 | X42: Back pain | Y42: A within-trial study to determine the economic implications of providing stratified management for low back pain according to patients’ prognosis and matched care pathways, compared with nonstratified current best practice, within specific risk-defined subgroups (low-risk, medium-risk and high-risk). | Z42: Cost–utility analysis. Base-case analysis estimated the incremental healthcare cost per additional quality-adjusted life year (QALY), using the EQ-5D to enerate QALYs, for each risk-defined subgroup. Uncertainty was explored with cost–utility planes and acceptability curves. Sensitivity analyses: 1) analysis of healthcare resources funded by the NHS only; (2) the incorporation of non-back pain-related consultations with healthcare professionals; (3) a complete case analysis, where inclusion required a valid EQ-5D response at each data collection stage and complete healthcare resource use data at 12-month follow-up; and (4) consideration of variation in the unit cost of private healthcare; (5) simultaneously multiplying the unit costs of private healthcare by a price premium ranging from one (private costs equal NHS costs) to three (private costs are three times the unit cost of the NHS equivalent). No discounting was necessary. | AA42: RCT evidence with definitive results (no overlapping CIs) | AB42: Intervention (n=568) and control groups (n=283) | AC42: UK, North Staffordshire, primary care
G43: 2 | H43: 3 | I43: 4 | K43: 5 | L43: 6
F44: 1 | G44: =IFERROR(VLOOKUP($F44,$F$33:$AD$38,G$43,FALSE),"") ->  | I44: =IFERROR(VLOOKUP($F44,$F$33:$AD$38,I$43,FALSE),"") ->  | J44: =IFERROR(VLOOKUP($F44,$F$33:$AD$38,K$43,FALSE),"") -> 
F45: 2
F46: 3
F47: 4 | K47: =IFERROR(VLOOKUP($F47,$F$33:$AD$38,K$43,FALSE),"") -> 
F48: 5
F49: 6
F50: 7
F51: 8
F52: 9
F53: 10
E59: CBT

Sheet 2b Population (hidden)
E2: Return on investment of interventions for the prevention and treatment of musculoskeletal (MSK) conditions
AJ3: =IF(F17="Lower back pain",VLOOKUP(F15,'General Back Pain CCG CIs'!$AB$5:$AH$569,4,FALSE),IF(F17="Chronic knee pain",VLOOKUP(F15,'General Back Pain CCG CIs'!$AL$5:$AR$567,4,FALSE),VLOOKUP(F15,'General Back Pain CCG CIs'!$AV$5:$BB$569,4,FALSE))) -> 0.1841827
L4: =VLOOKUP(F15,'General Back Pain CCG CIs'!BF5:BI48,IF(F17="Lower back pain",2,IF(F17="Knee pain",3,4)),FALSE) ->  | AJ4: =IF(F17="Lower back pain",VLOOKUP(F15,'General Back Pain CCG CIs'!$BF$5:$BM$569,6,FALSE),IF(F17="Chronic knee pain",VLOOKUP(F15,'General Back Pain CCG CIs'!$BF$5:$BM$569,7,FALSE),VLOOKUP(F15,'General Back Pain CCG CIs'!$BF$5:$BM$569,8,FALSE))) -> 
AJ5: =IF(F17="Lower back pain",VLOOKUP(F15,'General Back Pain CCG CIs'!$AB$5:$AH$569,2,FALSE),IF(F17="Chronic knee pain",VLOOKUP(F15,'General Back Pain CCG CIs'!$AL$5:$AR$567,2,FALSE),VLOOKUP(F15,'General Back Pain CCG CIs'!$AV$5:$BB$569,2,FALSE))) -> 31549
AG8: CCG
F9: =VLOOKUP(G47,E47:F48,2,FALSE) -> Model calculated | AG9: Local Authority
E10: Population source | AG10: STP
H12: =VLOOKUP(G50,E50:F52,2,FALSE) -> Local Authority
E13: Select commissioning body type (CCG, Local Authority or STP) | F13: Not required
E15: =CONCATENATE("Select ",H12) -> Select Local Authority | F15: =VLOOKUP(G53,'General Back Pain CCG CIs'!U5:V401,2,FALSE) -> Adur
E17: MSK condition targeted by intervention | F17: =VLOOKUP('2a Interventions'!F13,'2a Interventions - data'!G33:N39,8,FALSE) -> Lower back pain
E19: =IF(H12="STP","STP total patient population 45 or over",IF(H12="CCG","CCG total patient population 45 or over","LA total patient population 45 or over")) -> LA total patient population 45 or over | F19: =IF(F21="Not required","Not required",IF(H12="STP",VLOOKUP(F15,'General Back Pain CCG CIs'!BF5:BJ48,5,FALSE),VLOOKUP('2b Population'!F15:G15,'General Back Pain CCG CIs'!AB5:AC569,2,FALSE))) -> 31549
E21: =IF(F17="Lower back pain",CONCATENATE("Prevalence of lower back pain in people aged 45 or over in ",H12),IF(F17="Knee pain",CONCATENATE("Prevalence of knee pain in people aged 45 or over in ",H12),CONCATENATE("Prevalence of all MSK conditions in people aged 45 or over in ",H12))) -> Prevalence of lower back pain in people aged 45 or over in Local Authority | F21: =IF(F9="User defined","Not required",IF(H12="STP",AJ4,AJ3)) -> 0.1841827
E23: % receiving intervention each year | F23: 0.5
E25: Model calculated intervention population | F25: =IF(F21="Not required","Not required",F19*F21*F23) -> 2905.390001
E27: User defined intervention population | F27: Not required
E29: Total population included in the analysis: | F29: =IF(F25="Not required",F27,F25) -> 2905.390001
G46: 1
E47: 1 | F47: Model calculated | G47: 1
E48: 2 | F48: User defined
G49: 2
E50: 1 | F50: CCG | G50: 2
E51: 2 | F51: Local Authority
E52: 3 | F52: STP
G53: 1
G54: 20

Sheet CCG - UK (hidden)
A1: Table SAPE18DT5: Mid-2015 Population Estimates for Clinical Commissioning Groups in England, by single year of age, Persons (National Statistics)
A3: England by Commissioning Region by Region Geography by Clinical Commissioning Group
A5: Area Codes | B5: Area Names | E5: All Ages | F5: 45 | G5: 46 | H5: 47 | I5: 48 | J5: 49 | K5: 50 | L5: 51 | M5: 52 | N5: 53 | O5: 54 | P5: 55 | Q5: 56 | R5: 57 | S5: 58 | T5: 59 | U5: 60 | V5: 61 | W5: 62 | X5: 63 | Y5: 64 | Z5: 65 | AA5: 66 | AB5: 67 | AC5: 68 | AD5: 69 | AE5: 70 | AF5: 71 | AG5: 72 | AH5: 73 | AI5: 74 | AJ5: 75 | AK5: 76 | AL5: 77 | AM5: 78 | AN5: 79 | AO5: 80 | AP5: 81 | AQ5: 82 | AR5: 83 | AS5: 84 | AT5: 85 | AU5: 86 | AV5: 87 | AW5: 88 | AX5: 89 | AY5: 90
A7: E92000001 | B7: ENGLAND | E7: =SUM(F7:AY7) -> 23594975 | F7: 759786 | G7: 777437 | H7: 776611 | I7: 787611 | J7: 787915 | K7: 791066 | L7: 783305 | M7: 765857 | N7: 748704 | O7: 722068 | P7: 692374 | Q7: 676158 | R7: 661089 | S7: 635797 | T7: 612904 | U7: 590280 | V7: 591581 | W7: 583991 | X7: 567596 | Y7: 571273 | Z7: 582595 | AA7: 596441 | AB7: 629564 | AC7: 682834 | AD7: 525701 | AE7: 508499 | AF7: 504922 | AG7: 467555 | AH7: 415572 | AI7: 372072 | AJ7: 385501 | AK7: 380304 | AL7: 367100 | AM7: 345778 | AN7: 325545 | AO7: 305377 | AP7: 278932 | AQ7: 261228 | AR7: 249194 | AS7: 231569 | AT7: 210446 | AU7: 184425 | AV7: 160779 | AW7: 141595 | AX7: 123076 | AY7: 474968
E8: =SUM(F8:AY8) -> 0
A9: E40000001 | B9: North of England | E9: 6798394 | F9: 211665 | G9: 216947 | H9: 217135 | I9: 220344 | J9: 220070 | K9: 223803 | L9: 222773 | M9: 219654 | N9: 217128 | O9: 208907 | P9: 201380 | Q9: 197454 | R9: 194795 | S9: 187983 | T9: 180470 | U9: 172405 | V9: 173668 | W9: 172103 | X9: 166313 | Y9: 169111 | Z9: 171829 | AA9: 175900 | AB9: 185982 | AC9: 201586 | AD9: 150856 | AE9: 146470 | AF9: 144901 | AG9: 133725 | AH9: 120328 | AI9: 110816 | AJ9: 114030 | AK9: 111827 | AL9: 108793 | AM9: 101451 | AN9: 95329 | AO9: 89052 | AP9: 81046 | AQ9: 74776 | AR9: 70486 | AS9: 65505 | AT9: 58554 | AU9: 50834 | AV9: 44116 | AW9: 38766 | AX9: 33449 | AY9: 123879
E10: 0
A11: E39000026 | C11: Cheshire and Merseyside | E11: 1125521 | F11: 33838 | G11: 34865 | H11: 34536 | I11: 35406 | J11: 35386 | K11: 36790 | L11: 36889 | M11: 36643 | N11: 36275 | O11: 35330 | P11: 33279 | Q11: 32663 | R11: 32039 | S11: 31025 | T11: 29942 | U11: 28609 | V11: 28967 | W11: 28526 | X11: 27597 | Y11: 28472 | Z11: 28232 | AA11: 28794 | AB11: 30577 | AC11: 33223 | AD11: 24779 | AE11: 23526 | AF11: 24064 | AG11: 22181 | AH11: 20223 | AI11: 18813 | AJ11: 19129 | AK11: 18809 | AL11: 18296 | AM11: 17031 | AN11: 16415 | AO11: 15140 | AP11: 13883 | AQ11: 12646 | AR11: 12041 | AS11: 11392 | AT11: 10022 | AU11: 8802 | AV11: 7500 | AW11: 6574 | AX11: 5551 | AY11: 20801
A12: E38000056 | B12: =CONCATENATE(D12," CCG") -> Eastern Cheshire CCG | D12: Eastern Cheshire | E12: 102615 | F12: 2884 | G12: 3026 | H12: 3049 | I12: 3234 | J12: 3104 | K12: 3210 | L12: 3172 | M12: 3142 | N12: 3203 | O12: 3092 | P12: 2841 | Q12: 2799 | R12: 2692 | S12: 2554 | T12: 2505 | U12: 2502 | V12: 2453 | W12: 2468 | X12: 2432 | Y12: 2574 | Z12: 2627 | AA12: 2734 | AB12: 2962 | AC12: 3235 | AD12: 2347 | AE12: 2340 | AF12: 2413 | AG12: 2175 | AH12: 1861 | AI12: 1739 | AJ12: 1755 | AK12: 1740 | AL12: 1697 | AM12: 1621 | AN12: 1594 | AO12: 1456 | AP12: 1311 | AQ12: 1232 | AR12: 1170 | AS12: 1140 | AT12: 1051 | AU12: 875 | AV12: 790 | AW12: 693 | AX12: 621 | AY12: 2500
A13: E38000068 | B13: =CONCATENATE(D13," CCG") -> Halton CCG | D13: Halton | E13: 55799 | F13: 1738 | G13: 1742 | H13: 1740 | I13: 1846 | J13: 1753 | K13: 1873 | L13: 1766 | M13: 1816 | N13: 1938 | O13: 1771 | P13: 1678 | Q13: 1772 | R13: 1722 | S13: 1585 | T13: 1702 | U13: 1544 | V13: 1578 | W13: 1508 | X13: 1556 | Y13: 1632 | Z13: 1557 | AA13: 1576 | AB13: 1615 | AC13: 1750 | AD13: 1222 | AE13: 1047 | AF13: 1130 | AG13: 1023 | AH13: 958 | AI13: 849 | AJ13: 839 | AK13: 825 | AL13: 772 | AM13: 728 | AN13: 695 | AO13: 702 | AP13: 578 | AQ13: 536 | AR13: 482 | AS13: 443 | AT13: 427 | AU13: 343 | AV13: 262 | AW13: 246 | AX13: 219 | AY13: 715
A14: E38000091 | B14: Knowsley CCG | D14: Knowsley | E14: 65454 | F14: 2015 | G14: 2026 | H14: 2005 | I14: 2119 | J14: 2111 | K14: 2305 | L14: 2312 | M14: 2285 | N14: 2393 | O14: 2264 | P14: 2184 | Q14: 2100 | R14: 2121 | S14: 2151 | T14: 1827 | U14: 1831 | V14: 1804 | W14: 1755 | X14: 1565 | Y14: 1637 | Z14: 1528 | AA14: 1528 | AB14: 1553 | AC14: 1636 | AD14: 1246 | AE14: 1171 | AF14: 1191 | AG14: 1083 | AH14: 1014 | AI14: 990 | AJ14: 1028 | AK14: 1011 | AL14: 1022 | AM14: 981 | AN14: 976 | AO14: 896 | AP14: 807 | AQ14: 707 | AR14: 701 | AS14: 684 | AT14: 535 | AU14: 449 | AV14: 429 | AW14: 340 | AX14: 266 | AY14: 872
A15: E38000101 | B15: Liverpool CCG | D15: Liverpool | E15: 182259 | F15: 6002 | G15: 6061 | H15: 5861 | I15: 6010 | J15: 5942 | K15: 6140 | L15: 6220 | M15: 6339 | N15: 6328 | O15: 5973 | P15: 5825 | Q15: 5630 | R15: 5580 | S15: 5410 | T15: 5240 | U15: 4860 | V15: 4860 | W15: 4760 | X15: 4651 | Y15: 4528 | Z15: 4439 | AA15: 4391 | AB15: 4520 | AC15: 4846 | AD15: 3668 | AE15: 3260 | AF15: 3384 | AG15: 3230 | AH15: 2833 | AI15: 2790 | AJ15: 2854 | AK15: 2900 | AL15: 2763 | AM15: 2635 | AN15: 2636 | AO15: 2422 | AP15: 2185 | AQ15: 2014 | AR15: 1927 | AS15: 1739 | AT15: 1516 | AU15: 1404 | AV15: 1096 | AW15: 968 | AX15: 804 | AY15: 2815
A16: E38000151 | B16: South Cheshire CCG | D16: South Cheshire | E16: 86456 | F16: 2583 | G16: 2830 | H16: 2871 | I16: 2689 | J16: 2888 | K16: 2812 | L16: 2832 | M16: 2788 | N16: 2699 | O16: 2753 | P16: 2427 | Q16: 2432 | R16: 2319 | S16: 2207 | T16: 2235 | U16: 2111 | V16: 2074 | W16: 2108 | X16: 2038 | Y16: 2199 | Z16: 2209 | AA16: 2258 | AB16: 2497 | AC16: 2620 | AD16: 1946 | AE16: 1975 | AF16: 1989 | AG16: 1809 | AH16: 1619 | AI16: 1467 | AJ16: 1535 | AK16: 1418 | AL16: 1408 | AM16: 1261 | AN16: 1210 | AO16: 1087 | AP16: 982 | AQ16: 914 | AR16: 821 | AS16: 852 | AT16: 793 | AU16: 659 | AV16: 584 | AW16: 516 | AX16: 432 | AY16: 1700
A17: E38000161 | B17: South Sefton CCG | D17: South Sefton | E17: 77189 | F17: 2112 | G17: 2222 | H17: 2106 | I17: 2314 | J17: 2274 | K17: 2509 | L17: 2651 | M17: 2587 | N17: 2565 | O17: 2607 | P17: 2437 | Q17: 2378 | R17: 2312 | S17: 2249 | T17: 2226 | U17: 2095 | V17: 2079 | W17: 1954 | X17: 1920 | Y17: 1864 | Z17: 1836 | AA17: 1898 | AB17: 1947 | AC17: 2165 | AD17: 1539 | AE17: 1459 | AF17: 1574 | AG17: 1431 | AH17: 1385 | AI17: 1328 | AJ17: 1271 | AK17: 1257 | AL17: 1332 | AM17: 1254 | AN17: 1117 | AO17: 1063 | AP17: 1065 | AQ17: 931 | AR17: 907 | AS17: 869 | AT17: 732 | AU17: 654 | AV17: 518 | AW17: 460 | AX17: 384 | AY17: 1352
A18: E38000170 | B18: Southport and Formby CCG | D18: Southport and Formby | E18: 62210 | F18: 1533 | G18: 1584 | H18: 1665 | I18: 1657 | J18: 1660 | K18: 1760 | L18: 1761 | M18: 1720 | N18: 1656 | O18: 1762 | P18: 1654 | Q18: 1550 | R18: 1683 | S18: 1600 | T18: 1525 | U18: 1431 | V18: 1565 | W18: 1427 | X18: 1420 | Y18: 1516 | Z18: 1513 | AA18: 1564 | AB18: 1719 | AC18: 1980 | AD18: 1535 | AE18: 1404 | AF18: 1485 | AG18: 1423 | AH18: 1285 | AI18: 1210 | AJ18: 1184 | AK18: 1177 | AL18: 1226 | AM18: 1145 | AN18: 1107 | AO18: 1067 | AP18: 989 | AQ18: 931 | AR18: 876 | AS18: 815 | AT18: 734 | AU18: 582 | AV18: 563 | AW18: 490 | AX18: 394 | AY18: 1683
A19: E38000172 | B19: St Helens CCG | D19: St Helens | E19: 83364 | F19: 2552 | G19: 2560 | H19: 2552 | I19: 2576 | J19: 2612 | K19: 2755 | L19: 2695 | M19: 2515 | N19: 2557 | O19: 2544 | P19: 2386 | Q19: 2349 | R19: 2266 | S19: 2257 | T19: 2174 | U19: 2057 | V19: 2169 | W19: 2111 | X19: 2052 | Y19: 2241 | Z19: 2151 | AA19: 2200 | AB19: 2415 | AC19: 2671 | AD19: 1989 | AE19: 1863 | AF19: 1899 | AG19: 1775 | AH19: 1634 | AI19: 1452 | AJ19: 1424 | AK19: 1517 | AL19: 1447 | AM19: 1334 | AN19: 1208 | AO19: 1159 | AP19: 991 | AQ19: 892 | AR19: 823 | AS19: 767 | AT19: 673 | AU19: 562 | AV19: 509 | AW19: 421 | AX19: 343 | AY19: 1265
A20: E38000189 | B20: Vale Royal CCG | D20: Vale Royal | E20: 49322 | F20: 1545 | G20: 1592 | H20: 1662 | I20: 1671 | J20: 1615 | K20: 1678 | L20: 1736 | M20: 1646 | N20: 1586 | O20: 1529 | P20: 1464 | Q20: 1375 | R20: 1371 | S20: 1425 | T20: 1315 | U20: 1252 | V20: 1341 | W20: 1232 | X20: 1179 | Y20: 1271 | Z20: 1288 | AA20: 1287 | AB20: 1385 | AC20: 1517 | AD20: 1131 | AE20: 1142 | AF20: 1045 | AG20: 953 | AH20: 867 | AI20: 793 | AJ20: 804 | AK20: 809 | AL20: 715 | AM20: 657 | AN20: 630 | AO20: 541 | AP20: 509 | AQ20: 493 | AR20: 432 | AS20: 447 | AT20: 399 | AU20: 356 | AV20: 298 | AW20: 252 | AX20: 232 | AY20: 855
A21: E38000194 | B21: Warrington CCG | D21: Warrington | E21: 93266 | F21: 3228 | G21: 3215 | H21: 3089 | I21: 3293 | J21: 3358 | K21: 3346 | L21: 3323 | M21: 3345 | N21: 3134 | O21: 2960 | P21: 2703 | Q21: 2769 | R21: 2544 | S21: 2453 | T21: 2365 | U21: 2321 | V21: 2297 | W21: 2291 | X21: 2167 | Y21: 2189 | Z21: 2254 | AA21: 2273 | AB21: 2455 | AC21: 2770 | AD21: 2059 | AE21: 2003 | AF21: 2014 | AG21: 1770 | AH21: 1750 | AI21: 1538 | AJ21: 1613 | AK21: 1632 | AL21: 1445 | AM21: 1313 | AN21: 1234 | AO21: 1097 | AP21: 1032 | AQ21: 929 | AR21: 828 | AS21: 775 | AT21: 668 | AU21: 618 | AV21: 505 | AW21: 498 | AX21: 349 | AY21: 1454
A22: E38000196 | B22: West Cheshire CCG | D22: West Cheshire | E22: 112152 | F22: 3213 | G22: 3425 | H22: 3334 | I22: 3346 | J22: 3464 | K22: 3459 | L22: 3505 | M22: 3560 | N22: 3428 | O22: 3383 | P22: 3149 | Q22: 3082 | R22: 3066 | S22: 2913 | T22: 2868 | U22: 2674 | V22: 2767 | W22: 2841 | X22: 2730 | Y22: 2876 | Z22: 2829 | AA22: 2969 | AB22: 3223 | AC22: 3399 | AD22: 2574 | AE22: 2499 | AF22: 2556 | AG22: 2333 | AH22: 2083 | AI22: 2028 | AJ22: 2042 | AK22: 1910 | AL22: 1964 | AM22: 1822 | AN22: 1721 | AO22: 1547 | AP22: 1427 | AQ22: 1282 | AR22: 1256 | AS22: 1201 | AT22: 1013 | AU22: 898 | AV22: 782 | AW22: 735 | AX22: 640 | AY22: 2336
A23: E38000208 | B23: Wirral CCG | D23: Wirral | E23: 155435 | F23: 4433 | G23: 4582 | H23: 4602 | I23: 4651 | J23: 4605 | K23: 4943 | L23: 4916 | M23: 4900 | N23: 4788 | O23: 4692 | P23: 4531 | Q23: 4427 | R23: 4363 | S23: 4221 | T23: 3960 | U23: 3931 | V23: 3980 | W23: 4071 | X23: 3887 | Y23: 3945 | Z23: 4001 | AA23: 4116 | AB23: 4286 | AC23: 4634 | AD23: 3523 | AE23: 3363 | AF23: 3384 | AG23: 3176 | AH23: 2934 | AI23: 2629 | AJ23: 2780 | AK23: 2613 | AL23: 2505 | AM23: 2280 | AN23: 2287 | AO23: 2103 | AP23: 2007 | AQ23: 1785 | AR23: 1818 | AS23: 1660 | AT23: 1481 | AU23: 1402 | AV23: 1164 | AW23: 955 | AX23: 867 | AY23: 3254
B24: CCG | E24: 0
A25: E39000027 | B25: CCG | C25: Cumbria and North East | E25: 1470053 | F25: 42298 | G25: 43260 | H25: 43976 | I25: 45443 | J25: 46191 | K25: 47287 | L25: 46967 | M25: 46955 | N25: 46456 | O25: 44422 | P25: 43479 | Q25: 43784 | R25: 43346 | S25: 41539 | T25: 39864 | U25: 38249 | V25: 38387 | W25: 37957 | X25: 36737 | Y25: 37396 | Z25: 38081 | AA25: 39083 | AB25: 40924 | AC25: 44255 | AD25: 33354 | AE25: 32133 | AF25: 31501 | AG25: 28475 | AH25: 26113 | AI25: 24240 | AJ25: 25156 | AK25: 24841 | AL25: 24292 | AM25: 22555 | AN25: 20640 | AO25: 19701 | AP25: 17866 | AQ25: 16792 | AR25: 15849 | AS25: 14547 | AT25: 12938 | AU25: 11135 | AV25: 9568 | AW25: 8299 | AX25: 7340 | AY25: 26382
A26: E38000041 | B26: Cumbria CCG | D26: Cumbria | E26: 264045 | F26: 7149 | G26: 7591 | H26: 7515 | I26: 7851 | J26: 7788 | K26: 7979 | L26: 8077 | M26: 7893 | N26: 7921 | O26: 7547 | P26: 7514 | Q26: 7513 | R26: 7287 | S26: 7113 | T26: 6865 | U26: 6601 | V26: 6761 | W26: 6787 | X26: 6546 | Y26: 6884 | Z26: 7056 | AA26: 7418 | AB26: 7755 | AC26: 8295 | AD26: 6281 | AE26: 5976 | AF26: 6183 | AG26: 5726 | AH26: 5152 | AI26: 4703 | AJ26: 4833 | AK26: 4603 | AL26: 4551 | AM26: 4109 | AN26: 3833 | AO26: 3488 | AP26: 3228 | AQ26: 3103 | AR26: 3019 | AS26: 2658 | AT26: 2400 | AU26: 2142 | AV26: 1882 | AW26: 1650 | AX26: 1501 | AY26: 5318
A27: E38000042 | B27: Darlington CCG | D27: Darlington | E27: 48991 | F27: 1564 | G27: 1437 | H27: 1483 | I27: 1578 | J27: 1647 | K27: 1639 | L27: 1518 | M27: 1583 | N27: 1573 | O27: 1539 | P27: 1396 | Q27: 1429 | R27: 1435 | S27: 1294 | T27: 1311 | U27: 1201 | V27: 1231 | W27: 1230 | X27: 1188 | Y27: 1200 | Z27: 1207 | AA27: 1281 | AB27: 1274 | AC27: 1464 | AD27: 1128 | AE27: 1118 | AF27: 1022 | AG27: 880 | AH27: 845 | AI27: 808 | AJ27: 819 | AK27: 882 | AL27: 795 | AM27: 762 | AN27: 702 | AO27: 677 | AP27: 593 | AQ27: 577 | AR27: 517 | AS27: 461 | AT27: 410 | AU27: 395 | AV27: 326 | AW27: 321 | AX27: 264 | AY27: 987
A28: E38000047 | B28: Durham Dales, Easington and Sedgefield CCG | D28: Durham Dales, Easington and Sedgefield | E28: 134306 | F28: 3767 | G28: 3940 | H28: 4128 | I28: 4217 | J28: 4276 | K28: 4413 | L28: 4298 | M28: 4242 | N28: 4250 | O28: 4074 | P28: 3827 | Q28: 4023 | R28: 3959 | S28: 3816 | T28: 3667 | U28: 3595 | V28: 3509 | W28: 3547 | X28: 3350 | Y28: 3500 | Z28: 3574 | AA28: 3673 | AB28: 3684 | AC28: 4089 | AD28: 3140 | AE28: 3061 | AF28: 2932 | AG28: 2529 | AH28: 2489 | AI28: 2271 | AJ28: 2272 | AK28: 2243 | AL28: 2157 | AM28: 2053 | AN28: 1851 | AO28: 1803 | AP28: 1556 | AQ28: 1516 | AR28: 1359 | AS28: 1280 | AT28: 1092 | AU28: 994 | AV28: 805 | AW28: 685 | AX28: 615 | AY28: 2185
A29: E38000075 | B29: Hartlepool and Stockton-on-Tees CCG | D29: Hartlepool and Stockton-on-Tees | E29: 128402 | F29: 4028 | G29: 3932 | H29: 4063 | I29: 4260 | J29: 4315 | K29: 4351 | L29: 4189 | M29: 4365 | N29: 4354 | O29: 4146 | P29: 3947 | Q29: 3885 | R29: 3832 | S29: 3774 | T29: 3446 | U29: 3369 | V29: 3344 | W29: 3298 | X29: 3256 | Y29: 3123 | Z29: 3218 | AA29: 3310 | AB29: 3409 | AC29: 3609 | AD29: 2746 | AE29: 2576 | AF29: 2527 | AG29: 2239 | AH29: 2203 | AI29: 1960 | AJ29: 2038 | AK29: 2111 | AL29: 2026 | AM29: 1934 | AN29: 1753 | AO29: 1700 | AP29: 1522 | AQ29: 1458 | AR29: 1423 | AS29: 1283 | AT29: 1124 | AU29: 858 | AV29: 798 | AW29: 616 | AX29: 546 | AY29: 2138
A30: E38000116 | B30: North Durham CCG | D30: North Durham | E30: 113293 | F30: 3306 | G30: 3524 | H30: 3495 | I30: 3576 | J30: 3688 | K30: 3630 | L30: 3740 | M30: 3620 | N30: 3458 | O30: 3260 | P30: 3199 | Q30: 3321 | R30: 3165 | S30: 3145 | T30: 3014 | U30: 2947 | V30: 2919 | W30: 2912 | X30: 2934 | Y30: 2923 | Z30: 2959 | AA30: 3043 | AB30: 3184 | AC30: 3529 | AD30: 2635 | AE30: 2672 | AF30: 2639 | AG30: 2341 | AH30: 1976 | AI30: 1912 | AJ30: 1982 | AK30: 1890 | AL30: 1878 | AM30: 1764 | AN30: 1564 | AO30: 1475 | AP30: 1349 | AQ30: 1162 | AR30: 1079 | AS30: 1036 | AT30: 926 | AU30: 803 | AV30: 681 | AW30: 603 | AX30: 550 | AY30: 1885
A31: E38000127 | B31: North Tyneside CCG | D31: North Tyneside | E31: 95554 | F31: 2955 | G31: 2914 | H31: 2914 | I31: 2961 | J31: 3038 | K31: 3204 | L31: 3209 | M31: 3196 | N31: 2975 | O31: 2849 | P31: 2826 | Q31: 2788 | R31: 2920 | S31: 2702 | T31: 2562 | U31: 2514 | V31: 2561 | W31: 2515 | X31: 2366 | Y31: 2374 | Z31: 2405 | AA31: 2446 | AB31: 2644 | AC31: 2832 | AD31: 2185 | AE31: 2004 | AF31: 1973 | AG31: 1708 | AH31: 1515 | AI31: 1380 | AJ31: 1645 | AK31: 1509 | AL31: 1547 | AM31: 1391 | AN31: 1315 | AO31: 1258 | AP31: 1182 | AQ31: 1116 | AR31: 1081 | AS31: 930 | AT31: 915 | AU31: 748 | AV31: 693 | AW31: 553 | AX31: 492 | AY31: 1744
A32: E38000130 | B32: Northumberland CCG | D32: Northumberland | E32: 166635 | F32: 4208 | G32: 4375 | H32: 4479 | I32: 4700 | J32: 4731 | K32: 5104 | L32: 5075 | M32: 5027 | N32: 4983 | O32: 4871 | P32: 4984 | Q32: 4998 | R32: 4880 | S32: 4635 | T32: 4637 | U32: 4419 | V32: 4516 | W32: 4401 | X32: 4368 | Y32: 4523 | Z32: 4578 | AA32: 4664 | AB32: 5104 | AC32: 5349 | AD32: 4035 | AE32: 4001 | AF32: 3882 | AG32: 3537 | AH32: 3042 | AI32: 2894 | AJ32: 2890 | AK32: 2844 | AL32: 2668 | AM32: 2552 | AN32: 2348 | AO32: 2297 | AP32: 2004 | AQ32: 1871 | AR32: 1750 | AS32: 1614 | AT32: 1458 | AU32: 1250 | AV32: 1068 | AW32: 998 | AX32: 863 | AY32: 3160
A33: E38000162 | B33: South Tees CCG | D33: South Tees | E33: 123198 | F33: 3507 | G33: 3534 | H33: 3646 | I33: 3783 | J33: 4004 | K33: 3988 | L33: 3949 | M33: 4012 | N33: 4064 | O33: 3741 | P33: 3709 | Q33: 3697 | R33: 3686 | S33: 3495 | T33: 3382 | U33: 3216 | V33: 3223 | W33: 3204 | X33: 3010 | Y33: 3042 | Z33: 3068 | AA33: 3166 | AB33: 3342 | AC33: 3625 | AD33: 2813 | AE33: 2661 | AF33: 2559 | AG33: 2364 | AH33: 2301 | AI33: 2109 | AJ33: 2155 | AK33: 2153 | AL33: 2074 | AM33: 1938 | AN33: 1772 | AO33: 1662 | AP33: 1440 | AQ33: 1428 | AR33: 1262 | AS33: 1218 | AT33: 1122 | AU33: 929 | AV33: 786 | AW33: 669 | AX33: 583 | AY33: 2107
A34: E38000163 | B34: South Tyneside CCG | D34: South Tyneside | E34: 71428 | F34: 2007 | G34: 2145 | H34: 2102 | I34: 2220 | J34: 2341 | K34: 2374 | L34: 2305 | M34: 2372 | N34: 2264 | O34: 2271 | P34: 2240 | Q34: 2221 | R34: 2200 | S34: 2061 | T34: 1987 | U34: 1902 | V34: 1916 | W34: 1857 | X34: 1702 | Y34: 1791 | Z34: 1824 | AA34: 1844 | AB34: 1912 | AC34: 1994 | AD34: 1560 | AE34: 1407 | AF34: 1391 | AG34: 1301 | AH34: 1194 | AI34: 1094 | AJ34: 1171 | AK34: 1165 | AL34: 1161 | AM34: 1130 | AN34: 914 | AO34: 964 | AP34: 898 | AQ34: 819 | AR34: 802 | AS34: 721 | AT34: 619 | AU34: 615 | AV34: 486 | AW34: 435 | AX34: 339 | AY34: 1390
A35: E38000176 | B35: Sunderland CCG | D35: Sunderland | E35: 127762 | F35: 3824 | G35: 3822 | H35: 3987 | I35: 3999 | J35: 3936 | K35: 4172 | L35: 4200 | M35: 4092 | N35: 4119 | O35: 3973 | P35: 3858 | Q35: 3948 | R35: 3942 | S35: 3895 | T35: 3639 | U35: 3403 | V35: 3402 | W35: 3356 | X35: 3319 | Y35: 3333 | Z35: 3225 | AA35: 3363 | AB35: 3460 | AC35: 3790 | AD35: 2780 | AE35: 2661 | AF35: 2506 | AG35: 2372 | AH35: 2201 | AI35: 2014 | AJ35: 2135 | AK35: 2107 | AL35: 2172 | AM35: 1894 | AN35: 1818 | AO35: 1641 | AP35: 1623 | AQ35: 1466 | AR35: 1381 | AS35: 1284 | AT35: 1109 | AU35: 895 | AV35: 726 | AW35: 636 | AX35: 536 | AY35: 1748
A36: E38000212 | B36: Newcastle Gateshead CCG | D36: Newcastle Gateshead | E36: 196439 | F36: 5983 | G36: 6046 | H36: 6164 | I36: 6298 | J36: 6427 | K36: 6433 | L36: 6407 | M36: 6553 | N36: 6495 | O36: 6151 | P36: 5979 | Q36: 5961 | R36: 6040 | S36: 5609 | T36: 5354 | U36: 5082 | V36: 5005 | W36: 4850 | X36: 4698 | Y36: 4703 | Z36: 4967 | AA36: 4875 | AB36: 5156 | AC36: 5679 | AD36: 4051 | AE36: 3996 | AF36: 3887 | AG36: 3478 | AH36: 3195 | AI36: 3095 | AJ36: 3216 | AK36: 3334 | AL36: 3263 | AM36: 3028 | AN36: 2770 | AO36: 2736 | AP36: 2471 | AQ36: 2276 | AR36: 2176 | AS36: 2062 | AT36: 1763 | AU36: 1506 | AV36: 1317 | AW36: 1133 | AX36: 1051 | AY36: 3720
B37: CCG | E37: 0
A38: E39000028 | B38: CCG | C38: Lancashire and Greater Manchester | E38: 1794266 | F38: 59135 | G38: 61238 | H38: 60686 | I38: 61064 | J38: 60470 | K38: 61178 | L38: 60350 | M38: 58791 | N38: 58526 | O38: 55626 | P38: 53412 | Q38: 51909 | R38: 50749 | S38: 49329 | T38: 46877 | U38: 44828 | V38: 44713 | W38: 44918 | X38: 43254 | Y38: 43516 | Z38: 44929 | AA38: 45913 | AB38: 48811 | AC38: 52729 | AD38: 38940 | AE38: 38024 | AF38: 37723 | AG38: 35620 | AH38: 31871 | AI38: 29182 | AJ38: 29529 | AK38: 28731 | AL38: 27607 | AM38: 25635 | AN38: 24230 | AO38: 22425 | AP38: 20087 | AQ38: 18624 | AR38: 17717 | AS38: 16353 | AT38: 14789 | AU38: 12731 | AV38: 11213 | AW38: 9857 | AX38: 8452 | AY38: 31975
A39: E38000014 | B39: Blackburn with Darwen CCG | D39: Blackburn with Darwen | E39: 56393 | F39: 2081 | G39: 2150 | H39: 2177 | I39: 2001 | J39: 1972 | K39: 1932 | L39: 1921 | M39: 1925 | N39: 1902 | O39: 1873 | P39: 1792 | Q39: 1725 | R39: 1618 | S39: 1618 | T39: 1570 | U39: 1591 | V39: 1419 | W39: 1507 | X39: 1412 | Y39: 1346 | Z39: 1431 | AA39: 1446 | AB39: 1442 | AC39: 1611 | AD39: 1131 | AE39: 1045 | AF39: 1053 | AG39: 1012 | AH39: 932 | AI39: 788 | AJ39: 817 | AK39: 875 | AL39: 825 | AM39: 710 | AN39: 705 | AO39: 593 | AP39: 556 | AQ39: 554 | AR39: 486 | AS39: 448 | AT39: 420 | AU39: 353 | AV39: 324 | AW39: 285 | AX39: 234 | AY39: 785
A40: E38000015 | B40: Blackpool CCG | D40: Blackpool | E40: 66819 | F40: 1930 | G40: 2167 | H40: 2102 | I40: 2123 | J40: 2191 | K40: 2165 | L40: 2273 | M40: 2150 | N40: 2164 | O40: 1971 | P40: 1908 | Q40: 1938 | R40: 1837 | S40: 1764 | T40: 1822 | U40: 1624 | V40: 1532 | W40: 1568 | X40: 1539 | Y40: 1604 | Z40: 1589 | AA40: 1772 | AB40: 1844 | AC40: 1971 | AD40: 1569 | AE40: 1476 | AF40: 1384 | AG40: 1420 | AH40: 1179 | AI40: 1212 | AJ40: 1171 | AK40: 1156 | AL40: 1075 | AM40: 1052 | AN40: 1006 | AO40: 878 | AP40: 797 | AQ40: 764 | AR40: 745 | AS40: 648 | AT40: 598 | AU40: 528 | AV40: 467 | AW40: 406 | AX40: 344 | AY40: 1396
A41: E38000016 | B41: Bolton CCG | D41: Bolton | E41: 118333 | F41: 4085 | G41: 4071 | H41: 4049 | I41: 4110 | J41: 4083 | K41: 4047 | L41: 3999 | M41: 3756 | N41: 3830 | O41: 3666 | P41: 3515 | Q41: 3447 | R41: 3323 | S41: 3257 | T41: 3020 | U41: 2954 | V41: 2989 | W41: 2965 | X41: 2890 | Y41: 2838 | Z41: 3019 | AA41: 3140 | AB41: 3343 | AC41: 3564 | AD41: 2595 | AE41: 2501 | AF41: 2540 | AG41: 2449 | AH41: 2063 | AI41: 1987 | AJ41: 1923 | AK41: 2000 | AL41: 1809 | AM41: 1579 | AN41: 1504 | AO41: 1440 | AP41: 1187 | AQ41: 1175 | AR41: 1117 | AS41: 1000 | AT41: 965 | AU41: 782 | AV41: 625 | AW41: 634 | AX41: 538 | AY41: 1960
A42: E38000024 | B42: Bury CCG | D42: Bury | E42: 82830 | F42: 2683 | G42: 2885 | H42: 2814 | I42: 2906 | J42: 2787 | K42: 2817 | L42: 2828 | M42: 2744 | N42: 2767 | O42: 2560 | P42: 2526 | Q42: 2428 | R42: 2292 | S42: 2175 | T42: 2158 | U42: 1937 | V42: 2018 | W42: 2111 | X42: 2026 | Y42: 1955 | Z42: 2089 | AA42: 2187 | AB42: 2254 | AC42: 2562 | AD42: 1844 | AE42: 1755 | AF42: 1839 | AG42: 1570 | AH42: 1457 | AI42: 1366 | AJ42: 1383 | AK42: 1319 | AL42: 1247 | AM42: 1237 | AN42: 1135 | AO42: 1041 | AP42: 902 | AQ42: 845 | AR42: 735 | AS42: 693 | AT42: 650 | AU42: 568 | AV42: 472 | AW42: 418 | AX42: 407 | AY42: 1438
A43: E38000032 | B43: Central Manchester CCG | D43: Central Manchester | E43: 44691 | F43: 2097 | G43: 2188 | H43: 2081 | I43: 2120 | J43: 1966 | K43: 1839 | L43: 1761 | M43: 1707 | N43: 1631 | O43: 1537 | P43: 1424 | Q43: 1413 | R43: 1261 | S43: 1306 | T43: 1188 | U43: 1164 | V43: 1092 | W43: 1085 | X43: 1027 | Y43: 917 | Z43: 905 | AA43: 895 | AB43: 851 | AC43: 862 | AD43: 672 | AE43: 680 | AF43: 667 | AG43: 631 | AH43: 609 | AI43: 604 | AJ43: 597 | AK43: 555 | AL43: 577 | AM43: 548 | AN43: 511 | AO43: 492 | AP43: 397 | AQ43: 391 | AR43: 384 | AS43: 338 | AT43: 294 | AU43: 255 | AV43: 226 | AW43: 197 | AX43: 160 | AY43: 589
A44: E38000034 | B44: Chorley and South Ribble CCG | D44: Chorley and South Ribble | E44: 79252 | F44: 2502 | G44: 2627 | H44: 2712 | I44: 2614 | J44: 2601 | K44: 2661 | L44: 2676 | M44: 2608 | N44: 2477 | O44: 2432 | P44: 2239 | Q44: 2203 | R44: 2200 | S44: 2135 | T44: 2051 | U44: 1952 | V44: 2119 | W44: 1972 | X44: 1986 | Y44: 1974 | Z44: 2125 | AA44: 2125 | AB44: 2337 | AC44: 2544 | AD44: 1834 | AE44: 1837 | AF44: 1770 | AG44: 1673 | AH44: 1450 | AI44: 1385 | AJ44: 1357 | AK44: 1259 | AL44: 1210 | AM44: 1095 | AN44: 967 | AO44: 950 | AP44: 863 | AQ44: 738 | AR44: 734 | AS44: 664 | AT44: 596 | AU44: 508 | AV44: 419 | AW44: 397 | AX44: 378 | AY44: 1296
A45: E38000050 | B45: East Lancashire CCG | D45: East Lancashire | E45: 168769 | F45: 5350 | G45: 5655 | H45: 5553 | I45: 5461 | J45: 5241 | K45: 5417 | L45: 5364 | M45: 5349 | N45: 5357 | O45: 5105 | P45: 4948 | Q45: 4791 | R45: 4822 | S45: 4801 | T45: 4481 | U45: 4334 | V45: 4345 | W45: 4436 | X45: 4193 | Y45: 4316 | Z45: 4395 | AA45: 4707 | AB45: 5051 | AC45: 5261 | AD45: 3893 | AE45: 3764 | AF45: 3742 | AG45: 3355 | AH45: 3010 | AI45: 2776 | AJ45: 2580 | AK45: 2567 | AL45: 2458 | AM45: 2329 | AN45: 2254 | AO45: 2028 | AP45: 1885 | AQ45: 1687 | AR45: 1650 | AS45: 1526 | AT45: 1422 | AU45: 1174 | AV45: 1100 | AW45: 966 | AX45: 760 | AY45: 3110
A46: E38000060 | B46: Fylde and Wyre CCG | D46: Fylde and Wyre | E46: 92434 | F46: 2302 | G46: 2386 | H46: 2433 | I46: 2534 | J46: 2569 | K46: 2651 | L46: 2506 | M46: 2578 | N46: 2587 | O46: 2550 | P46: 2549 | Q46: 2308 | R46: 2357 | S46: 2408 | T46: 2203 | U46: 2248 | V46: 2217 | W46: 2272 | X46: 2076 | Y46: 2269 | Z46: 2337 | AA46: 2440 | AB46: 2702 | AC46: 2990 | AD46: 2306 | AE46: 2266 | AF46: 2269 | AG46: 2163 | AH46: 1985 | AI46: 1766 | AJ46: 1862 | AK46: 1797 | AL46: 1680 | AM46: 1653 | AN46: 1533 | AO46: 1479 | AP46: 1394 | AQ46: 1221 | AR46: 1210 | AS46: 1164 | AT46: 1012 | AU46: 907 | AV46: 864 | AW46: 665 | AX46: 556 | AY46: 2210
A47: E38000065 | B47: Greater Preston CCG | D47: Greater Preston | E47: 85389 | F47: 2796 | G47: 2830 | H47: 2891 | I47: 2859 | J47: 2811 | K47: 2894 | L47: 2898 | M47: 2927 | N47: 2892 | O47: 2680 | P47: 2571 | Q47: 2441 | R47: 2393 | S47: 2365 | T47: 2333 | U47: 2083 | V47: 2101 | W47: 2130 | X47: 2063 | Y47: 2093 | Z47: 2108 | AA47: 2166 | AB47: 2190 | AC47: 2373 | AD47: 1799 | AE47: 1723 | AF47: 1777 | AG47: 1652 | AH47: 1469 | AI47: 1355 | AJ47: 1418 | AK47: 1382 | AL47: 1355 | AM47: 1205 | AN47: 1187 | AO47: 1176 | AP47: 984 | AQ47: 939 | AR47: 895 | AS47: 797 | AT47: 758 | AU47: 630 | AV47: 543 | AW47: 420 | AX47: 446 | AY47: 1591
A48: E38000080 | B48: Heywood, Middleton and Rochdale CCG | D48: Heywood, Middleton and Rochdale | E48: 88939 | F48: 2986 | G48: 3080 | H48: 3106 | I48: 3114 | J48: 3009 | K48: 2948 | L48: 2989 | M48: 2931 | N48: 2918 | O48: 2772 | P48: 2774 | Q48: 2684 | R48: 2687 | S48: 2546 | T48: 2457 | U48: 2362 | V48: 2389 | W48: 2389 | X48: 2260 | Y48: 2205 | Z48: 2293 | AA48: 2203 | AB48: 2307 | AC48: 2608 | AD48: 1808 | AE48: 1852 | AF48: 1747 | AG48: 1662 | AH48: 1510 | AI48: 1348 | AJ48: 1400 | AK48: 1357 | AL48: 1245 | AM48: 1209 | AN48: 1124 | AO48: 1066 | AP48: 887 | AQ48: 900 | AR48: 843 | AS48: 752 | AT48: 733 | AU48: 589 | AV48: 520 | AW48: 472 | AX48: 426 | AY48: 1472
A49: E38000093 | B49: Lancashire North CCG | D49: Lancashire North | E49: 73886 | F49: 2071 | G49: 2161 | H49: 2124 | I49: 2233 | J49: 2170 | K49: 2342 | L49: 2187 | M49: 2214 | N49: 2272 | O49: 2125 | P49: 2145 | Q49: 2058 | R49: 1984 | S49: 1895 | T49: 1849 | U49: 1877 | V49: 1798 | W49: 1800 | X49: 1826 | Y49: 1858 | Z49: 1893 | AA49: 2001 | AB49: 2012 | AC49: 2315 | AD49: 1803 | AE49: 1708 | AF49: 1661 | AG49: 1595 | AH49: 1504 | AI49: 1281 | AJ49: 1359 | AK49: 1309 | AL49: 1290 | AM49: 1202 | AN49: 1164 | AO49: 982 | AP49: 964 | AQ49: 959 | AR49: 810 | AS49: 788 | AT49: 670 | AU49: 620 | AV49: 513 | AW49: 520 | AX49: 377 | AY49: 1597
A50: E38000123 | B50: North Manchester CCG | D50: North Manchester | E50: 50189 | F50: 1985 | G50: 2079 | H50: 1976 | I50: 2118 | J50: 1921 | K50: 2008 | L50: 1891 | M50: 1773 | N50: 1830 | O50: 1699 | P50: 1652 | Q50: 1559 | R50: 1493 | S50: 1555 | T50: 1401 | U50: 1314 | V50: 1212 | W50: 1216 | X50: 1150 | Y50: 1210 | Z50: 1138 | AA50: 1127 | AB50: 1209 | AC50: 1211 | AD50: 858 | AE50: 853 | AF50: 875 | AG50: 816 | AH50: 738 | AI50: 746 | AJ50: 726 | AK50: 707 | AL50: 694 | AM50: 647 | AN50: 590 | AO50: 552 | AP50: 464 | AQ50: 455 | AR50: 421 | AS50: 350 | AT50: 298 | AU50: 319 | AV50: 250 | AW50: 224 | AX50: 176 | AY50: 703
A51: E38000135 | B51: Oldham CCG | D51: Oldham | E51: 92665 | F51: 3306 | G51: 3261 | H51: 3201 | I51: 3238 | J51: 3161 | K51: 3231 | L51: 3202 | M51: 2900 | N51: 2985 | O51: 2956 | P51: 2862 | Q51: 2741 | R51: 2572 | S51: 2541 | T51: 2480 | U51: 2320 | V51: 2423 | W51: 2389 | X51: 2253 | Y51: 2211 | Z51: 2328 | AA51: 2257 | AB51: 2573 | AC51: 2681 | AD51: 1918 | AE51: 1922 | AF51: 2013 | AG51: 1839 | AH51: 1622 | AI51: 1493 | AJ51: 1505 | AK51: 1481 | AL51: 1440 | AM51: 1341 | AN51: 1151 | AO51: 1067 | AP51: 994 | AQ51: 895 | AR51: 849 | AS51: 843 | AT51: 663 | AU51: 582 | AV51: 521 | AW51: 470 | AX51: 413 | AY51: 1571
A52: E38000143 | B52: Salford CCG | D52: Salford | E52: 91833 | F52: 3050 | G52: 3304 | H52: 3297 | I52: 3179 | J52: 3268 | K52: 3283 | L52: 3211 | M52: 3174 | N52: 3157 | O52: 2935 | P52: 2763 | Q52: 2823 | R52: 2662 | S52: 2696 | T52: 2315 | U52: 2204 | V52: 2240 | W52: 2254 | X52: 2100 | Y52: 2151 | Z52: 2237 | AA52: 2176 | AB52: 2327 | AC52: 2630 | AD52: 1879 | AE52: 1832 | AF52: 1740 | AG52: 1708 | AH52: 1603 | AI52: 1468 | AJ52: 1440 | AK52: 1436 | AL52: 1426 | AM52: 1248 | AN52: 1280 | AO52: 1064 | AP52: 1021 | AQ52: 882 | AR52: 900 | AS52: 797 | AT52: 760 | AU52: 640 | AV52: 573 | AW52: 514 | AX52: 459 | AY52: 1727
A53: E38000158 | B53: South Manchester CCG | D53: South Manchester | E53: 52005 | F53: 1904 | G53: 1971 | H53: 1860 | I53: 2036 | J53: 1868 | K53: 1927 | L53: 1936 | M53: 1829 | N53: 1849 | O53: 1732 | P53: 1614 | Q53: 1549 | R53: 1590 | S53: 1500 | T53: 1444 | U53: 1379 | V53: 1294 | W53: 1345 | X53: 1365 | Y53: 1273 | Z53: 1269 | AA53: 1224 | AB53: 1326 | AC53: 1262 | AD53: 970 | AE53: 888 | AF53: 915 | AG53: 806 | AH53: 776 | AI53: 756 | AJ53: 710 | AK53: 657 | AL53: 657 | AM53: 635 | AN53: 625 | AO53: 567 | AP53: 539 | AQ53: 506 | AR53: 474 | AS53: 438 | AT53: 414 | AU53: 395 | AV53: 345 | AW53: 336 | AX53: 267 | AY53: 983
A54: E38000174 | B54: Stockport CCG | D54: Stockport | E54: 134343 | F54: 4060 | G54: 4322 | H54: 4236 | I54: 4376 | J54: 4319 | K54: 4663 | L54: 4310 | M54: 4291 | N54: 4274 | O54: 4006 | P54: 3976 | Q54: 3859 | R54: 3750 | S54: 3607 | T54: 3507 | U54: 3365 | V54: 3329 | W54: 3280 | X54: 3169 | Y54: 3170 | Z54: 3307 | AA54: 3339 | AB54: 3520 | AC54: 3947 | AD54: 2902 | AE54: 2869 | AF54: 2750 | AG54: 2695 | AH54: 2454 | AI54: 2175 | AJ54: 2316 | AK54: 2266 | AL54: 2225 | AM54: 2058 | AN54: 1963 | AO54: 1889 | AP54: 1644 | AQ54: 1627 | AR54: 1545 | AS54: 1405 | AT54: 1261 | AU54: 1099 | AV54: 980 | AW54: 829 | AX54: 736 | AY54: 2673
A55: E38000182 | B55: Tameside and Glossop CCG | D55: Tameside and Glossop | E55: 113453 | F55: 3751 | G55: 3786 | H55: 3921 | I55: 3897 | J55: 4008 | K55: 4014 | L55: 4022 | M55: 3892 | N55: 3851 | O55: 3805 | P55: 3387 | Q55: 3396 | R55: 3326 | S55: 3166 | T55: 2965 | U55: 2718 | V55: 2830 | W55: 2909 | X55: 2782 | Y55: 2790 | Z55: 2849 | AA55: 2913 | AB55: 3154 | AC55: 3458 | AD55: 2481 | AE55: 2420 | AF55: 2363 | AG55: 2281 | AH55: 1985 | AI55: 1750 | AJ55: 1880 | AK55: 1621 | AL55: 1735 | AM55: 1521 | AN55: 1435 | AO55: 1329 | AP55: 1171 | AQ55: 1062 | AR55: 1019 | AS55: 948 | AT55: 821 | AU55: 682 | AV55: 597 | AW55: 505 | AX55: 457 | AY55: 1800
A56: E38000187 | B56: Trafford CCG | D56: Trafford | E56: 100939 | F56: 3562 | G56: 3574 | H56: 3534 | I56: 3472 | J56: 3616 | K56: 3642 | L56: 3650 | M56: 3586 | N56: 3375 | O56: 3091 | P56: 3001 | Q56: 2946 | R56: 2947 | S56: 2707 | T56: 2607 | U56: 2531 | V56: 2403 | W56: 2318 | X56: 2302 | Y56: 2356 | Z56: 2388 | AA56: 2310 | AB56: 2513 | AC56: 2556 | AD56: 1962 | AE56: 1948 | AF56: 2001 | AG56: 1836 | AH56: 1550 | AI56: 1478 | AJ56: 1614 | AK56: 1617 | AL56: 1532 | AM56: 1445 | AN56: 1430 | AO56: 1295 | AP56: 1269 | AQ56: 1092 | AR56: 1084 | AS56: 1022 | AT56: 1017 | AU56: 827 | AV56: 727 | AW56: 631 | AX56: 517 | AY56: 2058
A57: E38000200 | B57: West Lancashire CCG | D57: West Lancashire | E57: 54689 | F57: 1589 | G57: 1633 | H57: 1604 | I57: 1578 | J57: 1806 | K57: 1731 | L57: 1668 | M57: 1697 | N57: 1692 | O57: 1600 | P57: 1576 | Q57: 1480 | R57: 1546 | S57: 1475 | T57: 1394 | U57: 1357 | V57: 1320 | W57: 1418 | X57: 1325 | Y57: 1390 | Z57: 1386 | AA57: 1466 | AB57: 1624 | AC57: 1666 | AD57: 1327 | AE57: 1254 | AF57: 1283 | AG57: 1215 | AH57: 1090 | AI57: 995 | AJ57: 943 | AK57: 977 | AL57: 928 | AM57: 917 | AN57: 844 | AO57: 777 | AP57: 685 | AQ57: 591 | AR57: 559 | AS57: 503 | AT57: 467 | AU57: 433 | AV57: 369 | AW57: 285 | AX57: 236 | AY57: 990
A58: E38000205 | B58: Wigan Borough CCG | D58: Wigan Borough | E58: 146415 | F58: 5045 | G58: 5108 | H58: 5015 | I58: 5095 | J58: 5103 | K58: 4966 | L58: 5058 | M58: 4760 | N58: 4716 | O58: 4531 | P58: 4190 | Q58: 4120 | R58: 4089 | S58: 3812 | T58: 3632 | U58: 3514 | V58: 3643 | W58: 3554 | X58: 3510 | Y58: 3590 | Z58: 3843 | AA58: 4019 | AB58: 4232 | AC58: 4657 | AD58: 3389 | AE58: 3431 | AF58: 3334 | AG58: 3242 | AH58: 2885 | AI58: 2453 | AJ58: 2528 | AK58: 2393 | AL58: 2199 | AM58: 2004 | AN58: 1822 | AO58: 1760 | AP58: 1484 | AQ58: 1341 | AR58: 1257 | AS58: 1229 | AT58: 970 | AU58: 840 | AV58: 778 | AW58: 683 | AX58: 565 | AY58: 2026
B59: CCG | E59: 0
A60: E39000029 | B60: CCG | C60: Yorkshire and Humber | E60: 2408554 | F60: 76394 | G60: 77584 | H60: 77937 | I60: 78431 | J60: 78023 | K60: 78548 | L60: 78567 | M60: 77265 | N60: 75871 | O60: 73529 | P60: 71210 | Q60: 69098 | R60: 68661 | S60: 66090 | T60: 63787 | U60: 60719 | V60: 61601 | W60: 60702 | X60: 58725 | Y60: 59727 | Z60: 60587 | AA60: 62110 | AB60: 65670 | AC60: 71379 | AD60: 53783 | AE60: 52787 | AF60: 51613 | AG60: 47449 | AH60: 42121 | AI60: 38581 | AJ60: 40216 | AK60: 39446 | AL60: 38598 | AM60: 36230 | AN60: 34044 | AO60: 31786 | AP60: 29210 | AQ60: 26714 | AR60: 24879 | AS60: 23213 | AT60: 20805 | AU60: 18166 | AV60: 15835 | AW60: 14036 | AX60: 12106 | AY60: 44721
A61: E38000001 | B61: Airedale, Wharfedale and Craven CCG | D61: Airedale, Wharfedale and Craven | E61: 78351 | F61: 2239 | G61: 2232 | H61: 2314 | I61: 2373 | J61: 2363 | K61: 2362 | L61: 2421 | M61: 2385 | N61: 2367 | O61: 2349 | P61: 2332 | Q61: 2104 | R61: 2159 | S61: 2125 | T61: 2096 | U61: 1887 | V61: 2026 | W61: 2082 | X61: 2037 | Y61: 1914 | Z61: 1937 | AA61: 2099 | AB61: 2247 | AC61: 2475 | AD61: 1780 | AE61: 1696 | AF61: 1712 | AG61: 1571 | AH61: 1365 | AI61: 1251 | AJ61: 1289 | AK61: 1350 | AL61: 1227 | AM61: 1223 | AN61: 1174 | AO61: 1094 | AP61: 1046 | AQ61: 918 | AR61: 879 | AS61: 868 | AT61: 737 | AU61: 709 | AV61: 618 | AW61: 533 | AX61: 483 | AY61: 1903
A62: E38000006 | B62: Barnsley CCG | D62: Barnsley | E62: 110796 | F62: 3454 | G62: 3644 | H62: 3731 | I62: 3721 | J62: 3686 | K62: 3721 | L62: 3603 | M62: 3516 | N62: 3491 | O62: 3448 | P62: 3284 | Q62: 3299 | R62: 3200 | S62: 3177 | T62: 2986 | U62: 2760 | V62: 2931 | W62: 2835 | X62: 2752 | Y62: 2746 | Z62: 2719 | AA62: 2847 | AB62: 2932 | AC62: 3142 | AD62: 2567 | AE62: 2594 | AF62: 2466 | AG62: 2281 | AH62: 1895 | AI62: 1884 | AJ62: 1803 | AK62: 1752 | AL62: 1710 | AM62: 1578 | AN62: 1485 | AO62: 1359 | AP62: 1258 | AQ62: 1249 | AR62: 1007 | AS62: 1019 | AT62: 932 | AU62: 699 | AV62: 741 | AW62: 545 | AX62: 530 | AY62: 1817
A63: E38000008 | B63: Bassetlaw CCG | D63: Bassetlaw | E63: 56986 | F63: 1630 | G63: 1670 | H63: 1804 | I63: 1805 | J63: 1821 | K63: 1855 | L63: 1920 | M63: 1800 | N63: 1793 | O63: 1722 | P63: 1646 | Q63: 1635 | R63: 1604 | S63: 1554 | T63: 1409 | U63: 1505 | V63: 1507 | W63: 1460 | X63: 1401 | Y63: 1456 | Z63: 1494 | AA63: 1573 | AB63: 1681 | AC63: 1685 | AD63: 1370 | AE63: 1349 | AF63: 1313 | AG63: 1210 | AH63: 1050 | AI63: 955 | AJ63: 963 | AK63: 955 | AL63: 880 | AM63: 836 | AN63: 760 | AO63: 725 | AP63: 667 | AQ63: 573 | AR63: 588 | AS63: 528 | AT63: 455 | AU63: 407 | AV63: 356 | AW63: 352 | AX63: 294 | AY63: 970
A64: E38000018 | B64: Bradford City CCG | D64: Bradford City | E64: 19085 | F64: 1004 | G64: 918 | H64: 874 | I64: 803 | J64: 750 | K64: 719 | L64: 676 | M64: 612 | N64: 664 | O64: 622 | P64: 642 | Q64: 613 | R64: 654 | S64: 601 | T64: 585 | U64: 544 | V64: 546 | W64: 498 | X64: 521 | Y64: 452 | Z64: 441 | AA64: 369 | AB64: 370 | AC64: 341 | AD64: 248 | AE64: 235 | AF64: 221 | AG64: 243 | AH64: 248 | AI64: 268 | AJ64: 264 | AK64: 242 | AL64: 235 | AM64: 224 | AN64: 223 | AO64: 200 | AP64: 209 | AQ64: 149 | AR64: 140 | AS64: 146 | AT64: 148 | AU64: 113 | AV64: 96 | AW64: 71 | AX64: 65 | AY64: 278
A65: E38000019 | B65: Bradford Districts CCG | D65: Bradford Districts | E65: 129832 | F65: 4611 | G65: 4565 | H65: 4420 | I65: 4557 | J65: 4339 | K65: 4450 | L65: 4534 | M65: 4332 | N65: 4336 | O65: 4221 | P65: 4182 | Q65: 4004 | R65: 4034 | S65: 3873 | T65: 3739 | U65: 3558 | V65: 3541 | W65: 3400 | X65: 3182 | Y65: 3157 | Z65: 3228 | AA65: 3143 | AB65: 3368 | AC65: 3481 | AD65: 2405 | AE65: 2298 | AF65: 2376 | AG65: 2154 | AH65: 1986 | AI65: 1858 | AJ65: 2026 | AK65: 1809 | AL65: 1967 | AM65: 1877 | AN65: 1679 | AO65: 1649 | AP65: 1486 | AQ65: 1356 | AR65: 1311 | AS65: 1182 | AT65: 1036 | AU65: 878 | AV65: 756 | AW65: 693 | AX65: 585 | AY65: 2210
A66: E38000025 | B66: Calderdale CCG | D66: Calderdale | E66: 94626 | F66: 3255 | G66: 3121 | H66: 3286 | I66: 3154 | J66: 3215 | K66: 3246 | L66: 3284 | M66: 3175 | N66: 3132 | O66: 2922 | P66: 2878 | Q66: 2783 | R66: 2787 | S66: 2678 | T66: 2664 | U66: 2405 | V66: 2458 | W66: 2375 | X66: 2257 | Y66: 2393 | Z66: 2457 | AA66: 2475 | AB66: 2603 | AC66: 2746 | AD66: 2063 | AE66: 2014 | AF66: 1995 | AG66: 1835 | AH66: 1535 | AI66: 1430 | AJ66: 1464 | AK66: 1374 | AL66: 1366 | AM66: 1295 | AN66: 1168 | AO66: 1053 | AP66: 996 | AQ66: 915 | AR66: 915 | AS66: 844 | AT66: 707 | AU66: 663 | AV66: 555 | AW66: 543 | AX66: 457 | AY66: 1690
A67: E38000044 | B67: Doncaster CCG | D67: Doncaster | E67: 137722 | F67: 4152 | G67: 4254 | H67: 4305 | I67: 4400 | J67: 4457 | K67: 4448 | L67: 4643 | M67: 4517 | N67: 4367 | O67: 4248 | P67: 4206 | Q67: 4048 | R67: 4134 | S67: 3924 | T67: 3804 | U67: 3608 | V67: 3591 | W67: 3534 | X67: 3434 | Y67: 3475 | Z67: 3388 | AA67: 3587 | AB67: 3695 | AC67: 3958 | AD67: 2999 | AE67: 3000 | AF67: 2967 | AG67: 2577 | AH67: 2376 | AI67: 2247 | AJ67: 2269 | AK67: 2261 | AL67: 2117 | AM67: 2068 | AN67: 1937 | AO67: 1836 | AP67: 1652 | AQ67: 1558 | AR67: 1474 | AS67: 1295 | AT67: 1177 | AU67: 1058 | AV67: 881 | AW67: 736 | AX67: 627 | AY67: 2433
A68: E38000052 | B68: East Riding of Yorkshire CCG | D68: East Riding of Yorkshire | E68: 169332 | F68: 4397 | G68: 4725 | H68: 4717 | I68: 4636 | J68: 4854 | K68: 4899 | L68: 5007 | M68: 5025 | N68: 4925 | O68: 4778 | P68: 4513 | Q68: 4451 | R68: 4604 | S68: 4394 | T68: 4388 | U68: 4234 | V68: 4218 | W68: 4286 | X68: 4259 | Y68: 4454 | Z68: 4781 | AA68: 4807 | AB68: 5212 | AC68: 5956 | AD68: 4360 | AE68: 4075 | AF68: 3960 | AG68: 3759 | AH68: 3338 | AI68: 2947 | AJ68: 3157 | AK68: 3122 | AL68: 3015 | AM68: 2873 | AN68: 2606 | AO68: 2433 | AP68: 2210 | AQ68: 2096 | AR68: 1947 | AS68: 1755 | AT68: 1526 | AU68: 1341 | AV68: 1178 | AW68: 975 | AX68: 868 | AY68: 3271
A69: E38000064 | B69: Greater Huddersfield CCG | D69: Greater Huddersfield | E69: 106173 | F69: 3606 | G69: 3572 | H69: 3591 | I69: 3513 | J69: 3606 | K69: 3560 | L69: 3512 | M69: 3555 | N69: 3293 | O69: 3173 | P69: 3285 | Q69: 3095 | R69: 3048 | S69: 2948 | T69: 2714 | U69: 2672 | V69: 2682 | W69: 2654 | X69: 2687 | Y69: 2691 | Z69: 2749 | AA69: 2788 | AB69: 2928 | AC69: 3283 | AD69: 2365 | AE69: 2335 | AF69: 2217 | AG69: 2032 | AH69: 1788 | AI69: 1582 | AJ69: 1671 | AK69: 1625 | AL69: 1684 | AM69: 1542 | AN69: 1428 | AO69: 1290 | AP69: 1244 | AQ69: 1058 | AR69: 966 | AS69: 969 | AT69: 873 | AU69: 797 | AV69: 703 | AW69: 570 | AX69: 442 | AY69: 1787
A70: E38000069 | B70: Hambleton, Richmondshire and Whitby CCG | D70: Hambleton, Richmondshire and Whitby | E70: 79796 | F70: 2085 | G70: 2137 | H70: 2246 | I70: 2216 | J70: 2285 | K70: 2472 | L70: 2306 | M70: 2450 | N70: 2326 | O70: 2358 | P70: 2315 | Q70: 2165 | R70: 2142 | S70: 2084 | T70: 2102 | U70: 1976 | V70: 2044 | W70: 2154 | X70: 2004 | Y70: 2157 | Z70: 2134 | AA70: 2211 | AB70: 2402 | AC70: 2589 | AD70: 2036 | AE70: 1982 | AF70: 1936 | AG70: 1722 | AH70: 1537 | AI70: 1337 | AJ70: 1431 | AK70: 1507 | AL70: 1400 | AM70: 1227 | AN70: 1212 | AO70: 1140 | AP70: 1048 | AQ70: 954 | AR70: 793 | AS70: 844 | AT70: 717 | AU70: 661 | AV70: 540 | AW70: 469 | AX70: 445 | AY70: 1498
A71: E38000073 | B71: Harrogate and Rural District CCG | D71: Harrogate and Rural District | E71: 80899 | F71: 2384 | G71: 2416 | H71: 2429 | I71: 2652 | J71: 2530 | K71: 2672 | L71: 2615 | M71: 2555 | N71: 2479 | O71: 2406 | P71: 2321 | Q71: 2271 | R71: 2204 | S71: 2139 | T71: 2109 | U71: 2003 | V71: 1958 | W71: 1860 | X71: 1853 | Y71: 1894 | Z71: 1906 | AA71: 2043 | AB71: 2157 | AC71: 2470 | AD71: 1832 | AE71: 1856 | AF71: 1771 | AG71: 1562 | AH71: 1450 | AI71: 1354 | AJ71: 1403 | AK71: 1431 | AL71: 1422 | AM71: 1250 | AN71: 1246 | AO71: 1099 | AP71: 1037 | AQ71: 954 | AR71: 929 | AS71: 851 | AT71: 752 | AU71: 683 | AV71: 651 | AW71: 560 | AX71: 530 | AY71: 1950
A72: E38000085 | B72: Hull CCG | D72: Hull | E72: =SUM(F72:AY72) -> 100148 | F72: 3223 | G72: 3374 | H72: 3358 | I72: 3516 | J72: 3421 | K72: 3450 | L72: 3502 | M72: 3522 | N72: 3542 | O72: 3337 | P72: 3247 | Q72: 2985 | R72: 3004 | S72: 2946 | T72: 2725 | U72: 2592 | V72: 2645 | W72: 2612 | X72: 2495 | Y72: 2508 | Z72: 2403 | AA72: 2441 | AB72: 2714 | AC72: 2780 | AD72: 2058 | AE72: 1851 | AF72: 1737 | AG72: 1805 | AH72: 1523 | AI72: 1436 | AJ72: 1514 | AK72: 1562 | AL72: 1443 | AM72: 1474 | AN72: 1358 | AO72: 1232 | AP72: 1158 | AQ72: 1059 | AR72: 1001 | AS72: 918 | AT72: 839 | AU72: 704 | AV72: 611 | AW72: 528 | AX72: 446 | AY72: 1549
A73: E38000094 | B73: Leeds North CCG | D73: Leeds North | E73: 90283 | F73: 2764 | G73: 2862 | H73: 2913 | I73: 2801 | J73: 2834 | K73: 2902 | L73: 2888 | M73: 2877 | N73: 2732 | O73: 2682 | P73: 2617 | Q73: 2608 | R73: 2424 | S73: 2472 | T73: 2308 | U73: 2233 | V73: 2360 | W73: 2263 | X73: 2175 | Y73: 2263 | Z73: 2219 | AA73: 2291 | AB73: 2455 | AC73: 2544 | AD73: 1974 | AE73: 1845 | AF73: 1874 | AG73: 1794 | AH73: 1541 | AI73: 1322 | AJ73: 1474 | AK73: 1435 | AL73: 1515 | AM73: 1495 | AN73: 1375 | AO73: 1296 | AP73: 1150 | AQ73: 1140 | AR73: 1046 | AS73: 1017 | AT73: 877 | AU73: 850 | AV73: 652 | AW73: 612 | AX73: 549 | AY73: 1963
A74: E38000095 | B74: Leeds South and East CCG | D74: Leeds South and East | E74: 89866 | F74: 3320 | G74: 3157 | H74: 3147 | I74: 3299 | J74: 3196 | K74: 3232 | L74: 3022 | M74: 2998 | N74: 2985 | O74: 2753 | P74: 2618 | Q74: 2618 | R74: 2504 | S74: 2582 | T74: 2291 | U74: 2114 | V74: 2208 | W74: 2145 | X74: 2144 | Y74: 2124 | Z74: 2199 | AA74: 2113 | AB74: 2244 | AC74: 2509 | AD74: 1912 | AE74: 1801 | AF74: 1771 | AG74: 1725 | AH74: 1516 | AI74: 1452 | AJ74: 1524 | AK74: 1462 | AL74: 1474 | AM74: 1363 | AN74: 1293 | AO74: 1244 | AP74: 1036 | AQ74: 954 | AR74: 908 | AS74: 813 | AT74: 723 | AU74: 619 | AV74: 506 | AW74: 515 | AX74: 392 | AY74: 1341
A75: E38000096 | B75: Leeds West CCG | D75: Leeds West | E75: 115152 | F75: 3940 | G75: 4055 | H75: 4005 | I75: 4066 | J75: 3947 | K75: 4059 | L75: 4026 | M75: 3878 | N75: 3764 | O75: 3580 | P75: 3344 | Q75: 3373 | R75: 3333 | S75: 3208 | T75: 3051 | U75: 2821 | V75: 2904 | W75: 2848 | X75: 2713 | Y75: 2752 | Z75: 2812 | AA75: 2943 | AB75: 2999 | AC75: 3367 | AD75: 2323 | AE75: 2324 | AF75: 2187 | AG75: 2123 | AH75: 1872 | AI75: 1704 | AJ75: 1835 | AK75: 1770 | AL75: 1751 | AM75: 1602 | AN75: 1630 | AO75: 1535 | AP75: 1357 | AQ75: 1209 | AR75: 1216 | AS75: 1066 | AT75: 1000 | AU75: 866 | AV75: 736 | AW75: 705 | AX75: 569 | AY75: 1984
A76: E38000119 | B76: North East Lincolnshire CCG | D76: North East Lincolnshire | E76: 73555 | F76: 2140 | G76: 2304 | H76: 2236 | I76: 2274 | J76: 2348 | K76: 2374 | L76: 2329 | M76: 2393 | N76: 2349 | O76: 2306 | P76: 2125 | Q76: 2106 | R76: 2089 | S76: 1936 | T76: 1947 | U76: 1835 | V76: 1899 | W76: 1824 | X76: 1790 | Y76: 1802 | Z76: 1818 | AA76: 1862 | AB76: 1989 | AC76: 2252 | AD76: 1661 | AE76: 1571 | AF76: 1530 | AG76: 1422 | AH76: 1279 | AI76: 1238 | AJ76: 1282 | AK76: 1225 | AL76: 1224 | AM76: 1190 | AN76: 1043 | AO76: 1056 | AP76: 991 | AQ76: 881 | AR76: 813 | AS76: 778 | AT76: 665 | AU76: 589 | AV76: 521 | AW76: 448 | AX76: 373 | AY76: 1448
A77: E38000121 | B77: =CONCATENATE(D77," CCG") -> North Kirklees CCG | D77: North Kirklees | E77: 76680 | F77: 2729 | G77: 2805 | H77: 2750 | I77: 2642 | J77: 2565 | K77: 2516 | L77: 2534 | M77: 2414 | N77: 2479 | O77: 2350 | P77: 2241 | Q77: 2171 | R77: 2172 | S77: 2144 | T77: 2068 | U77: 1912 | V77: 1912 | W77: 1961 | X77: 1883 | Y77: 1970 | Z77: 1954 | AA77: 1961 | AB77: 2157 | AC77: 2198 | AD77: 1647 | AE77: 1609 | AF77: 1548 | AG77: 1580 | AH77: 1375 | AI77: 1204 | AJ77: 1208 | AK77: 1203 | AL77: 1188 | AM77: 1129 | AN77: 1006 | AO77: 925 | AP77: 837 | AQ77: 782 | AR77: 704 | AS77: 634 | AT77: 635 | AU77: 491 | AV77: 448 | AW77: 412 | AX77: 344 | AY77: 1283
A78: E38000122 | B78: North Lincolnshire CCG | D78: North Lincolnshire | E78: 81592 | F78: 2465 | G78: 2552 | H78: 2444 | I78: 2528 | J78: 2572 | K78: 2643 | L78: 2618 | M78: 2575 | N78: 2498 | O78: 2473 | P78: 2412 | Q78: 2330 | R78: 2335 | S78: 2178 | T78: 2246 | U78: 2178 | V78: 2080 | W78: 2188 | X78: 2085 | Y78: 2120 | Z78: 2189 | AA78: 2179 | AB78: 2267 | AC78: 2447 | AD78: 1816 | AE78: 1911 | AF78: 1797 | AG78: 1645 | AH78: 1548 | AI78: 1332 | AJ78: 1377 | AK78: 1344 | AL78: 1244 | AM78: 1169 | AN78: 1134 | AO78: 1079 | AP78: 934 | AQ78: 884 | AR78: 810 | AS78: 780 | AT78: 676 | AU78: 603 | AV78: 517 | AW78: 447 | AX78: 415 | AY78: 1528
A79: E38000141 | B79: Rotherham CCG | D79: Rotherham | E79: 120094 | F79: 3848 | G79: 3825 | H79: 3932 | I79: 3858 | J79: 3907 | K79: 3897 | L79: 3901 | M79: 3839 | N79: 3714 | O79: 3727 | P79: 3575 | Q79: 3436 | R79: 3535 | S79: 3288 | T79: 3223 | U79: 3022 | V79: 3099 | W79: 3013 | X79: 2855 | Y79: 2975 | Z79: 3074 | AA79: 3047 | AB79: 3234 | AC79: 3497 | AD79: 2725 | AE79: 2982 | AF79: 2708 | AG79: 2340 | AH79: 2219 | AI79: 2011 | AJ79: 2090 | AK79: 2030 | AL79: 2002 | AM79: 1750 | AN79: 1667 | AO79: 1527 | AP79: 1403 | AQ79: 1265 | AR79: 1167 | AS79: 1117 | AT79: 906 | AU79: 836 | AV79: 695 | AW79: 674 | AX79: 586 | AY79: 2073
A80: E38000145 | B80: Scarborough and Ryedale CCG | D80: Scarborough and Ryedale | E80: 59075 | F80: 1401 | G80: 1518 | H80: 1524 | I80: 1683 | J80: 1537 | K80: 1633 | L80: 1779 | M80: 1726 | N80: 1675 | O80: 1673 | P80: 1624 | Q80: 1583 | R80: 1576 | S80: 1530 | T80: 1548 | U80: 1428 | V80: 1584 | W80: 1483 | X80: 1518 | Y80: 1566 | Z80: 1538 | AA80: 1666 | AB80: 1703 | AC80: 2034 | AD80: 1477 | AE80: 1497 | AF80: 1467 | AG80: 1352 | AH80: 1177 | AI80: 1123 | AJ80: 1099 | AK80: 1138 | AL80: 1076 | AM80: 964 | AN80: 934 | AO80: 841 | AP80: 790 | AQ80: 756 | AR80: 661 | AS80: 641 | AT80: 600 | AU80: 518 | AV80: 467 | AW80: 420 | AX80: 341 | AY80: 1206
A81: E38000146 | B81: Sheffield CCG | D81: Sheffield | E81: 221926 | F81: 7743 | G81: 7792 | H81: 7708 | I81: 7651 | J81: 7465 | K81: 7203 | L81: 7045 | M81: 7092 | N81: 7022 | O81: 6706 | P81: 6526 | Q81: 6243 | R81: 6122 | S81: 5902 | T81: 5558 | U81: 5382 | V81: 5317 | W81: 5333 | X81: 5043 | Y81: 5060 | Z81: 5115 | AA81: 5253 | AB81: 5645 | AC81: 6098 | AD81: 4828 | AE81: 4800 | AF81: 4910 | AG81: 4311 | AH81: 3906 | AI81: 3601 | AJ81: 3830 | AK81: 3736 | AL81: 3660 | AM81: 3420 | AN81: 3281 | AO81: 3101 | AP81: 2875 | AQ81: 2519 | AR81: 2378 | AS81: 2189 | AT81: 2137 | AU81: 1759 | AV81: 1526 | AW81: 1364 | AX81: 1173 | AY81: 4598
A82: E38000188 | B82: Vale of York CCG | D82: Vale of York | E82: 163051 | F82: 4972 | G82: 5008 | H82: 5093 | I82: 5063 | J82: 5080 | K82: 5248 | L82: 5303 | M82: 5101 | N82: 5111 | O82: 4895 | P82: 4696 | Q82: 4599 | R82: 4525 | S82: 4277 | T82: 4161 | U82: 4116 | V82: 4106 | W82: 3973 | X82: 3910 | Y82: 4106 | Z82: 4133 | AA82: 4331 | AB82: 4544 | AC82: 5013 | AD82: 3808 | AE82: 3716 | AF82: 3655 | AG82: 3329 | AH82: 2950 | AI82: 2570 | AJ82: 2738 | AK82: 2670 | AL82: 2630 | AM82: 2532 | AN82: 2406 | AO82: 2217 | AP82: 1973 | AQ82: 1814 | AR82: 1769 | AS82: 1695 | AT82: 1460 | AU82: 1300 | AV82: 1169 | AW82: 1017 | AX82: 882 | AY82: 3387
A83: E38000190 | B83: Wakefield CCG | D83: Wakefield | E83: 153534 | F83: 5032 | G83: 5078 | H83: 5110 | I83: 5220 | J83: 5245 | K83: 4987 | L83: 5099 | M83: 4928 | N83: 4827 | O83: 4800 | P83: 4581 | Q83: 4578 | R83: 4472 | S83: 4130 | T83: 4065 | U83: 3934 | V83: 3985 | W83: 3921 | X83: 3727 | Y83: 3692 | Z83: 3899 | AA83: 4081 | AB83: 4124 | AC83: 4514 | AD83: 3529 | AE83: 3446 | AF83: 3495 | AG83: 3077 | AH83: 2647 | AI83: 2475 | AJ83: 2505 | AK83: 2443 | AL83: 2368 | AM83: 2149 | AN83: 1999 | AO83: 1855 | AP83: 1853 | AQ83: 1671 | AR83: 1457 | AS83: 1264 | AT83: 1227 | AU83: 1022 | AV83: 912 | AW83: 847 | AX83: 710 | AY83: 2554
B84: CCG | E84: 0
A85: E40000002 | B85: CCG | E85: 7366867 | F85: 231285 | G85: 238934 | H85: 238104 | I85: 241044 | J85: 242309 | K85: 242427 | L85: 239301 | M85: 234265 | N85: 230016 | O85: 221908 | P85: 210738 | Q85: 206695 | R85: 202305 | S85: 194442 | T85: 189026 | U85: 183167 | V85: 185917 | W85: 183782 | X85: 179159 | Y85: 179917 | Z85: 184712 | AA85: 189114 | AB85: 199865 | AC85: 217277 | AD85: 168010 | AE85: 164129 | AF85: 165334 | AG85: 151639 | AH85: 133349 | AI85: 118060 | AJ85: 121663 | AK85: 120847 | AL85: 116484 | AM85: 110318 | AN85: 102915 | AO85: 96515 | AP85: 88063 | AQ85: 82460 | AR85: 79332 | AS85: 73163 | AT85: 66598 | AU85: 58422 | AV85: 51108 | AW85: 45007 | AX85: 39149 | AY85: 148593
B86: CCG | E86: 0
A87: E39000030 | B87: CCG | C87: Central Midlands | E87: 1978540 | F87: 63614 | G87: 66303 | H87: 66245 | I87: 66862 | J87: 67426 | K87: 67764 | L87: 66867 | M87: 65483 | N87: 63828 | O87: 61706 | P87: 58797 | Q87: 57512 | R87: 55993 | S87: 53473 | T87: 51771 | U87: 50009 | V87: 50078 | W87: 49443 | X87: 48168 | Y87: 48419 | Z87: 49499 | AA87: 50036 | AB87: 52930 | AC87: 56909 | AD87: 43801 | AE87: 42276 | AF87: 42271 | AG87: 38840 | AH87: 33595 | AI87: 29844 | AJ87: 31103 | AK87: 31054 | AL87: 29618 | AM87: 28216 | AN87: 26420 | AO87: 24661 | AP87: 22669 | AQ87: 21190 | AR87: 20146 | AS87: 18824 | AT87: 17162 | AU87: 15049 | AV87: 13108 | AW87: 11343 | AX87: 9999 | AY87: 38216
A88: E38000010 | B88: Bedfordshire CCG | D88: Bedfordshire | E88: 193307 | F88: 6314 | G88: 6659 | H88: 6599 | I88: 6702 | J88: 6937 | K88: 6793 | L88: 6740 | M88: 6676 | N88: 6464 | O88: 6204 | P88: 5827 | Q88: 5815 | R88: 5535 | S88: 5346 | T88: 5096 | U88: 4933 | V88: 4873 | W88: 4779 | X88: 4586 | Y88: 4672 | Z88: 4821 | AA88: 4857 | AB88: 5181 | AC88: 5492 | AD88: 4150 | AE88: 4026 | AF88: 4141 | AG88: 3776 | AH88: 3132 | AI88: 2828 | AJ88: 2875 | AK88: 2846 | AL88: 2833 | AM88: 2641 | AN88: 2589 | AO88: 2427 | AP88: 2143 | AQ88: 1939 | AR88: 1879 | AS88: 1722 | AT88: 1638 | AU88: 1366 | AV88: 1208 | AW88: 1019 | AX88: 902 | AY88: 3326
A89: E38000037 | B89: Corby CCG | D89: Corby | E89: 26596 | F89: 838 | G89: 1027 | H89: 994 | I89: 947 | J89: 1012 | K89: 1049 | L89: 956 | M89: 1022 | N89: 924 | O89: 938 | P89: 895 | Q89: 855 | R89: 835 | S89: 777 | T89: 721 | U89: 743 | V89: 713 | W89: 729 | X89: 586 | Y89: 660 | Z89: 614 | AA89: 606 | AB89: 620 | AC89: 690 | AD89: 534 | AE89: 510 | AF89: 499 | AG89: 468 | AH89: 453 | AI89: 362 | AJ89: 376 | AK89: 386 | AL89: 368 | AM89: 343 | AN89: 349 | AO89: 276 | AP89: 257 | AQ89: 252 | AR89: 208 | AS89: 196 | AT89: 150 | AU89: 171 | AV89: 138 | AW89: 112 | AX89: 104 | AY89: 333
A90: E38000049 | B90: East and North Hertfordshire CCG | D90: East and North Hertfordshire | E90: 238410 | F90: 7968 | G90: 8258 | H90: 8357 | I90: 8497 | J90: 8712 | K90: 8731 | L90: 8462 | M90: 8325 | N90: 8075 | O90: 7538 | P90: 7253 | Q90: 7148 | R90: 6854 | S90: 6541 | T90: 6164 | U90: 5823 | V90: 5668 | W90: 5476 | X90: 5238 | Y90: 5178 | Z90: 5416 | AA90: 5498 | AB90: 5788 | AC90: 6572 | AD90: 4761 | AE90: 4718 | AF90: 4630 | AG90: 4426 | AH90: 3840 | AI90: 3416 | AJ90: 3701 | AK90: 3669 | AL90: 3577 | AM90: 3427 | AN90: 3278 | AO90: 3237 | AP90: 2981 | AQ90: 2673 | AR90: 2689 | AS90: 2498 | AT90: 2236 | AU90: 1967 | AV90: 1649 | AW90: 1423 | AX90: 1310 | AY90: 4764
A91: E38000051 | B91: East Leicestershire and Rutland CCG | D91: East Leicestershire and Rutland | E91: 160178 | F91: 4632 | G91: 5089 | H91: 5166 | I91: 5100 | J91: 5159 | K91: 5255 | L91: 5213 | M91: 5092 | N91: 4940 | O91: 4879 | P91: 4605 | Q91: 4363 | R91: 4346 | S91: 4135 | T91: 4059 | U91: 3838 | V91: 3813 | W91: 3989 | X91: 3879 | Y91: 3950 | Z91: 4022 | AA91: 4209 | AB91: 4411 | AC91: 4799 | AD91: 3591 | AE91: 3663 | AF91: 3730 | AG91: 3431 | AH91: 2812 | AI91: 2578 | AJ91: 2642 | AK91: 2709 | AL91: 2654 | AM91: 2461 | AN91: 2329 | AO91: 2183 | AP91: 2050 | AQ91: 1882 | AR91: 1749 | AS91: 1645 | AT91: 1519 | AU91: 1251 | AV91: 1143 | AW91: 956 | AX91: 820 | AY91: 3437
A92: E38000079 | B92: Herts Valleys CCG | D92: Herts Valleys | E92: 246904 | F92: 8547 | G92: 8721 | H92: 8880 | I92: 8820 | J92: 9015 | K92: 8778 | L92: 8660 | M92: 8582 | N92: 8233 | O92: 7949 | P92: 7341 | Q92: 7274 | R92: 7062 | S92: 6767 | T92: 6431 | U92: 6202 | V92: 6145 | W92: 5843 | X92: 5556 | Y92: 5602 | Z92: 5643 | AA92: 5618 | AB92: 5956 | AC92: 6508 | AD92: 5124 | AE92: 4775 | AF92: 4790 | AG92: 4597 | AH92: 3749 | AI92: 3289 | AJ92: 3631 | AK92: 3709 | AL92: 3551 | AM92: 3559 | AN92: 3251 | AO92: 3085 | AP92: 2987 | AQ92: 2843 | AR92: 2655 | AS92: 2454 | AT92: 2300 | AU92: 2090 | AV92: 1780 | AW92: 1625 | AX92: 1434 | AY92: 5493
A93: E38000097 | B93: Leicester City CCG | D93: Leicester City | E93: 112194 | F93: 3955 | G93: 4072 | H93: 4023 | I93: 3924 | J93: 3858 | K93: 3990 | L93: 3874 | M93: 3895 | N93: 3848 | O93: 3937 | P93: 3803 | Q93: 3651 | R93: 3525 | S93: 3343 | T93: 3299 | U93: 3189 | V93: 3168 | W93: 3079 | X93: 2939 | Y93: 2768 | Z93: 2708 | AA93: 2612 | AB93: 2608 | AC93: 2517 | AD93: 2013 | AE93: 1847 | AF93: 1938 | AG93: 1891 | AH93: 1506 | AI93: 1505 | AJ93: 1601 | AK93: 1577 | AL93: 1486 | AM93: 1535 | AN93: 1371 | AO93: 1272 | AP93: 1159 | AQ93: 1148 | AR93: 1050 | AS93: 937 | AT93: 956 | AU93: 783 | AV93: 733 | AW93: 627 | AX93: 573 | AY93: 2101
A94: E38000099 | B94: Lincolnshire East CCG | D94: Lincolnshire East | E94: 126022 | F94: 2985 | G94: 3151 | H94: 3014 | I94: 3226 | J94: 3238 | K94: 3470 | L94: 3413 | M94: 3340 | N94: 3390 | O94: 3350 | P94: 3244 | Q94: 3231 | R94: 3379 | S94: 3201 | T94: 3206 | U94: 3189 | V94: 3276 | W94: 3289 | X94: 3276 | Y94: 3429 | Z94: 3622 | AA94: 3663 | AB94: 4018 | AC94: 4406 | AD94: 3563 | AE94: 3447 | AF94: 3408 | AG94: 3050 | AH94: 2818 | AI94: 2443 | AJ94: 2465 | AK94: 2435 | AL94: 2246 | AM94: 2119 | AN94: 1981 | AO94: 1864 | AP94: 1553 | AQ94: 1598 | AR94: 1443 | AS94: 1370 | AT94: 1240 | AU94: 1096 | AV94: 907 | AW94: 800 | AX94: 676 | AY94: 2494
A95: E38000100 | B95: Lincolnshire West CCG | D95: Lincolnshire West | E95: 106870 | F95: 3141 | G95: 3154 | H95: 3224 | I95: 3351 | J95: 3375 | K95: 3252 | L95: 3403 | M95: 3430 | N95: 3306 | O95: 3315 | P95: 3036 | Q95: 2924 | R95: 2843 | S95: 2754 | T95: 2623 | U95: 2649 | V95: 2699 | W95: 2615 | X95: 2634 | Y95: 2703 | Z95: 2811 | AA95: 2818 | AB95: 3050 | AC95: 3264 | AD95: 2631 | AE95: 2516 | AF95: 2569 | AG95: 2382 | AH95: 2017 | AI95: 1804 | AJ95: 1894 | AK95: 1863 | AL95: 1694 | AM95: 1616 | AN95: 1495 | AO95: 1432 | AP95: 1284 | AQ95: 1202 | AR95: 1130 | AS95: 1077 | AT95: 989 | AU95: 909 | AV95: 745 | AW95: 592 | AX95: 508 | AY95: 2147
A96: E38000102 | B96: Luton CCG | D96: Luton | E96: 71307 | F96: 2717 | G96: 2610 | H96: 2779 | I96: 2661 | J96: 2592 | K96: 2710 | L96: 2743 | M96: 2637 | N96: 2632 | O96: 2313 | P96: 2308 | Q96: 2200 | R96: 2079 | S96: 1975 | T96: 1957 | U96: 1813 | V96: 1760 | W96: 1726 | X96: 1682 | Y96: 1564 | Z96: 1574 | AA96: 1507 | AB96: 1509 | AC96: 1603 | AD96: 1302 | AE96: 1308 | AF96: 1186 | AG96: 1136 | AH96: 1097 | AI96: 1014 | AJ96: 1117 | AK96: 1064 | AL96: 1110 | AM96: 1073 | AN96: 1044 | AO96: 933 | AP96: 810 | AQ96: 726 | AR96: 715 | AS96: 673 | AT96: 551 | AU96: 526 | AV96: 435 | AW96: 341 | AX96: 295 | AY96: 1200
A97: E38000107 | B97: Milton Keynes CCG | D97: Milton Keynes | E97: 100957 | F97: 3787 | G97: 3876 | H97: 3788 | I97: 3894 | J97: 3803 | K97: 3688 | L97: 3750 | M97: 3544 | N97: 3369 | O97: 3328 | P97: 3346 | Q97: 3285 | R97: 3122 | S97: 2977 | T97: 2895 | U97: 2867 | V97: 2790 | W97: 2740 | X97: 2660 | Y97: 2669 | Z97: 2604 | AA97: 2570 | AB97: 2497 | AC97: 2673 | AD97: 2080 | AE97: 1792 | AF97: 1880 | AG97: 1647 | AH97: 1493 | AI97: 1312 | AJ97: 1309 | AK97: 1353 | AL97: 1182 | AM97: 1170 | AN97: 1067 | AO97: 878 | AP97: 848 | AQ97: 857 | AR97: 750 | AS97: 758 | AT97: 635 | AU97: 556 | AV97: 534 | AW97: 431 | AX97: 378 | AY97: 1525
A98: E38000108 | B98: Nene CCG | D98: Nene | E98: 281848 | F98: 9310 | G98: 9779 | H98: 9681 | I98: 9906 | J98: 9776 | K98: 9904 | L98: 9709 | M98: 9313 | N98: 9073 | O98: 8619 | P98: 8289 | Q98: 8057 | R98: 7878 | S98: 7514 | T98: 7265 | U98: 7093 | V98: 7220 | W98: 6988 | X98: 7171 | Y98: 7183 | Z98: 7349 | AA98: 7590 | AB98: 8087 | AC98: 8580 | AD98: 6459 | AE98: 6239 | AF98: 6168 | AG98: 5346 | AH98: 4840 | AI98: 4177 | AJ98: 4196 | AK98: 4193 | AL98: 3965 | AM98: 3603 | AN98: 3460 | AO98: 3096 | AP98: 3005 | AQ98: 2725 | AR98: 2640 | AS98: 2396 | AT98: 2198 | AU98: 1885 | AV98: 1758 | AW98: 1601 | AX98: 1341 | AY98: 5223
A99: E38000157 | B99: South Lincolnshire CCG | D99: South Lincolnshire | E99: 73922 | F99: 2068 | G99: 2125 | H99: 2062 | I99: 2108 | J99: 2168 | K99: 2331 | L99: 2214 | M99: 2114 | N99: 2162 | O99: 2061 | P99: 2005 | Q99: 2033 | R99: 2058 | S99: 1887 | T99: 1858 | U99: 1781 | V99: 1841 | W99: 1817 | X99: 1802 | Y99: 1868 | Z99: 1933 | AA99: 1929 | AB99: 2239 | AC99: 2460 | AD99: 1850 | AE99: 1762 | AF99: 1756 | AG99: 1615 | AH99: 1464 | AI99: 1316 | AJ99: 1339 | AK99: 1307 | AL99: 1218 | AM99: 1214 | AN99: 1113 | AO99: 1019 | AP99: 938 | AQ99: 871 | AR99: 850 | AS99: 815 | AT99: 737 | AU99: 657 | AV99: 542 | AW99: 487 | AX99: 423 | AY99: 1705
A100: E38000165 | B100: South West Lincolnshire CCG | D100: South West Lincolnshire | E100: 62531 | F100: 1856 | G100: 1900 | H100: 1935 | I100: 1971 | J100: 1995 | K100: 1997 | L100: 2057 | M100: 2001 | N100: 1809 | O100: 1862 | P100: 1817 | Q100: 1661 | R100: 1602 | S100: 1643 | T100: 1545 | U100: 1554 | V100: 1564 | W100: 1655 | X100: 1569 | Y100: 1590 | Z100: 1688 | AA100: 1664 | AB100: 1819 | AC100: 1947 | AD100: 1568 | AE100: 1505 | AF100: 1500 | AG100: 1386 | AH100: 1294 | AI100: 1033 | AJ100: 1084 | AK100: 1130 | AL100: 1020 | AM100: 952 | AN100: 809 | AO100: 788 | AP100: 755 | AQ100: 651 | AR100: 599 | AS100: 599 | AT100: 503 | AU100: 459 | AV100: 407 | AW100: 319 | AX100: 310 | AY100: 1159
A101: E38000201 | B101: West Leicestershire CCG | D101: West Leicestershire | E101: 177494 | F101: 5496 | G101: 5882 | H101: 5743 | I101: 5755 | J101: 5786 | K101: 5816 | L101: 5673 | M101: 5512 | N101: 5603 | O101: 5413 | P101: 5028 | Q101: 5015 | R101: 4875 | S101: 4613 | T101: 4652 | U101: 4335 | V101: 4548 | W101: 4718 | X101: 4590 | Y101: 4583 | Z101: 4694 | AA101: 4895 | AB101: 5147 | AC101: 5398 | AD101: 4175 | AE101: 4168 | AF101: 4076 | AG101: 3689 | AH101: 3080 | AI101: 2767 | AJ101: 2873 | AK101: 2813 | AL101: 2714 | AM101: 2503 | AN101: 2284 | AO101: 2171 | AP101: 1899 | AQ101: 1823 | AR101: 1789 | AS101: 1684 | AT101: 1510 | AU101: 1333 | AV101: 1129 | AW101: 1010 | AX101: 925 | AY101: 3309
B102: CCG | E102: 0
A103: E39000031 | B103: CCG | C103: East | E103: 1996634 | F103: 59693 | G103: 61554 | H103: 61401 | I103: 62711 | J103: 62902 | K103: 62828 | L103: 62170 | M103: 60539 | N103: 59377 | O103: 58003 | P103: 55079 | Q103: 53896 | R103: 53411 | S103: 51539 | T103: 50305 | U103: 48744 | V103: 49958 | W103: 49330 | X103: 48731 | Y103: 49142 | Z103: 50598 | AA103: 52746 | AB103: 57019 | AC103: 64209 | AD103: 48494 | AE103: 45963 | AF103: 45679 | AG103: 42048 | AH103: 37313 | AI103: 32382 | AJ103: 33726 | AK103: 33619 | AL103: 32590 | AM103: 30837 | AN103: 28972 | AO103: 27403 | AP103: 25079 | AQ103: 23420 | AR103: 22677 | AS103: 20886 | AT103: 19189 | AU103: 16984 | AV103: 14979 | AW103: 13188 | AX103: 11490 | AY103: 43831
A104: E38000007 | B104: Basildon and Brentwood CCG | D104: Basildon and Brentwood | E104: 113802 | F104: 3731 | G104: 3797 | H104: 3827 | I104: 3920 | J104: 3891 | K104: 3913 | L104: 3836 | M104: 3795 | N104: 3664 | O104: 3658 | P104: 3373 | Q104: 3306 | R104: 3155 | S104: 3102 | T104: 2897 | U104: 2789 | V104: 2742 | W104: 2587 | X104: 2637 | Y104: 2653 | Z104: 2604 | AA104: 2712 | AB104: 2951 | AC104: 3403 | AD104: 2567 | AE104: 2353 | AF104: 2306 | AG104: 2193 | AH104: 1868 | AI104: 1645 | AJ104: 1796 | AK104: 1760 | AL104: 1797 | AM104: 1745 | AN104: 1630 | AO104: 1502 | AP104: 1492 | AQ104: 1343 | AR104: 1311 | AS104: 1215 | AT104: 1098 | AU104: 892 | AV104: 789 | AW104: 703 | AX104: 616 | AY104: 2238
A105: E38000026 | B105: Cambridgeshire and Peterborough CCG | D105: Cambridgeshire and Peterborough | E105: 371552 | F105: 12329 | G105: 12457 | H105: 12419 | I105: 12654 | J105: 12701 | K105: 12542 | L105: 12466 | M105: 12077 | N105: 11701 | O105: 11358 | P105: 10858 | Q105: 10431 | R105: 10398 | S105: 9803 | T105: 9606 | U105: 9366 | V105: 9451 | W105: 9145 | X105: 9197 | Y105: 9094 | Z105: 9350 | AA105: 9615 | AB105: 9834 | AC105: 10879 | AD105: 8482 | AE105: 8038 | AF105: 7880 | AG105: 7264 | AH105: 6342 | AI105: 5576 | AJ105: 5843 | AK105: 5760 | AL105: 5552 | AM105: 5256 | AN105: 4931 | AO105: 4670 | AP105: 4329 | AQ105: 3921 | AR105: 3847 | AS105: 3640 | AT105: 3166 | AU105: 2953 | AV105: 2561 | AW105: 2270 | AX105: 2002 | AY105: 7538
A106: E38000030 | B106: Castle Point and Rochford CCG | D106: Castle Point and Rochford | E106: 89796 | F106: 2481 | G106: 2666 | H106: 2632 | I106: 2753 | J106: 2632 | K106: 2629 | L106: 2641 | M106: 2694 | N106: 2553 | O106: 2505 | P106: 2313 | Q106: 2357 | R106: 2328 | S106: 2300 | T106: 2143 | U106: 2094 | V106: 2225 | W106: 2272 | X106: 2111 | Y106: 2226 | Z106: 2283 | AA106: 2430 | AB106: 2792 | AC106: 3230 | AD106: 2332 | AE106: 2226 | AF106: 2175 | AG106: 2088 | AH106: 1819 | AI106: 1549 | AJ106: 1599 | AK106: 1695 | AL106: 1570 | AM106: 1514 | AN106: 1452 | AO106: 1250 | AP106: 1187 | AQ106: 1141 | AR106: 1073 | AS106: 928 | AT106: 853 | AU106: 733 | AV106: 598 | AW106: 517 | AX106: 529 | AY106: 1678
A107: E38000063 | B107: Great Yarmouth and Waveney CCG | D107: Great Yarmouth and Waveney | E107: 110232 | F107: 2693 | G107: 2906 | H107: 2894 | I107: 3102 | J107: 3004 | K107: 3032 | L107: 3090 | M107: 2907 | N107: 2912 | O107: 2911 | P107: 2807 | Q107: 2654 | R107: 2773 | S107: 2700 | T107: 2693 | U107: 2584 | V107: 2758 | W107: 2801 | X107: 2794 | Y107: 2793 | Z107: 2889 | AA107: 3041 | AB107: 3420 | AC107: 3936 | AD107: 3029 | AE107: 2832 | AF107: 2834 | AG107: 2657 | AH107: 2364 | AI107: 2031 | AJ107: 2118 | AK107: 1989 | AL107: 1992 | AM107: 1934 | AN107: 1708 | AO107: 1652 | AP107: 1484 | AQ107: 1462 | AR107: 1425 | AS107: 1288 | AT107: 1147 | AU107: 1003 | AV107: 947 | AW107: 812 | AX107: 698 | AY107: 2732
A108: E38000086 | B108: Ipswich and East Suffolk CCG | D108: Ipswich and East Suffolk | E108: 196661 | F108: 5574 | G108: 5813 | H108: 5688 | I108: 5798 | J108: 5913 | K108: 6040 | L108: 5951 | M108: 5789 | N108: 5598 | O108: 5686 | P108: 5332 | Q108: 5392 | R108: 5349 | S108: 5273 | T108: 4971 | U108: 4900 | V108: 5079 | W108: 4871 | X108: 4941 | Y108: 5073 | Z108: 5223 | AA108: 5328 | AB108: 5576 | AC108: 6386 | AD108: 4773 | AE108: 4612 | AF108: 4474 | AG108: 4036 | AH108: 3777 | AI108: 3250 | AJ108: 3313 | AK108: 3346 | AL108: 3207 | AM108: 3033 | AN108: 2894 | AO108: 2827 | AP108: 2493 | AQ108: 2360 | AR108: 2194 | AS108: 2090 | AT108: 2009 | AU108: 1740 | AV108: 1542 | AW108: 1326 | AX108: 1162 | AY108: 4659
A109: E38000106 | B109: Mid Essex CCG | D109: Mid Essex | E109: 181755 | F109: 5696 | G109: 5784 | H109: 5972 | I109: 6150 | J109: 6043 | K109: 5911 | L109: 5894 | M109: 5719 | N109: 5673 | O109: 5325 | P109: 5072 | Q109: 5007 | R109: 5101 | S109: 4825 | T109: 4910 | U109: 4567 | V109: 4614 | W109: 4533 | X109: 4423 | Y109: 4486 | Z109: 4449 | AA109: 4847 | AB109: 5342 | AC109: 5932 | AD109: 4391 | AE109: 4042 | AF109: 4100 | AG109: 3708 | AH109: 3183 | AI109: 2782 | AJ109: 2816 | AK109: 2891 | AL109: 2677 | AM109: 2650 | AN109: 2512 | AO109: 2308 | AP109: 1996 | AQ109: 1928 | AR109: 1911 | AS109: 1783 | AT109: 1571 | AU109: 1378 | AV109: 1233 | AW109: 1059 | AX109: 926 | AY109: 3635
A110: E38000117 | B110: North East Essex CCG | D110: North East Essex | E110: 155555 | F110: 4211 | G110: 4499 | H110: 4441 | I110: 4457 | J110: 4613 | K110: 4490 | L110: 4503 | M110: 4315 | N110: 4380 | O110: 4200 | P110: 4049 | Q110: 3978 | R110: 3964 | S110: 3787 | T110: 3697 | U110: 3653 | V110: 3759 | W110: 3922 | X110: 3793 | Y110: 3797 | Z110: 4030 | AA110: 4393 | AB110: 4787 | AC110: 5415 | AD110: 4015 | AE110: 3875 | AF110: 3884 | AG110: 3551 | AH110: 3127 | AI110: 2739 | AJ110: 2924 | AK110: 2863 | AL110: 2715 | AM110: 2561 | AN110: 2391 | AO110: 2354 | AP110: 2094 | AQ110: 1990 | AR110: 1828 | AS110: 1676 | AT110: 1588 | AU110: 1391 | AV110: 1184 | AW110: 1100 | AX110: 933 | AY110: 3639
A111: E38000124 | B111: North Norfolk CCG | D111: North Norfolk | E111: 98366 | F111: 2278 | G111: 2319 | H111: 2326 | I111: 2407 | J111: 2462 | K111: 2557 | L111: 2516 | M111: 2480 | N111: 2500 | O111: 2521 | P111: 2409 | Q111: 2446 | R111: 2389 | S111: 2441 | T111: 2433 | U111: 2419 | V111: 2489 | W111: 2574 | X111: 2467 | Y111: 2707 | Z111: 2811 | AA111: 2854 | AB111: 3166 | AC111: 3619 | AD111: 2750 | AE111: 2543 | AF111: 2664 | AG111: 2461 | AH111: 2107 | AI111: 1855 | AJ111: 1856 | AK111: 1801 | AL111: 1856 | AM111: 1755 | AN111: 1621 | AO111: 1573 | AP111: 1410 | AQ111: 1326 | AR111: 1260 | AS111: 1167 | AT111: 1081 | AU111: 978 | AV111: 817 | AW111: 774 | AX111: 655 | AY111: 2466
A112: E38000131 | B112: Norwich CCG | D112: Norwich | E112: 80654 | F112: 2487 | G112: 2657 | H112: 2580 | I112: 2537 | J112: 2578 | K112: 2536 | L112: 2422 | M112: 2407 | N112: 2371 | O112: 2309 | P112: 2288 | Q112: 2099 | R112: 2086 | S112: 2004 | T112: 2050 | U112: 1918 | V112: 1996 | W112: 1910 | X112: 1904 | Y112: 1928 | Z112: 1897 | AA112: 1988 | AB112: 2151 | AC112: 2464 | AD112: 1793 | AE112: 1758 | AF112: 1714 | AG112: 1587 | AH112: 1380 | AI112: 1387 | AJ112: 1385 | AK112: 1385 | AL112: 1391 | AM112: 1259 | AN112: 1205 | AO112: 1196 | AP112: 1089 | AQ112: 1013 | AR112: 1015 | AS112: 960 | AT112: 875 | AU112: 760 | AV112: 703 | AW112: 671 | AX112: 523 | AY112: 2038
A113: E38000159 | B113: South Norfolk CCG | D113: South Norfolk | E113: 122303 | F113: 3431 | G113: 3462 | H113: 3494 | I113: 3480 | J113: 3690 | K113: 3706 | L113: 3610 | M113: 3454 | N113: 3481 | O113: 3454 | P113: 3203 | Q113: 3183 | R113: 3010 | S113: 3117 | T113: 2943 | U113: 2926 | V113: 3008 | W113: 2991 | X113: 2956 | Y113: 3066 | Z113: 3214 | AA113: 3329 | AB113: 3690 | AC113: 4158 | AD113: 3203 | AE113: 3063 | AF113: 3042 | AG113: 2714 | AH113: 2491 | AI113: 2183 | AJ113: 2214 | AK113: 2197 | AL113: 2140 | AM113: 2064 | AN113: 1885 | AO113: 1753 | AP113: 1630 | AQ113: 1484 | AR113: 1471 | AS113: 1255 | AT113: 1260 | AU113: 1113 | AV113: 970 | AW113: 784 | AX113: 700 | AY113: 2631
A114: E38000168 | B114: Southend CCG | D114: Southend | E114: 79730 | F114: 2552 | G114: 2638 | H114: 2707 | I114: 2610 | J114: 2589 | K114: 2608 | L114: 2621 | M114: 2494 | N114: 2456 | O114: 2395 | P114: 2370 | Q114: 2171 | R114: 2139 | S114: 1948 | T114: 1912 | U114: 1875 | V114: 1931 | W114: 1959 | X114: 1898 | Y114: 1814 | Z114: 1892 | AA114: 1969 | AB114: 2200 | AC114: 2322 | AD114: 1832 | AE114: 1775 | AF114: 1713 | AG114: 1533 | AH114: 1445 | AI114: 1154 | AJ114: 1292 | AK114: 1276 | AL114: 1252 | AM114: 1153 | AN114: 1107 | AO114: 1072 | AP114: 985 | AQ114: 939 | AR114: 893 | AS114: 834 | AT114: 778 | AU114: 731 | AV114: 678 | AW114: 620 | AX114: 484 | AY114: 2114
A115: E38000185 | B115: Thurrock CCG | D115: Thurrock | E115: 62892 | F115: 2413 | G115: 2501 | H115: 2392 | I115: 2555 | J115: 2491 | K115: 2447 | L115: 2317 | M115: 2156 | N115: 2110 | O115: 1994 | P115: 1890 | Q115: 1903 | R115: 1754 | S115: 1660 | T115: 1657 | U115: 1560 | V115: 1606 | W115: 1616 | X115: 1518 | Y115: 1507 | Z115: 1567 | AA115: 1522 | AB115: 1666 | AC115: 1793 | AD115: 1334 | AE115: 1161 | AF115: 1158 | AG115: 1111 | AH115: 972 | AI115: 839 | AJ115: 890 | AK115: 874 | AL115: 802 | AM115: 809 | AN115: 720 | AO115: 624 | AP115: 596 | AQ115: 561 | AR115: 559 | AS115: 500 | AT115: 453 | AU115: 392 | AV115: 379 | AW115: 327 | AX115: 283 | AY115: 953
A116: E38000197 | B116: West Essex CCG | D116: West Essex | E116: 135251 | F116: 4458 | G116: 4468 | H116: 4551 | I116: 4660 | J116: 4656 | K116: 4696 | L116: 4483 | M116: 4619 | N116: 4403 | O116: 4293 | P116: 4154 | Q116: 3895 | R116: 3845 | S116: 3698 | T116: 3594 | U116: 3436 | V116: 3336 | W116: 3247 | X116: 3130 | Y116: 3030 | Z116: 3166 | AA116: 3188 | AB116: 3441 | AC116: 3913 | AD116: 2896 | AE116: 2791 | AF116: 2794 | AG116: 2589 | AH116: 2283 | AI116: 1884 | AJ116: 2007 | AK116: 2114 | AL116: 2046 | AM116: 1844 | AN116: 1772 | AO116: 1767 | AP116: 1682 | AQ116: 1484 | AR116: 1522 | AS116: 1400 | AT116: 1343 | AU116: 1126 | AV116: 1018 | AW116: 837 | AX116: 785 | AY116: 2907
A117: E38000203 | B117: West Norfolk CCG | D117: West Norfolk | E117: 91639 | F117: 2221 | G117: 2300 | H117: 2390 | I117: 2327 | J117: 2385 | K117: 2520 | L117: 2464 | M117: 2526 | N117: 2472 | O117: 2413 | P117: 2250 | Q117: 2361 | R117: 2290 | S117: 2245 | T117: 2247 | U117: 2154 | V117: 2308 | W117: 2290 | X117: 2390 | Y117: 2346 | Z117: 2483 | AA117: 2600 | AB117: 2855 | AC117: 3175 | AD117: 2427 | AE117: 2400 | AF117: 2350 | AG117: 2240 | AH117: 2010 | AI117: 1647 | AJ117: 1832 | AK117: 1768 | AL117: 1781 | AM117: 1566 | AN117: 1543 | AO117: 1395 | AP117: 1270 | AQ117: 1253 | AR117: 1189 | AS117: 1055 | AT117: 921 | AU117: 866 | AV117: 754 | AW117: 651 | AX117: 561 | AY117: 2148
A118: E38000204 | B118: West Suffolk CCG | D118: West Suffolk | E118: 106446 | F118: 3138 | G118: 3287 | H118: 3088 | I118: 3301 | J118: 3254 | K118: 3201 | L118: 3356 | M118: 3107 | N118: 3103 | O118: 2981 | P118: 2711 | Q118: 2713 | R118: 2830 | S118: 2636 | T118: 2552 | U118: 2503 | V118: 2656 | W118: 2612 | X118: 2572 | Y118: 2622 | Z118: 2740 | AA118: 2930 | AB118: 3148 | AC118: 3584 | AD118: 2670 | AE118: 2494 | AF118: 2591 | AG118: 2316 | AH118: 2145 | AI118: 1861 | AJ118: 1841 | AK118: 1900 | AL118: 1812 | AM118: 1694 | AN118: 1601 | AO118: 1460 | AP118: 1342 | AQ118: 1215 | AR118: 1179 | AS118: 1095 | AT118: 1046 | AU118: 928 | AV118: 806 | AW118: 737 | AX118: 633 | AY118: 2455
B119: CCG | E119: 0
A120: E39000032 | B120: CCG | C120: North Midlands | E120: 1657473 | F120: 51266 | G120: 53574 | H120: 53144 | I120: 54000 | J120: 54412 | K120: 54514 | L120: 53574 | M120: 52727 | N120: 51663 | O120: 49925 | P120: 47647 | Q120: 46810 | R120: 45575 | S120: 43769 | T120: 42890 | U120: 41461 | V120: 42540 | W120: 41728 | X120: 40672 | Y120: 40906 | Z120: 42387 | AA120: 43245 | AB120: 45815 | AC120: 49317 | AD120: 37951 | AE120: 37836 | AF120: 38326 | AG120: 34946 | AH120: 30627 | AI120: 27548 | AJ120: 27842 | AK120: 27394 | AL120: 26223 | AM120: 24638 | AN120: 22520 | AO120: 21223 | AP120: 19468 | AQ120: 18109 | AR120: 17369 | AS120: 15619 | AT120: 14129 | AU120: 12412 | AV120: 10693 | AW120: 9656 | AX120: 8347 | AY120: 31036
A121: E38000028 | B121: Cannock Chase CCG | D121: Cannock Chase | E121: 62893 | F121: 2085 | G121: 2199 | H121: 2158 | I121: 2133 | J121: 2197 | K121: 2159 | L121: 2174 | M121: 2088 | N121: 2075 | O121: 1922 | P121: 1712 | Q121: 1851 | R121: 1680 | S121: 1644 | T121: 1587 | U121: 1503 | V121: 1611 | W121: 1545 | X121: 1460 | Y121: 1525 | Z121: 1649 | AA121: 1553 | AB121: 1662 | AC121: 1840 | AD121: 1435 | AE121: 1541 | AF121: 1420 | AG121: 1335 | AH121: 1238 | AI121: 1027 | AJ121: 1065 | AK121: 1074 | AL121: 950 | AM121: 951 | AN121: 794 | AO121: 719 | AP121: 671 | AQ121: 610 | AR121: 605 | AS121: 551 | AT121: 463 | AU121: 426 | AV121: 382 | AW121: 316 | AX121: 272 | AY121: 1036
A122: E38000053 | B122: East Staffordshire CCG | D122: East Staffordshire | E122: 57859 | F122: 1830 | G122: 1863 | H122: 1915 | I122: 2009 | J122: 1956 | K122: 1959 | L122: 1938 | M122: 1810 | N122: 1924 | O122: 1817 | P122: 1699 | Q122: 1726 | R122: 1609 | S122: 1638 | T122: 1475 | U122: 1481 | V122: 1438 | W122: 1446 | X122: 1307 | Y122: 1406 | Z122: 1449 | AA122: 1410 | AB122: 1524 | AC122: 1668 | AD122: 1280 | AE122: 1302 | AF122: 1323 | AG122: 1209 | AH122: 1069 | AI122: 932 | AJ122: 969 | AK122: 929 | AL122: 855 | AM122: 849 | AN122: 797 | AO122: 721 | AP122: 682 | AQ122: 642 | AR122: 602 | AS122: 536 | AT122: 503 | AU122: 411 | AV122: 370 | AW122: 338 | AX122: 239 | AY122: 1004
A123: E38000058 | B123: Erewash CCG | D123: Erewash | E123: 44142 | F123: 1448 | G123: 1531 | H123: 1575 | I123: 1530 | J123: 1592 | K123: 1495 | L123: 1506 | M123: 1507 | N123: 1401 | O123: 1404 | P123: 1219 | Q123: 1290 | R123: 1168 | S123: 1175 | T123: 1069 | U123: 1083 | V123: 1024 | W123: 1021 | X123: 1005 | Y123: 1055 | Z123: 999 | AA123: 1068 | AB123: 1154 | AC123: 1316 | AD123: 1001 | AE123: 947 | AF123: 989 | AG123: 902 | AH123: 739 | AI123: 681 | AJ123: 801 | AK123: 672 | AL123: 698 | AM123: 660 | AN123: 595 | AO123: 545 | AP123: 508 | AQ123: 465 | AR123: 511 | AS123: 488 | AT123: 360 | AU123: 311 | AV123: 255 | AW123: 269 | AX123: 226 | AY123: 884
A124: E38000071 | B124: Hardwick CCG | D124: Hardwick | E124: 53896 | F124: 1554 | G124: 1737 | H124: 1682 | I124: 1754 | J124: 1764 | K124: 1763 | L124: 1699 | M124: 1640 | N124: 1579 | O124: 1553 | P124: 1537 | Q124: 1531 | R124: 1520 | S124: 1467 | T124: 1442 | U124: 1370 | V124: 1406 | W124: 1335 | X124: 1317 | Y124: 1345 | Z124: 1411 | AA124: 1418 | AB124: 1482 | AC124: 1569 | AD124: 1351 | AE124: 1370 | AF124: 1320 | AG124: 1145 | AH124: 1094 | AI124: 956 | AJ124: 931 | AK124: 916 | AL124: 818 | AM124: 817 | AN124: 729 | AO124: 694 | AP124: 624 | AQ124: 593 | AR124: 497 | AS124: 474 | AT124: 468 | AU124: 358 | AV124: 349 | AW124: 276 | AX124: 239 | AY124: 1002
A125: E38000103 | B125: Mansfield and Ashfield CCG | D125: Mansfield and Ashfield | E125: 90738 | F125: 2888 | G125: 2906 | H125: 2909 | I125: 3070 | J125: 2979 | K125: 3098 | L125: 2972 | M125: 3016 | N125: 2896 | O125: 2855 | P125: 2774 | Q125: 2760 | R125: 2517 | S125: 2447 | T125: 2366 | U125: 2341 | V125: 2349 | W125: 2305 | X125: 2203 | Y125: 2312 | Z125: 2265 | AA125: 2341 | AB125: 2397 | AC125: 2445 | AD125: 2070 | AE125: 2091 | AF125: 2115 | AG125: 1999 | AH125: 1622 | AI125: 1452 | AJ125: 1473 | AK125: 1476 | AL125: 1359 | AM125: 1286 | AN125: 1215 | AO125: 1134 | AP125: 1006 | AQ125: 968 | AR125: 917 | AS125: 867 | AT125: 695 | AU125: 613 | AV125: 526 | AW125: 493 | AX125: 436 | AY125: 1514
A126: E38000109 | B126: Newark and Sherwood CCG | D126: Newark and Sherwood | E126: 59076 | F126: 1682 | G126: 1871 | H126: 1806 | I126: 1806 | J126: 1855 | K126: 1904 | L126: 1846 | M126: 1875 | N126: 1787 | O126: 1686 | P126: 1665 | Q126: 1700 | R126: 1618 | S126: 1536 | T126: 1484 | U126: 1468 | V126: 1543 | W126: 1445 | X126: 1492 | Y126: 1453 | Z126: 1580 | AA126: 1617 | AB126: 1669 | AC126: 1884 | AD126: 1484 | AE126: 1391 | AF126: 1441 | AG126: 1305 | AH126: 1127 | AI126: 981 | AJ126: 1003 | AK126: 1069 | AL126: 951 | AM126: 919 | AN126: 824 | AO126: 755 | AP126: 704 | AQ126: 648 | AR126: 594 | AS126: 593 | AT126: 492 | AU126: 392 | AV126: 384 | AW126: 357 | AX126: 292 | AY126: 1098
A127: E38000115 | B127: North Derbyshire CCG | D127: North Derbyshire | E127: 140932 | F127: 4046 | G127: 4206 | H127: 4237 | I127: 4440 | J127: 4438 | K127: 4470 | L127: 4270 | M127: 4254 | N127: 4087 | O127: 4131 | P127: 3981 | Q127: 3979 | R127: 3934 | S127: 3772 | T127: 3655 | U127: 3518 | V127: 3639 | W127: 3580 | X127: 3459 | Y127: 3639 | Z127: 3772 | AA127: 3761 | AB127: 4119 | AC127: 4480 | AD127: 3409 | AE127: 3257 | AF127: 3483 | AG127: 3109 | AH127: 2593 | AI127: 2386 | AJ127: 2303 | AK127: 2492 | AL127: 2315 | AM127: 2081 | AN127: 1930 | AO127: 1850 | AP127: 1670 | AQ127: 1614 | AR127: 1555 | AS127: 1308 | AT127: 1223 | AU127: 1092 | AV127: 930 | AW127: 854 | AX127: 765 | AY127: 2846
A128: E38000126 | B128: North Staffordshire CCG | D128: North Staffordshire | E128: 106151 | F128: 3186 | G128: 3245 | H128: 3171 | I128: 3260 | J128: 3302 | K128: 3184 | L128: 3292 | M128: 3190 | N128: 3192 | O128: 3151 | P128: 2892 | Q128: 2876 | R128: 2945 | S128: 2712 | T128: 2731 | U128: 2617 | V128: 2767 | W128: 2717 | X128: 2671 | Y128: 2667 | Z128: 2910 | AA128: 2901 | AB128: 3271 | AC128: 3337 | AD128: 2511 | AE128: 2540 | AF128: 2542 | AG128: 2265 | AH128: 2085 | AI128: 1916 | AJ128: 1774 | AK128: 1792 | AL128: 1776 | AM128: 1717 | AN128: 1497 | AO128: 1416 | AP128: 1353 | AQ128: 1168 | AR128: 1133 | AS128: 1029 | AT128: 904 | AU128: 775 | AV128: 661 | AW128: 625 | AX128: 582 | AY128: 1903
A129: E38000132 | B129: Nottingham City CCG | D129: Nottingham City | E129: 100560 | F129: 3748 | G129: 3827 | H129: 3698 | I129: 3596 | J129: 3774 | K129: 3598 | L129: 3637 | M129: 3571 | N129: 3479 | O129: 3250 | P129: 3186 | Q129: 3002 | R129: 2964 | S129: 2825 | T129: 2626 | U129: 2671 | V129: 2677 | W129: 2555 | X129: 2310 | Y129: 2363 | Z129: 2371 | AA129: 2250 | AB129: 2307 | AC129: 2554 | AD129: 1834 | AE129: 1753 | AF129: 1828 | AG129: 1647 | AH129: 1481 | AI129: 1407 | AJ129: 1430 | AK129: 1413 | AL129: 1468 | AM129: 1328 | AN129: 1261 | AO129: 1253 | AP129: 1164 | AQ129: 1038 | AR129: 1086 | AS129: 927 | AT129: 864 | AU129: 795 | AV129: 638 | AW129: 630 | AX129: 562 | AY129: 1914
A130: E38000133 | B130: Nottingham North and East CCG | D130: Nottingham North and East | E130: 70126 | F130: 2084 | G130: 2377 | H130: 2284 | I130: 2331 | J130: 2156 | K130: 2380 | L130: 2374 | M130: 2210 | N130: 2191 | O130: 2191 | P130: 2185 | Q130: 2022 | R130: 1961 | S130: 1891 | T130: 1761 | U130: 1699 | V130: 1728 | W130: 1777 | X130: 1850 | Y130: 1673 | Z130: 1773 | AA130: 1796 | AB130: 1955 | AC130: 2074 | AD130: 1532 | AE130: 1539 | AF130: 1483 | AG130: 1436 | AH130: 1254 | AI130: 1149 | AJ130: 1132 | AK130: 1211 | AL130: 1151 | AM130: 1090 | AN130: 987 | AO130: 903 | AP130: 874 | AQ130: 727 | AR130: 748 | AS130: 631 | AT130: 576 | AU130: 514 | AV130: 449 | AW130: 464 | AX130: 333 | AY130: 1220
A131: E38000134 | B131: Nottingham West CCG | D131: Nottingham West | E131: 52855 | F131: 1570 | G131: 1641 | H131: 1646 | I131: 1704 | J131: 1740 | K131: 1705 | L131: 1591 | M131: 1730 | N131: 1612 | O131: 1555 | P131: 1564 | Q131: 1457 | R131: 1430 | S131: 1374 | T131: 1332 | U131: 1273 | V131: 1284 | W131: 1333 | X131: 1281 | Y131: 1324 | Z131: 1391 | AA131: 1380 | AB131: 1501 | AC131: 1739 | AD131: 1208 | AE131: 1245 | AF131: 1247 | AG131: 1071 | AH131: 939 | AI131: 894 | AJ131: 918 | AK131: 888 | AL131: 853 | AM131: 803 | AN131: 713 | AO131: 720 | AP131: 604 | AQ131: 608 | AR131: 611 | AS131: 503 | AT131: 426 | AU131: 447 | AV131: 410 | AW131: 290 | AX131: 258 | AY131: 1042
A132: E38000142 | B132: Rushcliffe CCG | D132: Rushcliffe | E132: 54998 | F132: 1729 | G132: 1800 | H132: 1703 | I132: 1726 | J132: 1831 | K132: 1798 | L132: 1812 | M132: 1745 | N132: 1700 | O132: 1658 | P132: 1640 | Q132: 1503 | R132: 1508 | S132: 1367 | T132: 1433 | U132: 1321 | V132: 1377 | W132: 1294 | X132: 1357 | Y132: 1343 | Z132: 1345 | AA132: 1388 | AB132: 1462 | AC132: 1688 | AD132: 1236 | AE132: 1264 | AF132: 1274 | AG132: 1105 | AH132: 979 | AI132: 844 | AJ132: 908 | AK132: 890 | AL132: 829 | AM132: 801 | AN132: 744 | AO132: 757 | AP132: 696 | AQ132: 669 | AR132: 623 | AS132: 547 | AT132: 517 | AU132: 476 | AV132: 419 | AW132: 335 | AX132: 343 | AY132: 1214
A133: E38000147 | B133: Shropshire CCG | D133: Shropshire | E133: 161504 | F133: 4247 | G133: 4599 | H133: 4624 | I133: 4755 | J133: 4839 | K133: 4861 | L133: 4811 | M133: 4891 | N133: 4789 | O133: 4697 | P133: 4438 | Q133: 4285 | R133: 4237 | S133: 4110 | T133: 4092 | U133: 4095 | V133: 4113 | W133: 4140 | X133: 4093 | Y133: 4103 | Z133: 4143 | AA133: 4444 | AB133: 4723 | AC133: 4907 | AD133: 4089 | AE133: 3933 | AF133: 4021 | AG133: 3633 | AH133: 3213 | AI133: 2916 | AJ133: 3011 | AK133: 2823 | AL133: 2716 | AM133: 2652 | AN133: 2288 | AO133: 2196 | AP133: 2056 | AQ133: 1867 | AR133: 1809 | AS133: 1652 | AT133: 1556 | AU133: 1340 | AV133: 1155 | AW133: 1036 | AX133: 895 | AY133: 3611
A134: E38000153 | B134: South East Staffordshire and Seisdon Peninsula CCG | D134: South East Staffordshire and Seisdon Peninsula | E134: 110423 | F134: 3321 | G134: 3422 | H134: 3312 | I134: 3357 | J134: 3547 | K134: 3581 | L134: 3298 | M134: 3350 | N134: 3299 | O134: 3293 | P134: 3113 | Q134: 2993 | R134: 2940 | S134: 2944 | T134: 2917 | U134: 2770 | V134: 2941 | W134: 2862 | X134: 2665 | Y134: 2739 | Z134: 2847 | AA134: 2925 | AB134: 3271 | AC134: 3380 | AD134: 2581 | AE134: 2745 | AF134: 2761 | AG134: 2595 | AH134: 2302 | AI134: 2004 | AJ134: 1996 | AK134: 1930 | AL134: 1807 | AM134: 1690 | AN134: 1469 | AO134: 1388 | AP134: 1258 | AQ134: 1265 | AR134: 1108 | AS134: 982 | AT134: 905 | AU134: 808 | AV134: 647 | AW134: 621 | AX134: 517 | AY134: 1957
A135: E38000169 | B135: Southern Derbyshire CCG | D135: Southern Derbyshire | E135: 232846 | F135: 7482 | G135: 7895 | H135: 7949 | I135: 8059 | J135: 7987 | K135: 7910 | L135: 7834 | M135: 7676 | N135: 7444 | O135: 6921 | P135: 6613 | Q135: 6569 | R135: 6400 | S135: 6003 | T135: 6157 | U135: 5566 | V135: 5903 | W135: 5789 | X135: 5653 | Y135: 5552 | Z135: 5824 | AA135: 6017 | AB135: 6354 | AC135: 6785 | AD135: 5069 | AE135: 5110 | AF135: 5227 | AG135: 4606 | AH135: 4064 | AI135: 3613 | AJ135: 3701 | AK135: 3670 | AL135: 3558 | AM135: 3174 | AN135: 3171 | AO135: 2979 | AP135: 2710 | AQ135: 2537 | AR135: 2410 | AS135: 2276 | AT135: 2032 | AU135: 1812 | AV135: 1580 | AW135: 1417 | AX135: 1223 | AY135: 4565
A136: E38000173 | B136: Stafford and Surrounds CCG | D136: Stafford and Surrounds | E136: =SUM(F136:AY136) -> 76757 | F136: 2219 | G136: 2247 | H136: 2410 | I136: 2357 | J136: 2307 | K136: 2391 | L136: 2441 | M136: 2356 | N136: 2315 | O136: 2206 | P136: 2124 | Q136: 2075 | R136: 2039 | S136: 1975 | T136: 1894 | U136: 1893 | V136: 1850 | W136: 1937 | X136: 1921 | Y136: 1992 | Z136: 1946 | AA136: 2156 | AB136: 2184 | AC136: 2338 | AD136: 1834 | AE136: 1869 | AF136: 1951 | AG136: 1829 | AH136: 1536 | AI136: 1373 | AJ136: 1371 | AK136: 1383 | AL136: 1309 | AM136: 1250 | AN136: 1119 | AO136: 1014 | AP136: 935 | AQ136: 843 | AR136: 806 | AS136: 696 | AT136: 669 | AU136: 599 | AV136: 492 | AW136: 442 | AX136: 381 | AY136: 1483
A137: E38000175 | B137: Stoke on Trent CCG | D137: Stoke on Trent | E137: 109125 | F137: 3582 | G137: 3656 | H137: 3462 | I137: 3575 | J137: 3558 | K137: 3682 | L137: 3507 | M137: 3387 | N137: 3555 | O137: 3384 | P137: 3141 | Q137: 3067 | R137: 3087 | S137: 3061 | T137: 2959 | U137: 2844 | V137: 2918 | W137: 2804 | X137: 2704 | Y137: 2595 | Z137: 2831 | AA137: 2891 | AB137: 2910 | AC137: 3242 | AD137: 2393 | AE137: 2413 | AF137: 2345 | AG137: 2313 | AH137: 1957 | AI137: 1820 | AJ137: 1859 | AK137: 1658 | AL137: 1752 | AM137: 1598 | AN137: 1535 | AO137: 1324 | AP137: 1223 | AQ137: 1159 | AR137: 1140 | AS137: 1004 | AT137: 963 | AU137: 796 | AV137: 675 | AW137: 591 | AX137: 501 | AY137: 1704
A138: E38000183 | B138: Telford and Wrekin CCG | D138: Telford and Wrekin | E138: 72592 | F138: 2565 | G138: 2552 | H138: 2603 | I138: 2538 | J138: 2590 | K138: 2576 | L138: 2572 | M138: 2431 | N138: 2338 | O138: 2251 | P138: 2164 | Q138: 2124 | R138: 2018 | S138: 1828 | T138: 1910 | U138: 1948 | V138: 1972 | W138: 1843 | X138: 1924 | Y138: 1820 | Z138: 1881 | AA138: 1929 | AB138: 1870 | AC138: 2071 | AD138: 1634 | AE138: 1526 | AF138: 1556 | AG138: 1442 | AH138: 1335 | AI138: 1197 | AJ138: 1197 | AK138: 1108 | AL138: 1058 | AM138: 972 | AN138: 852 | AO138: 855 | AP138: 730 | AQ138: 688 | AR138: 614 | AS138: 555 | AT138: 513 | AU138: 447 | AV138: 371 | AW138: 302 | AX138: 283 | AY138: 1039
B139: CCG | E139: 0
A140: E39000033 | B140: CCG | C140: West Midlands | E140: 1734220 | F140: 56712 | G140: 57503 | H140: 57314 | I140: 57471 | J140: 57569 | K140: 57321 | L140: 56690 | M140: 55516 | N140: 55148 | O140: 52274 | P140: 49215 | Q140: 48477 | R140: 47326 | S140: 45661 | T140: 44060 | U140: 42953 | V140: 43341 | W140: 43281 | X140: 41588 | Y140: 41450 | Z140: 42228 | AA140: 43087 | AB140: 44101 | AC140: 46842 | AD140: 37764 | AE140: 38054 | AF140: 39058 | AG140: 35805 | AH140: 31814 | AI140: 28286 | AJ140: 28992 | AK140: 28780 | AL140: 28053 | AM140: 26627 | AN140: 25003 | AO140: 23228 | AP140: 20847 | AQ140: 19741 | AR140: 19140 | AS140: 17834 | AT140: 16118 | AU140: 13977 | AV140: 12328 | AW140: 10820 | AX140: 9313 | AY140: 35510
A141: E38000012 | B141: =CONCATENATE(D141," CCG") -> Birmingham CrossCity CCG | D141: Birmingham CrossCity | E141: 264148 | F141: 9520 | G141: 9555 | H141: 9458 | I141: 9392 | J141: 9417 | K141: 9194 | L141: 9071 | M141: 8973 | N141: 8965 | O141: 8286 | P141: 8015 | Q141: 7663 | R141: 7458 | S141: 7211 | T141: 6850 | U141: 6747 | V141: 6656 | W141: 6460 | X141: 6178 | Y141: 5975 | Z141: 6117 | AA141: 5823 | AB141: 6121 | AC141: 6430 | AD141: 5216 | AE141: 5118 | AF141: 5244 | AG141: 4900 | AH141: 4388 | AI141: 3864 | AJ141: 4056 | AK141: 4098 | AL141: 4007 | AM141: 3827 | AN141: 3674 | AO141: 3477 | AP141: 3102 | AQ141: 3086 | AR141: 2946 | AS141: 2692 | AT141: 2473 | AU141: 2146 | AV141: 1845 | AW141: 1710 | AX141: 1380 | AY141: 5364
A142: E38000013 | B142: Birmingham South and Central CCG | D142: Birmingham South and Central | E142: 67605 | F142: 2474 | G142: 2409 | H142: 2450 | I142: 2337 | J142: 2264 | K142: 2450 | L142: 2283 | M142: 2190 | N142: 2180 | O142: 2053 | P142: 2007 | Q142: 1946 | R142: 1962 | S142: 1893 | T142: 1726 | U142: 1761 | V142: 1753 | W142: 1757 | X142: 1659 | Y142: 1598 | Z142: 1646 | AA142: 1593 | AB142: 1574 | AC142: 1665 | AD142: 1278 | AE142: 1297 | AF142: 1297 | AG142: 1287 | AH142: 1114 | AI142: 961 | AJ142: 1044 | AK142: 1108 | AL142: 1070 | AM142: 976 | AN142: 961 | AO142: 885 | AP142: 791 | AQ142: 774 | AR142: 727 | AS142: 679 | AT142: 650 | AU142: 495 | AV142: 462 | AW142: 424 | AX142: 357 | AY142: 1338
A143: E38000038 | B143: Coventry and Rugby CCG | D143: Coventry and Rugby | E143: 168062 | F143: 5798 | G143: 5777 | H143: 5771 | I143: 5774 | J143: 5670 | K143: 5621 | L143: 5541 | M143: 5652 | N143: 5380 | O143: 5231 | P143: 4890 | Q143: 4827 | R143: 4636 | S143: 4359 | T143: 4273 | U143: 4146 | V143: 4102 | W143: 4051 | X143: 3898 | Y143: 3870 | Z143: 3940 | AA143: 3986 | AB143: 4179 | AC143: 4318 | AD143: 3634 | AE143: 3741 | AF143: 3758 | AG143: 3504 | AH143: 2967 | AI143: 2830 | AJ143: 2755 | AK143: 2748 | AL143: 2597 | AM143: 2460 | AN143: 2434 | AO143: 2148 | AP143: 1932 | AQ143: 1766 | AR143: 1712 | AS143: 1652 | AT143: 1505 | AU143: 1353 | AV143: 1224 | AW143: 1062 | AX143: 878 | AY143: 3712
A144: E38000046 | B144: Dudley CCG | D144: Dudley | E144: 145696 | F144: 4684 | G144: 4738 | H144: 4778 | I144: 4793 | J144: 4553 | K144: 4768 | L144: 4623 | M144: 4437 | N144: 4513 | O144: 4120 | P144: 3890 | Q144: 3813 | R144: 3752 | S144: 3700 | T144: 3639 | U144: 3509 | V144: 3512 | W144: 3647 | X144: 3519 | Y144: 3586 | Z144: 3563 | AA144: 3695 | AB144: 3736 | AC144: 4115 | AD144: 3262 | AE144: 3400 | AF144: 3582 | AG144: 3265 | AH144: 2926 | AI144: 2548 | AJ144: 2637 | AK144: 2610 | AL144: 2589 | AM144: 2379 | AN144: 2294 | AO144: 2134 | AP144: 1764 | AQ144: 1758 | AR144: 1597 | AS144: 1594 | AT144: 1351 | AU144: 1167 | AV144: 1016 | AW144: 828 | AX144: 726 | AY144: 2586
A145: E38000078 | B145: Herefordshire CCG | D145: Herefordshire | E145: 96934 | F145: 2444 | G145: 2674 | H145: 2674 | I145: 2789 | J145: 2911 | K145: 2959 | L145: 2775 | M145: 2789 | N145: 2859 | O145: 2776 | P145: 2502 | Q145: 2568 | R145: 2673 | S145: 2523 | T145: 2609 | U145: 2462 | V145: 2530 | W145: 2587 | X145: 2428 | Y145: 2476 | Z145: 2531 | AA145: 2771 | AB145: 2750 | AC145: 2934 | AD145: 2411 | AE145: 2386 | AF145: 2413 | AG145: 2128 | AH145: 1936 | AI145: 1683 | AJ145: 1745 | AK145: 1724 | AL145: 1570 | AM145: 1585 | AN145: 1450 | AO145: 1415 | AP145: 1295 | AQ145: 1175 | AR145: 1106 | AS145: 990 | AT145: 945 | AU145: 852 | AV145: 782 | AW145: 671 | AX145: 586 | AY145: 2092
A146: E38000139 | B146: Redditch and Bromsgrove CCG | D146: Redditch and Bromsgrove | E146: 84864 | F146: 2548 | G146: 2638 | H146: 2755 | I146: 2701 | J146: 2732 | K146: 2802 | L146: 2713 | M146: 2574 | N146: 2553 | O146: 2439 | P146: 2449 | Q146: 2335 | R146: 2388 | S146: 2274 | T146: 2266 | U146: 2195 | V146: 2338 | W146: 2356 | X146: 2213 | Y146: 2189 | Z146: 2293 | AA146: 2347 | AB146: 2277 | AC146: 2405 | AD146: 2026 | AE146: 1971 | AF146: 2010 | AG146: 1709 | AH146: 1506 | AI146: 1322 | AJ146: 1317 | AK146: 1337 | AL146: 1221 | AM146: 1240 | AN146: 1088 | AO146: 1015 | AP146: 995 | AQ146: 856 | AR146: 880 | AS146: 860 | AT146: 741 | AU146: 651 | AV146: 603 | AW146: 511 | AX146: 468 | AY146: 1757
A147: E38000144 | B147: Sandwell and West Birmingham CCG | D147: Sandwell and West Birmingham | E147: 170472 | F147: 6636 | G147: 6491 | H147: 6521 | I147: 6395 | J147: 6254 | K147: 6149 | L147: 6255 | M147: 5923 | N147: 5848 | O147: 5530 | P147: 5081 | Q147: 5074 | R147: 4777 | S147: 4654 | T147: 4403 | U147: 4380 | V147: 4151 | W147: 4202 | X147: 3944 | Y147: 3657 | Z147: 3798 | AA147: 3690 | AB147: 3724 | AC147: 3743 | AD147: 3098 | AE147: 3168 | AF147: 3323 | AG147: 3223 | AH147: 2927 | AI147: 2647 | AJ147: 2798 | AK147: 2664 | AL147: 2639 | AM147: 2475 | AN147: 2436 | AO147: 2175 | AP147: 1883 | AQ147: 1796 | AR147: 1730 | AS147: 1648 | AT147: 1455 | AU147: 1263 | AV147: 1068 | AW147: 928 | AX147: 792 | AY147: 3056
A148: E38000149 | B148: Solihull CCG | D148: Solihull | E148: 100838 | F148: 2995 | G148: 3349 | H148: 3100 | I148: 3021 | J148: 3306 | K148: 3301 | L148: 3261 | M148: 3141 | N148: 3307 | O148: 3090 | P148: 2825 | Q148: 2830 | R148: 2717 | S148: 2519 | T148: 2361 | U148: 2333 | V148: 2375 | W148: 2383 | X148: 2332 | Y148: 2403 | Z148: 2376 | AA148: 2621 | AB148: 2631 | AC148: 3004 | AD148: 2280 | AE148: 2355 | AF148: 2412 | AG148: 2098 | AH148: 1907 | AI148: 1594 | AJ148: 1681 | AK148: 1654 | AL148: 1619 | AM148: 1611 | AN148: 1398 | AO148: 1420 | AP148: 1239 | AQ148: 1174 | AR148: 1228 | AS148: 1129 | AT148: 993 | AU148: 942 | AV148: 814 | AW148: 738 | AX148: 675 | AY148: 2296
A149: E38000164 | B149: South Warwickshire CCG | D149: South Warwickshire | E149: 126377 | F149: 3689 | G149: 3775 | H149: 3886 | I149: 3792 | J149: 3998 | K149: 3931 | L149: 4020 | M149: 3870 | N149: 3751 | O149: 3762 | P149: 3443 | Q149: 3544 | R149: 3258 | S149: 3263 | T149: 3080 | U149: 3022 | V149: 3066 | W149: 3046 | X149: 3050 | Y149: 3077 | Z149: 3129 | AA149: 3305 | AB149: 3451 | AC149: 3735 | AD149: 3155 | AE149: 3063 | AF149: 3081 | AG149: 2830 | AH149: 2392 | AI149: 2085 | AJ149: 2125 | AK149: 2121 | AL149: 2139 | AM149: 2064 | AN149: 1867 | AO149: 1780 | AP149: 1545 | AQ149: 1483 | AR149: 1392 | AS149: 1370 | AT149: 1216 | AU149: 1113 | AV149: 982 | AW149: 837 | AX149: 770 | AY149: 3024
A150: E38000166 | B150: South Worcestershire CCG | D150: South Worcestershire | E150: 149072 | F150: 4287 | G150: 4391 | H150: 4380 | I150: 4625 | J150: 4487 | K150: 4548 | L150: 4575 | M150: 4636 | N150: 4479 | O150: 4190 | P150: 4096 | Q150: 4030 | R150: 3989 | S150: 3776 | T150: 3752 | U150: 3666 | V150: 3785 | W150: 3864 | X150: 3690 | Y150: 3750 | Z150: 3861 | AA150: 4071 | AB150: 4271 | AC150: 4589 | AD150: 3533 | AE150: 3461 | AF150: 3615 | AG150: 3163 | AH150: 2893 | AI150: 2533 | AJ150: 2605 | AK150: 2537 | AL150: 2472 | AM150: 2336 | AN150: 2176 | AO150: 1996 | AP150: 1888 | AQ150: 1772 | AR150: 1737 | AS150: 1562 | AT150: 1453 | AU150: 1222 | AV150: 1107 | AW150: 985 | AX150: 836 | AY150: 3402
A151: E38000191 | B151: Walsall CCG | D151: Walsall | E151: 116748 | F151: 3900 | G151: 3855 | H151: 3823 | I151: 3858 | J151: 3842 | K151: 3734 | L151: 3820 | M151: 3733 | N151: 3779 | O151: 3631 | P151: 3255 | Q151: 3181 | R151: 3211 | S151: 3021 | T151: 2973 | U151: 2836 | V151: 2862 | W151: 2847 | X151: 2719 | Y151: 2714 | Z151: 2775 | AA151: 2841 | AB151: 2903 | AC151: 3050 | AD151: 2465 | AE151: 2495 | AF151: 2584 | AG151: 2472 | AH151: 2303 | AI151: 2090 | AJ151: 2054 | AK151: 2091 | AL151: 2087 | AM151: 1908 | AN151: 1827 | AO151: 1652 | AP151: 1422 | AQ151: 1359 | AR151: 1400 | AS151: 1228 | AT151: 1103 | AU151: 881 | AV151: 774 | AW151: 647 | AX151: 584 | AY151: 2159
A152: E38000195 | B152: Warwickshire North CCG | D152: Warwickshire North | E152: 88783 | F152: 2679 | G152: 2900 | H152: 2812 | I152: 2898 | J152: 3076 | K152: 2952 | L152: 2875 | M152: 2752 | N152: 2836 | O152: 2658 | P152: 2536 | Q152: 2488 | R152: 2446 | S152: 2461 | T152: 2268 | U152: 2214 | V152: 2293 | W152: 2351 | X152: 2200 | Y152: 2263 | Z152: 2399 | AA152: 2334 | AB152: 2440 | AC152: 2648 | AD152: 2037 | AE152: 2189 | AF152: 2137 | AG152: 1920 | AH152: 1626 | AI152: 1472 | AJ152: 1462 | AK152: 1433 | AL152: 1409 | AM152: 1295 | AN152: 1125 | AO152: 1053 | AP152: 996 | AQ152: 887 | AR152: 901 | AS152: 838 | AT152: 734 | AU152: 583 | AV152: 510 | AW152: 481 | AX152: 392 | AY152: 1524
A153: E38000210 | B153: Wolverhampton CCG | D153: Wolverhampton | E153: 103849 | F153: 3617 | G153: 3503 | H153: 3457 | I153: 3498 | J153: 3577 | K153: 3453 | L153: 3400 | M153: 3404 | N153: 3309 | O153: 3205 | P153: 3002 | Q153: 2894 | R153: 2855 | S153: 2751 | T153: 2662 | U153: 2505 | V153: 2616 | W153: 2466 | X153: 2478 | Y153: 2509 | Z153: 2415 | AA153: 2411 | AB153: 2465 | AC153: 2477 | AD153: 2055 | AE153: 2015 | AF153: 2203 | AG153: 2045 | AH153: 1826 | AI153: 1740 | AJ153: 1833 | AK153: 1733 | AL153: 1733 | AM153: 1637 | AN153: 1538 | AO153: 1414 | AP153: 1337 | AQ153: 1272 | AR153: 1243 | AS153: 1106 | AT153: 1069 | AU153: 901 | AV153: 788 | AW153: 676 | AX153: 578 | AY153: 2178
A154: E38000211 | B154: Wyre Forest CCG | D154: Wyre Forest | E154: 50772 | F154: 1441 | G154: 1448 | H154: 1449 | I154: 1598 | J154: 1482 | K154: 1459 | L154: 1478 | M154: 1442 | N154: 1389 | O154: 1303 | P154: 1224 | Q154: 1284 | R154: 1204 | S154: 1256 | T154: 1198 | U154: 1177 | V154: 1302 | W154: 1264 | X154: 1280 | Y154: 1383 | Z154: 1385 | AA154: 1599 | AB154: 1579 | AC154: 1729 | AD154: 1314 | AE154: 1395 | AF154: 1399 | AG154: 1261 | AH154: 1103 | AI154: 917 | AJ154: 880 | AK154: 922 | AL154: 901 | AM154: 834 | AN154: 735 | AO154: 664 | AP154: 658 | AQ154: 583 | AR154: 541 | AS154: 486 | AT154: 430 | AU154: 408 | AV154: 353 | AW154: 322 | AX154: 291 | AY154: 1022
B155: CCG | E155: 0
A156: E40000003 | B156: CCG | E156: 2900885 | F156: 119880 | G156: 118960 | H156: 117832 | I156: 116752 | J156: 115894 | K156: 113630 | L156: 111373 | M156: 107316 | N156: 102222 | O156: 98520 | P156: 95144 | Q156: 90229 | R156: 86165 | S156: 81838 | T156: 78826 | U156: 74380 | V156: 71156 | W156: 68565 | X156: 66282 | Y156: 64555 | Z156: 63673 | AA156: 62731 | AB156: 63587 | AC156: 66511 | AD156: 54141 | AE156: 50260 | AF156: 48999 | AG156: 46222 | AH156: 41988 | AI156: 38224 | AJ156: 40776 | AK156: 40015 | AL156: 38267 | AM156: 35864 | AN156: 34548 | AO156: 32025 | AP156: 29475 | AQ156: 27630 | AR156: 26164 | AS156: 24012 | AT156: 22507 | AU156: 19334 | AV156: 16786 | AW156: 14459 | AX156: 12643 | AY156: 50525
B157: CCG | E157: 0
A158: E39000018 | B158: CCG | C158: London | E158: 2900885 | F158: 119880 | G158: 118960 | H158: 117832 | I158: 116752 | J158: 115894 | K158: 113630 | L158: 111373 | M158: 107316 | N158: 102222 | O158: 98520 | P158: 95144 | Q158: 90229 | R158: 86165 | S158: 81838 | T158: 78826 | U158: 74380 | V158: 71156 | W158: 68565 | X158: 66282 | Y158: 64555 | Z158: 63673 | AA158: 62731 | AB158: 63587 | AC158: 66511 | AD158: 54141 | AE158: 50260 | AF158: 48999 | AG158: 46222 | AH158: 41988 | AI158: 38224 | AJ158: 40776 | AK158: 40015 | AL158: 38267 | AM158: 35864 | AN158: 34548 | AO158: 32025 | AP158: 29475 | AQ158: 27630 | AR158: 26164 | AS158: 24012 | AT158: 22507 | AU158: 19334 | AV158: 16786 | AW158: 14459 | AX158: 12643 | AY158: 50525
A159: E38000004 | B159: Barking and Dagenham CCG | D159: Barking and Dagenham | E159: 60792 | F159: 2863 | G159: 2674 | H159: 2606 | I159: 2581 | J159: 2568 | K159: 2535 | L159: 2404 | M159: 2399 | N159: 2264 | O159: 2130 | P159: 2079 | Q159: 1993 | R159: 1795 | S159: 1728 | T159: 1613 | U159: 1500 | V159: 1442 | W159: 1413 | X159: 1281 | Y159: 1318 | Z159: 1213 | AA159: 1197 | AB159: 1119 | AC159: 1260 | AD159: 1028 | AE159: 963 | AF159: 849 | AG159: 868 | AH159: 804 | AI159: 690 | AJ159: 763 | AK159: 739 | AL159: 817 | AM159: 663 | AN159: 662 | AO159: 654 | AP159: 579 | AQ159: 563 | AR159: 559 | AS159: 509 | AT159: 522 | AU159: 385 | AV159: 421 | AW159: 340 | AX159: 308 | AY159: 1131
A160: E38000005 | B160: Barnet CCG | D160: Barnet | E160: 139509 | F160: 5399 | G160: 5411 | H160: 5326 | I160: 5205 | J160: 5218 | K160: 4901 | L160: 4970 | M160: 4755 | N160: 4496 | O160: 4415 | P160: 4249 | Q160: 4123 | R160: 4077 | S160: 3776 | T160: 3706 | U160: 3472 | V160: 3256 | W160: 3303 | X160: 3196 | Y160: 3236 | Z160: 3312 | AA160: 3172 | AB160: 3144 | AC160: 3344 | AD160: 2882 | AE160: 2740 | AF160: 2739 | AG160: 2395 | AH160: 2176 | AI160: 1892 | AJ160: 2009 | AK160: 1995 | AL160: 1910 | AM160: 1750 | AN160: 1837 | AO160: 1658 | AP160: 1596 | AQ160: 1572 | AR160: 1375 | AS160: 1299 | AT160: 1226 | AU160: 1120 | AV160: 906 | AW160: 879 | AX160: 733 | AY160: 3358
A161: E38000011 | B161: Bexley CCG | D161: Bexley | E161: 101388 | F161: 3602 | G161: 3579 | H161: 3433 | I161: 3713 | J161: 3630 | K161: 3676 | L161: 3623 | M161: 3464 | N161: 3369 | O161: 3294 | P161: 3165 | Q161: 3025 | R161: 2899 | S161: 2731 | T161: 2566 | U161: 2417 | V161: 2283 | W161: 2279 | X161: 2240 | Y161: 2312 | Z161: 2138 | AA161: 2263 | AB161: 2394 | AC161: 2673 | AD161: 2131 | AE161: 1868 | AF161: 1905 | AG161: 1863 | AH161: 1617 | AI161: 1458 | AJ161: 1599 | AK161: 1697 | AL161: 1595 | AM161: 1512 | AN161: 1441 | AO161: 1355 | AP161: 1284 | AQ161: 1219 | AR161: 1077 | AS161: 1051 | AT161: 966 | AU161: 912 | AV161: 741 | AW161: 706 | AX161: 541 | AY161: 2082
A162: E38000020 | B162: Brent CCG | D162: Brent | E162: 109260 | F162: 4341 | G162: 4290 | H162: 4214 | I162: 4059 | J162: 4195 | K162: 4186 | L162: 4122 | M162: 4060 | N162: 3884 | O162: 3821 | P162: 3874 | Q162: 3779 | R162: 3599 | S162: 3268 | T162: 3266 | U162: 3065 | V162: 2788 | W162: 2738 | X162: 2580 | Y162: 2500 | Z162: 2600 | AA162: 2267 | AB162: 2207 | AC162: 2198 | AD162: 1958 | AE162: 1846 | AF162: 1762 | AG162: 1702 | AH162: 1642 | AI162: 1448 | AJ162: 1616 | AK162: 1511 | AL162: 1392 | AM162: 1447 | AN162: 1327 | AO162: 1258 | AP162: 1107 | AQ162: 1068 | AR162: 936 | AS162: 888 | AT162: 773 | AU162: 668 | AV162: 582 | AW162: 476 | AX162: 385 | AY162: 1567
A163: E38000023 | B163: Bromley CCG | D163: Bromley | E163: 140718 | F163: 5011 | G163: 5072 | H163: 4977 | I163: 5108 | J163: 5030 | K163: 5058 | L163: 4979 | M163: 4594 | N163: 4541 | O163: 4459 | P163: 4227 | Q163: 3952 | R163: 3859 | S163: 3676 | T163: 3426 | U163: 3311 | V163: 3236 | W163: 3147 | X163: 3071 | Y163: 3188 | Z163: 3190 | AA163: 3396 | AB163: 3480 | AC163: 3994 | AD163: 2981 | AE163: 2836 | AF163: 2698 | AG163: 2665 | AH163: 2301 | AI163: 2051 | AJ163: 2104 | AK163: 2178 | AL163: 2156 | AM163: 1974 | AN163: 1924 | AO163: 1776 | AP163: 1660 | AQ163: 1678 | AR163: 1692 | AS163: 1467 | AT163: 1439 | AU163: 1228 | AV163: 1047 | AW163: 859 | AX163: 839 | AY163: 3183
A164: E38000027 | B164: Camden CCG | D164: Camden | E164: 76576 | F164: 3245 | G164: 3160 | H164: 3082 | I164: 2958 | J164: 2916 | K164: 2792 | L164: 2737 | M164: 2580 | N164: 2431 | O164: 2410 | P164: 2314 | Q164: 2299 | R164: 2196 | S164: 2006 | T164: 2071 | U164: 1925 | V164: 1845 | W164: 1860 | X164: 1809 | Y164: 1756 | Z164: 1806 | AA164: 1844 | AB164: 1835 | AC164: 1862 | AD164: 1603 | AE164: 1602 | AF164: 1525 | AG164: 1315 | AH164: 1169 | AI164: 1078 | AJ164: 1093 | AK164: 1152 | AL164: 1025 | AM164: 920 | AN164: 904 | AO164: 815 | AP164: 777 | AQ164: 702 | AR164: 702 | AS164: 668 | AT164: 587 | AU164: 539 | AV164: 474 | AW164: 377 | AX164: 355 | AY164: 1455
A165: E38000031 | B165: Central London (Westminster) CCG | D165: Central London (Westminster) | E165: 60846 | F165: 2552 | G165: 2456 | H165: 2491 | I165: 2369 | J165: 2266 | K165: 2253 | L165: 2190 | M165: 2074 | N165: 1973 | O165: 1989 | P165: 1956 | Q165: 1752 | R165: 1744 | S165: 1618 | T165: 1679 | U165: 1595 | V165: 1533 | W165: 1490 | X165: 1536 | Y165: 1445 | Z165: 1385 | AA165: 1385 | AB165: 1395 | AC165: 1422 | AD165: 1240 | AE165: 1173 | AF165: 1072 | AG165: 955 | AH165: 872 | AI165: 857 | AJ165: 864 | AK165: 923 | AL165: 867 | AM165: 791 | AN165: 744 | AO165: 666 | AP165: 612 | AQ165: 631 | AR165: 554 | AS165: 516 | AT165: 475 | AU165: 428 | AV165: 391 | AW165: 315 | AX165: 268 | AY165: 1084
A166: E38000035 | B166: City and Hackney CCG | D166: City and Hackney | E166: 71607 | F166: 3527 | G166: 3322 | H166: 3474 | I166: 3350 | J166: 3266 | K166: 3217 | L166: 2957 | M166: 2887 | N166: 2731 | O166: 2585 | P166: 2469 | Q166: 2375 | R166: 2162 | S166: 2073 | T166: 2075 | U166: 1933 | V166: 1670 | W166: 1715 | X166: 1566 | Y166: 1561 | Z166: 1485 | AA166: 1409 | AB166: 1389 | AC166: 1422 | AD166: 1075 | AE166: 1094 | AF166: 1027 | AG166: 982 | AH166: 866 | AI166: 827 | AJ166: 840 | AK166: 837 | AL166: 749 | AM166: 763 | AN166: 703 | AO166: 706 | AP166: 587 | AQ166: 525 | AR166: 468 | AS166: 452 | AT166: 414 | AU166: 382 | AV166: 312 | AW166: 245 | AX166: 215 | AY166: 918
A167: E38000040 | B167: Croydon CCG | D167: Croydon | E167: 143442 | F167: 5227 | G167: 5487 | H167: 5425 | I167: 5390 | J167: 5921 | K167: 5731 | L167: 5813 | M167: 5672 | N167: 5392 | O167: 4885 | P167: 4855 | Q167: 4573 | R167: 4225 | S167: 4058 | T167: 4006 | U167: 3889 | V167: 3610 | W167: 3381 | X167: 3429 | Y167: 3138 | Z167: 3057 | AA167: 2962 | AB167: 3210 | AC167: 3421 | AD167: 2642 | AE167: 2387 | AF167: 2381 | AG167: 2324 | AH167: 2098 | AI167: 1878 | AJ167: 1964 | AK167: 1906 | AL167: 1915 | AM167: 1822 | AN167: 1745 | AO167: 1635 | AP167: 1530 | AQ167: 1371 | AR167: 1319 | AS167: 1167 | AT167: 1021 | AU167: 917 | AV167: 834 | AW167: 754 | AX167: 624 | AY167: 2451
A168: E38000048 | B168: Ealing CCG | D168: Ealing | E168: 119134 | F168: 5039 | G168: 4912 | H168: 4825 | I168: 4716 | J168: 4649 | K168: 4655 | L168: 4505 | M168: 4258 | N168: 4190 | O168: 3913 | P168: 3821 | Q168: 3686 | R168: 3506 | S168: 3425 | T168: 3381 | U168: 3276 | V168: 3198 | W168: 3104 | X168: 2942 | Y168: 2729 | Z168: 2695 | AA168: 2660 | AB168: 2612 | AC168: 2557 | AD168: 2141 | AE168: 1914 | AF168: 1932 | AG168: 1849 | AH168: 1740 | AI168: 1582 | AJ168: 1674 | AK168: 1712 | AL168: 1644 | AM168: 1436 | AN168: 1461 | AO168: 1360 | AP168: 1235 | AQ168: 1084 | AR168: 1051 | AS168: 948 | AT168: 848 | AU168: 700 | AV168: 624 | AW168: 497 | AX168: 490 | AY168: 1958
A169: E38000057 | B169: Enfield CCG | D169: Enfield | E169: 119131 | F169: 4682 | G169: 4650 | H169: 4776 | I169: 4810 | J169: 4790 | K169: 4690 | L169: 4586 | M169: 4496 | N169: 4096 | O169: 4160 | P169: 3946 | Q169: 3654 | R169: 3553 | S169: 3278 | T169: 3222 | U169: 2921 | V169: 2885 | W169: 2664 | X169: 2713 | Y169: 2514 | Z169: 2497 | AA169: 2473 | AB169: 2495 | AC169: 2562 | AD169: 2310 | AE169: 2095 | AF169: 2185 | AG169: 2071 | AH169: 1835 | AI169: 1635 | AJ169: 1763 | AK169: 1722 | AL169: 1662 | AM169: 1549 | AN169: 1437 | AO169: 1392 | AP169: 1307 | AQ169: 1214 | AR169: 1114 | AS169: 1055 | AT169: 948 | AU169: 778 | AV169: 679 | AW169: 590 | AX169: 542 | AY169: 2135
A170: E38000066 | B170: Greenwich CCG | D170: Greenwich | E170: 87143 | F170: 3797 | G170: 3736 | H170: 3742 | I170: 3780 | J170: 3672 | K170: 3508 | L170: 3428 | M170: 3242 | N170: 3154 | O170: 3170 | P170: 2949 | Q170: 2818 | R170: 2619 | S170: 2358 | T170: 2397 | U170: 2222 | V170: 2100 | W170: 1990 | X170: 1933 | Y170: 1861 | Z170: 1817 | AA170: 1799 | AB170: 1932 | AC170: 2104 | AD170: 1611 | AE170: 1521 | AF170: 1412 | AG170: 1297 | AH170: 1178 | AI170: 1108 | AJ170: 1165 | AK170: 1095 | AL170: 1040 | AM170: 967 | AN170: 1005 | AO170: 891 | AP170: 820 | AQ170: 735 | AR170: 697 | AS170: 649 | AT170: 595 | AU170: 489 | AV170: 476 | AW170: 398 | AX170: 361 | AY170: 1505
A171: E38000070 | B171: Hammersmith and Fulham CCG | D171: Hammersmith and Fulham | E171: 55933 | F171: 2492 | G171: 2433 | H171: 2452 | I171: 2481 | J171: 2367 | K171: 2277 | L171: 2329 | M171: 2135 | N171: 2025 | O171: 1880 | P171: 1813 | Q171: 1609 | R171: 1676 | S171: 1468 | T171: 1437 | U171: 1388 | V171: 1409 | W171: 1287 | X171: 1244 | Y171: 1266 | Z171: 1193 | AA171: 1216 | AB171: 1281 | AC171: 1274 | AD171: 1065 | AE171: 963 | AF171: 955 | AG171: 844 | AH171: 768 | AI171: 783 | AJ171: 814 | AK171: 782 | AL171: 704 | AM171: 633 | AN171: 598 | AO171: 534 | AP171: 499 | AQ171: 459 | AR171: 448 | AS171: 409 | AT171: 394 | AU171: 349 | AV171: 291 | AW171: 219 | AX171: 214 | AY171: 776
A172: E38000072 | B172: Haringey CCG | D172: Haringey | E172: 83429 | F172: 3821 | G172: 3958 | H172: 3764 | I172: 3777 | J172: 3791 | K172: 3798 | L172: 3423 | M172: 3327 | N172: 3171 | O172: 2821 | P172: 2958 | Q172: 2619 | R172: 2436 | S172: 2375 | T172: 2231 | U172: 2163 | V172: 2001 | W172: 1969 | X172: 1930 | Y172: 1793 | Z172: 1846 | AA172: 1768 | AB172: 1644 | AC172: 1686 | AD172: 1418 | AE172: 1335 | AF172: 1288 | AG172: 1123 | AH172: 1054 | AI172: 1009 | AJ172: 1098 | AK172: 1063 | AL172: 1010 | AM172: 981 | AN172: 913 | AO172: 753 | AP172: 703 | AQ172: 675 | AR172: 668 | AS172: 569 | AT172: 502 | AU172: 423 | AV172: 298 | AW172: 280 | AX172: 231 | AY172: 965
A173: E38000074 | B173: Harrow CCG | D173: Harrow | E173: 96164 | F173: 3285 | G173: 3302 | H173: 3165 | I173: 3339 | J173: 3219 | K173: 3204 | L173: 3277 | M173: 3240 | N173: 3204 | O173: 3091 | P173: 3096 | Q173: 2968 | R173: 2834 | S173: 2791 | T173: 2860 | U173: 2734 | V173: 2444 | W173: 2467 | X173: 2367 | Y173: 2327 | Z173: 2286 | AA173: 2209 | AB173: 2229 | AC173: 2263 | AD173: 2013 | AE173: 1836 | AF173: 1849 | AG173: 1628 | AH173: 1537 | AI173: 1375 | AJ173: 1553 | AK173: 1538 | AL173: 1411 | AM173: 1362 | AN173: 1317 | AO173: 1266 | AP173: 1180 | AQ173: 1096 | AR173: 935 | AS173: 873 | AT173: 898 | AU173: 703 | AV173: 651 | AW173: 515 | AX173: 468 | AY173: 1959
A174: E38000077 | B174: Havering CCG | D174: Havering | E174: 109057 | F174: 3303 | G174: 3419 | H174: 3482 | I174: 3571 | J174: 3630 | K174: 3571 | L174: 3574 | M174: 3502 | N174: 3328 | O174: 3542 | P174: 3287 | Q174: 3215 | R174: 3211 | S174: 2985 | T174: 2728 | U174: 2621 | V174: 2686 | W174: 2533 | X174: 2519 | Y174: 2491 | Z174: 2514 | AA174: 2635 | AB174: 2799 | AC174: 3122 | AD174: 2402 | AE174: 2178 | AF174: 2151 | AG174: 2024 | AH174: 1853 | AI174: 1631 | AJ174: 1795 | AK174: 1725 | AL174: 1694 | AM174: 1712 | AN174: 1620 | AO174: 1558 | AP174: 1437 | AQ174: 1405 | AR174: 1347 | AS174: 1253 | AT174: 1180 | AU174: 1060 | AV174: 906 | AW174: 771 | AX174: 637 | AY174: 2450
A175: E38000082 | B175: Hillingdon CCG | D175: Hillingdon | E175: 106032 | F175: 4066 | G175: 3822 | H175: 4034 | I175: 4055 | J175: 3959 | K175: 3960 | L175: 3880 | M175: 3796 | N175: 3758 | O175: 3545 | P175: 3431 | Q175: 3287 | R175: 3171 | S175: 2993 | T175: 2887 | U175: 2751 | V175: 2591 | W175: 2511 | X175: 2332 | Y175: 2273 | Z175: 2337 | AA175: 2311 | AB175: 2409 | AC175: 2629 | AD175: 2047 | AE175: 1930 | AF175: 1894 | AG175: 1783 | AH175: 1642 | AI175: 1420 | AJ175: 1575 | AK175: 1521 | AL175: 1531 | AM175: 1492 | AN175: 1463 | AO175: 1356 | AP175: 1214 | AQ175: 1130 | AR175: 1072 | AS175: 947 | AT175: 897 | AU175: 766 | AV175: 635 | AW175: 577 | AX175: 489 | AY175: 1863
A176: E38000084 | B176: Hounslow CCG | D176: Hounslow | E176: 89310 | F176: 3685 | G176: 3475 | H176: 3554 | I176: 3428 | J176: 3527 | K176: 3497 | L176: 3330 | M176: 3186 | N176: 3155 | O176: 3030 | P176: 2890 | Q176: 2851 | R176: 2744 | S176: 2684 | T176: 2513 | U176: 2456 | V176: 2328 | W176: 2279 | X176: 2217 | Y176: 2065 | Z176: 2119 | AA176: 2054 | AB176: 2033 | AC176: 2027 | AD176: 1601 | AE176: 1553 | AF176: 1508 | AG176: 1446 | AH176: 1366 | AI176: 1132 | AJ176: 1236 | AK176: 1276 | AL176: 1205 | AM176: 1081 | AN176: 1036 | AO176: 977 | AP176: 864 | AQ176: 827 | AR176: 741 | AS176: 722 | AT176: 633 | AU176: 524 | AV176: 459 | AW176: 376 | AX176: 317 | AY176: 1303
A177: E38000088 | B177: Islington CCG | D177: Islington | E177: 63240 | F177: 2738 | G177: 2828 | H177: 2837 | I177: 2671 | J177: 2908 | K177: 2708 | L177: 2547 | M177: 2576 | N177: 2441 | O177: 2221 | P177: 2062 | Q177: 2048 | R177: 1807 | S177: 1775 | T177: 1794 | U177: 1584 | V177: 1597 | W177: 1456 | X177: 1367 | Y177: 1265 | Z177: 1325 | AA177: 1349 | AB177: 1429 | AC177: 1344 | AD177: 1071 | AE177: 1027 | AF177: 1039 | AG177: 981 | AH177: 828 | AI177: 806 | AJ177: 827 | AK177: 821 | AL177: 743 | AM177: 753 | AN177: 639 | AO177: 581 | AP177: 592 | AQ177: 537 | AR177: 456 | AS177: 478 | AT177: 417 | AU177: 346 | AV177: 310 | AW177: 248 | AX177: 222 | AY177: 841
A178: E38000090 | B178: Kingston CCG | D178: Kingston | E178: 62172 | F178: 2409 | G178: 2497 | H178: 2445 | I178: 2367 | J178: 2363 | K178: 2274 | L178: 2214 | M178: 2162 | N178: 2077 | O178: 2001 | P178: 1870 | Q178: 1964 | R178: 1725 | S178: 1767 | T178: 1543 | U178: 1528 | V178: 1630 | W178: 1512 | X178: 1375 | Y178: 1465 | Z178: 1447 | AA178: 1505 | AB178: 1474 | AC178: 1572 | AD178: 1302 | AE178: 1135 | AF178: 1098 | AG178: 1089 | AH178: 933 | AI178: 821 | AJ178: 892 | AK178: 872 | AL178: 753 | AM178: 815 | AN178: 716 | AO178: 670 | AP178: 619 | AQ178: 604 | AR178: 618 | AS178: 556 | AT178: 526 | AU178: 450 | AV178: 425 | AW178: 349 | AX178: 344 | AY178: 1399
A179: E38000092 | B179: Lambeth CCG | D179: Lambeth | E179: 89600 | F179: 4234 | G179: 4143 | H179: 4222 | I179: 4190 | J179: 4172 | K179: 4275 | L179: 4142 | M179: 3829 | N179: 3582 | O179: 3426 | P179: 3223 | Q179: 2907 | R179: 2769 | S179: 2580 | T179: 2456 | U179: 2269 | V179: 2124 | W179: 2099 | X179: 1822 | Y179: 1788 | Z179: 1753 | AA179: 1628 | AB179: 1634 | AC179: 1657 | AD179: 1312 | AE179: 1238 | AF179: 1187 | AG179: 1175 | AH179: 1035 | AI179: 1048 | AJ179: 1163 | AK179: 999 | AL179: 986 | AM179: 936 | AN179: 896 | AO179: 798 | AP179: 659 | AQ179: 675 | AR179: 671 | AS179: 610 | AT179: 581 | AU179: 479 | AV179: 392 | AW179: 369 | AX179: 326 | AY179: 1141
A180: E38000098 | B180: Lewisham CCG | D180: Lewisham | E180: 92508 | F180: 4283 | G180: 4292 | H180: 4137 | I180: 4138 | J180: 4118 | K180: 4079 | L180: 4034 | M180: 4001 | N180: 3787 | O180: 3378 | P180: 3181 | Q180: 2982 | R180: 2901 | S180: 2755 | T180: 2558 | U180: 2250 | V180: 2187 | W180: 1997 | X180: 1888 | Y180: 1917 | Z180: 1746 | AA180: 1708 | AB180: 1831 | AC180: 1789 | AD180: 1470 | AE180: 1319 | AF180: 1278 | AG180: 1250 | AH180: 1221 | AI180: 1063 | AJ180: 1164 | AK180: 1115 | AL180: 1159 | AM180: 1009 | AN180: 971 | AO180: 893 | AP180: 840 | AQ180: 761 | AR180: 684 | AS180: 647 | AT180: 640 | AU180: 552 | AV180: 439 | AW180: 404 | AX180: 360 | AY180: 1332
A181: E38000105 | B181: Merton CCG | D181: Merton | E181: 71548 | F181: 3009 | G181: 3066 | H181: 2934 | I181: 2910 | J181: 2797 | K181: 2774 | L181: 2719 | M181: 2633 | N181: 2543 | O181: 2340 | P181: 2275 | Q181: 2094 | R181: 2033 | S181: 2062 | T181: 1921 | U181: 1806 | V181: 1703 | W181: 1721 | X181: 1616 | Y181: 1656 | Z181: 1595 | AA181: 1639 | AB181: 1578 | AC181: 1603 | AD181: 1263 | AE181: 1256 | AF181: 1152 | AG181: 1073 | AH181: 1013 | AI181: 1076 | AJ181: 1003 | AK181: 1039 | AL181: 947 | AM181: 891 | AN181: 865 | AO181: 775 | AP181: 685 | AQ181: 696 | AR181: 697 | AS181: 601 | AT181: 632 | AU181: 444 | AV181: 455 | AW181: 376 | AX181: 311 | AY181: 1271
A182: E38000113 | B182: Newham CCG | D182: Newham | E182: 84927 | F182: 4290 | G182: 4273 | H182: 4053 | I182: 3871 | J182: 3836 | K182: 3609 | L182: 3561 | M182: 3511 | N182: 3251 | O182: 3255 | P182: 3100 | Q182: 2826 | R182: 2754 | S182: 2694 | T182: 2521 | U182: 2230 | V182: 2084 | W182: 1966 | X182: 2017 | Y182: 1809 | Z182: 1792 | AA182: 1512 | AB182: 1598 | AC182: 1554 | AD182: 1245 | AE182: 1139 | AF182: 1146 | AG182: 1081 | AH182: 1057 | AI182: 945 | AJ182: 1059 | AK182: 981 | AL182: 931 | AM182: 893 | AN182: 779 | AO182: 738 | AP182: 705 | AQ182: 549 | AR182: 613 | AS182: 509 | AT182: 460 | AU182: 377 | AV182: 339 | AW182: 256 | AX182: 242 | AY182: 916
A183: E38000138 | B183: Redbridge CCG | D183: Redbridge | E183: 101389 | F183: 3897 | G183: 3967 | H183: 3887 | I183: 3830 | J183: 3723 | K183: 3788 | L183: 3681 | M183: 3526 | N183: 3460 | O183: 3300 | P183: 3367 | Q183: 3080 | R183: 3121 | S183: 2960 | T183: 2806 | U183: 2748 | V183: 2726 | W183: 2482 | X183: 2428 | Y183: 2394 | Z183: 2375 | AA183: 2171 | AB183: 2243 | AC183: 2327 | AD183: 1885 | AE183: 1795 | AF183: 1675 | AG183: 1733 | AH183: 1428 | AI183: 1351 | AJ183: 1476 | AK183: 1418 | AL183: 1414 | AM183: 1193 | AN183: 1220 | AO183: 1158 | AP183: 1154 | AQ183: 982 | AR183: 966 | AS183: 895 | AT183: 850 | AU183: 764 | AV183: 647 | AW183: 597 | AX183: 536 | AY183: 1965
A184: E38000140 | B184: Richmond CCG | D184: Richmond | E184: 78474 | F184: 3084 | G184: 3119 | H184: 3065 | I184: 3093 | J184: 3014 | K184: 2965 | L184: 2911 | M184: 2750 | N184: 2675 | O184: 2524 | P184: 2335 | Q184: 2258 | R184: 2214 | S184: 2193 | T184: 2018 | U184: 1963 | V184: 1906 | W184: 1795 | X184: 1859 | Y184: 1883 | Z184: 1809 | AA184: 1886 | AB184: 1966 | AC184: 2078 | AD184: 1630 | AE184: 1481 | AF184: 1592 | AG184: 1294 | AH184: 1148 | AI184: 1052 | AJ184: 1088 | AK184: 1115 | AL184: 1010 | AM184: 837 | AN184: 912 | AO184: 807 | AP184: 735 | AQ184: 695 | AR184: 733 | AS184: 663 | AT184: 654 | AU184: 523 | AV184: 499 | AW184: 465 | AX184: 399 | AY184: 1779
A185: E38000171 | B185: Southwark CCG | D185: Southwark | E185: 88900 | F185: 4353 | G185: 4157 | H185: 4168 | I185: 4294 | J185: 3978 | K185: 3966 | L185: 3912 | M185: 3904 | N185: 3550 | O185: 3574 | P185: 3405 | Q185: 3092 | R185: 3002 | S185: 2681 | T185: 2477 | U185: 2268 | V185: 2049 | W185: 1974 | X185: 1832 | Y185: 1744 | Z185: 1657 | AA185: 1622 | AB185: 1593 | AC185: 1647 | AD185: 1350 | AE185: 1255 | AF185: 1197 | AG185: 1129 | AH185: 1079 | AI185: 1003 | AJ185: 1025 | AK185: 970 | AL185: 906 | AM185: 827 | AN185: 872 | AO185: 732 | AP185: 655 | AQ185: 617 | AR185: 617 | AS185: 534 | AT185: 514 | AU185: 493 | AV185: 379 | AW185: 350 | AX185: 298 | AY185: 1199
A186: E38000179 | B186: Sutton CCG | D186: Sutton | E186: 80596 | F186: 3034 | G186: 2968 | H186: 3204 | I186: 3188 | J186: 3123 | K186: 3151 | L186: 2969 | M186: 2866 | N186: 2629 | O186: 2605 | P186: 2537 | Q186: 2395 | R186: 2253 | S186: 2119 | T186: 2078 | U186: 1958 | V186: 1976 | W186: 1833 | X186: 1744 | Y186: 1807 | Z186: 1734 | AA186: 1822 | AB186: 1866 | AC186: 2215 | AD186: 1681 | AE186: 1490 | AF186: 1496 | AG186: 1381 | AH186: 1227 | AI186: 1073 | AJ186: 1197 | AK186: 1139 | AL186: 1123 | AM186: 1042 | AN186: 1047 | AO186: 1022 | AP186: 885 | AQ186: 870 | AR186: 790 | AS186: 739 | AT186: 669 | AU186: 692 | AV186: 552 | AW186: 449 | AX186: 364 | AY186: 1594
A187: E38000186 | B187: Tower Hamlets CCG | D187: Tower Hamlets | E187: 62293 | F187: 3271 | G187: 3221 | H187: 3032 | I187: 2975 | J187: 2703 | K187: 2548 | L187: 2520 | M187: 2418 | N187: 2257 | O187: 2188 | P187: 2130 | Q187: 2046 | R187: 1949 | S187: 1897 | T187: 1786 | U187: 1686 | V187: 1622 | W187: 1539 | X187: 1536 | Y187: 1281 | Z187: 1238 | AA187: 1187 | AB187: 1079 | AC187: 1119 | AD187: 938 | AE187: 861 | AF187: 783 | AG187: 749 | AH187: 718 | AI187: 794 | AJ187: 785 | AK187: 692 | AL187: 683 | AM187: 666 | AN187: 645 | AO187: 579 | AP187: 568 | AQ187: 495 | AR187: 484 | AS187: 434 | AT187: 434 | AU187: 315 | AV187: 271 | AW187: 276 | AX187: 190 | AY187: 705
A188: E38000192 | B188: Waltham Forest CCG | D188: Waltham Forest | E188: 87060 | F188: 3967 | G188: 4004 | H188: 3884 | I188: 3714 | J188: 3655 | K188: 3467 | L188: 3546 | M188: 3261 | N188: 3092 | O188: 2957 | P188: 2948 | Q188: 2928 | R188: 2596 | S188: 2464 | T188: 2292 | U188: 2235 | V188: 2229 | W188: 2068 | X188: 2014 | Y188: 1858 | Z188: 1724 | AA188: 1761 | AB188: 1834 | AC188: 1816 | AD188: 1523 | AE188: 1309 | AF188: 1312 | AG188: 1298 | AH188: 1234 | AI188: 1015 | AJ188: 1132 | AK188: 1124 | AL188: 1105 | AM188: 1041 | AN188: 986 | AO188: 884 | AP188: 834 | AQ188: 772 | AR188: 731 | AS188: 650 | AT188: 610 | AU188: 527 | AV188: 471 | AW188: 396 | AX188: 342 | AY188: 1450
A189: E38000193 | B189: Wandsworth CCG | D189: Wandsworth | E189: 87874 | F189: 4181 | G189: 4003 | H189: 3873 | I189: 3739 | J189: 3786 | K189: 3408 | L189: 3521 | M189: 3306 | N189: 2972 | O189: 2957 | P189: 2770 | Q189: 2582 | R189: 2448 | S189: 2374 | T189: 2405 | U189: 2167 | V189: 2085 | W189: 2046 | X189: 1945 | Y189: 1997 | Z189: 1910 | AA189: 1980 | AB189: 1884 | AC189: 2017 | AD189: 1577 | AE189: 1488 | AF189: 1357 | AG189: 1379 | AH189: 1249 | AI189: 1198 | AJ189: 1239 | AK189: 1225 | AL189: 1126 | AM189: 1098 | AN189: 976 | AO189: 887 | AP189: 832 | AQ189: 751 | AR189: 743 | AS189: 648 | AT189: 618 | AU189: 507 | AV189: 441 | AW189: 425 | AX189: 342 | AY189: 1412
A190: E38000202 | B190: West London CCG | D190: West London | E190: 80833 | F190: 3193 | G190: 3264 | H190: 3269 | I190: 3082 | J190: 3104 | K190: 3109 | L190: 2969 | M190: 2906 | N190: 2744 | O190: 2654 | P190: 2562 | Q190: 2449 | R190: 2287 | S190: 2226 | T190: 2107 | U190: 2049 | V190: 1933 | W190: 1947 | X190: 1934 | Y190: 1918 | Z190: 2078 | AA190: 1941 | AB190: 1971 | AC190: 1953 | AD190: 1746 | AE190: 1633 | AF190: 1555 | AG190: 1476 | AH190: 1300 | AI190: 1125 | AJ190: 1201 | AK190: 1133 | AL190: 1054 | AM190: 1008 | AN190: 887 | AO190: 891 | AP190: 721 | AQ190: 672 | AR190: 606 | AS190: 606 | AT190: 584 | AU190: 494 | AV190: 439 | AW190: 325 | AX190: 350 | AY190: 1378
B191: CCG | E191: 0
A192: E40000004 | B192: CCG | E192: 6528829 | F192: 196956 | G192: 202596 | H192: 203540 | I192: 209471 | J192: 209642 | K192: 211206 | L192: 209858 | M192: 204622 | N192: 199338 | O192: 192733 | P192: 185112 | Q192: 181780 | R192: 177824 | S192: 171534 | T192: 164582 | U192: 160328 | V192: 160840 | W192: 159541 | X192: 155842 | Y192: 157690 | Z192: 162381 | AA192: 168696 | AB192: 180130 | AC192: 197460 | AD192: 152694 | AE192: 147640 | AF192: 145688 | AG192: 135969 | AH192: 119907 | AI192: 104972 | AJ192: 109032 | AK192: 107615 | AL192: 103556 | AM192: 98145 | AN192: 92753 | AO192: 87785 | AP192: 80348 | AQ192: 76362 | AR192: 73212 | AS192: 68889 | AT192: 62787 | AU192: 55835 | AV192: 48769 | AW192: 43363 | AX192: 37835 | AY192: 151971
B193: CCG | E193: 0
A194: E39000025 | B194: CCG | C194: Wessex | E194: 1296269 | F194: 37406 | G194: 38379 | H194: 38741 | I194: 39734 | J194: 40137 | K194: 41075 | L194: 40744 | M194: 40209 | N194: 38913 | O194: 37713 | P194: 36214 | Q194: 35787 | R194: 35104 | S194: 33948 | T194: 32274 | U194: 31344 | V194: 31477 | W194: 31238 | X194: 30656 | Y194: 31204 | Z194: 32498 | AA194: 33689 | AB194: 36205 | AC194: 40270 | AD194: 31285 | AE194: 30181 | AF194: 29411 | AG194: 27462 | AH194: 24393 | AI194: 21137 | AJ194: 22063 | AK194: 21851 | AL194: 21503 | AM194: 19965 | AN194: 18963 | AO194: 17975 | AP194: 16511 | AQ194: 15786 | AR194: 15113 | AS194: 14347 | AT194: 13070 | AU194: 11682 | AV194: 10098 | AW194: 9035 | AX194: 7744 | AY194: 31735
A195: E38000045 | B195: Dorset CCG | D195: Dorset | E195: 388384 | F195: 10115 | G195: 10282 | H195: 10435 | I195: 10755 | J195: 10888 | K195: 11006 | L195: 11188 | M195: 10929 | N195: 10944 | O195: 10387 | P195: 10011 | Q195: 9996 | R195: 10007 | S195: 9748 | T195: 9223 | U195: 9115 | V195: 9452 | W195: 9305 | X195: 9329 | Y195: 9696 | Z195: 10340 | AA195: 10298 | AB195: 11499 | AC195: 12699 | AD195: 9795 | AE195: 9498 | AF195: 9380 | AG195: 8772 | AH195: 7818 | AI195: 6694 | AJ195: 6920 | AK195: 6939 | AL195: 7025 | AM195: 6452 | AN195: 6096 | AO195: 5984 | AP195: 5464 | AQ195: 5292 | AR195: 5023 | AS195: 4841 | AT195: 4530 | AU195: 3981 | AV195: 3543 | AW195: 3086 | AX195: 2611 | AY195: 10993
A196: E38000059 | B196: Fareham and Gosport CCG | D196: Fareham and Gosport | E196: 96759 | F196: 2770 | G196: 2920 | H196: 2936 | I196: 2979 | J196: 3011 | K196: 3119 | L196: 3046 | M196: 3037 | N196: 2954 | O196: 2978 | P196: 2793 | Q196: 2795 | R196: 2709 | S196: 2531 | T196: 2519 | U196: 2351 | V196: 2239 | W196: 2273 | X196: 2253 | Y196: 2259 | Z196: 2338 | AA196: 2600 | AB196: 2670 | AC196: 3040 | AD196: 2368 | AE196: 2287 | AF196: 2213 | AG196: 2014 | AH196: 1768 | AI196: 1519 | AJ196: 1659 | AK196: 1624 | AL196: 1588 | AM196: 1504 | AN196: 1419 | AO196: 1332 | AP196: 1297 | AQ196: 1165 | AR196: 1158 | AS196: 1046 | AT196: 980 | AU196: 853 | AV196: 646 | AW196: 615 | AX196: 546 | AY196: 2038
A197: E38000087 | B197: Isle of Wight CCG | D197: Isle of Wight | E197: 76693 | F197: 1846 | G197: 1903 | H197: 1974 | I197: 2105 | J197: 2093 | K197: 2178 | L197: 2073 | M197: 2042 | N197: 1967 | O197: 1940 | P197: 2007 | Q197: 1992 | R197: 1924 | S197: 1893 | T197: 1992 | U197: 1876 | V197: 1974 | W197: 1931 | X197: 1976 | Y197: 1960 | Z197: 2052 | AA197: 2176 | AB197: 2401 | AC197: 2709 | AD197: 2109 | AE197: 2047 | AF197: 2036 | AG197: 1888 | AH197: 1691 | AI197: 1350 | AJ197: 1467 | AK197: 1398 | AL197: 1348 | AM197: 1176 | AN197: 1179 | AO197: 1097 | AP197: 992 | AQ197: 966 | AR197: 961 | AS197: 829 | AT197: 775 | AU197: 681 | AV197: 628 | AW197: 544 | AX197: 460 | AY197: 2087
A198: E38000118 | B198: North East Hampshire and Farnham CCG | D198: North East Hampshire and Farnham | E198: 90058 | F198: 3176 | G198: 3308 | H198: 3309 | I198: 3272 | J198: 3319 | K198: 3318 | L198: 3216 | M198: 3175 | N198: 2968 | O198: 2858 | P198: 2658 | Q198: 2547 | R198: 2446 | S198: 2372 | T198: 2220 | U198: 2123 | V198: 2165 | W198: 2055 | X198: 1952 | Y198: 2061 | Z198: 2001 | AA198: 2186 | AB198: 2328 | AC198: 2549 | AD198: 1956 | AE198: 1906 | AF198: 1882 | AG198: 1788 | AH198: 1509 | AI198: 1414 | AJ198: 1370 | AK198: 1461 | AL198: 1364 | AM198: 1305 | AN198: 1150 | AO198: 1118 | AP198: 1009 | AQ198: 905 | AR198: 827 | AS198: 774 | AT198: 754 | AU198: 654 | AV198: 576 | AW198: 506 | AX198: 467 | AY198: 1781
A199: E38000120 | B199: North Hampshire CCG | D199: North Hampshire | E199: 98570 | F199: 3269 | G199: 3543 | H199: 3470 | I199: 3476 | J199: 3504 | K199: 3631 | L199: 3552 | M199: 3422 | N199: 3340 | O199: 3156 | P199: 3137 | Q199: 2869 | R199: 2762 | S199: 2738 | T199: 2486 | U199: 2356 | V199: 2418 | W199: 2394 | X199: 2264 | Y199: 2315 | Z199: 2334 | AA199: 2530 | AB199: 2643 | AC199: 2889 | AD199: 2266 | AE199: 2095 | AF199: 2073 | AG199: 1874 | AH199: 1648 | AI199: 1463 | AJ199: 1513 | AK199: 1507 | AL199: 1427 | AM199: 1290 | AN199: 1276 | AO199: 1071 | AP199: 1058 | AQ199: 954 | AR199: 940 | AS199: 822 | AT199: 735 | AU199: 650 | AV199: 574 | AW199: 559 | AX199: 463 | AY199: 1814
A200: E38000137 | B200: Portsmouth CCG | D200: Portsmouth | E200: =SUM(F200:AY200) -> 76583 | F200: 2845 | G200: 2631 | H200: 2741 | I200: 2757 | J200: 2762 | K200: 2748 | L200: 2710 | M200: 2719 | N200: 2574 | O200: 2555 | P200: 2437 | Q200: 2362 | R200: 2247 | S200: 2118 | T200: 1970 | U200: 1865 | V200: 1771 | W200: 1795 | X200: 1672 | Y200: 1619 | Z200: 1747 | AA200: 1799 | AB200: 1891 | AC200: 2153 | AD200: 1666 | AE200: 1512 | AF200: 1397 | AG200: 1343 | AH200: 1295 | AI200: 1091 | AJ200: 1143 | AK200: 1123 | AL200: 1121 | AM200: 1013 | AN200: 1026 | AO200: 916 | AP200: 849 | AQ200: 753 | AR200: 787 | AS200: 711 | AT200: 648 | AU200: 604 | AV200: 509 | AW200: 423 | AX200: 416 | AY200: 1749
A201: E38000154 | B201: South Eastern Hampshire CCG | D201: South Eastern Hampshire | E201: 107489 | F201: 2891 | G201: 3172 | H201: 3101 | I201: 3272 | J201: 3175 | K201: 3280 | L201: 3376 | M201: 3352 | N201: 3170 | O201: 3188 | P201: 3113 | Q201: 3091 | R201: 2994 | S201: 2871 | T201: 2783 | U201: 2736 | V201: 2573 | W201: 2589 | X201: 2544 | Y201: 2507 | Z201: 2619 | AA201: 2790 | AB201: 2961 | AC201: 3269 | AD201: 2646 | AE201: 2477 | AF201: 2440 | AG201: 2316 | AH201: 1996 | AI201: 1776 | AJ201: 1928 | AK201: 1901 | AL201: 1742 | AM201: 1727 | AN201: 1545 | AO201: 1559 | AP201: 1382 | AQ201: 1403 | AR201: 1283 | AS201: 1231 | AT201: 1119 | AU201: 986 | AV201: 810 | AW201: 724 | AX201: 643 | AY201: 2438
A202: E38000167 | B202: Southampton CCG | D202: Southampton | E202: 83858 | F202: 2844 | G202: 2633 | H202: 2815 | I202: 2911 | J202: 2901 | K202: 3043 | L202: 2935 | M202: 2919 | N202: 2845 | O202: 2634 | P202: 2530 | Q202: 2493 | R202: 2568 | S202: 2342 | T202: 2193 | U202: 2147 | V202: 2101 | W202: 2087 | X202: 1953 | Y202: 2016 | Z202: 2032 | AA202: 2021 | AB202: 2031 | AC202: 2216 | AD202: 1796 | AE202: 1765 | AF202: 1592 | AG202: 1535 | AH202: 1402 | AI202: 1238 | AJ202: 1192 | AK202: 1256 | AL202: 1220 | AM202: 1106 | AN202: 1092 | AO202: 964 | AP202: 913 | AQ202: 931 | AR202: 896 | AS202: 893 | AT202: 724 | AU202: 722 | AV202: 613 | AW202: 551 | AX202: 474 | AY202: 1773
A203: E38000198 | B203: West Hampshire CCG | D203: West Hampshire | E203: 277875 | F203: 7650 | G203: 7987 | H203: 7960 | I203: 8207 | J203: 8484 | K203: 8752 | L203: 8648 | M203: 8614 | N203: 8151 | O203: 8017 | P203: 7528 | Q203: 7642 | R203: 7447 | S203: 7335 | T203: 6888 | U203: 6775 | V203: 6784 | W203: 6809 | X203: 6713 | Y203: 6771 | Z203: 7035 | AA203: 7289 | AB203: 7781 | AC203: 8746 | AD203: 6683 | AE203: 6594 | AF203: 6398 | AG203: 5932 | AH203: 5266 | AI203: 4592 | AJ203: 4871 | AK203: 4642 | AL203: 4668 | AM203: 4392 | AN203: 4180 | AO203: 3934 | AP203: 3547 | AQ203: 3417 | AR203: 3238 | AS203: 3200 | AT203: 2805 | AU203: 2551 | AV203: 2199 | AW203: 2027 | AX203: 1664 | AY203: 7062
... 47 more rows

Sheet LA - UK (hidden)
A1: MYE2: Population estimates by single year of age and sex for local authorities in the UK, mid-2015
A2: ALL PERSONS
A3: CODE | B3: NAME | C3: ALL AGES | D3: 45 | E3: 46 | F3: 47 | G3: 48 | H3: 49 | I3: 50 | J3: 51 | K3: 52 | L3: 53 | M3: 54 | N3: 55 | O3: 56 | P3: 57 | Q3: 58 | R3: 59 | S3: 60 | T3: 61 | U3: 62 | V3: 63 | W3: 64 | X3: 65 | Y3: 66 | Z3: 67 | AA3: 68 | AB3: 69 | AC3: 70 | AD3: 71 | AE3: 72 | AF3: 73 | AG3: 74 | AH3: 75 | AI3: 76 | AJ3: 77 | AK3: 78 | AL3: 79 | AM3: 80 | AN3: 81 | AO3: 82 | AP3: 83 | AQ3: 84 | AR3: 85 | AS3: 86 | AT3: 87 | AU3: 88 | AV3: 89 | AW3: 90
A4: K02000001 | B4: UNITED KINGDOM | C4: =SUM(D4:AW4) -> 28259630 | D4: 902356 | E4: 925304 | F4: 926005 | G4: 938658 | H4: 938422 | I4: 946132 | J4: 936939 | K4: 917310 | L4: 897508 | M4: 867448 | N4: 832633 | O4: 814617 | P4: 796445 | Q4: 767256 | R4: 739711 | S4: 712293 | T4: 713366 | U4: 704081 | V4: 683633 | W4: 688346 | X4: 700832 | Y4: 716743 | Z4: 753906 | AA4: 814536 | AB4: 628572 | AC4: 607549 | AD4: 604201 | AE4: 561866 | AF4: 501307 | AG4: 450240 | AH4: 463055 | AI4: 455990 | AJ4: 439548 | AK4: 413693 | AL4: 389763 | AM4: 365463 | AN4: 333965 | AO4: 312353 | AP4: 296904 | AQ4: 274824 | AR4: 249042 | AS4: 218287 | AT4: 189763 | AU4: 167274 | AV4: 145225 | AW4: 556266
A5: K03000001 | B5: GREAT BRITAIN | C5: =SUM(D5:AW5) -> 27499528 | D5: 876578 | E5: 899230 | F5: 899420 | G5: 912161 | H5: 911888 | I5: 919165 | J5: 910438 | K5: 891431 | L5: 872290 | M5: 842626 | N5: 808833 | O5: 791509 | P5: 773688 | Q5: 745464 | R5: 718823 | S5: 692413 | T5: 693856 | U5: 685044 | V5: 665315 | W5: 670013 | X5: 682535 | Y5: 698695 | Z5: 735922 | AA5: 796604 | AB5: 612020 | AC5: 591264 | AD5: 588085 | AE5: 546417 | AF5: 487601 | AG5: 437990 | AH5: 451286 | AI5: 444230 | AJ5: 428574 | AK5: 403111 | AL5: 380037 | AM5: 356415 | AN5: 325740 | AO5: 304485 | AP5: 289709 | AQ5: 268226 | AR5: 243121 | AS5: 213006 | AT5: 185279 | AU5: 163255 | AV5: 141911 | AW5: 543825
A6: K04000001 | B6: ENGLAND AND WALES | C6: 25035601 | D6: 800846 | E6: 820510 | F6: 819192 | G6: 831345 | H6: 831566 | I6: 835965 | J6: 828296 | K6: 809624 | L6: 792333 | M6: 764439 | N6: 733327 | O6: 716577 | P6: 700839 | Q6: 674586 | R6: 650168 | S6: 626693 | T6: 629074 | U6: 621467 | V6: 604132 | W6: 608277 | X6: 620767 | Y6: 635505 | Z6: 670917 | AA6: 726423 | AB6: 559209 | AC6: 541670 | AD6: 537683 | AE6: 498350 | AF6: 443736 | AG6: 397592 | AH6: 410486 | AI6: 404720 | AJ6: 390576 | AK6: 367618 | AL6: 346269 | AM6: 324938 | AN6: 296883 | AO6: 278088 | AP6: 264593 | AQ6: 245732 | AR6: 223300 | AS6: 195581 | AT6: 170607 | AU6: 150400 | AV6: 130672 | AW6: 504030
A7: E92000001 | B7: ENGLAND | C7: 23594975 | D7: 759786 | E7: 777437 | F7: 776611 | G7: 787611 | H7: 787915 | I7: 791066 | J7: 783305 | K7: 765857 | L7: 748704 | M7: 722068 | N7: 692374 | O7: 676158 | P7: 661089 | Q7: 635797 | R7: 612904 | S7: 590280 | T7: 591581 | U7: 583991 | V7: 567596 | W7: 571273 | X7: 582595 | Y7: 596441 | Z7: 629564 | AA7: 682834 | AB7: 525701 | AC7: 508499 | AD7: 504922 | AE7: 467555 | AF7: 415572 | AG7: 372072 | AH7: 385501 | AI7: 380304 | AJ7: 367100 | AK7: 345778 | AL7: 325545 | AM7: 305377 | AN7: 278932 | AO7: 261228 | AP7: 249194 | AQ7: 231569 | AR7: 210446 | AS7: 184425 | AT7: 160779 | AU7: 141595 | AV7: 123076 | AW7: 474968
A8: E12000001 | B8: NORTH EAST | C8: 1206008 | D8: 35149 | E8: 35669 | F8: 36461 | G8: 37592 | H8: 38403 | I8: 39308 | J8: 38890 | K8: 39062 | L8: 38535 | M8: 36875 | N8: 35965 | O8: 36271 | P8: 36059 | Q8: 34426 | R8: 32999 | S8: 31648 | T8: 31626 | U8: 31170 | V8: 30191 | W8: 30512 | X8: 31025 | Y8: 31665 | Z8: 33169 | AA8: 35960 | AB8: 27073 | AC8: 26157 | AD8: 25318 | AE8: 22749 | AF8: 20961 | AG8: 19537 | AH8: 20323 | AI8: 20238 | AJ8: 19741 | AK8: 18446 | AL8: 16807 | AM8: 16213 | AN8: 14638 | AO8: 13689 | AP8: 12830 | AQ8: 11889 | AR8: 10538 | AS8: 8993 | AT8: 7686 | AU8: 6649 | AV8: 5839 | AW8: 21064
A9: E06000047 | B9: County Durham | C9: 247599 | D9: 7073 | E9: 7464 | F9: 7623 | G9: 7793 | H9: 7964 | I9: 8043 | J9: 8038 | K9: 7862 | L9: 7708 | M9: 7334 | N9: 7026 | O9: 7344 | P9: 7124 | Q9: 6961 | R9: 6681 | S9: 6542 | T9: 6428 | U9: 6459 | V9: 6284 | W9: 6423 | X9: 6533 | Y9: 6716 | Z9: 6868 | AA9: 7618 | AB9: 5775 | AC9: 5733 | AD9: 5571 | AE9: 4870 | AF9: 4465 | AG9: 4183 | AH9: 4254 | AI9: 4133 | AJ9: 4035 | AK9: 3817 | AL9: 3415 | AM9: 3278 | AN9: 2905 | AO9: 2678 | AP9: 2438 | AQ9: 2316 | AR9: 2018 | AS9: 1797 | AT9: 1486 | AU9: 1288 | AV9: 1165 | AW9: 4070
A10: E06000005 | B10: Darlington | C10: 48991 | D10: 1564 | E10: 1437 | F10: 1483 | G10: 1578 | H10: 1647 | I10: 1639 | J10: 1518 | K10: 1583 | L10: 1573 | M10: 1539 | N10: 1396 | O10: 1429 | P10: 1435 | Q10: 1294 | R10: 1311 | S10: 1201 | T10: 1231 | U10: 1230 | V10: 1188 | W10: 1200 | X10: 1207 | Y10: 1281 | Z10: 1274 | AA10: 1464 | AB10: 1128 | AC10: 1118 | AD10: 1022 | AE10: 880 | AF10: 845 | AG10: 808 | AH10: 819 | AI10: 882 | AJ10: 795 | AK10: 762 | AL10: 702 | AM10: 677 | AN10: 593 | AO10: 577 | AP10: 517 | AQ10: 461 | AR10: 410 | AS10: 395 | AT10: 326 | AU10: 321 | AV10: 264 | AW10: 987
A11: E06000001 | B11: Hartlepool | C11: 42552 | D11: 1260 | E11: 1221 | F11: 1280 | G11: 1398 | H11: 1412 | I11: 1465 | J11: 1393 | K11: 1432 | L11: 1437 | M11: 1408 | N11: 1274 | O11: 1333 | P11: 1218 | Q11: 1226 | R11: 1110 | S11: 1127 | T11: 1022 | U11: 1087 | V11: 1093 | W11: 1053 | X11: 1077 | Y11: 1152 | Z11: 1139 | AA11: 1186 | AB11: 915 | AC11: 864 | AD11: 802 | AE11: 720 | AF11: 732 | AG11: 622 | AH11: 710 | AI11: 699 | AJ11: 709 | AK11: 703 | AL11: 583 | AM11: 597 | AN11: 551 | AO11: 523 | AP11: 489 | AQ11: 408 | AR11: 380 | AS11: 312 | AT11: 277 | AU11: 223 | AV11: 202 | AW11: 728
A12: E06000002 | B12: Middlesbrough | C12: 56487 | D12: 1749 | E12: 1605 | F12: 1777 | G12: 1756 | H12: 1878 | I12: 1978 | J12: 1865 | K12: 1871 | L12: 1997 | M12: 1844 | N12: 1784 | O12: 1761 | P12: 1789 | Q12: 1744 | R12: 1624 | S12: 1590 | T12: 1514 | U12: 1512 | V12: 1382 | W12: 1382 | X12: 1357 | Y12: 1334 | Z12: 1457 | AA12: 1541 | AB12: 1143 | AC12: 1091 | AD12: 1036 | AE12: 1009 | AF12: 962 | AG12: 901 | AH12: 894 | AI12: 904 | AJ12: 924 | AK12: 834 | AL12: 784 | AM12: 747 | AN12: 666 | AO12: 666 | AP12: 569 | AQ12: 584 | AR12: 503 | AS12: 409 | AT12: 367 | AU12: 296 | AV12: 248 | AW12: 859
A13: E06000057 | B13: Northumberland | C13: 166635 | D13: 4208 | E13: 4375 | F13: 4479 | G13: 4700 | H13: 4731 | I13: 5104 | J13: 5075 | K13: 5027 | L13: 4983 | M13: 4871 | N13: 4984 | O13: 4998 | P13: 4880 | Q13: 4635 | R13: 4637 | S13: 4419 | T13: 4516 | U13: 4401 | V13: 4368 | W13: 4523 | X13: 4578 | Y13: 4664 | Z13: 5104 | AA13: 5349 | AB13: 4035 | AC13: 4001 | AD13: 3882 | AE13: 3537 | AF13: 3042 | AG13: 2894 | AH13: 2890 | AI13: 2844 | AJ13: 2668 | AK13: 2552 | AL13: 2348 | AM13: 2297 | AN13: 2004 | AO13: 1871 | AP13: 1750 | AQ13: 1614 | AR13: 1458 | AS13: 1250 | AT13: 1068 | AU13: 998 | AV13: 863 | AW13: 3160
A14: E06000003 | B14: Redcar and Cleveland | C14: 66711 | D14: 1758 | E14: 1929 | F14: 1869 | G14: 2027 | H14: 2126 | I14: 2010 | J14: 2084 | K14: 2141 | L14: 2067 | M14: 1897 | N14: 1925 | O14: 1936 | P14: 1897 | Q14: 1751 | R14: 1758 | S14: 1626 | T14: 1709 | U14: 1692 | V14: 1628 | W14: 1660 | X14: 1711 | Y14: 1832 | Z14: 1885 | AA14: 2084 | AB14: 1670 | AC14: 1570 | AD14: 1523 | AE14: 1355 | AF14: 1339 | AG14: 1208 | AH14: 1261 | AI14: 1249 | AJ14: 1150 | AK14: 1104 | AL14: 988 | AM14: 915 | AN14: 774 | AO14: 762 | AP14: 693 | AQ14: 634 | AR14: 619 | AS14: 520 | AT14: 419 | AU14: 373 | AV14: 335 | AW14: 1248
A15: E06000004 | B15: Stockton-on-Tees | C15: 85850 | D15: 2768 | E15: 2711 | F15: 2783 | G15: 2862 | H15: 2903 | I15: 2886 | J15: 2796 | K15: 2933 | L15: 2917 | M15: 2738 | N15: 2673 | O15: 2552 | P15: 2614 | Q15: 2548 | R15: 2336 | S15: 2242 | T15: 2322 | U15: 2211 | V15: 2163 | W15: 2070 | X15: 2141 | Y15: 2158 | Z15: 2270 | AA15: 2423 | AB15: 1831 | AC15: 1712 | AD15: 1725 | AE15: 1519 | AF15: 1471 | AG15: 1338 | AH15: 1328 | AI15: 1412 | AJ15: 1317 | AK15: 1231 | AL15: 1170 | AM15: 1103 | AN15: 971 | AO15: 935 | AP15: 934 | AQ15: 875 | AR15: 744 | AS15: 546 | AT15: 521 | AU15: 393 | AV15: 344 | AW15: 1410
A16: E11000007 | B16: Tyne and Wear (Met County) | C16: 491183 | D16: 14769 | E16: 14927 | F16: 15167 | G16: 15478 | H16: 15742 | I16: 16183 | J16: 16121 | K16: 16213 | L16: 15853 | M16: 15244 | N16: 14903 | O16: 14918 | P16: 15102 | Q16: 14267 | R16: 13542 | S16: 12901 | T16: 12884 | U16: 12578 | V16: 12085 | W16: 12201 | X16: 12421 | Y16: 12528 | Z16: 13172 | AA16: 14295 | AB16: 10576 | AC16: 10068 | AD16: 9757 | AE16: 8859 | AF16: 8105 | AG16: 7583 | AH16: 8167 | AI16: 8115 | AJ16: 8143 | AK16: 7443 | AL16: 6817 | AM16: 6599 | AN16: 6174 | AO16: 5677 | AP16: 5440 | AQ16: 4997 | AR16: 4406 | AS16: 3764 | AT16: 3222 | AU16: 2757 | AV16: 2418 | AW16: 8602
A17: E08000037 | B17: Gateshead | C17: 91211 | D17: 2720 | E17: 2709 | F17: 2813 | G17: 2942 | H17: 2918 | I17: 2964 | J17: 2875 | K17: 3041 | L17: 2926 | M17: 2834 | N17: 2719 | O17: 2678 | P17: 2705 | Q17: 2631 | R17: 2324 | S17: 2323 | T17: 2279 | U17: 2183 | V17: 2144 | W17: 2147 | X17: 2294 | Y17: 2319 | Z17: 2506 | AA17: 2700 | AB17: 1937 | AC17: 1969 | AD17: 1917 | AE17: 1668 | AF17: 1575 | AG17: 1550 | AH17: 1587 | AI17: 1649 | AJ17: 1610 | AK17: 1495 | AL17: 1317 | AM17: 1291 | AN17: 1174 | AO17: 1130 | AP17: 1051 | AQ17: 957 | AR17: 826 | AS17: 678 | AT17: 585 | AU17: 475 | AV17: 506 | AW17: 1570
A18: E08000021 | B18: Newcastle upon Tyne | C18: 105228 | D18: 3263 | E18: 3337 | F18: 3351 | G18: 3356 | H18: 3509 | I18: 3469 | J18: 3532 | K18: 3512 | L18: 3569 | M18: 3317 | N18: 3260 | O18: 3283 | P18: 3335 | Q18: 2978 | R18: 3030 | S18: 2759 | T18: 2726 | U18: 2667 | V18: 2554 | W18: 2556 | X18: 2673 | Y18: 2556 | Z18: 2650 | AA18: 2979 | AB18: 2114 | AC18: 2027 | AD18: 1970 | AE18: 1810 | AF18: 1620 | AG18: 1545 | AH18: 1629 | AI18: 1685 | AJ18: 1653 | AK18: 1533 | AL18: 1453 | AM18: 1445 | AN18: 1297 | AO18: 1146 | AP18: 1125 | AQ18: 1105 | AR18: 937 | AS18: 828 | AT18: 732 | AU18: 658 | AV18: 545 | AW18: 2150
A19: E08000022 | B19: North Tyneside | C19: 95554 | D19: 2955 | E19: 2914 | F19: 2914 | G19: 2961 | H19: 3038 | I19: 3204 | J19: 3209 | K19: 3196 | L19: 2975 | M19: 2849 | N19: 2826 | O19: 2788 | P19: 2920 | Q19: 2702 | R19: 2562 | S19: 2514 | T19: 2561 | U19: 2515 | V19: 2366 | W19: 2374 | X19: 2405 | Y19: 2446 | Z19: 2644 | AA19: 2832 | AB19: 2185 | AC19: 2004 | AD19: 1973 | AE19: 1708 | AF19: 1515 | AG19: 1380 | AH19: 1645 | AI19: 1509 | AJ19: 1547 | AK19: 1391 | AL19: 1315 | AM19: 1258 | AN19: 1182 | AO19: 1116 | AP19: 1081 | AQ19: 930 | AR19: 915 | AS19: 748 | AT19: 693 | AU19: 553 | AV19: 492 | AW19: 1744
A20: E08000023 | B20: South Tyneside | C20: 71428 | D20: 2007 | E20: 2145 | F20: 2102 | G20: 2220 | H20: 2341 | I20: 2374 | J20: 2305 | K20: 2372 | L20: 2264 | M20: 2271 | N20: 2240 | O20: 2221 | P20: 2200 | Q20: 2061 | R20: 1987 | S20: 1902 | T20: 1916 | U20: 1857 | V20: 1702 | W20: 1791 | X20: 1824 | Y20: 1844 | Z20: 1912 | AA20: 1994 | AB20: 1560 | AC20: 1407 | AD20: 1391 | AE20: 1301 | AF20: 1194 | AG20: 1094 | AH20: 1171 | AI20: 1165 | AJ20: 1161 | AK20: 1130 | AL20: 914 | AM20: 964 | AN20: 898 | AO20: 819 | AP20: 802 | AQ20: 721 | AR20: 619 | AS20: 615 | AT20: 486 | AU20: 435 | AV20: 339 | AW20: 1390
A21: E08000024 | B21: Sunderland | C21: 127762 | D21: 3824 | E21: 3822 | F21: 3987 | G21: 3999 | H21: 3936 | I21: 4172 | J21: 4200 | K21: 4092 | L21: 4119 | M21: 3973 | N21: 3858 | O21: 3948 | P21: 3942 | Q21: 3895 | R21: 3639 | S21: 3403 | T21: 3402 | U21: 3356 | V21: 3319 | W21: 3333 | X21: 3225 | Y21: 3363 | Z21: 3460 | AA21: 3790 | AB21: 2780 | AC21: 2661 | AD21: 2506 | AE21: 2372 | AF21: 2201 | AG21: 2014 | AH21: 2135 | AI21: 2107 | AJ21: 2172 | AK21: 1894 | AL21: 1818 | AM21: 1641 | AN21: 1623 | AO21: 1466 | AP21: 1381 | AQ21: 1284 | AR21: 1109 | AS21: 895 | AT21: 726 | AU21: 636 | AV21: 536 | AW21: 1748
A22: E12000002 | B22: NORTH WEST | C22: 3164467 | D22: 99515 | E22: 103075 | F22: 102087 | G22: 103732 | H22: 103020 | I22: 105313 | J22: 104604 | K22: 102635 | L22: 102078 | M22: 97855 | N22: 93583 | O22: 91490 | P22: 89500 | Q22: 86897 | R22: 83154 | S22: 79574 | T22: 79895 | U22: 79720 | V22: 76914 | W22: 78361 | X22: 79700 | Y22: 81591 | Z22: 86613 | AA22: 93649 | AB22: 69548 | AC22: 67097 | AD22: 67529 | AE22: 63136 | AF22: 56884 | AG22: 52406 | AH22: 53171 | AI22: 51880 | AJ22: 50213 | AK22: 46558 | AL22: 44232 | AM22: 40820 | AN22: 37010 | AO22: 34227 | AP22: 32585 | AQ22: 30238 | AR22: 27107 | AS22: 23554 | AT22: 20484 | AU22: 17992 | AV22: 15428 | AW22: 57813
A23: E06000008 | B23: Blackburn with Darwen | C23: 56393 | D23: 2081 | E23: 2150 | F23: 2177 | G23: 2001 | H23: 1972 | I23: 1932 | J23: 1921 | K23: 1925 | L23: 1902 | M23: 1873 | N23: 1792 | O23: 1725 | P23: 1618 | Q23: 1618 | R23: 1570 | S23: 1591 | T23: 1419 | U23: 1507 | V23: 1412 | W23: 1346 | X23: 1431 | Y23: 1446 | Z23: 1442 | AA23: 1611 | AB23: 1131 | AC23: 1045 | AD23: 1053 | AE23: 1012 | AF23: 932 | AG23: 788 | AH23: 817 | AI23: 875 | AJ23: 825 | AK23: 710 | AL23: 705 | AM23: 593 | AN23: 556 | AO23: 554 | AP23: 486 | AQ23: 448 | AR23: 420 | AS23: 353 | AT23: 324 | AU23: 285 | AV23: 234 | AW23: 785
A24: E06000009 | B24: Blackpool | C24: 66819 | D24: 1930 | E24: 2167 | F24: 2102 | G24: 2123 | H24: 2191 | I24: 2165 | J24: 2273 | K24: 2150 | L24: 2164 | M24: 1971 | N24: 1908 | O24: 1938 | P24: 1837 | Q24: 1764 | R24: 1822 | S24: 1624 | T24: 1532 | U24: 1568 | V24: 1539 | W24: 1604 | X24: 1589 | Y24: 1772 | Z24: 1844 | AA24: 1971 | AB24: 1569 | AC24: 1476 | AD24: 1384 | AE24: 1420 | AF24: 1179 | AG24: 1212 | AH24: 1171 | AI24: 1156 | AJ24: 1075 | AK24: 1052 | AL24: 1006 | AM24: 878 | AN24: 797 | AO24: 764 | AP24: 745 | AQ24: 648 | AR24: 598 | AS24: 528 | AT24: 467 | AU24: 406 | AV24: 344 | AW24: 1396
A25: E06000049 | B25: Cheshire East | C25: 189071 | D25: 5467 | E25: 5856 | F25: 5920 | G25: 5923 | H25: 5992 | I25: 6022 | J25: 6004 | K25: 5930 | L25: 5902 | M25: 5845 | N25: 5268 | O25: 5231 | P25: 5011 | Q25: 4761 | R25: 4740 | S25: 4613 | T25: 4527 | U25: 4576 | V25: 4470 | W25: 4773 | X25: 4836 | Y25: 4992 | Z25: 5459 | AA25: 5855 | AB25: 4293 | AC25: 4315 | AD25: 4402 | AE25: 3984 | AF25: 3480 | AG25: 3206 | AH25: 3290 | AI25: 3158 | AJ25: 3105 | AK25: 2882 | AL25: 2804 | AM25: 2543 | AN25: 2293 | AO25: 2146 | AP25: 1991 | AQ25: 1992 | AR25: 1844 | AS25: 1534 | AT25: 1374 | AU25: 1209 | AV25: 1053 | AW25: 4200
A26: E06000050 | B26: Cheshire West and Chester | C26: 161474 | D26: 4758 | E26: 5017 | F26: 4996 | G26: 5017 | H26: 5079 | I26: 5137 | J26: 5241 | K26: 5206 | L26: 5014 | M26: 4912 | N26: 4613 | O26: 4457 | P26: 4437 | Q26: 4338 | R26: 4183 | S26: 3926 | T26: 4108 | U26: 4073 | V26: 3909 | W26: 4147 | X26: 4117 | Y26: 4256 | Z26: 4608 | AA26: 4916 | AB26: 3705 | AC26: 3641 | AD26: 3601 | AE26: 3286 | AF26: 2950 | AG26: 2821 | AH26: 2846 | AI26: 2719 | AJ26: 2679 | AK26: 2479 | AL26: 2351 | AM26: 2088 | AN26: 1936 | AO26: 1775 | AP26: 1688 | AQ26: 1648 | AR26: 1412 | AS26: 1254 | AT26: 1080 | AU26: 987 | AV26: 872 | AW26: 3191
A27: E06000006 | B27: Halton | C27: 55799 | D27: 1738 | E27: 1742 | F27: 1740 | G27: 1846 | H27: 1753 | I27: 1873 | J27: 1766 | K27: 1816 | L27: 1938 | M27: 1771 | N27: 1678 | O27: 1772 | P27: 1722 | Q27: 1585 | R27: 1702 | S27: 1544 | T27: 1578 | U27: 1508 | V27: 1556 | W27: 1632 | X27: 1557 | Y27: 1576 | Z27: 1615 | AA27: 1750 | AB27: 1222 | AC27: 1047 | AD27: 1130 | AE27: 1023 | AF27: 958 | AG27: 849 | AH27: 839 | AI27: 825 | AJ27: 772 | AK27: 728 | AL27: 695 | AM27: 702 | AN27: 578 | AO27: 536 | AP27: 482 | AQ27: 443 | AR27: 427 | AS27: 343 | AT27: 262 | AU27: 246 | AV27: 219 | AW27: 715
A28: E06000007 | B28: Warrington | C28: 93266 | D28: 3228 | E28: 3215 | F28: 3089 | G28: 3293 | H28: 3358 | I28: 3346 | J28: 3323 | K28: 3345 | L28: 3134 | M28: 2960 | N28: 2703 | O28: 2769 | P28: 2544 | Q28: 2453 | R28: 2365 | S28: 2321 | T28: 2297 | U28: 2291 | V28: 2167 | W28: 2189 | X28: 2254 | Y28: 2273 | Z28: 2455 | AA28: 2770 | AB28: 2059 | AC28: 2003 | AD28: 2014 | AE28: 1770 | AF28: 1750 | AG28: 1538 | AH28: 1613 | AI28: 1632 | AJ28: 1445 | AK28: 1313 | AL28: 1234 | AM28: 1097 | AN28: 1032 | AO28: 929 | AP28: 828 | AQ28: 775 | AR28: 668 | AS28: 618 | AT28: 505 | AU28: 498 | AV28: 349 | AW28: 1454
A29: E10000006 | B29: Cumbria | C29: 260472 | D29: 7063 | E29: 7499 | F29: 7419 | G29: 7763 | H29: 7697 | I29: 7905 | J29: 7975 | K29: 7809 | L29: 7817 | M29: 7451 | N29: 7403 | O29: 7416 | P29: 7184 | Q29: 6998 | R29: 6754 | S29: 6498 | T29: 6663 | U29: 6692 | V29: 6456 | W29: 6792 | X29: 6959 | Y29: 7306 | Z29: 7647 | AA29: 8175 | AB29: 6191 | AC29: 5879 | AD29: 6087 | AE29: 5634 | AF29: 5069 | AG29: 4645 | AH29: 4761 | AI29: 4545 | AJ29: 4502 | AK29: 4062 | AL29: 3776 | AM29: 3433 | AN29: 3192 | AO29: 3065 | AP29: 2972 | AQ29: 2618 | AR29: 2377 | AS29: 2115 | AT29: 1852 | AU29: 1629 | AV29: 1479 | AW29: 5248
A30: E07000026 | B30: Allerdale | C30: 51009 | D30: 1404 | E30: 1536 | F30: 1476 | G30: 1604 | H30: 1530 | I30: 1549 | J30: 1526 | K30: 1489 | L30: 1509 | M30: 1424 | N30: 1417 | O30: 1411 | P30: 1421 | Q30: 1349 | R30: 1346 | S30: 1242 | T30: 1291 | U30: 1351 | V30: 1277 | W30: 1369 | X30: 1348 | Y30: 1486 | Z30: 1544 | AA30: 1636 | AB30: 1154 | AC30: 1110 | AD30: 1191 | AE30: 1097 | AF30: 1019 | AG30: 931 | AH30: 939 | AI30: 906 | AJ30: 858 | AK30: 802 | AL30: 731 | AM30: 679 | AN30: 617 | AO30: 584 | AP30: 576 | AQ30: 516 | AR30: 435 | AS30: 390 | AT30: 345 | AU30: 330 | AV30: 285 | AW30: 979
A31: E07000027 | B31: Barrow-in-Furness | C31: 33129 | D31: 985 | E31: 981 | F31: 1030 | G31: 1117 | H31: 1058 | I31: 1062 | J31: 1114 | K31: 995 | L31: 1028 | M31: 966 | N31: 969 | O31: 960 | P31: 859 | Q31: 892 | R31: 837 | S31: 791 | T31: 860 | U31: 814 | V31: 822 | W31: 858 | X31: 805 | Y31: 881 | Z31: 973 | AA31: 1000 | AB31: 801 | AC31: 773 | AD31: 755 | AE31: 764 | AF31: 631 | AG31: 645 | AH31: 620 | AI31: 585 | AJ31: 578 | AK31: 469 | AL31: 466 | AM31: 408 | AN31: 383 | AO31: 351 | AP31: 320 | AQ31: 298 | AR31: 299 | AS31: 213 | AT31: 172 | AU31: 187 | AV31: 156 | AW31: 598
A32: E07000028 | B32: Carlisle | C32: 52160 | D32: 1478 | E32: 1590 | F32: 1535 | G32: 1564 | H32: 1556 | I32: 1577 | J32: 1656 | K32: 1696 | L32: 1614 | M32: 1600 | N32: 1550 | O32: 1666 | P32: 1489 | Q32: 1457 | R32: 1313 | S32: 1303 | T32: 1330 | U32: 1383 | V32: 1303 | W32: 1313 | X32: 1363 | Y32: 1409 | Z32: 1375 | AA32: 1556 | AB32: 1185 | AC32: 1082 | AD32: 1106 | AE32: 1076 | AF32: 1001 | AG32: 894 | AH32: 903 | AI32: 813 | AJ32: 863 | AK32: 805 | AL32: 749 | AM32: 666 | AN32: 661 | AO32: 617 | AP32: 612 | AQ32: 494 | AR32: 446 | AS32: 437 | AT32: 371 | AU32: 318 | AV32: 327 | AW32: 1058
A33: E07000029 | B33: Copeland | C33: 35538 | D33: 982 | E33: 1037 | F33: 1025 | G33: 1084 | H33: 1118 | I33: 1155 | J33: 1134 | K33: 1144 | L33: 1132 | M33: 1075 | N33: 1049 | O33: 1078 | P33: 1042 | Q33: 1010 | R33: 1043 | S33: 910 | T33: 915 | U33: 879 | V33: 862 | W33: 985 | X33: 915 | Y33: 963 | Z33: 1082 | AA33: 1061 | AB33: 766 | AC33: 761 | AD33: 818 | AE33: 688 | AF33: 691 | AG33: 613 | AH33: 655 | AI33: 569 | AJ33: 608 | AK33: 563 | AL33: 485 | AM33: 486 | AN33: 398 | AO33: 383 | AP33: 419 | AQ33: 286 | AR33: 314 | AS33: 254 | AT33: 200 | AU33: 167 | AV33: 147 | AW33: 587
A34: E07000030 | B34: Eden | C34: 29409 | D34: 739 | E34: 846 | F34: 858 | G34: 803 | H34: 837 | I34: 916 | J34: 873 | K34: 828 | L34: 856 | M34: 805 | N34: 839 | O34: 755 | P34: 837 | Q34: 732 | R34: 738 | S34: 769 | T34: 764 | U34: 787 | V34: 765 | W34: 854 | X34: 819 | Y34: 797 | Z34: 898 | AA34: 885 | AB34: 713 | AC34: 691 | AD34: 705 | AE34: 661 | AF34: 582 | AG34: 502 | AH34: 546 | AI34: 539 | AJ34: 530 | AK34: 447 | AL34: 448 | AM34: 382 | AN34: 325 | AO34: 350 | AP34: 331 | AQ34: 306 | AR34: 284 | AS34: 235 | AT34: 240 | AU34: 186 | AV34: 171 | AW34: 635
A35: E07000031 | B35: South Lakeland | C35: 59227 | D35: 1475 | E35: 1509 | F35: 1495 | G35: 1591 | H35: 1598 | I35: 1646 | J35: 1672 | K35: 1657 | L35: 1678 | M35: 1581 | N35: 1579 | O35: 1546 | P35: 1536 | Q35: 1558 | R35: 1477 | S35: 1483 | T35: 1503 | U35: 1478 | V35: 1427 | W35: 1413 | X35: 1709 | Y35: 1770 | Z35: 1775 | AA35: 2037 | AB35: 1572 | AC35: 1462 | AD35: 1512 | AE35: 1348 | AF35: 1145 | AG35: 1060 | AH35: 1098 | AI35: 1133 | AJ35: 1065 | AK35: 976 | AL35: 897 | AM35: 812 | AN35: 808 | AO35: 780 | AP35: 714 | AQ35: 718 | AR35: 599 | AS35: 586 | AT35: 524 | AU35: 441 | AV35: 393 | AW35: 1391
A36: E11000001 | B36: Greater Manchester (Met County) | C36: 1100843 | D36: 37993 | E36: 39102 | F36: 38536 | G36: 39160 | H36: 38576 | I36: 38825 | J36: 38247 | K36: 36735 | L36: 36643 | M36: 34738 | N36: 33173 | O36: 32467 | P36: 31520 | Q36: 30413 | R36: 28755 | S36: 27401 | T36: 27414 | U36: 27399 | V36: 26441 | W36: 26247 | X36: 27245 | Y36: 27368 | Z36: 29187 | AA36: 31520 | AB36: 22916 | AC36: 22619 | AD36: 22439 | AE36: 21236 | AF36: 18973 | AG36: 17390 | AH36: 17774 | AI36: 17204 | AJ36: 16594 | AK36: 15302 | AL36: 14381 | AM36: 13384 | AN36: 11807 | AO36: 11063 | AP36: 10483 | AQ36: 9690 | AR36: 8765 | AS36: 7484 | AT36: 6533 | AU36: 5845 | AV36: 5067 | AW36: 18789
A37: E08000001 | B37: Bolton | C37: 118333 | D37: 4085 | E37: 4071 | F37: 4049 | G37: 4110 | H37: 4083 | I37: 4047 | J37: 3999 | K37: 3756 | L37: 3830 | M37: 3666 | N37: 3515 | O37: 3447 | P37: 3323 | Q37: 3257 | R37: 3020 | S37: 2954 | T37: 2989 | U37: 2965 | V37: 2890 | W37: 2838 | X37: 3019 | Y37: 3140 | Z37: 3343 | AA37: 3564 | AB37: 2595 | AC37: 2501 | AD37: 2540 | AE37: 2449 | AF37: 2063 | AG37: 1987 | AH37: 1923 | AI37: 2000 | AJ37: 1809 | AK37: 1579 | AL37: 1504 | AM37: 1440 | AN37: 1187 | AO37: 1175 | AP37: 1117 | AQ37: 1000 | AR37: 965 | AS37: 782 | AT37: 625 | AU37: 634 | AV37: 538 | AW37: 1960
A38: E08000002 | B38: Bury | C38: 82830 | D38: 2683 | E38: 2885 | F38: 2814 | G38: 2906 | H38: 2787 | I38: 2817 | J38: 2828 | K38: 2744 | L38: 2767 | M38: 2560 | N38: 2526 | O38: 2428 | P38: 2292 | Q38: 2175 | R38: 2158 | S38: 1937 | T38: 2018 | U38: 2111 | V38: 2026 | W38: 1955 | X38: 2089 | Y38: 2187 | Z38: 2254 | AA38: 2562 | AB38: 1844 | AC38: 1755 | AD38: 1839 | AE38: 1570 | AF38: 1457 | AG38: 1366 | AH38: 1383 | AI38: 1319 | AJ38: 1247 | AK38: 1237 | AL38: 1135 | AM38: 1041 | AN38: 902 | AO38: 845 | AP38: 735 | AQ38: 693 | AR38: 650 | AS38: 568 | AT38: 472 | AU38: 418 | AV38: 407 | AW38: 1438
A39: E08000003 | B39: Manchester | C39: 146885 | D39: 5986 | E39: 6238 | F39: 5917 | G39: 6274 | H39: 5755 | I39: 5774 | J39: 5588 | K39: 5309 | L39: 5310 | M39: 4968 | N39: 4690 | O39: 4521 | P39: 4344 | Q39: 4361 | R39: 4033 | S39: 3857 | T39: 3598 | U39: 3646 | V39: 3542 | W39: 3400 | X39: 3312 | Y39: 3246 | Z39: 3386 | AA39: 3335 | AB39: 2500 | AC39: 2421 | AD39: 2457 | AE39: 2253 | AF39: 2123 | AG39: 2106 | AH39: 2033 | AI39: 1919 | AJ39: 1928 | AK39: 1830 | AL39: 1726 | AM39: 1611 | AN39: 1400 | AO39: 1352 | AP39: 1279 | AQ39: 1126 | AR39: 1006 | AS39: 969 | AT39: 821 | AU39: 757 | AV39: 603 | AW39: 2275
A40: E08000004 | B40: Oldham | C40: 92665 | D40: 3306 | E40: 3261 | F40: 3201 | G40: 3238 | H40: 3161 | I40: 3231 | J40: 3202 | K40: 2900 | L40: 2985 | M40: 2956 | N40: 2862 | O40: 2741 | P40: 2572 | Q40: 2541 | R40: 2480 | S40: 2320 | T40: 2423 | U40: 2389 | V40: 2253 | W40: 2211 | X40: 2328 | Y40: 2257 | Z40: 2573 | AA40: 2681 | AB40: 1918 | AC40: 1922 | AD40: 2013 | AE40: 1839 | AF40: 1622 | AG40: 1493 | AH40: 1505 | AI40: 1481 | AJ40: 1440 | AK40: 1341 | AL40: 1151 | AM40: 1067 | AN40: 994 | AO40: 895 | AP40: 849 | AQ40: 843 | AR40: 663 | AS40: 582 | AT40: 521 | AU40: 470 | AV40: 413 | AW40: 1571
A41: E08000005 | B41: Rochdale | C41: 88939 | D41: 2986 | E41: 3080 | F41: 3106 | G41: 3114 | H41: 3009 | I41: 2948 | J41: 2989 | K41: 2931 | L41: 2918 | M41: 2772 | N41: 2774 | O41: 2684 | P41: 2687 | Q41: 2546 | R41: 2457 | S41: 2362 | T41: 2389 | U41: 2389 | V41: 2260 | W41: 2205 | X41: 2293 | Y41: 2203 | Z41: 2307 | AA41: 2608 | AB41: 1808 | AC41: 1852 | AD41: 1747 | AE41: 1662 | AF41: 1510 | AG41: 1348 | AH41: 1400 | AI41: 1357 | AJ41: 1245 | AK41: 1209 | AL41: 1124 | AM41: 1066 | AN41: 887 | AO41: 900 | AP41: 843 | AQ41: 752 | AR41: 733 | AS41: 589 | AT41: 520 | AU41: 472 | AV41: 426 | AW41: 1472
A42: E08000006 | B42: Salford | C42: 91833 | D42: 3050 | E42: 3304 | F42: 3297 | G42: 3179 | H42: 3268 | I42: 3283 | J42: 3211 | K42: 3174 | L42: 3157 | M42: 2935 | N42: 2763 | O42: 2823 | P42: 2662 | Q42: 2696 | R42: 2315 | S42: 2204 | T42: 2240 | U42: 2254 | V42: 2100 | W42: 2151 | X42: 2237 | Y42: 2176 | Z42: 2327 | AA42: 2630 | AB42: 1879 | AC42: 1832 | AD42: 1740 | AE42: 1708 | AF42: 1603 | AG42: 1468 | AH42: 1440 | AI42: 1436 | AJ42: 1426 | AK42: 1248 | AL42: 1280 | AM42: 1064 | AN42: 1021 | AO42: 882 | AP42: 900 | AQ42: 797 | AR42: 760 | AS42: 640 | AT42: 573 | AU42: 514 | AV42: 459 | AW42: 1727
A43: E08000007 | B43: Stockport | C43: 134343 | D43: 4060 | E43: 4322 | F43: 4236 | G43: 4376 | H43: 4319 | I43: 4663 | J43: 4310 | K43: 4291 | L43: 4274 | M43: 4006 | N43: 3976 | O43: 3859 | P43: 3750 | Q43: 3607 | R43: 3507 | S43: 3365 | T43: 3329 | U43: 3280 | V43: 3169 | W43: 3170 | X43: 3307 | Y43: 3339 | Z43: 3520 | AA43: 3947 | AB43: 2902 | AC43: 2869 | AD43: 2750 | AE43: 2695 | AF43: 2454 | AG43: 2175 | AH43: 2316 | AI43: 2266 | AJ43: 2225 | AK43: 2058 | AL43: 1963 | AM43: 1889 | AN43: 1644 | AO43: 1627 | AP43: 1545 | AQ43: 1405 | AR43: 1261 | AS43: 1099 | AT43: 980 | AU43: 829 | AV43: 736 | AW43: 2673
A44: E08000008 | B44: Tameside | C44: 97661 | D44: 3230 | E44: 3259 | F44: 3367 | G44: 3396 | H44: 3475 | I44: 3454 | J44: 3412 | K44: 3284 | L44: 3311 | M44: 3253 | N44: 2876 | O44: 2898 | P44: 2854 | Q44: 2711 | R44: 2546 | S44: 2357 | T44: 2382 | U44: 2493 | V44: 2389 | W44: 2371 | X44: 2429 | Y44: 2491 | Z44: 2732 | AA44: 2980 | AB44: 2119 | AC44: 2088 | AD44: 2018 | AE44: 1982 | AF44: 1706 | AG44: 1516 | AH44: 1632 | AI44: 1416 | AJ44: 1543 | AK44: 1351 | AL44: 1246 | AM44: 1151 | AN44: 1019 | AO44: 954 | AP44: 874 | AQ44: 823 | AR44: 740 | AS44: 588 | AT44: 516 | AU44: 437 | AV44: 403 | AW44: 1589
A45: E08000009 | B45: Trafford | C45: 100939 | D45: 3562 | E45: 3574 | F45: 3534 | G45: 3472 | H45: 3616 | I45: 3642 | J45: 3650 | K45: 3586 | L45: 3375 | M45: 3091 | N45: 3001 | O45: 2946 | P45: 2947 | Q45: 2707 | R45: 2607 | S45: 2531 | T45: 2403 | U45: 2318 | V45: 2302 | W45: 2356 | X45: 2388 | Y45: 2310 | Z45: 2513 | AA45: 2556 | AB45: 1962 | AC45: 1948 | AD45: 2001 | AE45: 1836 | AF45: 1550 | AG45: 1478 | AH45: 1614 | AI45: 1617 | AJ45: 1532 | AK45: 1445 | AL45: 1430 | AM45: 1295 | AN45: 1269 | AO45: 1092 | AP45: 1084 | AQ45: 1022 | AR45: 1017 | AS45: 827 | AT45: 727 | AU45: 631 | AV45: 517 | AW45: 2058
A46: E08000010 | B46: Wigan | C46: 146415 | D46: 5045 | E46: 5108 | F46: 5015 | G46: 5095 | H46: 5103 | I46: 4966 | J46: 5058 | K46: 4760 | L46: 4716 | M46: 4531 | N46: 4190 | O46: 4120 | P46: 4089 | Q46: 3812 | R46: 3632 | S46: 3514 | T46: 3643 | U46: 3554 | V46: 3510 | W46: 3590 | X46: 3843 | Y46: 4019 | Z46: 4232 | AA46: 4657 | AB46: 3389 | AC46: 3431 | AD46: 3334 | AE46: 3242 | AF46: 2885 | AG46: 2453 | AH46: 2528 | AI46: 2393 | AJ46: 2199 | AK46: 2004 | AL46: 1822 | AM46: 1760 | AN46: 1484 | AO46: 1341 | AP46: 1257 | AQ46: 1229 | AR46: 970 | AS46: 840 | AT46: 778 | AU46: 683 | AV46: 565 | AW46: 2026
A47: E10000017 | B47: Lancashire | C47: 554419 | D47: 16610 | E47: 17292 | F47: 17317 | G47: 17279 | H47: 17198 | I47: 17696 | J47: 17299 | K47: 17373 | L47: 17277 | M47: 16492 | N47: 16028 | O47: 15281 | P47: 15302 | Q47: 15079 | R47: 14311 | S47: 13851 | T47: 13900 | U47: 14028 | V47: 13469 | W47: 13900 | X47: 14244 | Y47: 14905 | Z47: 15916 | AA47: 17149 | AB47: 12962 | AC47: 12552 | AD47: 12502 | AE47: 11653 | AF47: 10508 | AG47: 9558 | AH47: 9519 | AI47: 9291 | AJ47: 8921 | AK47: 8401 | AL47: 7949 | AM47: 7392 | AN47: 6775 | AO47: 6135 | AP47: 5858 | AQ47: 5442 | AR47: 4925 | AS47: 4272 | AT47: 3808 | AU47: 3253 | AV47: 2753 | AW47: 10794
A48: E07000117 | B48: Burnley | C48: 38276 | D48: 1163 | E48: 1299 | F48: 1205 | G48: 1261 | H48: 1214 | I48: 1167 | J48: 1191 | K48: 1243 | L48: 1128 | M48: 1221 | N48: 1100 | O48: 1090 | P48: 1165 | Q48: 1079 | R48: 1040 | S48: 994 | T48: 984 | U48: 1007 | V48: 941 | W48: 951 | X48: 997 | Y48: 1107 | Z48: 1160 | AA48: 1217 | AB48: 896 | AC48: 811 | AD48: 818 | AE48: 749 | AF48: 710 | AG48: 635 | AH48: 602 | AI48: 562 | AJ48: 586 | AK48: 536 | AL48: 501 | AM48: 442 | AN48: 394 | AO48: 396 | AP48: 352 | AQ48: 367 | AR48: 311 | AS48: 299 | AT48: 237 | AU48: 214 | AV48: 173 | AW48: 761
A49: E07000118 | B49: Chorley | C49: 52658 | D49: 1694 | E49: 1742 | F49: 1799 | G49: 1709 | H49: 1687 | I49: 1805 | J49: 1790 | K49: 1740 | L49: 1618 | M49: 1621 | N49: 1518 | O49: 1469 | P49: 1487 | Q49: 1452 | R49: 1313 | S49: 1285 | T49: 1407 | U49: 1309 | V49: 1297 | W49: 1334 | X49: 1404 | Y49: 1445 | Z49: 1613 | AA49: 1743 | AB49: 1259 | AC49: 1224 | AD49: 1177 | AE49: 1162 | AF49: 947 | AG49: 916 | AH49: 893 | AI49: 817 | AJ49: 795 | AK49: 683 | AL49: 605 | AM49: 610 | AN49: 555 | AO49: 504 | AP49: 508 | AQ49: 400 | AR49: 382 | AS49: 297 | AT49: 273 | AU49: 239 | AV49: 258 | AW49: 873
A50: E07000119 | B50: Fylde | C50: 43194 | D50: 1063 | E50: 1097 | F50: 1205 | G50: 1199 | H50: 1224 | I50: 1256 | J50: 1176 | K50: 1265 | L50: 1258 | M50: 1214 | N50: 1205 | O50: 1100 | P50: 1070 | Q50: 1186 | R50: 1061 | S50: 1024 | T50: 1064 | U50: 1074 | V50: 972 | W50: 1033 | X50: 1111 | Y50: 1116 | Z50: 1296 | AA50: 1357 | AB50: 1058 | AC50: 1118 | AD50: 1027 | AE50: 979 | AF50: 903 | AG50: 773 | AH50: 838 | AI50: 802 | AJ50: 735 | AK50: 746 | AL50: 686 | AM50: 671 | AN50: 646 | AO50: 576 | AP50: 547 | AQ50: 524 | AR50: 479 | AS50: 410 | AT50: 426 | AU50: 301 | AV50: 269 | AW50: 1054
A51: E07000120 | B51: Hyndburn | C51: 34820 | D51: 1184 | E51: 1222 | F51: 1190 | G51: 1140 | H51: 1120 | I51: 1110 | J51: 1154 | K51: 1070 | L51: 1128 | M51: 997 | N51: 1031 | O51: 938 | P51: 941 | Q51: 955 | R51: 962 | S51: 809 | T51: 877 | U51: 872 | V51: 863 | W51: 909 | X51: 834 | Y51: 980 | Z51: 1018 | AA51: 1028 | AB51: 803 | AC51: 820 | AD51: 794 | AE51: 703 | AF51: 666 | AG51: 573 | AH51: 563 | AI51: 534 | AJ51: 520 | AK51: 497 | AL51: 485 | AM51: 429 | AN51: 418 | AO51: 330 | AP51: 343 | AQ51: 342 | AR51: 268 | AS51: 242 | AT51: 227 | AU51: 199 | AV51: 148 | AW51: 584
A52: E07000121 | B52: Lancaster | C52: 63034 | D52: 1813 | E52: 1905 | F52: 1860 | G52: 1911 | H52: 1890 | I52: 2033 | J52: 1900 | K52: 1891 | L52: 1965 | M52: 1831 | N52: 1834 | O52: 1769 | P52: 1703 | Q52: 1632 | R52: 1582 | S52: 1605 | T52: 1555 | U52: 1529 | V52: 1537 | W52: 1611 | X52: 1616 | Y52: 1673 | Z52: 1706 | AA52: 1968 | AB52: 1522 | AC52: 1429 | AD52: 1378 | AE52: 1338 | AF52: 1266 | AG52: 1070 | AH52: 1122 | AI52: 1098 | AJ52: 1076 | AK52: 1000 | AL52: 976 | AM52: 825 | AN52: 810 | AO52: 808 | AP52: 692 | AQ52: 670 | AR52: 567 | AS52: 526 | AT52: 433 | AU52: 442 | AV52: 318 | AW52: 1349
A53: E07000122 | B53: Pendle | C53: 38813 | D53: 1187 | E53: 1210 | F53: 1239 | G53: 1230 | H53: 1125 | I53: 1179 | J53: 1169 | K53: 1199 | L53: 1236 | M53: 1146 | N53: 1124 | O53: 1106 | P53: 1136 | Q53: 1145 | R53: 1041 | S53: 1038 | T53: 1004 | U53: 1058 | V53: 1015 | W53: 1082 | X53: 1086 | Y53: 1071 | Z53: 1123 | AA53: 1258 | AB53: 854 | AC53: 888 | AD53: 878 | AE53: 773 | AF53: 668 | AG53: 650 | AH53: 568 | AI53: 609 | AJ53: 553 | AK53: 575 | AL53: 509 | AM53: 483 | AN53: 429 | AO53: 408 | AP53: 391 | AQ53: 337 | AR53: 363 | AS53: 278 | AT53: 276 | AU53: 228 | AV53: 184 | AW53: 704
A54: E07000123 | B54: Preston | C54: 53700 | D54: 1913 | E54: 1877 | F54: 1950 | G54: 1880 | H54: 1831 | I54: 1875 | J54: 1862 | K54: 1915 | L54: 1927 | M54: 1763 | N54: 1679 | O54: 1570 | P54: 1521 | Q54: 1536 | R54: 1484 | S54: 1341 | T54: 1309 | U54: 1367 | V54: 1279 | W54: 1314 | X54: 1270 | Y54: 1307 | Z54: 1309 | AA54: 1355 | AB54: 1016 | AC54: 979 | AD54: 1017 | AE54: 972 | AF54: 868 | AG54: 820 | AH54: 841 | AI54: 820 | AJ54: 851 | AK54: 729 | AL54: 715 | AM54: 712 | AN54: 651 | AO54: 584 | AP54: 556 | AQ54: 499 | AR54: 454 | AS54: 371 | AT54: 332 | AU54: 256 | AV54: 280 | AW54: 943
A55: E07000124 | B55: Ribble Valley | C55: 30894 | D55: 941 | E55: 953 | F55: 945 | G55: 954 | H55: 906 | I55: 1052 | J55: 981 | K55: 966 | L55: 1012 | M55: 908 | N55: 864 | O55: 845 | P55: 843 | Q55: 879 | R55: 790 | S55: 778 | T55: 734 | U55: 756 | V55: 733 | W55: 715 | X55: 774 | Y55: 857 | Z55: 907 | AA55: 934 | AB55: 804 | AC55: 731 | AD55: 700 | AE55: 631 | AF55: 575 | AG55: 551 | AH55: 530 | AI55: 511 | AJ55: 470 | AK55: 435 | AL55: 458 | AM55: 399 | AN55: 376 | AO55: 360 | AP55: 349 | AQ55: 279 | AR55: 288 | AS55: 215 | AT55: 228 | AU55: 189 | AV55: 158 | AW55: 630
A56: E07000125 | B56: Rossendale | C56: 31780 | D56: 1037 | E56: 1139 | F56: 1143 | G56: 1076 | H56: 1049 | I56: 1093 | J56: 1049 | K56: 1057 | L56: 1029 | M56: 999 | N56: 995 | O56: 964 | P56: 888 | Q56: 918 | R56: 828 | S56: 859 | T56: 898 | U56: 897 | V56: 793 | W56: 808 | X56: 850 | Y56: 853 | Z56: 984 | AA56: 987 | AB56: 688 | AC56: 660 | AD56: 677 | AE56: 609 | AF56: 518 | AG56: 460 | AH56: 425 | AI56: 437 | AJ56: 429 | AK56: 374 | AL56: 392 | AM56: 349 | AN56: 329 | AO56: 255 | AP56: 285 | AQ56: 250 | AR56: 253 | AS56: 188 | AT56: 164 | AU56: 173 | AV56: 120 | AW56: 552
A57: E07000126 | B57: South Ribble | C57: 52469 | D57: 1529 | E57: 1670 | F57: 1685 | G57: 1684 | H57: 1721 | I57: 1691 | J57: 1742 | K57: 1694 | L57: 1648 | M57: 1562 | N57: 1447 | O57: 1453 | P57: 1434 | Q57: 1337 | R57: 1407 | S57: 1265 | T57: 1352 | U57: 1272 | V57: 1321 | W57: 1270 | X57: 1413 | Y57: 1378 | Z57: 1464 | AA57: 1656 | AB57: 1206 | AC57: 1211 | AD57: 1228 | AE57: 1081 | AF57: 977 | AG57: 911 | AH57: 933 | AI57: 918 | AJ57: 819 | AK57: 800 | AL57: 743 | AM57: 730 | AN57: 580 | AO57: 527 | AP57: 495 | AQ57: 513 | AR57: 457 | AS57: 422 | AT57: 325 | AU57: 285 | AV57: 263 | AW57: 950
A58: E07000127 | B58: West Lancashire | C58: 54689 | D58: 1589 | E58: 1633 | F58: 1604 | G58: 1578 | H58: 1806 | I58: 1731 | J58: 1668 | K58: 1697 | L58: 1692 | M58: 1600 | N58: 1576 | O58: 1480 | P58: 1546 | Q58: 1475 | R58: 1394 | S58: 1357 | T58: 1320 | U58: 1418 | V58: 1325 | W58: 1390 | X58: 1386 | Y58: 1466 | Z58: 1624 | AA58: 1666 | AB58: 1327 | AC58: 1254 | AD58: 1283 | AE58: 1215 | AF58: 1090 | AG58: 995 | AH58: 943 | AI58: 977 | AJ58: 928 | AK58: 917 | AL58: 844 | AM58: 777 | AN58: 685 | AO58: 591 | AP58: 559 | AQ58: 503 | AR58: 467 | AS58: 433 | AT58: 369 | AU58: 285 | AV58: 236 | AW58: 990
A59: E07000128 | B59: Wyre | C59: 60092 | D59: 1497 | E59: 1545 | F59: 1492 | G59: 1657 | H59: 1625 | I59: 1704 | J59: 1617 | K59: 1636 | L59: 1636 | M59: 1630 | N59: 1655 | O59: 1497 | P59: 1568 | Q59: 1485 | R59: 1409 | S59: 1496 | T59: 1396 | U59: 1469 | V59: 1393 | W59: 1483 | X59: 1503 | Y59: 1652 | Z59: 1712 | AA59: 1980 | AB59: 1529 | AC59: 1427 | AD59: 1525 | AE59: 1441 | AF59: 1320 | AG59: 1204 | AH59: 1261 | AI59: 1206 | AJ59: 1159 | AK59: 1109 | AL59: 1035 | AM59: 965 | AN59: 902 | AO59: 796 | AP59: 781 | AQ59: 758 | AR59: 636 | AS59: 591 | AT59: 518 | AU59: 442 | AV59: 346 | AW59: 1404
A60: E11000002 | B60: Merseyside (Met County) | C60: 625911 | D60: 18647 | E60: 19035 | F60: 18791 | G60: 19327 | H60: 19204 | I60: 20412 | J60: 20555 | K60: 20346 | L60: 20287 | M60: 19842 | N60: 19017 | O60: 18434 | P60: 18325 | Q60: 17888 | R60: 16952 | S60: 16205 | T60: 16457 | U60: 16078 | V60: 15495 | W60: 15731 | X60: 15468 | Y60: 15697 | Z60: 16440 | AA60: 17932 | AB60: 13500 | AC60: 12520 | AD60: 12917 | AE60: 12118 | AF60: 11085 | AG60: 10399 | AH60: 10541 | AI60: 10475 | AJ60: 10295 | AK60: 9629 | AL60: 9331 | AM60: 8710 | AN60: 8044 | AO60: 7260 | AP60: 7052 | AQ60: 6534 | AR60: 5671 | AS60: 5053 | AT60: 4279 | AU60: 3634 | AV60: 3058 | AW60: 11241
A61: E08000011 | B61: Knowsley | C61: 65454 | D61: 2015 | E61: 2026 | F61: 2005 | G61: 2119 | H61: 2111 | I61: 2305 | J61: 2312 | K61: 2285 | L61: 2393 | M61: 2264 | N61: 2184 | O61: 2100 | P61: 2121 | Q61: 2151 | R61: 1827 | S61: 1831 | T61: 1804 | U61: 1755 | V61: 1565 | W61: 1637 | X61: 1528 | Y61: 1528 | Z61: 1553 | AA61: 1636 | AB61: 1246 | AC61: 1171 | AD61: 1191 | AE61: 1083 | AF61: 1014 | AG61: 990 | AH61: 1028 | AI61: 1011 | AJ61: 1022 | AK61: 981 | AL61: 976 | AM61: 896 | AN61: 807 | AO61: 707 | AP61: 701 | AQ61: 684 | AR61: 535 | AS61: 449 | AT61: 429 | AU61: 340 | AV61: 266 | AW61: 872
A62: E08000012 | B62: Liverpool | C62: 182259 | D62: 6002 | E62: 6061 | F62: 5861 | G62: 6010 | H62: 5942 | I62: 6140 | J62: 6220 | K62: 6339 | L62: 6328 | M62: 5973 | N62: 5825 | O62: 5630 | P62: 5580 | Q62: 5410 | R62: 5240 | S62: 4860 | T62: 4860 | U62: 4760 | V62: 4651 | W62: 4528 | X62: 4439 | Y62: 4391 | Z62: 4520 | AA62: 4846 | AB62: 3668 | AC62: 3260 | AD62: 3384 | AE62: 3230 | AF62: 2833 | AG62: 2790 | AH62: 2854 | AI62: 2900 | AJ62: 2763 | AK62: 2635 | AL62: 2636 | AM62: 2422 | AN62: 2185 | AO62: 2014 | AP62: 1927 | AQ62: 1739 | AR62: 1516 | AS62: 1404 | AT62: 1096 | AU62: 968 | AV62: 804 | AW62: 2815
A63: E08000014 | B63: Sefton | C63: 139399 | D63: 3645 | E63: 3806 | F63: 3771 | G63: 3971 | H63: 3934 | I63: 4269 | J63: 4412 | K63: 4307 | L63: 4221 | M63: 4369 | N63: 4091 | O63: 3928 | P63: 3995 | Q63: 3849 | R63: 3751 | S63: 3526 | T63: 3644 | U63: 3381 | V63: 3340 | W63: 3380 | X63: 3349 | Y63: 3462 | Z63: 3666 | AA63: 4145 | AB63: 3074 | AC63: 2863 | AD63: 3059 | AE63: 2854 | AF63: 2670 | AG63: 2538 | AH63: 2455 | AI63: 2434 | AJ63: 2558 | AK63: 2399 | AL63: 2224 | AM63: 2130 | AN63: 2054 | AO63: 1862 | AP63: 1783 | AQ63: 1684 | AR63: 1466 | AS63: 1236 | AT63: 1081 | AU63: 950 | AV63: 778 | AW63: 3035
A64: E08000013 | B64: St. Helens | C64: 83364 | D64: 2552 | E64: 2560 | F64: 2552 | G64: 2576 | H64: 2612 | I64: 2755 | J64: 2695 | K64: 2515 | L64: 2557 | M64: 2544 | N64: 2386 | O64: 2349 | P64: 2266 | Q64: 2257 | R64: 2174 | S64: 2057 | T64: 2169 | U64: 2111 | V64: 2052 | W64: 2241 | X64: 2151 | Y64: 2200 | Z64: 2415 | AA64: 2671 | AB64: 1989 | AC64: 1863 | AD64: 1899 | AE64: 1775 | AF64: 1634 | AG64: 1452 | AH64: 1424 | AI64: 1517 | AJ64: 1447 | AK64: 1334 | AL64: 1208 | AM64: 1159 | AN64: 991 | AO64: 892 | AP64: 823 | AQ64: 767 | AR64: 673 | AS64: 562 | AT64: 509 | AU64: 421 | AV64: 343 | AW64: 1265
A65: E08000015 | B65: Wirral | C65: 155435 | D65: 4433 | E65: 4582 | F65: 4602 | G65: 4651 | H65: 4605 | I65: 4943 | J65: 4916 | K65: 4900 | L65: 4788 | M65: 4692 | N65: 4531 | O65: 4427 | P65: 4363 | Q65: 4221 | R65: 3960 | S65: 3931 | T65: 3980 | U65: 4071 | V65: 3887 | W65: 3945 | X65: 4001 | Y65: 4116 | Z65: 4286 | AA65: 4634 | AB65: 3523 | AC65: 3363 | AD65: 3384 | AE65: 3176 | AF65: 2934 | AG65: 2629 | AH65: 2780 | AI65: 2613 | AJ65: 2505 | AK65: 2280 | AL65: 2287 | AM65: 2103 | AN65: 2007 | AO65: 1785 | AP65: 1818 | AQ65: 1660 | AR65: 1481 | AS65: 1402 | AT65: 1164 | AU65: 955 | AV65: 867 | AW65: 3254
A66: E12000003 | B66: YORKSHIRE AND THE HUMBER | C66: 2355141 | D66: 74850 | E66: 76006 | F66: 76229 | G66: 76714 | H66: 76293 | I66: 76767 | J66: 76749 | K66: 75549 | L66: 74182 | M66: 71903 | N66: 69675 | O66: 67560 | P66: 67160 | Q66: 64651 | R66: 62489 | S66: 59317 | T66: 60192 | U66: 59337 | V66: 57414 | W66: 58363 | X66: 59190 | Y66: 60649 | Z66: 64097 | AA66: 69814 | AB66: 52503 | AC66: 51535 | AD66: 50396 | AE66: 46331 | AF66: 41154 | AG66: 37684 | AH66: 39325 | AI66: 38549 | AJ66: 37767 | AK66: 35441 | AL66: 33341 | AM66: 31116 | AN66: 28579 | AO66: 26179 | AP66: 24338 | AQ66: 22725 | AR66: 20373 | AS66: 17786 | AT66: 15509 | AU66: 13705 | AV66: 11834 | AW66: 43821
A67: E06000011 | B67: East Riding of Yorkshire | C67: 180987 | D67: 4754 | E67: 5074 | F67: 5098 | G67: 4996 | H67: 5197 | I67: 5258 | J67: 5366 | K67: 5412 | L67: 5284 | M67: 5087 | N67: 4841 | O67: 4775 | P67: 4919 | Q67: 4688 | R67: 4665 | S67: 4559 | T67: 4524 | U67: 4558 | V67: 4561 | W67: 4775 | X67: 5098 | Y67: 5145 | Z67: 5569 | AA67: 6345 | AB67: 4648 | AC67: 4346 | AD67: 4257 | AE67: 4012 | AF67: 3577 | AG67: 3127 | AH67: 3356 | AI67: 3291 | AJ67: 3194 | AK67: 3055 | AL67: 2765 | AM67: 2559 | AN67: 2352 | AO67: 2214 | AP67: 2040 | AQ67: 1872 | AR67: 1628 | AS67: 1419 | AT67: 1254 | AU67: 1044 | AV67: 924 | AW67: 3505
A68: E06000010 | B68: Kingston upon Hull | C68: 100148 | D68: 3223 | E68: 3374 | F68: 3358 | G68: 3516 | H68: 3421 | I68: 3450 | J68: 3502 | K68: 3522 | L68: 3542 | M68: 3337 | N68: 3247 | O68: 2985 | P68: 3004 | Q68: 2946 | R68: 2725 | S68: 2592 | T68: 2645 | U68: 2612 | V68: 2495 | W68: 2508 | X68: 2403 | Y68: 2441 | Z68: 2714 | AA68: 2780 | AB68: 2058 | AC68: 1851 | AD68: 1737 | AE68: 1805 | AF68: 1523 | AG68: 1436 | AH68: 1514 | AI68: 1562 | AJ68: 1443 | AK68: 1474 | AL68: 1358 | AM68: 1232 | AN68: 1158 | AO68: 1059 | AP68: 1001 | AQ68: 918 | AR68: 839 | AS68: 704 | AT68: 611 | AU68: 528 | AV68: 446 | AW68: 1549
A69: E06000012 | B69: North East Lincolnshire | C69: =SUM(D69:AW69) -> 73555 | D69: 2140 | E69: 2304 | F69: 2236 | G69: 2274 | H69: 2348 | I69: 2374 | J69: 2329 | K69: 2393 | L69: 2349 | M69: 2306 | N69: 2125 | O69: 2106 | P69: 2089 | Q69: 1936 | R69: 1947 | S69: 1835 | T69: 1899 | U69: 1824 | V69: 1790 | W69: 1802 | X69: 1818 | Y69: 1862 | Z69: 1989 | AA69: 2252 | AB69: 1661 | AC69: 1571 | AD69: 1530 | AE69: 1422 | AF69: 1279 | AG69: 1238 | AH69: 1282 | AI69: 1225 | AJ69: 1224 | AK69: 1190 | AL69: 1043 | AM69: 1056 | AN69: 991 | AO69: 881 | AP69: 813 | AQ69: 778 | AR69: 665 | AS69: 589 | AT69: 521 | AU69: 448 | AV69: 373 | AW69: 1448
A70: E06000013 | B70: North Lincolnshire | C70: 81592 | D70: 2465 | E70: 2552 | F70: 2444 | G70: 2528 | H70: 2572 | I70: 2643 | J70: 2618 | K70: 2575 | L70: 2498 | M70: 2473 | N70: 2412 | O70: 2330 | P70: 2335 | Q70: 2178 | R70: 2246 | S70: 2178 | T70: 2080 | U70: 2188 | V70: 2085 | W70: 2120 | X70: 2189 | Y70: 2179 | Z70: 2267 | AA70: 2447 | AB70: 1816 | AC70: 1911 | AD70: 1797 | AE70: 1645 | AF70: 1548 | AG70: 1332 | AH70: 1377 | AI70: 1344 | AJ70: 1244 | AK70: 1169 | AL70: 1134 | AM70: 1079 | AN70: 934 | AO70: 884 | AP70: 810 | AQ70: 780 | AR70: 676 | AS70: 603 | AT70: 517 | AU70: 447 | AV70: 415 | AW70: 1528
A71: E06000014 | B71: York | C71: 85942 | D71: 2753 | E71: 2729 | F71: 2691 | G71: 2729 | H71: 2615 | I71: 2753 | J71: 2888 | K71: 2624 | L71: 2685 | M71: 2587 | N71: 2411 | O71: 2322 | P71: 2392 | Q71: 2228 | R71: 2150 | S71: 2134 | T71: 2072 | U71: 2068 | V71: 2012 | W71: 2062 | X71: 2104 | Y71: 2185 | Z71: 2333 | AA71: 2567 | AB71: 1976 | AC71: 1882 | AD71: 1862 | AE71: 1691 | AF71: 1524 | AG71: 1404 | AH71: 1451 | AI71: 1447 | AJ71: 1427 | AK71: 1365 | AL71: 1321 | AM71: 1258 | AN71: 1077 | AO71: 1020 | AP71: 970 | AQ71: 940 | AR71: 810 | AS71: 704 | AT71: 661 | AU71: 609 | AV71: 509 | AW71: 1940
A72: E10000023 | B72: North Yorkshire | C72: 316497 | D72: 8572 | E72: 8822 | F72: 9078 | G72: 9399 | H72: 9354 | I72: 9778 | J72: 9637 | K72: 9684 | L72: 9477 | M72: 9286 | N72: 9129 | O72: 8774 | P72: 8567 | Q72: 8362 | R72: 8343 | S72: 7852 | T72: 8165 | U72: 7955 | V72: 7757 | W72: 8131 | X72: 8083 | Y72: 8611 | Z72: 9086 | AA72: 10117 | AB72: 7621 | AC72: 7679 | AD72: 7432 | AE72: 6723 | AF72: 5991 | AG72: 5331 | AH72: 5541 | AI72: 5694 | AJ72: 5415 | AK72: 4898 | AL72: 4811 | AM72: 4374 | AN72: 4018 | AO72: 3728 | AP72: 3458 | AQ72: 3343 | AR72: 2903 | AS72: 2673 | AT72: 2359 | AU72: 1976 | AV72: 1841 | AW72: 6669
A73: E07000163 | B73: Craven | C73: 31273 | D73: 840 | E73: 821 | F73: 858 | G73: 874 | H73: 880 | I73: 865 | J73: 881 | K73: 863 | L73: 930 | M73: 850 | N73: 912 | O73: 802 | P73: 827 | Q73: 854 | R73: 850 | S73: 788 | T73: 851 | U73: 825 | V73: 786 | W73: 791 | X73: 793 | Y73: 883 | Z73: 970 | AA73: 967 | AB73: 732 | AC73: 781 | AD73: 762 | AE73: 702 | AF73: 640 | AG73: 531 | AH73: 520 | AI73: 564 | AJ73: 493 | AK73: 472 | AL73: 493 | AM73: 461 | AN73: 389 | AO73: 388 | AP73: 369 | AQ73: 369 | AR73: 286 | AS73: 293 | AT73: 269 | AU73: 188 | AV73: 208 | AW73: 802
A74: E07000164 | B74: Hambleton | C74: 49148 | D74: 1243 | E74: 1343 | F74: 1462 | G74: 1340 | H74: 1477 | I74: 1591 | J74: 1477 | K74: 1544 | L74: 1446 | M74: 1475 | N74: 1402 | O74: 1286 | P74: 1279 | Q74: 1225 | R74: 1260 | S74: 1141 | T74: 1222 | U74: 1287 | V74: 1219 | W74: 1283 | X74: 1269 | Y74: 1294 | Z74: 1452 | AA74: 1554 | AB74: 1210 | AC74: 1238 | AD74: 1226 | AE74: 1073 | AF74: 966 | AG74: 824 | AH74: 951 | AI74: 904 | AJ74: 884 | AK74: 788 | AL74: 749 | AM74: 677 | AN74: 656 | AO74: 592 | AP74: 515 | AQ74: 552 | AR74: 435 | AS74: 438 | AT74: 354 | AU74: 306 | AV74: 290 | AW74: 949
A75: E07000165 | B75: Harrogate | C75: 80899 | D75: 2384 | E75: 2416 | F75: 2429 | G75: 2652 | H75: 2530 | I75: 2672 | J75: 2615 | K75: 2555 | L75: 2479 | M75: 2406 | N75: 2321 | O75: 2271 | P75: 2204 | Q75: 2139 | R75: 2109 | S75: 2003 | T75: 1958 | U75: 1860 | V75: 1853 | W75: 1894 | X75: 1906 | Y75: 2043 | Z75: 2157 | AA75: 2470 | AB75: 1832 | AC75: 1856 | AD75: 1771 | AE75: 1562 | AF75: 1450 | AG75: 1354 | AH75: 1403 | AI75: 1431 | AJ75: 1422 | AK75: 1250 | AL75: 1246 | AM75: 1099 | AN75: 1037 | AO75: 954 | AP75: 929 | AQ75: 851 | AR75: 752 | AS75: 683 | AT75: 651 | AU75: 560 | AV75: 530 | AW75: 1950
A76: E07000166 | B76: Richmondshire | C76: 24490 | D76: 761 | E76: 742 | F76: 737 | G76: 772 | H76: 707 | I76: 796 | J76: 705 | K76: 762 | L76: 745 | M76: 744 | N76: 716 | O76: 709 | P76: 700 | Q76: 677 | R76: 660 | S76: 644 | T76: 586 | U76: 656 | V76: 595 | W76: 651 | X76: 593 | Y76: 717 | Z76: 714 | AA76: 797 | AB76: 595 | AC76: 566 | AD76: 568 | AE76: 498 | AF76: 459 | AG76: 412 | AH76: 406 | AI76: 438 | AJ76: 422 | AK76: 366 | AL76: 355 | AM76: 343 | AN76: 310 | AO76: 264 | AP76: 215 | AQ76: 227 | AR76: 199 | AS76: 179 | AT76: 145 | AU76: 119 | AV76: 111 | AW76: 407
A77: E07000167 | B77: Ryedale | C77: 29803 | D77: 695 | E77: 747 | F77: 799 | G77: 833 | H77: 843 | I77: 831 | J77: 882 | K77: 834 | L77: 869 | M77: 821 | N77: 811 | O77: 799 | P77: 780 | Q77: 820 | R77: 794 | S77: 767 | T77: 804 | U77: 770 | V77: 748 | W77: 807 | X77: 844 | Y77: 824 | Z77: 898 | AA77: 973 | AB77: 755 | AC77: 795 | AD77: 764 | AE77: 664 | AF77: 602 | AG77: 488 | AH77: 540 | AI77: 570 | AJ77: 490 | AK77: 485 | AL77: 434 | AM77: 443 | AN77: 408 | AO77: 390 | AP77: 317 | AQ77: 328 | AR77: 283 | AS77: 269 | AT77: 229 | AU77: 190 | AV77: 159 | AW77: 607
A78: E07000168 | B78: Scarborough | C78: 58898 | D78: 1307 | E78: 1399 | F78: 1434 | G78: 1564 | H78: 1478 | I78: 1566 | J78: 1668 | K78: 1713 | L78: 1635 | M78: 1646 | N78: 1652 | O78: 1597 | P78: 1574 | Q78: 1521 | R78: 1555 | S78: 1431 | T78: 1597 | U78: 1532 | V78: 1551 | W78: 1604 | X78: 1571 | Y78: 1701 | Z78: 1752 | AA78: 2053 | AB78: 1547 | AC78: 1488 | AD78: 1459 | AE78: 1358 | AF78: 1138 | AG78: 1127 | AH78: 1094 | AI78: 1166 | AJ78: 1106 | AK78: 971 | AL78: 959 | AM78: 869 | AN78: 809 | AO78: 766 | AP78: 691 | AQ78: 651 | AR78: 627 | AS78: 515 | AT78: 453 | AU78: 415 | AV78: 351 | AW78: 1237
A79: E07000169 | B79: Selby | C79: 41986 | D79: 1342 | E79: 1354 | F79: 1359 | G79: 1364 | H79: 1439 | I79: 1457 | J79: 1409 | K79: 1413 | L79: 1373 | M79: 1344 | N79: 1315 | O79: 1310 | P79: 1203 | Q79: 1126 | R79: 1115 | S79: 1078 | T79: 1147 | U79: 1025 | V79: 1005 | W79: 1101 | X79: 1107 | Y79: 1149 | Z79: 1143 | AA79: 1303 | AB79: 950 | AC79: 955 | AD79: 882 | AE79: 866 | AF79: 736 | AG79: 595 | AH79: 627 | AI79: 621 | AJ79: 598 | AK79: 566 | AL79: 575 | AM79: 482 | AN79: 409 | AO79: 374 | AP79: 422 | AQ79: 365 | AR79: 321 | AS79: 296 | AT79: 258 | AU79: 198 | AV79: 192 | AW79: 717
A80: E11000003 | B80: South Yorkshire (Met County) | C80: 590538 | D80: 19197 | E80: 19515 | F80: 19676 | G80: 19630 | H80: 19515 | I80: 19269 | J80: 19192 | K80: 18964 | L80: 18594 | M80: 18129 | N80: 17591 | O80: 17026 | P80: 16991 | Q80: 16291 | R80: 15571 | S80: 14772 | T80: 14938 | U80: 14715 | V80: 14084 | W80: 14256 | X80: 14296 | Y80: 14734 | Z80: 15506 | AA80: 16695 | AB80: 13119 | AC80: 13376 | AD80: 13051 | AE80: 11509 | AF80: 10396 | AG80: 9743 | AH80: 9992 | AI80: 9779 | AJ80: 9489 | AK80: 8816 | AL80: 8370 | AM80: 7823 | AN80: 7188 | AO80: 6591 | AP80: 6026 | AQ80: 5620 | AR80: 5152 | AS80: 4352 | AT80: 3843 | AU80: 3319 | AV80: 2916 | AW80: 10921
A81: E08000016 | B81: Barnsley | C81: 110796 | D81: 3454 | E81: 3644 | F81: 3731 | G81: 3721 | H81: 3686 | I81: 3721 | J81: 3603 | K81: 3516 | L81: 3491 | M81: 3448 | N81: 3284 | O81: 3299 | P81: 3200 | Q81: 3177 | R81: 2986 | S81: 2760 | T81: 2931 | U81: 2835 | V81: 2752 | W81: 2746 | X81: 2719 | Y81: 2847 | Z81: 2932 | AA81: 3142 | AB81: 2567 | AC81: 2594 | AD81: 2466 | AE81: 2281 | AF81: 1895 | AG81: 1884 | AH81: 1803 | AI81: 1752 | AJ81: 1710 | AK81: 1578 | AL81: 1485 | AM81: 1359 | AN81: 1258 | AO81: 1249 | AP81: 1007 | AQ81: 1019 | AR81: 932 | AS81: 699 | AT81: 741 | AU81: 545 | AV81: 530 | AW81: 1817
A82: E08000017 | B82: Doncaster | C82: 137722 | D82: 4152 | E82: 4254 | F82: 4305 | G82: 4400 | H82: 4457 | I82: 4448 | J82: 4643 | K82: 4517 | L82: 4367 | M82: 4248 | N82: 4206 | O82: 4048 | P82: 4134 | Q82: 3924 | R82: 3804 | S82: 3608 | T82: 3591 | U82: 3534 | V82: 3434 | W82: 3475 | X82: 3388 | Y82: 3587 | Z82: 3695 | AA82: 3958 | AB82: 2999 | AC82: 3000 | AD82: 2967 | AE82: 2577 | AF82: 2376 | AG82: 2247 | AH82: 2269 | AI82: 2261 | AJ82: 2117 | AK82: 2068 | AL82: 1937 | AM82: 1836 | AN82: 1652 | AO82: 1558 | AP82: 1474 | AQ82: 1295 | AR82: 1177 | AS82: 1058 | AT82: 881 | AU82: 736 | AV82: 627 | AW82: 2433
A83: E08000018 | B83: Rotherham | C83: 120094 | D83: 3848 | E83: 3825 | F83: 3932 | G83: 3858 | H83: 3907 | I83: 3897 | J83: 3901 | K83: 3839 | L83: 3714 | M83: 3727 | N83: 3575 | O83: 3436 | P83: 3535 | Q83: 3288 | R83: 3223 | S83: 3022 | T83: 3099 | U83: 3013 | V83: 2855 | W83: 2975 | X83: 3074 | Y83: 3047 | Z83: 3234 | AA83: 3497 | AB83: 2725 | AC83: 2982 | AD83: 2708 | AE83: 2340 | AF83: 2219 | AG83: 2011 | AH83: 2090 | AI83: 2030 | AJ83: 2002 | AK83: 1750 | AL83: 1667 | AM83: 1527 | AN83: 1403 | AO83: 1265 | AP83: 1167 | AQ83: 1117 | AR83: 906 | AS83: 836 | AT83: 695 | AU83: 674 | AV83: 586 | AW83: 2073
A84: E08000019 | B84: Sheffield | C84: 221926 | D84: 7743 | E84: 7792 | F84: 7708 | G84: 7651 | H84: 7465 | I84: 7203 | J84: 7045 | K84: 7092 | L84: 7022 | M84: 6706 | N84: 6526 | O84: 6243 | P84: 6122 | Q84: 5902 | R84: 5558 | S84: 5382 | T84: 5317 | U84: 5333 | V84: 5043 | W84: 5060 | X84: 5115 | Y84: 5253 | Z84: 5645 | AA84: 6098 | AB84: 4828 | AC84: 4800 | AD84: 4910 | AE84: 4311 | AF84: 3906 | AG84: 3601 | AH84: 3830 | AI84: 3736 | AJ84: 3660 | AK84: 3420 | AL84: 3281 | AM84: 3101 | AN84: 2875 | AO84: 2519 | AP84: 2378 | AQ84: 2189 | AR84: 2137 | AS84: 1759 | AT84: 1526 | AU84: 1364 | AV84: 1173 | AW84: 4598
A85: E11000006 | B85: West Yorkshire (Met County) | C85: 925882 | D85: 31746 | E85: 31636 | F85: 31648 | G85: 31642 | H85: 31271 | I85: 31242 | J85: 31217 | K85: 30375 | L85: 29753 | M85: 28698 | N85: 27919 | O85: 27242 | P85: 26863 | Q85: 26022 | R85: 24842 | S85: 23395 | T85: 23869 | U85: 23417 | V85: 22630 | W85: 22709 | X85: 23199 | Y85: 23492 | Z85: 24633 | AA85: 26611 | AB85: 19604 | AC85: 18919 | AD85: 18730 | AE85: 17524 | AF85: 15316 | AG85: 14073 | AH85: 14812 | AI85: 14207 | AJ85: 14331 | AK85: 13474 | AL85: 12539 | AM85: 11735 | AN85: 10861 | AO85: 9802 | AP85: 9220 | AQ85: 8474 | AR85: 7700 | AS85: 6742 | AT85: 5743 | AU85: 5334 | AV85: 4410 | AW85: 16261
A86: E08000032 | B86: Bradford | C86: 199568 | D86: 7100 | E86: 6986 | F86: 6846 | G86: 6947 | H86: 6663 | I86: 6740 | J86: 6852 | K86: 6550 | L86: 6541 | M86: 6438 | N86: 6355 | O86: 6016 | P86: 6123 | Q86: 5860 | R86: 5681 | S86: 5304 | T86: 5360 | U86: 5250 | V86: 5044 | W86: 4824 | X86: 4910 | Y86: 4840 | Z86: 5123 | AA86: 5450 | AB86: 3791 | AC86: 3545 | AD86: 3643 | AE86: 3358 | AF86: 3042 | AG86: 2904 | AH86: 3131 | AI86: 2895 | AJ86: 2985 | AK86: 2899 | AL86: 2640 | AM86: 2537 | AN86: 2388 | AO86: 2073 | AP86: 2008 | AQ86: 1867 | AR86: 1658 | AS86: 1434 | AT86: 1231 | AU86: 1130 | AV86: 947 | AW86: 3659
A87: E08000033 | B87: Calderdale | C87: 94626 | D87: 3255 | E87: 3121 | F87: 3286 | G87: 3154 | H87: 3215 | I87: 3246 | J87: 3284 | K87: 3175 | L87: 3132 | M87: 2922 | N87: 2878 | O87: 2783 | P87: 2787 | Q87: 2678 | R87: 2664 | S87: 2405 | T87: 2458 | U87: 2375 | V87: 2257 | W87: 2393 | X87: 2457 | Y87: 2475 | Z87: 2603 | AA87: 2746 | AB87: 2063 | AC87: 2014 | AD87: 1995 | AE87: 1835 | AF87: 1535 | AG87: 1430 | AH87: 1464 | AI87: 1374 | AJ87: 1366 | AK87: 1295 | AL87: 1168 | AM87: 1053 | AN87: 996 | AO87: 915 | AP87: 915 | AQ87: 844 | AR87: 707 | AS87: 663 | AT87: 555 | AU87: 543 | AV87: 457 | AW87: 1690
A88: E08000034 | B88: Kirklees | C88: 182853 | D88: 6335 | E88: 6377 | F88: 6341 | G88: 6155 | H88: 6171 | I88: 6076 | J88: 6046 | K88: 5969 | L88: 5772 | M88: 5523 | N88: 5526 | O88: 5266 | P88: 5220 | Q88: 5092 | R88: 4782 | S88: 4584 | T88: 4594 | U88: 4615 | V88: 4570 | W88: 4661 | X88: 4703 | Y88: 4749 | Z88: 5085 | AA88: 5481 | AB88: 4012 | AC88: 3944 | AD88: 3765 | AE88: 3612 | AF88: 3163 | AG88: 2786 | AH88: 2879 | AI88: 2828 | AJ88: 2872 | AK88: 2671 | AL88: 2434 | AM88: 2215 | AN88: 2081 | AO88: 1840 | AP88: 1670 | AQ88: 1603 | AR88: 1508 | AS88: 1288 | AT88: 1151 | AU88: 982 | AV88: 786 | AW88: 3070
A89: E08000035 | B89: Leeds | C89: 295301 | D89: 10024 | E89: 10074 | F89: 10065 | G89: 10166 | H89: 9977 | I89: 10193 | J89: 9936 | K89: 9753 | L89: 9481 | M89: 9015 | N89: 8579 | O89: 8599 | P89: 8261 | Q89: 8262 | R89: 7650 | S89: 7168 | T89: 7472 | U89: 7256 | V89: 7032 | W89: 7139 | X89: 7230 | Y89: 7347 | Z89: 7698 | AA89: 8420 | AB89: 6209 | AC89: 5970 | AD89: 5832 | AE89: 5642 | AF89: 4929 | AG89: 4478 | AH89: 4833 | AI89: 4667 | AJ89: 4740 | AK89: 4460 | AL89: 4298 | AM89: 4075 | AN89: 3543 | AO89: 3303 | AP89: 3170 | AQ89: 2896 | AR89: 2600 | AS89: 2335 | AT89: 1894 | AU89: 1832 | AV89: 1510 | AW89: 5288
A90: E08000036 | B90: Wakefield | C90: 153534 | D90: 5032 | E90: 5078 | F90: 5110 | G90: 5220 | H90: 5245 | I90: 4987 | J90: 5099 | K90: 4928 | L90: 4827 | M90: 4800 | N90: 4581 | O90: 4578 | P90: 4472 | Q90: 4130 | R90: 4065 | S90: 3934 | T90: 3985 | U90: 3921 | V90: 3727 | W90: 3692 | X90: 3899 | Y90: 4081 | Z90: 4124 | AA90: 4514 | AB90: 3529 | AC90: 3446 | AD90: 3495 | AE90: 3077 | AF90: 2647 | AG90: 2475 | AH90: 2505 | AI90: 2443 | AJ90: 2368 | AK90: 2149 | AL90: 1999 | AM90: 1855 | AN90: 1853 | AO90: 1671 | AP90: 1457 | AQ90: 1264 | AR90: 1227 | AS90: 1022 | AT90: 912 | AU90: 847 | AV90: 710 | AW90: 2554
A91: E12000004 | B91: EAST MIDLANDS | C91: 2109144 | D91: 64887 | E91: 68423 | F91: 67923 | G91: 68876 | H91: 69123 | I91: 69847 | J91: 68823 | K91: 67605 | L91: 65863 | M91: 64115 | N91: 61490 | O91: 59978 | P91: 58655 | Q91: 55978 | R91: 54592 | S91: 52757 | T91: 53964 | U91: 53401 | V91: 52385 | W91: 52902 | X91: 54313 | Y91: 55279 | Z91: 58754 | AA91: 63051 | AB91: 48537 | AC91: 47504 | AD91: 47921 | AE91: 43281 | AF91: 37660 | AG91: 33676 | AH91: 34412 | AI91: 34408 | AJ91: 32578 | AK91: 30439 | AL91: 28426 | AM91: 26695 | AN91: 24388 | AO91: 22794 | AP91: 21819 | AQ91: 20056 | AR91: 18047 | AS91: 15911 | AT91: 13932 | AU91: 12355 | AV91: 10753 | AW91: 40568
A92: E06000015 | B92: Derby | C92: 100396 | D92: 3405 | E92: 3592 | F92: 3551 | G92: 3520 | H92: 3518 | I92: 3503 | J92: 3506 | K92: 3322 | L92: 3320 | M92: 3052 | N92: 2906 | O92: 2875 | P92: 2741 | Q92: 2599 | R92: 2606 | S92: 2277 | T92: 2440 | U92: 2336 | V92: 2310 | W92: 2211 | X92: 2324 | Y92: 2374 | Z92: 2514 | AA92: 2638 | AB92: 2037 | AC92: 2101 | AD92: 2127 | AE92: 1798 | AF92: 1662 | AG92: 1489 | AH92: 1658 | AI92: 1587 | AJ92: 1613 | AK92: 1401 | AL92: 1451 | AM92: 1367 | AN92: 1298 | AO92: 1184 | AP92: 1098 | AQ92: 1057 | AR92: 975 | AS92: 868 | AT92: 792 | AU92: 670 | AV92: 589 | AW92: 2134
A93: E06000016 | B93: Leicester | C93: 112194 | D93: 3955 | E93: 4072 | F93: 4023 | G93: 3924 | H93: 3858 | I93: 3990 | J93: 3874 | K93: 3895 | L93: 3848 | M93: 3937 | N93: 3803 | O93: 3651 | P93: 3525 | Q93: 3343 | R93: 3299 | S93: 3189 | T93: 3168 | U93: 3079 | V93: 2939 | W93: 2768 | X93: 2708 | Y93: 2612 | Z93: 2608 | AA93: 2517 | AB93: 2013 | AC93: 1847 | AD93: 1938 | AE93: 1891 | AF93: 1506 | AG93: 1505 | AH93: 1601 | AI93: 1577 | AJ93: 1486 | AK93: 1535 | AL93: 1371 | AM93: 1272 | AN93: 1159 | AO93: 1148 | AP93: 1050 | AQ93: 937 | AR93: 956 | AS93: 783 | AT93: 733 | AU93: 627 | AV93: 573 | AW93: 2101
A94: E06000018 | B94: Nottingham | C94: 100560 | D94: 3748 | E94: 3827 | F94: 3698 | G94: 3596 | H94: 3774 | I94: 3598 | J94: 3637 | K94: 3571 | L94: 3479 | M94: 3250 | N94: 3186 | O94: 3002 | P94: 2964 | Q94: 2825 | R94: 2626 | S94: 2671 | T94: 2677 | U94: 2555 | V94: 2310 | W94: 2363 | X94: 2371 | Y94: 2250 | Z94: 2307 | AA94: 2554 | AB94: 1834 | AC94: 1753 | AD94: 1828 | AE94: 1647 | AF94: 1481 | AG94: 1407 | AH94: 1430 | AI94: 1413 | AJ94: 1468 | AK94: 1328 | AL94: 1261 | AM94: 1253 | AN94: 1164 | AO94: 1038 | AP94: 1086 | AQ94: 927 | AR94: 864 | AS94: 795 | AT94: 638 | AU94: 630 | AV94: 562 | AW94: 1914
A95: E06000017 | B95: Rutland | C95: 19489 | D95: 512 | E95: 538 | F95: 572 | G95: 576 | H95: 556 | I95: 558 | J95: 609 | K95: 478 | L95: 549 | M95: 533 | N95: 536 | O95: 497 | P95: 486 | Q95: 496 | R95: 488 | S95: 428 | T95: 482 | U95: 493 | V95: 518 | W95: 483 | X95: 526 | Y95: 537 | Z95: 577 | AA95: 616 | AB95: 497 | AC95: 504 | AD95: 498 | AE95: 464 | AF95: 409 | AG95: 385 | AH95: 317 | AI95: 379 | AJ95: 366 | AK95: 284 | AL95: 314 | AM95: 298 | AN95: 233 | AO95: 247 | AP95: 196 | AQ95: 205 | AR95: 200 | AS95: 171 | AT95: 143 | AU95: 129 | AV95: 118 | AW95: 488
A96: E10000007 | B96: Derbyshire | C96: 387212 | D96: 11646 | E96: 12304 | F96: 12446 | G96: 12764 | H96: 12796 | I96: 12695 | J96: 12413 | K96: 12363 | L96: 11731 | M96: 11509 | N96: 10955 | O96: 10992 | P96: 10753 | Q96: 10273 | R96: 10136 | S96: 9621 | T96: 9980 | U96: 9805 | V96: 9517 | W96: 9799 | X96: 10102 | Y96: 10312 | Z96: 11017 | AA96: 11990 | AB96: 9155 | AC96: 8915 | AD96: 9237 | AE96: 8263 | AF96: 7107 | AG96: 6381 | AH96: 6326 | AI96: 6368 | AJ96: 5968 | AK96: 5501 | AL96: 5163 | AM96: 4879 | AN96: 4366 | AO96: 4133 | AP96: 4020 | AQ96: 3614 | AR96: 3189 | AS96: 2799 | AT96: 2403 | AU96: 2214 | AV96: 1918 | AW96: 7374
A97: E07000032 | B97: Amber Valley | C97: 62195 | D97: 1888 | E97: 1993 | F97: 1950 | G97: 2041 | H97: 1942 | I97: 2055 | J97: 1949 | K97: 2005 | L97: 1825 | M97: 1798 | N97: 1709 | O97: 1745 | P97: 1703 | Q97: 1603 | R97: 1686 | S97: 1568 | T97: 1610 | U97: 1587 | V97: 1538 | W97: 1599 | X97: 1673 | Y97: 1786 | Z97: 1872 | AA97: 2019 | AB97: 1452 | AC97: 1422 | AD97: 1517 | AE97: 1365 | AF97: 1162 | AG97: 1012 | AH97: 983 | AI97: 1040 | AJ97: 903 | AK97: 866 | AL97: 796 | AM97: 735 | AN97: 665 | AO97: 676 | AP97: 598 | AQ97: 545 | AR97: 499 | AS97: 473 | AT97: 374 | AU97: 368 | AV97: 329 | AW97: 1271
A98: E07000033 | B98: Bolsover | C98: 36938 | D98: 1161 | E98: 1341 | F98: 1240 | G98: 1253 | H98: 1275 | I98: 1221 | J98: 1200 | K98: 1150 | L98: 1095 | M98: 1094 | N98: 1060 | O98: 1063 | P98: 1021 | Q98: 1032 | R98: 949 | S98: 903 | T98: 936 | U98: 922 | V98: 903 | W98: 908 | X98: 969 | Y98: 904 | Z98: 994 | AA98: 1074 | AB98: 874 | AC98: 924 | AD98: 873 | AE98: 783 | AF98: 712 | AG98: 621 | AH98: 600 | AI98: 596 | AJ98: 520 | AK98: 532 | AL98: 469 | AM98: 494 | AN98: 437 | AO98: 392 | AP98: 347 | AQ98: 305 | AR98: 298 | AS98: 252 | AT98: 233 | AU98: 178 | AV98: 170 | AW98: 660
A99: E07000034 | B99: Chesterfield | C99: 50292 | D99: 1575 | E99: 1527 | F99: 1534 | G99: 1651 | H99: 1672 | I99: 1659 | J99: 1629 | K99: 1616 | L99: 1481 | M99: 1511 | N99: 1455 | O99: 1451 | P99: 1373 | Q99: 1408 | R99: 1298 | S99: 1261 | T99: 1269 | U99: 1307 | V99: 1173 | W99: 1257 | X99: 1311 | Y99: 1282 | Z99: 1367 | AA99: 1543 | AB99: 1147 | AC99: 1069 | AD99: 1180 | AE99: 1086 | AF99: 885 | AG99: 818 | AH99: 809 | AI99: 866 | AJ99: 812 | AK99: 720 | AL99: 633 | AM99: 614 | AN99: 615 | AO99: 570 | AP99: 544 | AQ99: 443 | AR99: 455 | AS99: 401 | AT99: 338 | AU99: 322 | AV99: 280 | AW99: 1075
A100: E07000035 | B100: Derbyshire Dales | C100: 40613 | D100: 1029 | E100: 1112 | F100: 1161 | G100: 1163 | H100: 1256 | I100: 1218 | J100: 1187 | K100: 1262 | L100: 1133 | M100: 1137 | N100: 1124 | O100: 1054 | P100: 1116 | Q100: 1042 | R100: 1067 | S100: 1006 | T100: 1031 | U100: 1054 | V100: 1068 | W100: 1155 | X100: 1082 | Y100: 1152 | Z100: 1235 | AA100: 1373 | AB100: 1039 | AC100: 938 | AD100: 1047 | AE100: 897 | AF100: 797 | AG100: 711 | AH100: 645 | AI100: 682 | AJ100: 678 | AK100: 649 | AL100: 608 | AM100: 557 | AN100: 487 | AO100: 488 | AP100: 449 | AQ100: 433 | AR100: 318 | AS100: 328 | AT100: 267 | AU100: 257 | AV100: 250 | AW100: 871
A101: E07000036 | B101: Erewash | C101: 54056 | D101: 1720 | E101: 1790 | F101: 1849 | G101: 1849 | H101: 1922 | I101: 1771 | J101: 1829 | K101: 1832 | L101: 1728 | M101: 1690 | N101: 1458 | O101: 1547 | P101: 1434 | Q101: 1422 | R101: 1313 | S101: 1318 | T101: 1277 | U101: 1271 | V101: 1270 | W101: 1302 | X101: 1263 | Y101: 1327 | Z101: 1420 | AA101: 1609 | AB101: 1233 | AC101: 1186 | AD101: 1215 | AE101: 1125 | AF101: 928 | AG101: 848 | AH101: 964 | AI101: 818 | AJ101: 885 | AK101: 800 | AL101: 759 | AM101: 702 | AN101: 647 | AO101: 584 | AP101: 648 | AQ101: 601 | AR101: 452 | AS101: 396 | AT101: 309 | AU101: 331 | AV101: 285 | AW101: 1129
A102: E07000037 | B102: High Peak | C102: 45461 | D102: 1384 | E102: 1459 | F102: 1512 | G102: 1519 | H102: 1508 | I102: 1536 | J102: 1557 | K102: 1520 | L102: 1470 | M102: 1503 | N102: 1353 | O102: 1395 | P102: 1314 | Q102: 1268 | R102: 1213 | S102: 1093 | T102: 1222 | U102: 1171 | V102: 1159 | W102: 1161 | X102: 1213 | Y102: 1195 | Z102: 1308 | AA102: 1387 | AB102: 1026 | AC102: 994 | AD102: 1024 | AE102: 915 | AF102: 828 | AG102: 716 | AH102: 707 | AI102: 675 | AJ102: 631 | AK102: 579 | AL102: 587 | AM102: 539 | AN102: 480 | AO102: 406 | AP102: 459 | AQ102: 376 | AR102: 335 | AS102: 319 | AT102: 256 | AU102: 231 | AV102: 194 | AW102: 764
A103: E07000038 | B103: North East Derbyshire | C103: 52577 | D103: 1407 | E103: 1467 | F103: 1512 | G103: 1616 | H103: 1575 | I103: 1651 | J103: 1537 | K103: 1459 | L103: 1472 | M103: 1423 | N103: 1491 | O103: 1460 | P103: 1512 | Q103: 1342 | R103: 1390 | S103: 1349 | T103: 1409 | U103: 1269 | V103: 1253 | W103: 1323 | X103: 1397 | Y103: 1495 | Z103: 1558 | AA103: 1626 | AB103: 1390 | AC103: 1386 | AD103: 1388 | AE103: 1191 | AF103: 1052 | AG103: 966 | AH103: 960 | AI103: 1015 | AJ103: 931 | AK103: 821 | AL103: 766 | AM103: 732 | AN103: 593 | AO103: 634 | AP103: 545 | AQ103: 508 | AR103: 472 | AS103: 365 | AT103: 359 | AU103: 294 | AV103: 242 | AW103: 974
A104: E07000039 | B104: South Derbyshire | C104: 45080 | D104: 1482 | E104: 1615 | F104: 1688 | G104: 1672 | H104: 1646 | I104: 1584 | J104: 1525 | K104: 1519 | L104: 1527 | M104: 1353 | N104: 1305 | O104: 1277 | P104: 1280 | Q104: 1156 | R104: 1220 | S104: 1123 | T104: 1226 | U104: 1224 | V104: 1153 | W104: 1094 | X104: 1194 | Y104: 1171 | Z104: 1263 | AA104: 1359 | AB104: 994 | AC104: 996 | AD104: 993 | AE104: 901 | AF104: 743 | AG104: 689 | AH104: 658 | AI104: 676 | AJ104: 608 | AK104: 534 | AL104: 545 | AM104: 506 | AN104: 442 | AO104: 383 | AP104: 430 | AQ104: 403 | AR104: 360 | AS104: 265 | AT104: 267 | AU104: 233 | AV104: 168 | AW104: 630
A105: E10000018 | B105: Leicestershire | C105: 318183 | D105: 9616 | E105: 10433 | F105: 10337 | G105: 10279 | H105: 10389 | I105: 10513 | J105: 10277 | K105: 10126 | L105: 9994 | M105: 9759 | N105: 9097 | O105: 8881 | P105: 8735 | Q105: 8252 | R105: 8223 | S105: 7745 | T105: 7879 | U105: 8214 | V105: 7951 | W105: 8050 | X105: 8190 | Y105: 8567 | Z105: 8981 | AA105: 9581 | AB105: 7269 | AC105: 7327 | AD105: 7308 | AE105: 6656 | AF105: 5483 | AG105: 4960 | AH105: 5198 | AI105: 5143 | AJ105: 5002 | AK105: 4680 | AL105: 4299 | AM105: 4056 | AN105: 3716 | AO105: 3458 | AP105: 3342 | AQ105: 3124 | AR105: 2829 | AS105: 2413 | AT105: 2129 | AU105: 1837 | AV105: 1627 | AW105: 6258
A106: E07000129 | B106: Blaby | C106: 45731 | D106: 1424 | E106: 1482 | F106: 1544 | G106: 1496 | H106: 1436 | I106: 1524 | J106: 1467 | K106: 1437 | L106: 1439 | M106: 1432 | N106: 1355 | O106: 1251 | P106: 1270 | Q106: 1172 | R106: 1167 | S106: 1103 | T106: 1063 | U106: 1146 | V106: 1106 | W106: 1035 | X106: 1211 | Y106: 1196 | Z106: 1268 | AA106: 1394 | AB106: 1021 | AC106: 1046 | AD106: 1042 | AE106: 950 | AF106: 831 | AG106: 748 | AH106: 712 | AI106: 801 | AJ106: 747 | AK106: 726 | AL106: 640 | AM106: 580 | AN106: 591 | AO106: 516 | AP106: 489 | AQ106: 437 | AR106: 423 | AS106: 320 | AT106: 338 | AU106: 266 | AV106: 194 | AW106: 895
A107: E07000130 | B107: Charnwood | C107: 75048 | D107: 2378 | E107: 2477 | F107: 2304 | G107: 2432 | H107: 2356 | I107: 2523 | J107: 2400 | K107: 2409 | L107: 2300 | M107: 2260 | N107: 2123 | O107: 2190 | P107: 2097 | Q107: 1952 | R107: 1998 | S107: 1830 | T107: 1922 | U107: 1976 | V107: 1947 | W107: 1954 | X107: 1863 | Y107: 2019 | Z107: 2073 | AA107: 2206 | AB107: 1638 | AC107: 1686 | AD107: 1703 | AE107: 1547 | AF107: 1267 | AG107: 1194 | AH107: 1230 | AI107: 1200 | AJ107: 1125 | AK107: 1114 | AL107: 1001 | AM107: 949 | AN107: 867 | AO107: 832 | AP107: 828 | AQ107: 746 | AR107: 696 | AS107: 583 | AT107: 534 | AU107: 455 | AV107: 390 | AW107: 1474
A108: E07000131 | B108: Harborough | C108: 44902 | D108: 1356 | E108: 1563 | F108: 1469 | G108: 1563 | H108: 1501 | I108: 1554 | J108: 1521 | K108: 1481 | L108: 1418 | M108: 1372 | N108: 1286 | O108: 1237 | P108: 1248 | Q108: 1158 | R108: 1176 | S108: 1071 | T108: 1070 | U108: 1078 | V108: 1092 | W108: 1138 | X108: 1125 | Y108: 1138 | Z108: 1261 | AA108: 1364 | AB108: 1058 | AC108: 1029 | AD108: 1049 | AE108: 957 | AF108: 715 | AG108: 628 | AH108: 735 | AI108: 699 | AJ108: 703 | AK108: 689 | AL108: 611 | AM108: 556 | AN108: 494 | AO108: 468 | AP108: 443 | AQ108: 449 | AR108: 380 | AS108: 339 | AT108: 281 | AU108: 243 | AV108: 213 | AW108: 923
A109: E07000132 | B109: Hinckley and Bosworth | C109: 53679 | D109: 1616 | E109: 1731 | F109: 1678 | G109: 1657 | H109: 1764 | I109: 1689 | J109: 1654 | K109: 1628 | L109: 1667 | M109: 1584 | N109: 1508 | O109: 1493 | P109: 1468 | Q109: 1404 | R109: 1384 | S109: 1290 | T109: 1372 | U109: 1475 | V109: 1384 | W109: 1417 | X109: 1487 | Y109: 1579 | Z109: 1668 | AA109: 1644 | AB109: 1254 | AC109: 1283 | AD109: 1246 | AE109: 1151 | AF109: 960 | AG109: 863 | AH109: 866 | AI109: 894 | AJ109: 856 | AK109: 742 | AL109: 686 | AM109: 703 | AN109: 562 | AO109: 550 | AP109: 516 | AQ109: 530 | AR109: 442 | AS109: 420 | AT109: 345 | AU109: 320 | AV109: 298 | AW109: 951
A110: E07000133 | B110: Melton | C110: 26007 | D110: 738 | E110: 826 | F110: 910 | G110: 812 | H110: 873 | I110: 889 | J110: 900 | K110: 867 | L110: 834 | M110: 796 | N110: 745 | O110: 699 | P110: 676 | Q110: 699 | R110: 665 | S110: 658 | T110: 672 | U110: 670 | V110: 659 | W110: 731 | X110: 659 | Y110: 689 | Z110: 769 | AA110: 788 | AB110: 568 | AC110: 585 | AD110: 596 | AE110: 552 | AF110: 429 | AG110: 396 | AH110: 476 | AI110: 380 | AJ110: 396 | AK110: 331 | AL110: 345 | AM110: 328 | AN110: 303 | AO110: 271 | AP110: 258 | AQ110: 254 | AR110: 204 | AS110: 194 | AT110: 149 | AU110: 142 | AV110: 136 | AW110: 490
A111: E07000134 | B111: North West Leicestershire | C111: 46267 | D111: 1401 | E111: 1579 | F111: 1627 | G111: 1538 | H111: 1618 | I111: 1524 | J111: 1538 | K111: 1418 | L111: 1517 | M111: 1461 | N111: 1322 | O111: 1253 | P111: 1256 | Q111: 1184 | R111: 1202 | S111: 1156 | T111: 1178 | U111: 1201 | V111: 1184 | W111: 1161 | X111: 1236 | Y111: 1241 | Z111: 1294 | AA111: 1438 | AB111: 1198 | AC111: 1124 | AD111: 1097 | AE111: 954 | AF111: 823 | AG111: 692 | AH111: 734 | AI111: 695 | AJ111: 684 | AK111: 606 | AL111: 587 | AM111: 522 | AN111: 466 | AO111: 461 | AP111: 452 | AQ111: 386 | AR111: 354 | AS111: 322 | AT111: 253 | AU111: 244 | AV111: 225 | AW111: 861
A112: E07000135 | B112: Oadby and Wigston | C112: 26549 | D112: 703 | E112: 775 | F112: 805 | G112: 781 | H112: 841 | I112: 810 | J112: 797 | K112: 886 | L112: 819 | M112: 854 | N112: 758 | O112: 758 | P112: 720 | Q112: 683 | R112: 631 | S112: 637 | T112: 602 | U112: 668 | V112: 579 | W112: 614 | X112: 609 | Y112: 705 | Z112: 648 | AA112: 747 | AB112: 532 | AC112: 574 | AD112: 575 | AE112: 545 | AF112: 458 | AG112: 439 | AH112: 445 | AI112: 474 | AJ112: 491 | AK112: 472 | AL112: 429 | AM112: 418 | AN112: 433 | AO112: 360 | AP112: 356 | AQ112: 322 | AR112: 330 | AS112: 235 | AT112: 229 | AU112: 167 | AV112: 171 | AW112: 664
A113: E10000019 | B113: Lincolnshire | C113: 369345 | D113: 10050 | E113: 10330 | F113: 10235 | G113: 10656 | H113: 10776 | I113: 11050 | J113: 11087 | K113: 10885 | L113: 10667 | M113: 10588 | N113: 10102 | O113: 9849 | P113: 9882 | Q113: 9485 | R113: 9232 | S113: 9173 | T113: 9380 | U113: 9376 | V113: 9281 | W113: 9590 | X113: 10054 | Y113: 10074 | Z113: 11126 | AA113: 12077 | AB113: 9612 | AC113: 9230 | AD113: 9233 | AE113: 8433 | AF113: 7593 | AG113: 6596 | AH113: 6782 | AI113: 6735 | AJ113: 6178 | AK113: 5901 | AL113: 5398 | AM113: 5103 | AN113: 4530 | AO113: 4322 | AP113: 4022 | AQ113: 3861 | AR113: 3469 | AS113: 3121 | AT113: 2601 | AU113: 2198 | AV113: 1917 | AW113: 7505
A114: E07000136 | B114: Boston | C114: 31101 | D114: 892 | E114: 873 | F114: 889 | G114: 897 | H114: 940 | I114: 932 | J114: 953 | K114: 882 | L114: 888 | M114: 894 | N114: 800 | O114: 806 | P114: 898 | Q114: 817 | R114: 774 | S114: 831 | T114: 835 | U114: 769 | V114: 830 | W114: 779 | X114: 847 | Y114: 808 | Z114: 880 | AA114: 943 | AB114: 775 | AC114: 760 | AD114: 754 | AE114: 669 | AF114: 592 | AG114: 567 | AH114: 586 | AI114: 544 | AJ114: 494 | AK114: 479 | AL114: 475 | AM114: 445 | AN114: 393 | AO114: 383 | AP114: 332 | AQ114: 359 | AR114: 302 | AS114: 289 | AT114: 231 | AU114: 193 | AV114: 191 | AW114: 631
A115: E07000137 | B115: East Lindsey | C115: 79737 | D115: 1716 | E115: 1903 | F115: 1735 | G115: 1887 | H115: 1874 | I115: 2100 | J115: 2042 | K115: 1990 | L115: 2054 | M115: 2011 | N115: 2011 | O115: 2014 | P115: 2055 | Q115: 1999 | R115: 2028 | S115: 1967 | T115: 2060 | U115: 2102 | V115: 2102 | W115: 2280 | X115: 2403 | Y115: 2405 | Z115: 2639 | AA115: 2953 | AB115: 2423 | AC115: 2324 | AD115: 2253 | AE115: 2038 | AF115: 1900 | AG115: 1623 | AH115: 1613 | AI115: 1592 | AJ115: 1481 | AK115: 1388 | AL115: 1259 | AM115: 1197 | AN115: 994 | AO115: 1014 | AP115: 953 | AQ115: 850 | AR115: 787 | AS115: 685 | AT115: 557 | AU115: 511 | AV115: 408 | AW115: 1557
A116: E07000138 | B116: Lincoln | C116: 36015 | D116: 1105 | E116: 1154 | F116: 1150 | G116: 1187 | H116: 1214 | I116: 1184 | J116: 1219 | K116: 1253 | L116: 1206 | M116: 1209 | N116: 1105 | O116: 1051 | P116: 1001 | Q116: 975 | R116: 929 | S116: 907 | T116: 928 | U116: 910 | V116: 897 | W116: 926 | X116: 922 | Y116: 894 | Z116: 960 | AA116: 944 | AB116: 798 | AC116: 744 | AD116: 718 | AE116: 724 | AF116: 555 | AG116: 532 | AH116: 557 | AI116: 550 | AJ116: 520 | AK116: 476 | AL116: 467 | AM116: 430 | AN116: 407 | AO116: 389 | AP116: 399 | AQ116: 381 | AR116: 351 | AS116: 321 | AT116: 263 | AU116: 202 | AV116: 178 | AW116: 823
A117: E07000139 | B117: North Kesteven | C117: 56962 | D117: 1740 | E117: 1642 | F117: 1794 | G117: 1823 | H117: 1754 | I117: 1720 | J117: 1771 | K117: 1822 | L117: 1643 | M117: 1614 | N117: 1555 | O117: 1422 | P117: 1417 | Q117: 1379 | R117: 1330 | S117: 1310 | T117: 1345 | U117: 1393 | V117: 1320 | W117: 1385 | X117: 1471 | Y117: 1519 | Z117: 1681 | AA117: 1815 | AB117: 1425 | AC117: 1430 | AD117: 1460 | AE117: 1282 | AF117: 1207 | AG117: 1049 | AH117: 1117 | AI117: 1138 | AJ117: 1046 | AK117: 929 | AL117: 811 | AM117: 738 | AN117: 746 | AO117: 667 | AP117: 577 | AQ117: 581 | AR117: 507 | AS117: 448 | AT117: 387 | AU117: 322 | AV117: 273 | AW117: 1157
A118: E07000140 | B118: South Holland | C118: 46600 | D118: 1184 | E118: 1212 | F118: 1279 | G118: 1305 | H118: 1364 | I118: 1432 | J118: 1354 | K118: 1283 | L118: 1348 | M118: 1267 | N118: 1231 | O118: 1217 | P118: 1232 | Q118: 1148 | R118: 1134 | S118: 1117 | T118: 1130 | U118: 1138 | V118: 1124 | W118: 1172 | X118: 1177 | Y118: 1267 | Z118: 1448 | AA118: 1561 | AB118: 1160 | AC118: 1120 | AD118: 1110 | AE118: 1099 | AF118: 918 | AG118: 850 | AH118: 921 | AI118: 884 | AJ118: 847 | AK118: 855 | AL118: 755 | AM118: 672 | AN118: 629 | AO118: 632 | AP118: 545 | AQ118: 564 | AR118: 479 | AS118: 455 | AT118: 365 | AU118: 302 | AV118: 265 | AW118: 1049
A119: E07000141 | B119: South Kesteven | C119: 69812 | D119: 2087 | E119: 2184 | F119: 2057 | G119: 2066 | H119: 2118 | I119: 2227 | J119: 2278 | K119: 2173 | L119: 2045 | M119: 2081 | N119: 2028 | O119: 1982 | P119: 1939 | Q119: 1900 | R119: 1769 | S119: 1738 | T119: 1792 | U119: 1819 | V119: 1722 | W119: 1790 | X119: 1874 | Y119: 1798 | Z119: 2046 | AA119: 2243 | AB119: 1757 | AC119: 1645 | AD119: 1643 | AE119: 1456 | AF119: 1437 | AG119: 1124 | AH119: 1161 | AI119: 1146 | AJ119: 1042 | AK119: 1012 | AL119: 947 | AM119: 900 | AN119: 813 | AO119: 692 | AP119: 716 | AQ119: 687 | AR119: 626 | AS119: 536 | AT119: 459 | AU119: 401 | AV119: 390 | AW119: 1466
A120: E07000142 | B120: West Lindsey | C120: 49118 | D120: 1326 | E120: 1362 | F120: 1331 | G120: 1491 | H120: 1512 | I120: 1455 | J120: 1470 | K120: 1482 | L120: 1483 | M120: 1512 | N120: 1372 | O120: 1357 | P120: 1340 | Q120: 1267 | R120: 1268 | S120: 1303 | T120: 1290 | U120: 1245 | V120: 1286 | W120: 1258 | X120: 1360 | Y120: 1383 | Z120: 1472 | AA120: 1618 | AB120: 1274 | AC120: 1207 | AD120: 1295 | AE120: 1165 | AF120: 984 | AG120: 851 | AH120: 827 | AI120: 881 | AJ120: 748 | AK120: 762 | AL120: 684 | AM120: 721 | AN120: 548 | AO120: 545 | AP120: 500 | AQ120: 439 | AR120: 417 | AS120: 387 | AT120: 339 | AU120: 267 | AV120: 212 | AW120: 822
A121: E10000021 | B121: Northamptonshire | C121: 316986 | D121: 10372 | E121: 11062 | F121: 10909 | G121: 11119 | H121: 11074 | I121: 11200 | J121: 10905 | K121: 10589 | L121: 10296 | M121: 9820 | N121: 9431 | O121: 9154 | P121: 8931 | Q121: 8536 | R121: 8197 | S121: 8046 | T121: 8170 | U121: 7929 | V121: 7975 | W121: 8077 | X121: 8190 | Y121: 8458 | Z121: 8959 | AA121: 9563 | AB121: 7220 | AC121: 6948 | AD121: 6879 | AE121: 6003 | AF121: 5448 | AG121: 4678 | AH121: 4703 | AI121: 4717 | AJ121: 4474 | AK121: 4074 | AL121: 3926 | AM121: 3473 | AN121: 3371 | AO121: 3071 | AP121: 2924 | AQ121: 2662 | AR121: 2404 | AS121: 2112 | AT121: 1949 | AU121: 1759 | AV121: 1493 | AW121: 5736
A122: E07000150 | B122: Corby | C122: 26596 | D122: 838 | E122: 1027 | F122: 994 | G122: 947 | H122: 1012 | I122: 1049 | J122: 956 | K122: 1022 | L122: 924 | M122: 938 | N122: 895 | O122: 855 | P122: 835 | Q122: 777 | R122: 721 | S122: 743 | T122: 713 | U122: 729 | V122: 586 | W122: 660 | X122: 614 | Y122: 606 | Z122: 620 | AA122: 690 | AB122: 534 | AC122: 510 | AD122: 499 | AE122: 468 | AF122: 453 | AG122: 362 | AH122: 376 | AI122: 386 | AJ122: 368 | AK122: 343 | AL122: 349 | AM122: 276 | AN122: 257 | AO122: 252 | AP122: 208 | AQ122: 196 | AR122: 150 | AS122: 171 | AT122: 138 | AU122: 112 | AV122: 104 | AW122: 333
A123: E07000151 | B123: Daventry | C123: 40014 | D123: 1226 | E123: 1304 | F123: 1345 | G123: 1406 | H123: 1390 | I123: 1413 | J123: 1408 | K123: 1226 | L123: 1351 | M123: 1247 | N123: 1173 | O123: 1199 | P123: 1130 | Q123: 1061 | R123: 1059 | S123: 1029 | T123: 1048 | U123: 994 | V123: 1063 | W123: 1031 | X123: 1086 | Y123: 1099 | Z123: 1194 | AA123: 1208 | AB123: 961 | AC123: 913 | AD123: 960 | AE123: 775 | AF123: 728 | AG123: 604 | AH123: 642 | AI123: 525 | AJ123: 589 | AK123: 520 | AL123: 489 | AM123: 454 | AN123: 410 | AO123: 376 | AP123: 330 | AQ123: 311 | AR123: 294 | AS123: 247 | AT123: 227 | AU123: 189 | AV123: 180 | AW123: 600
A124: E07000152 | B124: East Northamptonshire | C124: 43164 | D124: 1357 | E124: 1408 | F124: 1487 | G124: 1554 | H124: 1461 | I124: 1474 | J124: 1293 | K124: 1344 | L124: 1376 | M124: 1286 | N124: 1237 | O124: 1182 | P124: 1173 | Q124: 1164 | R124: 1010 | S124: 1035 | T124: 1141 | U124: 1070 | V124: 1166 | W124: 1201 | X124: 1156 | Y124: 1238 | Z124: 1284 | AA124: 1360 | AB124: 1029 | AC124: 1025 | AD124: 963 | AE124: 838 | AF124: 748 | AG124: 659 | AH124: 638 | AI124: 690 | AJ124: 670 | AK124: 555 | AL124: 532 | AM124: 493 | AN124: 501 | AO124: 416 | AP124: 396 | AQ124: 347 | AR124: 333 | AS124: 310 | AT124: 288 | AU124: 220 | AV124: 200 | AW124: 856
A125: E07000153 | B125: Kettering | C125: 43129 | D125: 1471 | E125: 1547 | F125: 1476 | G125: 1457 | H125: 1494 | I125: 1536 | J125: 1471 | K125: 1377 | L125: 1315 | M125: 1297 | N125: 1184 | O125: 1175 | P125: 1161 | Q125: 1097 | R125: 1074 | S125: 1086 | T125: 1081 | U125: 1042 | V125: 1085 | W125: 1104 | X125: 1144 | Y125: 1226 | Z125: 1236 | AA125: 1325 | AB125: 1023 | AC125: 984 | AD125: 937 | AE125: 889 | AF125: 749 | AG125: 632 | AH125: 668 | AI125: 651 | AJ125: 611 | AK125: 539 | AL125: 555 | AM125: 466 | AN125: 433 | AO125: 437 | AP125: 406 | AQ125: 372 | AR125: 347 | AS125: 273 | AT125: 294 | AU125: 279 | AV125: 226 | AW125: 897
A126: E07000154 | B126: Northampton | C126: 85017 | D126: 2901 | E126: 3028 | F126: 2969 | G126: 3013 | H126: 3100 | I126: 3097 | J126: 3093 | K126: 3051 | L126: 2865 | M126: 2625 | N126: 2606 | O126: 2503 | P126: 2434 | Q126: 2377 | R126: 2237 | S126: 2122 | T126: 2182 | U126: 2112 | V126: 2135 | W126: 2139 | X126: 2214 | Y126: 2097 | Z126: 2310 | AA126: 2377 | AB126: 1760 | AC126: 1718 | AD126: 1692 | AE126: 1491 | AF126: 1363 | AG126: 1205 | AH126: 1194 | AI126: 1247 | AJ126: 1158 | AK126: 1083 | AL126: 1007 | AM126: 928 | AN126: 905 | AO126: 855 | AP126: 834 | AQ126: 740 | AR126: 608 | AS126: 601 | AT126: 547 | AU126: 496 | AV126: 432 | AW126: 1566
A127: E07000155 | B127: South Northamptonshire | C127: 44071 | D127: 1443 | E127: 1528 | F127: 1482 | G127: 1539 | H127: 1458 | I127: 1483 | J127: 1565 | K127: 1451 | L127: 1422 | M127: 1423 | N127: 1318 | O127: 1289 | P127: 1245 | Q127: 1156 | R127: 1180 | S127: 1112 | T127: 1094 | U127: 1084 | V127: 1063 | W127: 1039 | X127: 1073 | Y127: 1242 | Z127: 1308 | AA127: 1465 | AB127: 1015 | AC127: 995 | AD127: 1023 | AE127: 848 | AF127: 753 | AG127: 665 | AH127: 646 | AI127: 674 | AJ127: 595 | AK127: 562 | AL127: 540 | AM127: 467 | AN127: 484 | AO127: 384 | AP127: 423 | AQ127: 387 | AR127: 362 | AS127: 280 | AT127: 251 | AU127: 253 | AV127: 198 | AW127: 804
A128: E07000156 | B128: Wellingborough | C128: 34995 | D128: 1136 | E128: 1220 | F128: 1156 | G128: 1203 | H128: 1159 | I128: 1148 | J128: 1119 | K128: 1118 | L128: 1043 | M128: 1004 | N128: 1018 | O128: 951 | P128: 953 | Q128: 904 | R128: 916 | S128: 919 | T128: 911 | U128: 898 | V128: 877 | W128: 903 | X128: 903 | Y128: 950 | Z128: 1007 | AA128: 1138 | AB128: 898 | AC128: 803 | AD128: 805 | AE128: 694 | AF128: 654 | AG128: 551 | AH128: 539 | AI128: 544 | AJ128: 483 | AK128: 472 | AL128: 454 | AM128: 389 | AN128: 381 | AO128: 351 | AP128: 327 | AQ128: 309 | AR128: 310 | AS128: 230 | AT128: 204 | AU128: 210 | AV128: 153 | AW128: 680
A129: E10000024 | B129: Nottinghamshire | C129: 384779 | D129: 11583 | E129: 12265 | F129: 12152 | G129: 12442 | H129: 12382 | I129: 12740 | J129: 12515 | K129: 12376 | L129: 11979 | M129: 11667 | N129: 11474 | O129: 11077 | P129: 10638 | Q129: 10169 | R129: 9785 | S129: 9607 | T129: 9788 | U129: 9614 | V129: 9584 | W129: 9561 | X129: 9848 | Y129: 10095 | Z129: 10665 | AA129: 11515 | AB129: 8900 | AC129: 8879 | AD129: 8873 | AE129: 8126 | AF129: 6971 | AG129: 6275 | AH129: 6397 | AI129: 6489 | AJ129: 6023 | AK129: 5735 | AL129: 5243 | AM129: 4994 | AN129: 4551 | AO129: 4193 | AP129: 4081 | AQ129: 3669 | AR129: 3161 | AS129: 2849 | AT129: 2544 | AU129: 2291 | AV129: 1956 | AW129: 7058
A130: E07000170 | B130: Ashfield | C130: 56644 | D130: 1869 | E130: 1922 | F130: 1903 | G130: 1896 | H130: 1863 | I130: 2016 | J130: 1884 | K130: 1915 | L130: 1730 | M130: 1754 | N130: 1756 | O130: 1672 | P130: 1510 | Q130: 1464 | R130: 1451 | S130: 1381 | T130: 1430 | U130: 1473 | V130: 1403 | W130: 1373 | X130: 1438 | Y130: 1432 | Z130: 1541 | AA130: 1568 | AB130: 1293 | AC130: 1328 | AD130: 1336 | AE130: 1315 | AF130: 1052 | AG130: 977 | AH130: 962 | AI130: 943 | AJ130: 871 | AK130: 832 | AL130: 740 | AM130: 682 | AN130: 612 | AO130: 569 | AP130: 536 | AQ130: 484 | AR130: 387 | AS130: 372 | AT130: 278 | AU130: 282 | AV130: 247 | AW130: 902
A131: E07000171 | B131: Bassetlaw | C131: 56986 | D131: 1630 | E131: 1670 | F131: 1804 | G131: 1805 | H131: 1821 | I131: 1855 | J131: 1920 | K131: 1800 | L131: 1793 | M131: 1722 | N131: 1646 | O131: 1635 | P131: 1604 | Q131: 1554 | R131: 1409 | S131: 1505 | T131: 1507 | U131: 1460 | V131: 1401 | W131: 1456 | X131: 1494 | Y131: 1573 | Z131: 1681 | AA131: 1685 | AB131: 1370 | AC131: 1349 | AD131: 1313 | AE131: 1210 | AF131: 1050 | AG131: 955 | AH131: 963 | AI131: 955 | AJ131: 880 | AK131: 836 | AL131: 760 | AM131: 725 | AN131: 667 | AO131: 573 | AP131: 588 | AQ131: 528 | AR131: 455 | AS131: 407 | AT131: 356 | AU131: 352 | AV131: 294 | AW131: 970
A132: E07000172 | B132: Broxtowe | C132: 52855 | D132: 1570 | E132: 1641 | F132: 1646 | G132: 1704 | H132: 1740 | I132: 1705 | J132: 1591 | K132: 1730 | L132: 1612 | M132: 1555 | N132: 1564 | O132: 1457 | P132: 1430 | Q132: 1374 | R132: 1332 | S132: 1273 | T132: 1284 | U132: 1333 | V132: 1281 | W132: 1324 | X132: 1391 | Y132: 1380 | Z132: 1501 | AA132: 1739 | AB132: 1208 | AC132: 1245 | AD132: 1247 | AE132: 1071 | AF132: 939 | AG132: 894 | AH132: 918 | AI132: 888 | AJ132: 853 | AK132: 803 | AL132: 713 | AM132: 720 | AN132: 604 | AO132: 608 | AP132: 611 | AQ132: 503 | AR132: 426 | AS132: 447 | AT132: 410 | AU132: 290 | AV132: 258 | AW132: 1042
A133: E07000173 | B133: Gedling | C133: =SUM(D133:AW133) -> 55603 | D133: 1576 | E133: 1837 | F133: 1776 | G133: 1795 | H133: 1687 | I133: 1824 | J133: 1848 | K133: 1693 | L133: 1722 | M133: 1732 | N133: 1689 | O133: 1583 | P133: 1500 | Q133: 1485 | R133: 1374 | S133: 1401 | T133: 1392 | U133: 1412 | V133: 1496 | W133: 1320 | X133: 1426 | Y133: 1481 | Z133: 1550 | AA133: 1707 | AB133: 1204 | AC133: 1213 | AD133: 1183 | AE133: 1123 | AF133: 992 | AG133: 897 | AH133: 893 | AI133: 972 | AJ133: 928 | AK133: 913 | AL133: 813 | AM133: 739 | AN133: 731 | AO133: 600 | AP133: 641 | AQ133: 538 | AR133: 477 | AS133: 419 | AT133: 367 | AU133: 398 | AV133: 284 | AW133: 972
A134: E07000174 | B134: Mansfield | C134: 49050 | D134: 1523 | E134: 1533 | F134: 1517 | G134: 1678 | H134: 1599 | I134: 1645 | J134: 1600 | K134: 1615 | L134: 1640 | M134: 1553 | N134: 1502 | O134: 1501 | P134: 1440 | Q134: 1374 | R134: 1312 | S134: 1270 | T134: 1270 | U134: 1228 | V134: 1168 | W134: 1298 | X134: 1202 | Y134: 1268 | Z134: 1271 | AA134: 1276 | AB134: 1112 | AC134: 1115 | AD134: 1110 | AE134: 1026 | AF134: 854 | AG134: 741 | AH134: 763 | AI134: 795 | AJ134: 729 | AK134: 669 | AL134: 679 | AM134: 627 | AN134: 564 | AO134: 540 | AP134: 511 | AQ134: 494 | AR134: 405 | AS134: 343 | AT134: 317 | AU134: 280 | AV134: 239 | AW134: 854
A135: E07000175 | B135: Newark and Sherwood | C135: 58643 | D135: 1686 | E135: 1862 | F135: 1803 | G135: 1838 | H135: 1841 | I135: 1897 | J135: 1860 | K135: 1878 | L135: 1782 | M135: 1693 | N135: 1677 | O135: 1726 | P135: 1646 | Q135: 1551 | R135: 1474 | S135: 1456 | T135: 1528 | U135: 1414 | V135: 1478 | W135: 1447 | X135: 1552 | Y135: 1573 | Z135: 1659 | AA135: 1852 | AB135: 1477 | AC135: 1365 | AD135: 1410 | AE135: 1276 | AF135: 1105 | AG135: 967 | AH135: 990 | AI135: 1046 | AJ135: 933 | AK135: 881 | AL135: 794 | AM135: 744 | AN135: 677 | AO135: 634 | AP135: 571 | AQ135: 575 | AR135: 494 | AS135: 385 | AT135: 397 | AU135: 354 | AV135: 291 | AW135: 1104
A136: E07000176 | B136: Rushcliffe | C136: 54998 | D136: 1729 | E136: 1800 | F136: 1703 | G136: 1726 | H136: 1831 | I136: 1798 | J136: 1812 | K136: 1745 | L136: 1700 | M136: 1658 | N136: 1640 | O136: 1503 | P136: 1508 | Q136: 1367 | R136: 1433 | S136: 1321 | T136: 1377 | U136: 1294 | V136: 1357 | W136: 1343 | X136: 1345 | Y136: 1388 | Z136: 1462 | AA136: 1688 | AB136: 1236 | AC136: 1264 | AD136: 1274 | AE136: 1105 | AF136: 979 | AG136: 844 | AH136: 908 | AI136: 890 | AJ136: 829 | AK136: 801 | AL136: 744 | AM136: 757 | AN136: 696 | AO136: 669 | AP136: 623 | AQ136: 547 | AR136: 517 | AS136: 476 | AT136: 419 | AU136: 335 | AV136: 343 | AW136: 1214
A137: E12000005 | B137: WEST MIDLANDS | C137: 2491524 | D137: 79747 | E137: 81286 | F137: 80969 | G137: 81455 | H137: 81865 | I137: 81714 | J137: 80723 | K137: 79019 | L137: 78635 | M137: 74995 | N137: 70498 | O137: 69474 | P137: 67881 | Q137: 65573 | R137: 63625 | S137: 62104 | T137: 62951 | U137: 62575 | V137: 60333 | W137: 60297 | X137: 61884 | Y137: 63296 | Z137: 65516 | AA137: 69625 | AB137: 55521 | AC137: 55923 | AD137: 56977 | AE137: 52426 | AF137: 46549 | AG137: 41471 | AH137: 42234 | AI137: 41477 | AJ137: 40276 | AK137: 38306 | AL137: 35354 | AM137: 32861 | AN137: 29755 | AO137: 27983 | AP137: 26957 | AQ137: 24839 | AR137: 22594 | AS137: 19579 | AT137: 17081 | AU137: 15091 | AV137: 12983 | AW137: 49247
A138: E06000019 | B138: Herefordshire | C138: 96934 | D138: 2444 | E138: 2674 | F138: 2674 | G138: 2789 | H138: 2911 | I138: 2959 | J138: 2775 | K138: 2789 | L138: 2859 | M138: 2776 | N138: 2502 | O138: 2568 | P138: 2673 | Q138: 2523 | R138: 2609 | S138: 2462 | T138: 2530 | U138: 2587 | V138: 2428 | W138: 2476 | X138: 2531 | Y138: 2771 | Z138: 2750 | AA138: 2934 | AB138: 2411 | AC138: 2386 | AD138: 2413 | AE138: 2128 | AF138: 1936 | AG138: 1683 | AH138: 1745 | AI138: 1724 | AJ138: 1570 | AK138: 1585 | AL138: 1450 | AM138: 1415 | AN138: 1295 | AO138: 1175 | AP138: 1106 | AQ138: 990 | AR138: 945 | AS138: 852 | AT138: 782 | AU138: 671 | AV138: 586 | AW138: 2092
A139: E06000051 | B139: Shropshire | C139: 161504 | D139: 4247 | E139: 4599 | F139: 4624 | G139: 4755 | H139: 4839 | I139: 4861 | J139: 4811 | K139: 4891 | L139: 4789 | M139: 4697 | N139: 4438 | O139: 4285 | P139: 4237 | Q139: 4110 | R139: 4092 | S139: 4095 | T139: 4113 | U139: 4140 | V139: 4093 | W139: 4103 | X139: 4143 | Y139: 4444 | Z139: 4723 | AA139: 4907 | AB139: 4089 | AC139: 3933 | AD139: 4021 | AE139: 3633 | AF139: 3213 | AG139: 2916 | AH139: 3011 | AI139: 2823 | AJ139: 2716 | AK139: 2652 | AL139: 2288 | AM139: 2196 | AN139: 2056 | AO139: 1867 | AP139: 1809 | AQ139: 1652 | AR139: 1556 | AS139: 1340 | AT139: 1155 | AU139: 1036 | AV139: 895 | AW139: 3611
A140: E06000021 | B140: Stoke-on-Trent | C140: 104321 | D140: 3444 | E140: 3507 | F140: 3334 | G140: 3424 | H140: 3417 | I140: 3543 | J140: 3360 | K140: 3244 | L140: 3411 | M140: 3256 | N140: 3036 | O140: 2941 | P140: 2974 | Q140: 2959 | R140: 2847 | S140: 2728 | T140: 2810 | U140: 2684 | V140: 2579 | W140: 2489 | X140: 2705 | Y140: 2780 | Z140: 2773 | AA140: 3079 | AB140: 2288 | AC140: 2309 | AD140: 2211 | AE140: 2205 | AF140: 1855 | AG140: 1726 | AH140: 1749 | AI140: 1568 | AJ140: 1642 | AK140: 1520 | AL140: 1443 | AM140: 1255 | AN140: 1143 | AO140: 1107 | AP140: 1081 | AQ140: 954 | AR140: 913 | AS140: 756 | AT140: 640 | AU140: 556 | AV140: 469 | AW140: 1607
A141: E06000020 | B141: Telford and Wrekin | C141: 72592 | D141: 2565 | E141: 2552 | F141: 2603 | G141: 2538 | H141: 2590 | I141: 2576 | J141: 2572 | K141: 2431 | L141: 2338 | M141: 2251 | N141: 2164 | O141: 2124 | P141: 2018 | Q141: 1828 | R141: 1910 | S141: 1948 | T141: 1972 | U141: 1843 | V141: 1924 | W141: 1820 | X141: 1881 | Y141: 1929 | Z141: 1870 | AA141: 2071 | AB141: 1634 | AC141: 1526 | AD141: 1556 | AE141: 1442 | AF141: 1335 | AG141: 1197 | AH141: 1197 | AI141: 1108 | AJ141: 1058 | AK141: 972 | AL141: 852 | AM141: 855 | AN141: 730 | AO141: 688 | AP141: 614 | AQ141: 555 | AR141: 513 | AS141: 447 | AT141: 371 | AU141: 302 | AV141: 283 | AW141: 1039
A142: E10000028 | B142: Staffordshire | C142: 418887 | D142: 12779 | E142: 13125 | F142: 13094 | G142: 13267 | H142: 13450 | I142: 13413 | J142: 13290 | K142: 12937 | L142: 12949 | M142: 12517 | N142: 11645 | O142: 11647 | P142: 11326 | Q142: 11015 | R142: 10716 | S142: 10380 | T142: 10715 | U142: 10627 | V142: 10149 | W142: 10435 | X142: 10927 | Y142: 11056 | Z142: 12049 | AA142: 12726 | AB142: 9746 | AC142: 10101 | AD142: 10131 | AE142: 9341 | AF142: 8332 | AG142: 7346 | AH142: 7285 | AI142: 7198 | AJ142: 6807 | AK142: 6535 | AL142: 5768 | AM142: 5327 | AN142: 4979 | AO142: 4580 | AP142: 4313 | AQ142: 3844 | AR142: 3494 | AS142: 3059 | AT142: 2587 | AU142: 2377 | AV142: 2023 | AW142: 7480
A143: E07000192 | B143: Cannock Chase | C143: 45066 | D143: 1561 | E143: 1629 | F143: 1580 | G143: 1525 | H143: 1633 | I143: 1555 | J143: 1599 | K143: 1524 | L143: 1461 | M143: 1360 | N143: 1209 | O143: 1356 | P143: 1211 | Q143: 1192 | R143: 1165 | S143: 1114 | T143: 1182 | U143: 1100 | V143: 1080 | W143: 1069 | X143: 1182 | Y143: 1121 | Z143: 1171 | AA143: 1263 | AB143: 1008 | AC143: 1079 | AD143: 999 | AE143: 952 | AF143: 808 | AG143: 687 | AH143: 724 | AI143: 743 | AJ143: 671 | AK143: 664 | AL143: 576 | AM143: 505 | AN143: 463 | AO143: 451 | AP143: 413 | AQ143: 389 | AR143: 333 | AS143: 317 | AT143: 297 | AU143: 225 | AV143: 192 | AW143: 728
A144: E07000193 | B144: East Staffordshire | C144: 52792 | D144: 1676 | E144: 1707 | F144: 1748 | G144: 1829 | H144: 1788 | I144: 1798 | J144: 1779 | K144: 1665 | L144: 1759 | M144: 1680 | N144: 1558 | O144: 1577 | P144: 1474 | Q144: 1491 | R144: 1361 | S144: 1351 | T144: 1305 | U144: 1301 | V144: 1202 | W144: 1269 | X144: 1300 | Y144: 1290 | Z144: 1371 | AA144: 1531 | AB144: 1161 | AC144: 1155 | AD144: 1203 | AE144: 1091 | AF144: 975 | AG144: 844 | AH144: 881 | AI144: 843 | AJ144: 778 | AK144: 773 | AL144: 736 | AM144: 652 | AN144: 618 | AO144: 585 | AP144: 552 | AQ144: 490 | AR144: 453 | AS144: 387 | AT144: 349 | AU144: 314 | AV144: 220 | AW144: 922
A145: E07000194 | B145: Lichfield | C145: 52288 | D145: 1509 | E145: 1525 | F145: 1572 | G145: 1566 | H145: 1596 | I145: 1739 | J145: 1557 | K145: 1516 | L145: 1579 | M145: 1531 | N145: 1332 | O145: 1374 | P145: 1380 | Q145: 1287 | R145: 1305 | S145: 1229 | T145: 1313 | U145: 1296 | V145: 1207 | W145: 1305 | X145: 1320 | Y145: 1343 | Z145: 1629 | AA145: 1722 | AB145: 1289 | AC145: 1449 | AD145: 1396 | AE145: 1297 | AF145: 1218 | AG145: 1028 | AH145: 978 | AI145: 946 | AJ145: 894 | AK145: 848 | AL145: 670 | AM145: 683 | AN145: 628 | AO145: 605 | AP145: 519 | AQ145: 479 | AR145: 448 | AS145: 368 | AT145: 295 | AU145: 281 | AV145: 246 | AW145: 991
A146: E07000195 | B146: Newcastle-under-Lyme | C146: 58629 | D146: 1819 | E146: 1783 | F146: 1736 | G146: 1842 | H146: 1865 | I146: 1768 | J146: 1835 | K146: 1804 | L146: 1814 | M146: 1788 | N146: 1635 | O146: 1634 | P146: 1640 | Q146: 1532 | R146: 1478 | S146: 1470 | T146: 1557 | U146: 1483 | V146: 1429 | W146: 1458 | X146: 1539 | Y146: 1556 | Z146: 1758 | AA146: 1785 | AB146: 1297 | AC146: 1358 | AD146: 1378 | AE146: 1218 | AF146: 1102 | AG146: 1036 | AH146: 943 | AI146: 964 | AJ146: 992 | AK146: 981 | AL146: 812 | AM146: 787 | AN146: 778 | AO146: 678 | AP146: 638 | AQ146: 568 | AR146: 526 | AS146: 431 | AT146: 387 | AU146: 357 | AV146: 319 | AW146: 1071
A147: E07000196 | B147: South Staffordshire | C147: 58356 | D147: 1570 | E147: 1690 | F147: 1670 | G147: 1812 | H147: 1813 | I147: 1796 | J147: 1752 | K147: 1731 | L147: 1832 | M147: 1785 | N147: 1643 | O147: 1606 | P147: 1500 | Q147: 1602 | R147: 1471 | S147: 1423 | T147: 1477 | U147: 1508 | V147: 1337 | W147: 1465 | X147: 1564 | Y147: 1542 | Z147: 1697 | AA147: 1756 | AB147: 1312 | AC147: 1437 | AD147: 1443 | AE147: 1376 | AF147: 1244 | AG147: 1081 | AH147: 1112 | AI147: 1067 | AJ147: 1012 | AK147: 993 | AL147: 852 | AM147: 794 | AN147: 733 | AO147: 632 | AP147: 656 | AQ147: 531 | AR147: 508 | AS147: 437 | AT147: 335 | AU147: 377 | AV147: 299 | AW147: 1083
A148: E07000197 | B148: Stafford | C148: 65657 | D148: 1956 | E148: 1957 | F148: 2114 | G148: 2043 | H148: 1982 | I148: 2068 | J148: 2138 | K148: 2061 | L148: 1986 | M148: 1876 | N148: 1864 | O148: 1796 | P148: 1750 | Q148: 1681 | R148: 1641 | S148: 1614 | T148: 1598 | U148: 1642 | V148: 1647 | W148: 1682 | X148: 1631 | Y148: 1821 | Z148: 1811 | AA148: 1960 | AB148: 1549 | AC148: 1573 | AD148: 1622 | AE148: 1528 | AF148: 1320 | AG148: 1162 | AH148: 1164 | AI148: 1186 | AJ148: 1103 | AK148: 1034 | AL148: 926 | AM148: 842 | AN148: 796 | AO148: 714 | AP148: 680 | AQ148: 614 | AR148: 576 | AS148: 521 | AT148: 439 | AU148: 390 | AV148: 316 | AW148: 1283
A149: E07000198 | B149: Staffordshire Moorlands | C149: 52326 | D149: 1505 | E149: 1611 | F149: 1563 | G149: 1569 | H149: 1578 | I149: 1555 | J149: 1604 | K149: 1529 | L149: 1522 | M149: 1491 | N149: 1362 | O149: 1368 | P149: 1418 | Q149: 1282 | R149: 1365 | S149: 1263 | T149: 1318 | U149: 1354 | V149: 1367 | W149: 1315 | X149: 1497 | Y149: 1456 | Z149: 1650 | AA149: 1715 | AB149: 1319 | AC149: 1286 | AD149: 1298 | AE149: 1155 | AF149: 1085 | AG149: 974 | AH149: 941 | AI149: 918 | AJ149: 894 | AK149: 814 | AL149: 777 | AM149: 698 | AN149: 655 | AO149: 542 | AP149: 554 | AQ149: 511 | AR149: 428 | AS149: 384 | AT149: 309 | AU149: 303 | AV149: 295 | AW149: 929
A150: E07000199 | B150: Tamworth | C150: 33773 | D150: 1183 | E150: 1223 | F150: 1111 | G150: 1081 | H150: 1195 | I150: 1134 | J150: 1026 | K150: 1107 | L150: 996 | M150: 1006 | N150: 1042 | O150: 936 | P150: 953 | Q150: 948 | R150: 930 | S150: 916 | T150: 965 | U150: 943 | V150: 880 | W150: 872 | X150: 894 | Y150: 927 | Z150: 962 | AA150: 994 | AB150: 811 | AC150: 764 | AD150: 792 | AE150: 724 | AF150: 580 | AG150: 534 | AH150: 542 | AI150: 531 | AJ150: 463 | AK150: 428 | AL150: 419 | AM150: 366 | AN150: 308 | AO150: 373 | AP150: 301 | AQ150: 262 | AR150: 222 | AS150: 214 | AT150: 176 | AU150: 130 | AV150: 136 | AW150: 473
A151: E10000031 | B151: Warwickshire | C151: 261818 | D151: 7925 | E151: 8259 | F151: 8184 | G151: 8200 | H151: 8670 | I151: 8496 | J151: 8449 | K151: 8240 | L151: 8066 | M151: 7873 | N151: 7295 | O151: 7304 | P151: 6965 | Q151: 6920 | R151: 6474 | S151: 6321 | T151: 6500 | U151: 6479 | V151: 6368 | W151: 6397 | X151: 6584 | Y151: 6799 | Z151: 7104 | AA151: 7684 | AB151: 6249 | AC151: 6360 | AD151: 6363 | AE151: 5799 | AF151: 4891 | AG151: 4386 | AH151: 4335 | AI151: 4329 | AJ151: 4262 | AK151: 4050 | AL151: 3668 | AM151: 3404 | AN151: 3038 | AO151: 2813 | AP151: 2761 | AQ151: 2700 | AR151: 2326 | AS151: 2054 | AT151: 1838 | AU151: 1643 | AV151: 1403 | AW151: 5590
A152: E07000218 | B152: North Warwickshire | C152: 31576 | D152: 894 | E152: 998 | F152: 970 | G152: 1045 | H152: 1074 | I152: 1028 | J152: 976 | K152: 1047 | L152: 953 | M152: 939 | N152: 923 | O152: 939 | P152: 876 | Q152: 881 | R152: 808 | S152: 773 | T152: 831 | U152: 811 | V152: 788 | W152: 840 | X152: 782 | Y152: 858 | Z152: 921 | AA152: 956 | AB152: 735 | AC152: 749 | AD152: 760 | AE152: 694 | AF152: 633 | AG152: 501 | AH152: 537 | AI152: 500 | AJ152: 474 | AK152: 483 | AL152: 418 | AM152: 372 | AN152: 337 | AO152: 297 | AP152: 309 | AQ152: 290 | AR152: 256 | AS152: 196 | AT152: 173 | AU152: 195 | AV152: 163 | AW152: 593
A153: E07000219 | B153: Nuneaton and Bedworth | C153: 57207 | D153: 1785 | E153: 1902 | F153: 1842 | G153: 1853 | H153: 2002 | I153: 1924 | J153: 1899 | K153: 1705 | L153: 1883 | M153: 1719 | N153: 1613 | O153: 1549 | P153: 1570 | Q153: 1580 | R153: 1460 | S153: 1441 | T153: 1462 | U153: 1540 | V153: 1412 | W153: 1423 | X153: 1617 | Y153: 1476 | Z153: 1519 | AA153: 1692 | AB153: 1302 | AC153: 1440 | AD153: 1377 | AE153: 1226 | AF153: 993 | AG153: 971 | AH153: 925 | AI153: 933 | AJ153: 935 | AK153: 812 | AL153: 707 | AM153: 681 | AN153: 659 | AO153: 590 | AP153: 592 | AQ153: 548 | AR153: 478 | AS153: 387 | AT153: 337 | AU153: 286 | AV153: 229 | AW153: 931
A154: E07000220 | B154: Rugby | C154: 46658 | D154: 1557 | E154: 1584 | F154: 1486 | G154: 1510 | H154: 1596 | I154: 1613 | J154: 1554 | K154: 1618 | L154: 1479 | M154: 1453 | N154: 1316 | O154: 1272 | P154: 1261 | Q154: 1196 | R154: 1126 | S154: 1085 | T154: 1141 | U154: 1082 | V154: 1118 | W154: 1057 | X154: 1056 | Y154: 1160 | Z154: 1213 | AA154: 1301 | AB154: 1057 | AC154: 1108 | AD154: 1145 | AE154: 1049 | AF154: 873 | AG154: 829 | AH154: 748 | AI154: 775 | AJ154: 714 | AK154: 691 | AL154: 676 | AM154: 571 | AN154: 497 | AO154: 443 | AP154: 468 | AQ154: 492 | AR154: 376 | AS154: 358 | AT154: 346 | AU154: 325 | AV154: 241 | AW154: 1042
A155: E07000221 | B155: Stratford-on-Avon | C155: 66034 | D155: 1745 | E155: 1802 | F155: 1834 | G155: 1862 | H155: 2013 | I155: 1967 | J155: 1977 | K155: 1884 | L155: 1912 | M155: 1880 | N155: 1772 | O155: 1871 | P155: 1705 | Q155: 1678 | R155: 1542 | S155: 1556 | T155: 1604 | U155: 1595 | V155: 1638 | W155: 1619 | X155: 1627 | Y155: 1773 | Z155: 1898 | AA155: 2074 | AB155: 1812 | AC155: 1692 | AD155: 1725 | AE155: 1554 | AF155: 1328 | AG155: 1131 | AH155: 1148 | AI155: 1152 | AJ155: 1205 | AK155: 1170 | AL155: 1010 | AM155: 961 | AN155: 829 | AO155: 778 | AP155: 767 | AQ155: 726 | AR155: 661 | AS155: 577 | AT155: 524 | AU155: 464 | AV155: 395 | AW155: 1597
A156: E07000222 | B156: Warwick | C156: 60343 | D156: 1944 | E156: 1973 | F156: 2052 | G156: 1930 | H156: 1985 | I156: 1964 | J156: 2043 | K156: 1986 | L156: 1839 | M156: 1882 | N156: 1671 | O156: 1673 | P156: 1553 | Q156: 1585 | R156: 1538 | S156: 1466 | T156: 1462 | U156: 1451 | V156: 1412 | W156: 1458 | X156: 1502 | Y156: 1532 | Z156: 1553 | AA156: 1661 | AB156: 1343 | AC156: 1371 | AD156: 1356 | AE156: 1276 | AF156: 1064 | AG156: 954 | AH156: 977 | AI156: 969 | AJ156: 934 | AK156: 894 | AL156: 857 | AM156: 819 | AN156: 716 | AO156: 705 | AP156: 625 | AQ156: 644 | AR156: 555 | AS156: 536 | AT156: 458 | AU156: 373 | AV156: 375 | AW156: 1427
A157: E11000005 | B157: West Midlands (Met County) | C157: 1090760 | D157: 38067 | E157: 38093 | F157: 37872 | G157: 37558 | H157: 37287 | I157: 37057 | J157: 36700 | K157: 35835 | L157: 35802 | M157: 33693 | N157: 31649 | O157: 30956 | P157: 30107 | Q157: 28912 | R157: 27761 | S157: 27132 | T157: 26886 | U157: 26731 | V157: 25609 | W157: 25255 | X157: 25574 | Y157: 25500 | Z157: 26120 | AA157: 27501 | AB157: 22231 | AC157: 22481 | AD157: 23258 | AE157: 21745 | AF157: 19485 | AG157: 17445 | AH157: 18110 | AI157: 17931 | AJ157: 17627 | AK157: 16582 | AL157: 15886 | AM157: 14734 | AN157: 12973 | AO157: 12542 | AP157: 12115 | AQ157: 11236 | AR157: 10223 | AS157: 8790 | AT157: 7645 | AU157: 6688 | AV157: 5729 | AW157: 21647
A158: E08000025 | B158: Birmingham | C158: 378558 | D158: 14094 | E158: 13902 | F158: 13901 | G158: 13648 | H158: 13531 | I158: 13414 | J158: 13179 | K158: 13061 | L158: 12920 | M158: 11953 | N158: 11579 | O158: 11086 | P158: 10832 | Q158: 10423 | R158: 9859 | S158: 9710 | T158: 9592 | U158: 9442 | V158: 8948 | W158: 8499 | X158: 8739 | Y158: 8221 | Z158: 8553 | AA158: 8913 | AB158: 7196 | AC158: 7102 | AD158: 7282 | AE158: 6907 | AF158: 6172 | AG158: 5485 | AH158: 5837 | AI158: 5877 | AJ158: 5722 | AK158: 5429 | AL158: 5296 | AM158: 4916 | AN158: 4404 | AO158: 4316 | AP158: 4106 | AQ158: 3774 | AR158: 3506 | AS158: 2945 | AT158: 2577 | AU158: 2375 | AV158: 1919 | AW158: 7416
A159: E08000026 | B159: Coventry | C159: 121404 | D159: 4241 | E159: 4193 | F159: 4285 | G159: 4264 | H159: 4074 | I159: 4008 | J159: 3987 | K159: 4034 | L159: 3901 | M159: 3778 | N159: 3574 | O159: 3555 | P159: 3375 | Q159: 3163 | R159: 3147 | S159: 3061 | T159: 2961 | U159: 2969 | V159: 2780 | W159: 2813 | X159: 2884 | Y159: 2826 | Z159: 2966 | AA159: 3017 | AB159: 2577 | AC159: 2633 | AD159: 2613 | AE159: 2455 | AF159: 2094 | AG159: 2001 | AH159: 2007 | AI159: 1973 | AJ159: 1883 | AK159: 1769 | AL159: 1758 | AM159: 1577 | AN159: 1435 | AO159: 1323 | AP159: 1244 | AQ159: 1160 | AR159: 1129 | AS159: 995 | AT159: 878 | AU159: 737 | AV159: 637 | AW159: 2670
A160: E08000027 | B160: Dudley | C160: 145696 | D160: 4684 | E160: 4738 | F160: 4778 | G160: 4793 | H160: 4553 | I160: 4768 | J160: 4623 | K160: 4437 | L160: 4513 | M160: 4120 | N160: 3890 | O160: 3813 | P160: 3752 | Q160: 3700 | R160: 3639 | S160: 3509 | T160: 3512 | U160: 3647 | V160: 3519 | W160: 3586 | X160: 3563 | Y160: 3695 | Z160: 3736 | AA160: 4115 | AB160: 3262 | AC160: 3400 | AD160: 3582 | AE160: 3265 | AF160: 2926 | AG160: 2548 | AH160: 2637 | AI160: 2610 | AJ160: 2589 | AK160: 2379 | AL160: 2294 | AM160: 2134 | AN160: 1764 | AO160: 1758 | AP160: 1597 | AQ160: 1594 | AR160: 1351 | AS160: 1167 | AT160: 1016 | AU160: 828 | AV160: 726 | AW160: 2586
A161: E08000028 | B161: Sandwell | C161: 123667 | D161: 4536 | E161: 4553 | F161: 4528 | G161: 4476 | H161: 4404 | I161: 4379 | J161: 4430 | K161: 4025 | L161: 4073 | M161: 3916 | N161: 3524 | O161: 3597 | P161: 3365 | Q161: 3335 | R161: 3120 | S161: 3178 | T161: 2968 | U161: 2977 | V161: 2833 | W161: 2731 | X161: 2822 | Y161: 2885 | Z161: 2866 | AA161: 2925 | AB161: 2396 | AC161: 2481 | AD161: 2582 | AE161: 2503 | AF161: 2257 | AG161: 1987 | AH161: 2061 | AI161: 1993 | AJ161: 1994 | AK161: 1849 | AL161: 1775 | AM161: 1621 | AN161: 1372 | AO161: 1340 | AP161: 1297 | AQ161: 1245 | AR161: 1072 | AS161: 959 | AT161: 798 | AU161: 687 | AV161: 610 | AW161: 2342
A162: E08000029 | B162: Solihull | C162: 100838 | D162: 2995 | E162: 3349 | F162: 3100 | G162: 3021 | H162: 3306 | I162: 3301 | J162: 3261 | K162: 3141 | L162: 3307 | M162: 3090 | N162: 2825 | O162: 2830 | P162: 2717 | Q162: 2519 | R162: 2361 | S162: 2333 | T162: 2375 | U162: 2383 | V162: 2332 | W162: 2403 | X162: 2376 | Y162: 2621 | Z162: 2631 | AA162: 3004 | AB162: 2280 | AC162: 2355 | AD162: 2412 | AE162: 2098 | AF162: 1907 | AG162: 1594 | AH162: 1681 | AI162: 1654 | AJ162: 1619 | AK162: 1611 | AL162: 1398 | AM162: 1420 | AN162: 1239 | AO162: 1174 | AP162: 1228 | AQ162: 1129 | AR162: 993 | AS162: 942 | AT162: 814 | AU162: 738 | AV162: 675 | AW162: 2296
A163: E08000030 | B163: Walsall | C163: 116748 | D163: 3900 | E163: 3855 | F163: 3823 | G163: 3858 | H163: 3842 | I163: 3734 | J163: 3820 | K163: 3733 | L163: 3779 | M163: 3631 | N163: 3255 | O163: 3181 | P163: 3211 | Q163: 3021 | R163: 2973 | S163: 2836 | T163: 2862 | U163: 2847 | V163: 2719 | W163: 2714 | X163: 2775 | Y163: 2841 | Z163: 2903 | AA163: 3050 | AB163: 2465 | AC163: 2495 | AD163: 2584 | AE163: 2472 | AF163: 2303 | AG163: 2090 | AH163: 2054 | AI163: 2091 | AJ163: 2087 | AK163: 1908 | AL163: 1827 | AM163: 1652 | AN163: 1422 | AO163: 1359 | AP163: 1400 | AQ163: 1228 | AR163: 1103 | AS163: 881 | AT163: 774 | AU163: 647 | AV163: 584 | AW163: 2159
